Workbook

Sheet Circuit Criminal
M2: County Fiscal Year 2014-2015 | T2: CountyNames
M3: Collections Quarterly Report Form for CCOC | T3: Alachua
C4: Report for Quarter Ending: | D4: December 2014 | T4: Baker
C5: Version #: | D5: 2 | T5: Bay
C6: County: | D6: Brevard | F6: Contact Person: | G6: Michelle Levar | I6: Telephone #: | J6: 321-633-7782 | T6: Bradford
T7: Brevard
C8: Court/Case Type: | D8: Circuit Criminal | G8: Performance Measure Standard: | H8: 0.09 | I8: Email: | J8: Michelle.levar@brevardclerk.us | T8: Broward
L9: Action Plan | N9: 1 | O9: 1 | P9: December 2014 | T9: Calhoun
C10: Control Groups | D10: 10/01/13 - 12/31/13 | E10: 01/01/14 - 03/31/14 | F10: 04/01/14 - 06/30/14 | G10: 07/01/14 - 09/30/14 | H10: 10/01/14 - 12/31/14 | I10: 01/01/15 - 03/31/15 | J10: 04/01/15 - 06/30/15 | K10: 07/01/15 - 09/30/15 | L10: Reason Code | M10: Current Actions to Improve | O10: 2 | P10: March 2015 | T10: Charlotte | V10: 5
A11: =LEFT(B11,3)&" "&RIGHT(B11,6) -> CGE CQ1-15 | B11: CGE CQ1-15 | C11: RPE 12/31/13 | D11: Qtr 1 | E11: Qtr 2 | F11: Qtr 3 | G11: Qtr 4 | H11: Qtr 5 | N11: Economy | O11: 3 | P11: June 2015 | T11: Citrus | U11: =D6&" "&D8 -> Brevard Circuit Criminal | V11: 0.15
C12: C = Cumulative Collections | D12: =LOOKUP($U$11,Lookup!$C$3:$C$605,Lookup!I$3:I$596) -> 31332.7 | E12: =LOOKUP($U$11,Lookup!$C$3:$C$605,Lookup!J$3:J$596) -> 41750.23 | F12: =LOOKUP($U$11,Lookup!$C$3:$C$605,Lookup!K$3:K$596) -> 53214.02 | G12: =LOOKUP($U$11,Lookup!$C$3:$C$605,Lookup!L$3:L$596) -> 62612.05 | H12: 77321.69 | N12: Incarcerations | O12: 4 | P12: September 2015 | T12: Clay | U12: =IF(P13=TRUE,A11,"") -> CGE CQ1-15
C13: A = Amount Assessed - Adjusted | D13: =LOOKUP($U$11,Lookup!$C$3:$C$605,Lookup!D$3:D$596) -> 866803.45 | E13: =LOOKUP($U$11,Lookup!$C$3:$C$605,Lookup!E$3:E$596) -> 850092.95 | F13: =LOOKUP($U$11,Lookup!$C$3:$C$605,Lookup!F$3:F$596) -> 841820.45 | G13: =LOOKUP($U$11,Lookup!$C$3:$C$605,Lookup!G$3:G$596) -> 838108.45 | H13: 835657.45 | N13: Late/Non-pay/Pay Plans | O13: 5 | P13: =OR(AND(E12<D12,E12>0),AND(F12<E12,F12>0),AND(G12<F12,G12>0),AND(H12<G12,H12>0),AND(F13>E13,E13>0),AND(G13>F13,F13>0),AND(H13<G13,G13>0)) -> TRUE | T13: Collier | U13: =IF(P14=TRUE,A15,"") -> 
C14: CR = Collection Rate | D14: =IF(ISBLANK(D12),"N/A",IF(OR(D12=0,D12="N/A"),0,D12/D13)) -> 0.03614741035 | E14: =IF(ISBLANK(E12),"N/A",IF(OR(E12=0,E12="N/A"),0,E12/E13)) -> 0.04911254705 | F14: =IF(ISBLANK(F12),"N/A",IF(OR(F12=0,F12="N/A"),0,F12/F13)) -> 0.06321302838 | G14: =IF(ISBLANK(G12),"N/A",IF(OR(G12=0,G12="N/A"),0,G12/G13)) -> 0.07470638197 | H14: =IF(ISBLANK(H12),"N/A",IF(AND(H12=0,H13=0,NOT(ISBLANK(H12)),NOT(ISBLANK(H13))),1,H12/H13)) -> 0.09252797303 | N14: Mandatory Assessment | O14: 6 | P14: =OR(AND(F16<E16,F16>0),AND(G16<F16,G16>0),AND(H16<G16,H16>0),AND(I16<H16,I16>0),AND(G17>F17, F17>0),AND(H17>G17, G17>0),AND(I17<H17,I17>0)) -> FALSE | T14: Columbia | U14: =IF(P15=TRUE,A19,"") -> 
A15: =LEFT(B15,3)&" "&RIGHT(B15,6) -> CGE CQ2-15 | B15: CGE CQ2-15 | C15: RPE 03/31/14 | E15: Qtr 1 | F15: Qtr 2 | G15: Qtr 3 | H15: Qtr 4 | I15: Qtr 5 | N15: Incarcerations with Mandatory Assessment | O15: 7 | P15: =OR(AND(G20<F20,D10>0),AND(H20<G20,H20>0),AND(I20<H20,I20>0),AND(J20<I20,J20>0),AND(H21>G21, G21>0),AND(I21>H21, H21>0),AND(J21<I21, J21>0)) -> FALSE | T15: Dade | U15: =IF(P16=TRUE,A23,"") -> 
C16: C = Cumulative Collections | E16: =LOOKUP($U$11,Lookup!$C$3:$C$605,Lookup!S$3:S$605) -> 36911.36 | F16: =LOOKUP($U$11,Lookup!$C$3:$C$605,Lookup!T$3:T$605) -> 48045.17 | G16: =LOOKUP($U$11,Lookup!$C$3:$C$605,Lookup!U$3:U$605) -> 62401.62 | H16: 72074.72 | N16: Other | O16: 8 | P16: =OR(AND(H24<G24, H24>0),AND(I24<H24, I24>0),AND(J24<I24, J24>0),AND(K24<J24, K24>0),AND(I25>H25, H25>0),AND(J25>I25, I25>0),AND(K25<J25, J25>0)) -> FALSE | T16: Desoto | U16: =IF(P17=TRUE,A27,"") -> 
C17: A = Amount Assessed - Adjusted | E17: =LOOKUP($U$11,Lookup!$C$3:$C$605,Lookup!N$3:N$605) -> 972271 | F17: =LOOKUP($U$11,Lookup!$C$3:$C$605,Lookup!O$3:O$605) -> 958098 | G17: =LOOKUP($U$11,Lookup!$C$3:$C$605,Lookup!P$3:P$605) -> 950434 | H17: 946834 | N17: Procedural | O17: 9 | P17: =OR(AND(I28<H28, I28>0),AND(J28<I28, J28>0),AND(K28<J28, K28>0),AND(J29>I29, I29>0),AND(K29>J29, J29>0)) -> FALSE | T17: Dixie | U17: =IF(P18=TRUE,A31,"") -> 
C18: CR = Collection Rate | E18: =IF(ISBLANK(E16),"N/A",IF(OR(E16=0,E16="N/A"),0,E16/E17)) -> 0.03796406557 | F18: =IF(ISBLANK(F16),"N/A",IF(OR(F16=0,F16="N/A"),0,F16/F17)) -> 0.05014640465 | G18: =IF(ISBLANK(G16),"N/A",IF(OR(G16=0,G16="N/A"),0,G16/G17)) -> 0.0656559214 | H18: =IF(ISBLANK(H16),"N/A",IF(AND(H16=0,H17=0,NOT(ISBLANK(H16)),NOT(ISBLANK(H17))),1,H16/H17)) -> 0.07612181227 | I18: =IF(ISBLANK(I16),"N/A",IF(AND(I16=0,I17=0,NOT(ISBLANK(I16)),NOT(ISBLANK(I17))),1,I16/I17)) -> N/A | N18: Staffing - Insufficient Personnel | P18: =OR(AND(J32<I32, J32>0),AND(K32<J32, K32>0),AND(K33>J33, J33>0)) -> FALSE | T18: Duval | U18: =IF(P19=TRUE,A35,"") -> 
A19: =LEFT(B19,3)&" "&RIGHT(B19,6) -> CGE CQ3-15 | B19: CGE CQ3-15 | C19: RPE 06/30/14 | F19: Qtr 1 | G19: Qtr 2 | H19: Qtr 3 | I19: Qtr 4 | J19: Qtr 5 | N19: Staffing - Training Required | P19: =OR(K36<J36) -> FALSE | T19: Escambia | U19: =U12&" "&U13&" "&U14&" "&U15&" "&U16&" "&U17&" "&U18 -> CGE CQ1-15
C20: C = Cumulative Collections | F20: =LOOKUP($U$11,Lookup!$C$3:$C$605,Lookup!AC$3:AC$605) -> 43496.54 | G20: =LOOKUP($U$11,Lookup!$C$3:$C$605,Lookup!AD$3:AD$605) -> 63060.87 | H20: 78967.33 | N20: Systems | P20: =COUNTIF(P13:P19,"TRUE") -> 1 | T20: Flagler
C21: A = Amount Assessed - Adjusted | F21: =LOOKUP($U$11,Lookup!$C$3:$C$605,Lookup!X$3:X$605) -> 980938.95 | G21: =LOOKUP($U$11,Lookup!$C$3:$C$605,Lookup!Y$3:Y$605) -> 959487.45 | H21: 948627.45 | T21: Franklin
C22: CR = Collection Rate | F22: =IF(ISBLANK(F20),"N/A",IF(OR(F20=0,F20="N/A"),0,F20/F21)) -> 0.04434174013 | G22: =IF(ISBLANK(G20),"N/A",IF(OR(G20=0,G20="N/A"),0,G20/G21)) -> 0.06572349644 | H22: =IF(ISBLANK(H20),"N/A",IF(AND(H20=0,H21=0,NOT(ISBLANK(H20)),NOT(ISBLANK(H21))),1,H20/H21)) -> 0.08324377499 | I22: =IF(ISBLANK(I20),"N/A",IF(AND(I20=0,I21=0,NOT(ISBLANK(I20)),NOT(ISBLANK(I21))),1,I20/I21)) -> N/A | J22: =IF(ISBLANK(J20),"N/A",IF(AND(J20=0,J21=0,NOT(ISBLANK(J20)),NOT(ISBLANK(J21))),1,J20/J21)) -> N/A | O22: Q1 | P22: Q2 | T22: Gadsden
A23: =LEFT(B23,3)&" "&RIGHT(B23,6) -> CGE CQ4-15 | B23: CGE CQ4-15 | C23: RPE 09/30/14 | G23: Qtr 1 | H23: Qtr 2 | I23: Qtr 3 | J23: Qtr 4 | K23: Qtr 5 | O23: TRUE | P23: FALSE | Q23: =IF(AND(OR(ISBLANK(H12),ISBLANK(H13)),O23=FALSE),"Red","Gray") -> Gray | R23: =IF(AND(OR(ISBLANK(I16),ISBLANK(I17)),P23=FALSE),"Red","Gray") -> Red | S23: =IF(AND(D4=1,S36=1),A11,IF(AND(D4=2,S36=1),A15,IF(AND(D4=3,S36=1),A19,IF(AND(D4=4,S36=1),A23,"")))) ->  | T23: Gilchrist
C24: C = Cumulative Collections | G24: =LOOKUP($U$11,Lookup!$C$3:$C$605,Lookup!AM$3:AM$605) -> 35383.53 | H24: 51186.95 | O24: FALSE | P24: FALSE | Q24: =IF(AND(OR(ISBLANK(H16),ISBLANK(H17)),O24=FALSE),"Red","Gray") -> Gray | R24: =IF(AND(OR(ISBLANK(I20),ISBLANK(I21)),P24=FALSE),"Red","Gray") -> Red | S24: =IF(AND(D4=1,S37=1),A15,IF(AND(D4=2,S37=1),A19,IF(AND(D4=3,S37=1),A23,IF(AND(D4=4,S37=1),A27,"")))) ->  | T24: Glades
C25: A = Amount Assessed - Adjusted | G25: =LOOKUP($U$11,Lookup!$C$3:$C$605,Lookup!AH$3:AH$605) -> 964654 | H25: 945717 | O25: FALSE | P25: FALSE | Q25: =IF(AND(OR(ISBLANK(H20),ISBLANK(H21)),O25=FALSE),"Red","Gray") -> Gray | R25: =IF(AND(OR(ISBLANK(I24),ISBLANK(I25)),P25=FALSE),"Red","Gray") -> Red | S25: =IF(AND(D4=1,S38=1),A19,IF(AND(D4=2,S38=1),A23,IF(AND(D4=3,S38=1),A27,IF(AND(D4=4,S38=1),A31,"")))) ->  | T25: Gulf
C26: CR = Collection Rate | G26: =IF(ISBLANK(G24),"N/A",IF(OR(G24=0,G24="N/A"),0,G24/G25)) -> 0.03668002206 | H26: =IF(ISBLANK(H24),"N/A",IF(AND(H24=0,H25=0,NOT(ISBLANK(H24)),NOT(ISBLANK(H25))),1,H24/H25)) -> 0.05412501837 | I26: =IF(ISBLANK(I24),"N/A",IF(AND(I24=0,I25=0,NOT(ISBLANK(I24)),NOT(ISBLANK(I25))),1,I24/I25)) -> N/A | J26: =IF(ISBLANK(J24),"N/A",IF(AND(J24=0,J25=0,NOT(ISBLANK(J24)),NOT(ISBLANK(J25))),1,J24/J25)) -> N/A | K26: =IF(ISBLANK(K24),"N/A",IF(AND(K24=0,K25=0,NOT(ISBLANK(K24)),NOT(ISBLANK(K25))),1,K24/K25)) -> N/A | O26: FALSE | P26: FALSE | Q26: =IF(AND(OR(ISBLANK(H24),ISBLANK(H25)),O26=FALSE),"Red","Gray") -> Gray | R26: =IF(AND(OR(ISBLANK(I28),ISBLANK(I29)),P26=FALSE),"Red","Gray") -> Red | S26: =IF(AND(D4=1,S39=1),A23,IF(AND(D4=2,S39=1),A27,IF(AND(D4=3,S39=1),A31,IF(AND(D4=4,S39=1),A35,"")))) ->  | T26: Hamilton
A27: =LEFT(B27,3)&" "&RIGHT(B27,6) -> CGE CQ1-16 | B27: CGE CQ1-16 | C27: RPE 12/31/14 | H27: Qtr 1 | I27: Qtr 2 | J27: Qtr 3 | K27: Qtr 4 | O27: FALSE | P27: FALSE | Q27: =IF(AND(OR(ISBLANK(H28),ISBLANK(H29)),O27=FALSE),"Red","Gray") -> Gray | R27: =IF(AND(OR(ISBLANK(I32),ISBLANK(I33)),P27=FALSE),"Red","Gray") -> Red | S27: =IF(AND(D4=1,S40=1),A27,IF(AND(D4=2,S40=1),A31,IF(AND(D4=3,S40=1),A35,IF(AND(D4=4,S40=1),A39,"")))) ->  | T27: Hardee
C28: C = Cumulative Collections | H28: 41345.19 | T28: Hendry
C29: A = Amount Assessed - Adjusted | H29: 579827.95 | O29: Q3 | P29: Q4 | T29: Hernando
C30: CR = Collection Rate | H30: =IF(ISBLANK(H28),"N/A",IF(AND(H28=0,H29=0,NOT(ISBLANK(H28)),NOT(ISBLANK(H29))),1,H28/H29)) -> 0.0713059624 | I30: =IF(ISBLANK(I28),"N/A",IF(AND(I28=0,I29=0,NOT(ISBLANK(I28)),NOT(ISBLANK(I29))),1,I28/I29)) -> N/A | J30: =IF(ISBLANK(J28),"N/A",IF(AND(J28=0,J29=0,NOT(ISBLANK(J28)),NOT(ISBLANK(J29))),1,J28/J29)) -> N/A | K30: =IF(ISBLANK(K28),"N/A",IF(AND(K28=0,K29=0,NOT(ISBLANK(K28)),NOT(ISBLANK(K29))),1,K28/K29)) -> N/A | O30: FALSE | P30: FALSE | Q30: =IF(AND(OR(ISBLANK(J20),ISBLANK(J21)),O30=FALSE),"Red","Gray") -> Red | R30: =IF(AND(OR(ISBLANK(K24),ISBLANK(K25)),P30=FALSE),"Red","Gray") -> Red | T30: Highlands
A31: =LEFT(B31,3)&" "&RIGHT(B31,6) -> CGE CQ2-16 | B31: CGE CQ2-16 | C31: RPE 03/31/15 | I31: Qtr 1 | J31: Qtr 2 | K31: Qtr 3 | L31: Additional Notes Related to Collection Issues | O31: FALSE | P31: FALSE | Q31: =IF(AND(OR(ISBLANK(J24),ISBLANK(J25)),O31=FALSE),"Red","Gray") -> Red | R31: =IF(AND(OR(ISBLANK(K28),ISBLANK(K29)),P31=FALSE),"Red","Gray") -> Red | T31: Hillsborough
C32: C = Cumulative Collections | O32: FALSE | P32: FALSE | Q32: =IF(AND(OR(ISBLANK(J28),ISBLANK(J29)),O32=FALSE),"Red","Gray") -> Red | R32: =IF(AND(OR(ISBLANK(K32),ISBLANK(K33)),P32=FALSE),"Red","Gray") -> Red | T32: Holmes
C33: A = Amount Assessed - Adjusted | O33: FALSE | P33: FALSE | Q33: =IF(AND(OR(ISBLANK(J32),ISBLANK(J33)),O33=FALSE),"Red","Gray") -> Red | R33: =IF(AND(OR(ISBLANK(K36),ISBLANK(K37)),P33=FALSE),"Red","Gray") -> Red | T33: Indian River
C34: CR = Collection Rate | I34: =IF(ISBLANK(I32),"N/A",IF(AND(I32=0,I33=0,NOT(ISBLANK(I32)),NOT(ISBLANK(I33))),1,I32/I33)) -> N/A | J34: =IF(ISBLANK(J32),"N/A",IF(AND(J32=0,J33=0,NOT(ISBLANK(J32)),NOT(ISBLANK(J33))),1,J32/J33)) -> N/A | K34: =IF(ISBLANK(K32),"N/A",IF(AND(K32=0,K33=0,NOT(ISBLANK(K32)),NOT(ISBLANK(K33))),1,K32/K33)) -> N/A | O34: FALSE | P34: FALSE | Q34: =IF(AND(OR(ISBLANK(J36),ISBLANK(J37)),O34=FALSE),"Red","Gray") -> Red | R34: =IF(AND(OR(ISBLANK(K40),ISBLANK(K41)),P34=FALSE),"Red","Gray") -> Red | T34: Jackson
A35: =LEFT(B35,3)&" "&RIGHT(B35,6) -> CGE CQ3-16 | B35: CGE CQ3-16 | C35: RPE 06/30/15 | J35: Qtr 1 | K35: Qtr 2 | T35: Jefferson
C36: C = Cumulative Collections | O36: =IF(AND($D$4=1,Q23="Red"),"Red","Gray") -> Gray | P36: =IF(AND($D$4=2,R23="Red"),"Red","Gray") -> Gray | Q36: =IF(AND($D$4=3,Q30="Red"),"Red","Gray") -> Gray | R36: =IF(AND($D$4=4,R30="Red"),"Red","Gray") -> Gray | S36: =COUNTIF(O36:R36,"Red") -> 0 | T36: Lafayette
C37: A = Amount Assessed - Adjusted | O37: =IF(AND($D$4=1,Q24="Red"),"Red","Gray") -> Gray | P37: =IF(AND($D$4=2,R24="Red"),"Red","Gray") -> Gray | Q37: =IF(AND($D$4=3,Q31="Red"),"Red","Gray") -> Gray | R37: =IF(AND($D$4=4,R31="Red"),"Red","Gray") -> Gray | S37: =COUNTIF(O37:R37,"Red") -> 0 | T37: Lake
C38: CR = Collection Rate | J38: =IF(ISBLANK(J36),"N/A",IF(AND(J36=0,J37=0,NOT(ISBLANK(J36)),NOT(ISBLANK(J37))),1,J36/J37)) -> N/A | K38: =IF(ISBLANK(K36),"N/A",IF(AND(K36=0,K37=0,NOT(ISBLANK(K36)),NOT(ISBLANK(K37))),1,K36/K37)) -> N/A | O38: =IF(AND($D$4=1,Q25="Red"),"Red","Gray") -> Gray | P38: =IF(AND($D$4=2,R25="Red"),"Red","Gray") -> Gray | Q38: =IF(AND($D$4=3,Q32="Red"),"Red","Gray") -> Gray | R38: =IF(AND($D$4=4,R32="Red"),"Red","Gray") -> Gray | S38: =COUNTIF(O38:R38,"Red") -> 0 | T38: Lee
A39: =LEFT(B39,3)&" "&RIGHT(B39,6) -> CGE CQ4-16 | B39: CGE CQ4-16 | C39: RPE 09/30/15 | K39: Qtr 1 | O39: =IF(AND($D$4=1,Q26="Red"),"Red","Gray") -> Gray | P39: =IF(AND($D$4=2,R26="Red"),"Red","Gray") -> Gray | Q39: =IF(AND($D$4=3,Q33="Red"),"Red","Gray") -> Gray | R39: =IF(AND($D$4=4,R33="Red"),"Red","Gray") -> Gray | S39: =COUNTIF(O39:R39,"Red") -> 0 | T39: Leon
C40: C = Cumulative Collections | O40: =IF(AND($D$4=1,Q27="Red"),"Red","Gray") -> Gray | P40: =IF(AND($D$4=2,R27="Red"),"Red","Gray") -> Gray | Q40: =IF(AND($D$4=3,Q34="Red"),"Red","Gray") -> Gray | R40: =IF(AND($D$4=4,R34="Red"),"Red","Gray") -> Gray | S40: =COUNTIF(O40:R40,"Red") -> 0 | T40: Levy
C41: A = Amount Assessed - Adjusted | O41: =COUNTIF(O36:O40,"Red") -> 0 | P41: =COUNTIF(P36:P40,"Red") -> 0 | Q41: =COUNTIF(Q36:Q40,"Red") -> 0 | R41: =COUNTIF(R36:R40,"Red") -> 0 | T41: Liberty
C42: CR = Collection Rate | K42: =IF(ISBLANK(K40),"N/A",IF(OR(K40=0,K40="N/A"),0,K40/K41)) -> N/A | O42: =SUM(O41:R41) -> 0 | T42: Madison
B43: NOTES: | T43: Manatee
B44: Business Rules | D44: 1.) Assessment amount is adjusted each quarter based on business rules within the control group, it is based on the amount that was originally assessed in the first quarter. | T44: Martin
D45: 2.) Quarter 5 Action Plan Note: If Collection Rate is below Standard (highlighted in red), please include a "Reason Code" and "Current Action to Improve". These comments will automatically feed the "Action Plan" tab. | T45: Nassau
D46: 3.) Additional Notes: Please include additional information to explain either of the following conditions that are not consistant with the Collection Report Business Rules. (These dollars will result in a red font): | T46: Okaloosa
E47: a.) Cumulative Collection amount has Decreased from the previous quarter in the same Control Group | T47: Okeechobee
E48: b.) The Amount Assessed - Adjusted has Increased from the previous quarter in the same Control Group | T48: Orange
T49: Palm Beach
T50: Pasco
B51: 0 | D51: Issue | F51: Calc 1 Needed | G51: Calc 2 Needed | H51: Calc 3 Needed | I51: Calc 4 Needed | J51: Standard | T51: Pinellas
A52: =D$8 -> Circuit Criminal | B52: =IF(E52="YES",MAX(B51)+1,0) -> 0 | C52: =A$11 -> CGE CQ1-15 | D52: ="After 3rd Q, Collections went up by more than set percentage of: "&TEXT(J52,"#0%") -> After 3rd Q, Collections went up by more than set percentage of: 500% | E52: =IF(MAX(F52:G52)>V$10,"YES","NO") -> NO | F52: =IFERROR(IF(NOT(ISBLANK(G12)),(G12-F12)/F12,0),0) -> 0.176608157 | G52: =IFERROR(IF(NOT(ISBLANK(H12)),(H12-G12)/G12,0),0) -> 0.234933052 | J52: =V$10 -> 5 | T52: Polk
A53: Circuit Criminal | B53: =IF(E53="YES",MAX(B$51:B52)+1,0) -> 0 | C53: =A$11 -> CGE CQ1-15 | D53: ="Assessments dropped by more than set percentage of: "&TEXT(J53,"#0%") -> Assessments dropped by more than set percentage of: 15% | E53: =IF(MIN(F53:I53)<(-1*V$11),"YES","NO") -> NO | F53: =IFERROR(IF(NOT(ISBLANK(E13)),(E13-D13)/D13,0),0) -> -0.01927830352 | G53: =IFERROR(IF(NOT(ISBLANK(F13)),(F13-E13)/E13,0),0) -> -0.009731288796 | H53: =IFERROR(IF(NOT(ISBLANK(G13)),(G13-F13)/F13,0),0) -> -0.004409491359 | I53: =IFERROR(IF(NOT(ISBLANK(H13)),(H13-G13)/G13,0),0) -> -0.002924442535 | J53: =V$11 -> 0.15 | T53: Putnam
A54: Circuit Criminal | B54: =IF(E54="YES",MAX(B$51:B53)+1,0) -> 0 | C54: =A$11 -> CGE CQ1-15 | D54: ="The 5th Quarter Collection Rate did not meet the established performance measure standard of: "&TEXT(J54,"#0%") -> The 5th Quarter Collection Rate did not meet the established performance measure standard of: 9% | E54: =IF(F54="N/A","NO",IF(F54<H$8,"YES","NO")) -> NO | F54: =H14 -> 0.09252797303 | J54: =H$8 -> 0.09 | T54: Santa Rosa
A55: Circuit Criminal | B55: =IF(E55="YES",MAX(B$51:B54)+1,0) -> 0 | C55: =A$11 -> CGE CQ1-15 | D55: Collections amount decreased from prior quarter | E55: =IF(MIN(F55:I55)<0,"YES","NO") -> NO | F55: =IFERROR(IF(NOT(ISBLANK(E12)),(E12-D12)/D12,0),0) -> 0.3324810821 | G55: 0.2745802837 | H55: 0.176608157 | I55: 0.234933052 | T55: Sarasota
A56: Circuit Criminal | B56: =IF(E56="YES",MAX(B$51:B55)+1,0) -> 0 | C56: =A$11 -> CGE CQ1-15 | D56: Assessment amount increased from prior quarter | E56: =IF(MAX(F56:I56)>0,"YES","NO") -> NO | F56: -0.01927830352 | G56: -0.009731288796 | H56: -0.004409491359 | I56: -0.002924442535 | T56: Seminole
A57: Circuit Criminal | B57: =IF(E57="YES",MAX(B$51:B56)+1,0) -> 0 | C57: =A$15 -> CGE CQ2-15 | D57: ="After 3rd Q, Collections went up by more than set percentage of: "&TEXT(J57,"#0%") -> After 3rd Q, Collections went up by more than set percentage of: 500% | E57: =IF(MAX(F57:G57)>V$10,"YES","NO") -> NO | F57: =IFERROR(IF(NOT(ISBLANK(H16)),(H16-G16)/G16,0),0) -> 0.1550136038 | G57: =IFERROR(IF(NOT(ISBLANK(I16)),(I16-H16)/H16,0),0) -> 0 | J57: =V$10 -> 5 | T57: St. Johns
A58: Circuit Criminal | B58: =IF(E58="YES",MAX(B$51:B57)+1,0) -> 0 | C58: =A$15 -> CGE CQ2-15 | D58: ="Assessments dropped by more than set percentage of: "&TEXT(J58,"#0%") -> Assessments dropped by more than set percentage of: 15% | E58: =IF(MIN(F58:I58)<(-1*V$11),"YES","NO") -> NO | F58: =IFERROR(IF(NOT(ISBLANK(F17)),(F17-E17)/E17,0),0) -> -0.0145772115 | G58: =IFERROR(IF(NOT(ISBLANK(G17)),(G17-F17)/F17,0),0) -> -0.007999181712 | H58: =IFERROR(IF(NOT(ISBLANK(H17)),(H17-G17)/G17,0),0) -> -0.003787743284 | I58: =IFERROR(IF(NOT(ISBLANK(I17)),(I17-H17)/H17,0),0) -> 0 | J58: =V$11 -> 0.15 | T58: St. Lucie
A59: Circuit Criminal | B59: =IF(E59="YES",MAX(B$51:B58)+1,0) -> 0 | C59: =A$15 -> CGE CQ2-15 | D59: Collections amount decreased from prior quarter | E59: =IF(MIN(F59:I59)<0,"YES","NO") -> NO | F59: =IFERROR(IF(NOT(ISBLANK(F16)),(F16-E16)/E16,0),0) -> 0.3016364068 | G59: 0.2988115142 | H59: 0.1550136038 | I59: 0 | T59: Sumter
A60: Circuit Criminal | B60: =IF(E60="YES",MAX(B$51:B59)+1,0) -> 0 | C60: =A$15 -> CGE CQ2-15 | D60: Assessment amount increased from prior quarter | E60: =IF(MAX(F60:I60)>0,"YES","NO") -> NO | F60: -0.0145772115 | G60: -0.007999181712 | H60: -0.003787743284 | I60: 0 | T60: Suwannee
A61: Circuit Criminal | B61: =IF(E61="YES",MAX(B$51:B60)+1,0) -> 0 | C61: =A$15 -> CGE CQ2-15 | D61: ="The 5th Quarter Collection Rate did not meet the established performance measure standard of: "&TEXT(J61,"#0%") -> The 5th Quarter Collection Rate did not meet the established performance measure standard of: 9% | E61: =IF(F61="N/A","NO",IF(F61<H$8,"YES","NO")) -> NO | F61: =I18 -> N/A | J61: =H$8 -> 0.09 | T61: Taylor
A62: Circuit Criminal | B62: =IF(E62="YES",MAX(B$51:B61)+1,0) -> 0 | C62: =A$19 -> CGE CQ3-15 | D62: ="After 3rd Q, Collections went up by more than set percentage of: "&TEXT(J62,"#0%") -> After 3rd Q, Collections went up by more than set percentage of: 500% | E62: =IF(MAX(F62:G62)>V$10,"YES","NO") -> NO | F62: =IFERROR(IF(NOT(ISBLANK(I20)),(I20-H20)/H20,0),0) -> 0 | G62: =IFERROR(IF(NOT(ISBLANK(J20)),(J20-I20)/I20,0),0) -> 0 | J62: =V$10 -> 5 | T62: Union
A63: Circuit Criminal | B63: =IF(E63="YES",MAX(B$51:B62)+1,0) -> 0 | C63: =A$19 -> CGE CQ3-15 | D63: ="Assessments dropped by more than set percentage of: "&TEXT(J63,"#0%") -> Assessments dropped by more than set percentage of: 15% | E63: =IF(MIN(F63:I63)<(-1*V$11),"YES","NO") -> NO | F63: =IFERROR(IF(NOT(ISBLANK(G21)),(G21-F21)/F21,0),0) -> -0.0218683334 | G63: =IFERROR(IF(NOT(ISBLANK(H21)),(H21-G21)/G21,0),0) -> -0.01131854304 | H63: =IFERROR(IF(NOT(ISBLANK(I21)),(I21-H21)/H21,0),0) -> 0 | I63: =IFERROR(IF(NOT(ISBLANK(J21)),(J21-I21)/I21,0),0) -> 0 | J63: =V$11 -> 0.15 | T63: Volusia
A64: Circuit Criminal | B64: =IF(E64="YES",MAX(B$51:B63)+1,0) -> 0 | C64: =A$19 -> CGE CQ3-15 | D64: Collections amount decreased from prior quarter | E64: =IF(MIN(F64:I64)<0,"YES","NO") -> NO | F64: =IFERROR(IF(NOT(ISBLANK(G20)),(G20-F20)/F20,0),0) -> 0.4497904891 | G64: 0.2522397804 | H64: 0 | I64: 0 | T64: Wakulla
A65: Circuit Criminal | B65: =IF(E65="YES",MAX(B$51:B64)+1,0) -> 0 | C65: =A$19 -> CGE CQ3-15 | D65: Assessment amount increased from prior quarter | E65: =IF(MAX(F65:I65)>0,"YES","NO") -> NO | F65: -0.0218683334 | G65: -0.01131854304 | H65: 0 | I65: 0 | T65: Walton
A66: Circuit Criminal | B66: =IF(E66="YES",MAX(B$51:B65)+1,0) -> 0 | C66: =A$19 -> CGE CQ3-15 | D66: ="The 5th Quarter Collection Rate did not meet the established performance measure standard of: "&TEXT(J66,"#0%") -> The 5th Quarter Collection Rate did not meet the established performance measure standard of: 9% | E66: =IF(F66="N/A","NO",IF(F66<H$8,"YES","NO")) -> NO | F66: =J22 -> N/A | J66: =H$8 -> 0.09 | T66: Washington
A67: Circuit Criminal | B67: =IF(E67="YES",MAX(B$51:B66)+1,0) -> 0 | C67: =A$23 -> CGE CQ4-15 | D67: ="After 3rd Q, Collections went up by more than set percentage of: "&TEXT(J67,"#0%") -> After 3rd Q, Collections went up by more than set percentage of: 500% | E67: =IF(MAX(F67:G67)>V$10,"YES","NO") -> NO | F67: =IFERROR(IF(NOT(ISBLANK(J24)),(J24-I24)/I24,0),0) -> 0 | G67: =IFERROR(IF(NOT(ISBLANK(K24)),(K24-J24)/J24,0),0) -> 0 | J67: =V$10 -> 5
A68: Circuit Criminal | B68: =IF(E68="YES",MAX(B$51:B67)+1,0) -> 0 | C68: =A$23 -> CGE CQ4-15 | D68: ="Assessments dropped by more than set percentage of: "&TEXT(J68,"#0%") -> Assessments dropped by more than set percentage of: 15% | E68: =IF(MIN(F68:I68)<(-1*V$11),"YES","NO") -> NO | F68: =IFERROR(IF(NOT(ISBLANK(H25)),(H25-G25)/G25,0),0) -> -0.01963087283 | G68: =IFERROR(IF(NOT(ISBLANK(I25)),(I25-H25)/H25,0),0) -> 0 | H68: =IFERROR(IF(NOT(ISBLANK(J25)),(J25-I25)/I25,0),0) -> 0 | I68: =IFERROR(IF(NOT(ISBLANK(K25)),(K25-J25)/J25,0),0) -> 0 | J68: =V$11 -> 0.15
A69: Circuit Criminal | B69: =IF(E69="YES",MAX(B$51:B68)+1,0) -> 0 | C69: =A$23 -> CGE CQ4-15 | D69: Collections amount decreased from prior quarter | E69: =IF(MIN(F69:I69)<0,"YES","NO") -> NO | F69: =IFERROR(IF(NOT(ISBLANK(H24)),(H24-G24)/G24,0),0) -> 0.4466320913 | G69: 0 | H69: 0 | I69: 0
A70: Circuit Criminal | B70: =IF(E70="YES",MAX(B$51:B69)+1,0) -> 0 | C70: =A$23 -> CGE CQ4-15 | D70: Assessment amount increased from prior quarter | E70: =IF(MAX(F70:I70)>0,"YES","NO") -> NO | F70: -0.01963087283 | G70: 0 | H70: 0 | I70: 0
A71: Circuit Criminal | B71: =IF(E71="YES",MAX(B$51:B70)+1,0) -> 0 | C71: =A$23 -> CGE CQ4-15 | D71: ="The 5th Quarter Collection Rate did not meet the established performance measure standard of: "&TEXT(J71,"#0%") -> The 5th Quarter Collection Rate did not meet the established performance measure standard of: 9% | E71: =IF(F71="N/A","NO",IF(F71<H$8,"YES","NO")) -> NO | F71: =K26 -> N/A | J71: =H$8 -> 0.09
A72: Circuit Criminal | B72: =IF(E72="YES",MAX(B$51:B71)+1,0) -> 0 | C72: =A$27 -> CGE CQ1-16 | D72: ="After 3rd Q, Collections went up by more than set percentage of: "&TEXT(J72,"#0%") -> After 3rd Q, Collections went up by more than set percentage of: 500% | E72: =IF(MAX(F72)>V$10,"YES","NO") -> NO | F72: =IFERROR(IF(NOT(ISBLANK(K28)),(K28-J28)/J28,0),0) -> 0 | J72: =V$10 -> 5
A73: Circuit Criminal | B73: =IF(E73="YES",MAX(B$51:B72)+1,0) -> 0 | C73: =A$27 -> CGE CQ1-16 | D73: ="Assessments dropped by more than set percentage of: "&TEXT(J73,"#0%") -> Assessments dropped by more than set percentage of: 15% | E73: =IF(MIN(F73:H73)<(-1*V$11),"YES","NO") -> NO | F73: =IFERROR(IF(NOT(ISBLANK(I29)),(I29-H29)/H29,0),0) -> 0 | G73: =IFERROR(IF(NOT(ISBLANK(J29)),(J29-I29)/I29,0),0) -> 0 | H73: =IFERROR(IF(NOT(ISBLANK(K29)),(K29-J29)/J29,0),0) -> 0 | J73: =V$11 -> 0.15
A74: Circuit Criminal | B74: =IF(E74="YES",MAX(B$51:B73)+1,0) -> 0 | C74: =A$27 -> CGE CQ1-16 | D74: Collections amount decreased from prior quarter | E74: =IF(MIN(F74:H74)<0,"YES","NO") -> NO | F74: =IFERROR(IF(NOT(ISBLANK(I28)),(I28-H28)/H28,0),0) -> 0 | G74: 0 | H74: 0
A75: Circuit Criminal | B75: =IF(E75="YES",MAX(B$51:B74)+1,0) -> 0 | C75: =A$27 -> CGE CQ1-16 | D75: Assessment amount increased from prior quarter | E75: =IF(MAX(F75:H75)>0,"YES","NO") -> NO | F75: 0 | G75: 0 | H75: 0
A76: Circuit Criminal | B76: =IF(E76="YES",MAX(B$51:B75)+1,0) -> 0 | C76: =A$31 -> CGE CQ2-16 | D76: ="Assessments dropped by more than set percentage of: "&TEXT(J76,"#0%") -> Assessments dropped by more than set percentage of: 15% | E76: =IF(MIN(F76:G76)<(-1*V$11),"YES","NO") -> NO | F76: =IFERROR(IF(NOT(ISBLANK(J33)),(J33-I33)/I33,0),0) -> 0 | G76: =IFERROR(IF(NOT(ISBLANK(K33)),(K33-J33)/J33,0),0) -> 0 | J76: =V$11 -> 0.15
A77: Circuit Criminal | B77: =IF(E77="YES",MAX(B$51:B76)+1,0) -> 0 | C77: =A$31 -> CGE CQ2-16 | D77: Collections amount decreased from prior quarter | E77: =IF(MIN(F77:G77)<0,"YES","NO") -> NO | F77: =IFERROR(IF(NOT(ISBLANK(J32)),(J32-I32)/I32,0),0) -> 0 | G77: =IFERROR(IF(NOT(ISBLANK(K32)),(K32-J32)/J32,0),0) -> 0
A78: Circuit Criminal | B78: =IF(E78="YES",MAX(B$51:B77)+1,0) -> 0 | C78: =A$31 -> CGE CQ2-16 | D78: Assessment amount increased from prior quarter | E78: =IF(MAX(F78:G78)>0,"YES","NO") -> NO | F78: =IFERROR(IF(NOT(ISBLANK(J33)),(J33-I33)/I33,0),0) -> 0 | G78: =IFERROR(IF(NOT(ISBLANK(K33)),(K33-J33)/J33,0),0) -> 0
A79: Circuit Criminal | B79: =IF(E79="YES",MAX(B$51:B78)+1,0) -> 0 | C79: =A$35 -> CGE CQ3-16 | D79: ="Assessments dropped by more than set percentage of: "&TEXT(J79,"#0%") -> Assessments dropped by more than set percentage of: 15% | E79: =IF(MIN(F79)<(-1*V$11),"YES","NO") -> NO | F79: =IFERROR(IF(NOT(ISBLANK(K37)),(K37-J37)/J37,0),0) -> 0 | J79: =V$11 -> 0.15
A80: Circuit Criminal | B80: =IF(E80="YES",MAX(B$51:B79)+1,0) -> 0 | C80: =A$35 -> CGE CQ3-16 | D80: Collections amount decreased from prior quarter | E80: =IF(MIN(F80)<0,"YES","NO") -> NO | F80: =IFERROR(IF(NOT(ISBLANK(K36)),(K36-J36)/J36,0),0) -> 0
A81: Circuit Criminal | B81: =IF(E81="YES",MAX(B$51:B80)+1,0) -> 0 | C81: =A$35 -> CGE CQ3-16 | D81: Assessment amount increased from prior quarter | E81: =IF(MAX(F81)>0,"YES","NO") -> NO | F81: =IFERROR(IF(NOT(ISBLANK(K37)),(K37-J37)/J37,0),0) -> 0

Sheet Circuit Criminal Drug Cases
M2: County Fiscal Year 2014-2015 | T2: CountyNames
M3: Collections Quarterly Report Form for CCOC | T3: Alachua
C4: Report for Quarter Ending: | D4: ='Circuit Criminal'!$D$4 -> December 2014 | T4: Baker
C5: Version #: | D5: ='Circuit Criminal'!$D$5 -> 2 | T5: Bay
C6: County: | D6: ='Circuit Criminal'!D6 -> Brevard | F6: Circuit Criminal Drug Cases -- Not included in Corrective Action Plan | T6: Bradford
T7: Brevard
C8: Court/Case Type: | D8: Circuit Criminal Drug Cases | F8: Note: The Collection and Amount Assessed are subsets of the entire dollars posted in the Circuit Criminal Court Division tab . | T8: Broward
F9: This break-out is in response to CCOC Executive Council direction to isolate criminal drug case collection rates.
N10: 1 | O10: 1 | P10: September, 2013 | Q10: 1 | T10: Calhoun
C11: Control Groups | D11: 10/01/13 - 12/31/13 | E11: 01/01/14 - 03/31/14 | F11: 04/01/14 - 06/30/14 | G11: 07/01/14 - 09/30/14 | H11: 10/01/14 - 12/31/14 | I11: 01/01/15 - 03/31/15 | J11: 04/01/15 - 06/30/15 | K11: 07/01/15 - 09/30/15 | O11: 2 | T11: Charlotte | V11: 5
A12: =LEFT(B12,3)&" "&RIGHT(B12,6) -> CGE CQ1-15 | B12: CGE CQ1-15 | C12: RPE 12/31/13 | D12: Qtr 1 | E12: Qtr 2 | F12: Qtr 3 | G12: Qtr 4 | H12: Qtr 5 | N12: Economy | O12: 3 | Q12: 3 | T12: Citrus | U12: =D6&" "&D8 -> Brevard Circuit Criminal Drug Cases | V12: 0.15
C13: C = Cumulative Collections | N13: Incarcerations | O13: 4 | Q13: 4 | T13: Clay | U13: =IF(P14=TRUE,A12,"") -> 
C14: A = Amount Assessed - Adjusted | N14: Late/Non-pay/Pay Plans | O14: 5 | P14: =OR(AND(E13<D13,E13>0),AND(F13<E13,F13>0),AND(G13<F13,G13>0),AND(H13<G13,H13>0),AND(F14>E14,E14>0),AND(G14>F14,F14>0),AND(H14<G14,G14>0)) -> FALSE | Q14: 5 | T14: Collier | U14: =IF(P15=TRUE,A16,"") -> 
C15: CR = Collection Rate | D15: =IF(ISBLANK(D13),"N/A",IF(OR(D13=0,D13="N/A"),0,D13/D14)) -> N/A | E15: =IF(ISBLANK(E13),"N/A",IF(OR(E13=0,E13="N/A"),0,E13/E14)) -> N/A | F15: =IF(ISBLANK(F13),"N/A",IF(OR(F13=0,F13="N/A"),0,F13/F14)) -> N/A | G15: =IF(ISBLANK(G13),"N/A",IF(OR(G13=0,G13="N/A"),0,G13/G14)) -> N/A | H15: =IF(ISBLANK(H13),"N/A",IF(AND(H13=0,H14=0,NOT(ISBLANK(H13)),NOT(ISBLANK(H14))),1,H13/H14)) -> N/A | N15: Mandatory Assessment | P15: =OR(AND(F17<E17,F17>0),AND(G17<F17,G17>0),AND(H17<G17,H17>0),AND(I17<H17,I17>0),AND(G18>F18, F18>0),AND(H18>G18, G18>0),AND(I18<H18,I18>0)) -> FALSE | Q15: 6 | T15: Columbia | U15: =IF(P16=TRUE,A20,"") -> 
A16: =LEFT(B16,3)&" "&RIGHT(B16,6) -> CGE CQ2-15 | B16: CGE CQ2-15 | C16: RPE 03/31/14 | E16: Qtr 1 | F16: Qtr 2 | G16: Qtr 3 | H16: Qtr 4 | I16: Qtr 5 | N16: Other | P16: =OR(AND(G21<F21,D11>0),AND(H21<G21,H21>0),AND(I21<H21,I21>0),AND(J21<I21,J21>0),AND(H22>G22, G22>0),AND(I22>H22, H22>0),AND(J22<I22, J22>0)) -> FALSE | Q16: 7 | T16: Dade | U16: =IF(P17=TRUE,A24,"") -> 
C17: C = Cumulative Collections | N17: Procedural | P17: =OR(AND(H25<G25, H25>0),AND(I25<H25, I25>0),AND(J25<I25, J25>0),AND(K25<J25, K25>0),AND(I26>H26, H26>0),AND(J26>I26, I26>0),AND(K26<J26, J26>0)) -> FALSE | Q17: 8 | T17: Desoto | U17: =IF(P18=TRUE,A28,"") -> 
C18: A = Amount Assessed - Adjusted | N18: Staffing - Insufficient Personnel | P18: =OR(AND(I29<H29, I29>0),AND(J29<I29, J29>0),AND(K29<J29, K29>0),AND(J30>I30, I30>0),AND(K30>J30, J30>0)) -> FALSE | Q18: 9 | T18: Dixie | U18: =IF(P19=TRUE,A32,"") -> 
C19: CR = Collection Rate | E19: =IF(ISBLANK(E17),"N/A",IF(OR(E17=0,E17="N/A"),0,E17/E18)) -> N/A | F19: =IF(ISBLANK(F17),"N/A",IF(OR(F17=0,F17="N/A"),0,F17/F18)) -> N/A | G19: =IF(ISBLANK(G17),"N/A",IF(OR(G17=0,G17="N/A"),0,G17/G18)) -> N/A | H19: =IF(ISBLANK(H17),"N/A",IF(AND(H17=0,H18=0,NOT(ISBLANK(H17)),NOT(ISBLANK(H18))),1,H17/H18)) -> N/A | I19: =IF(ISBLANK(I17),"N/A",IF(AND(I17=0,I18=0,NOT(ISBLANK(I17)),NOT(ISBLANK(I18))),1,I17/I18)) -> N/A | N19: Staffing - Training Required | P19: =OR(AND(J33<I33, J33>0),AND(K33<J33, K33>0),AND(K34>J34, J34>0)) -> FALSE | Q19: 10 | T19: Duval | U19: =IF(P20=TRUE,A36,"") -> 
A20: =LEFT(B20,3)&" "&RIGHT(B20,6) -> CGE CQ3-15 | B20: CGE CQ3-15 | C20: RPE 06/30/14 | F20: Qtr 1 | G20: Qtr 2 | H20: Qtr 3 | I20: Qtr 4 | J20: Qtr 5 | N20: Systems | P20: =OR(K37<J37) -> FALSE | Q20: 11 | T20: Escambia | U20: =U13&" "&U14&" "&U15&" "&U16&" "&U17&" "&U18&" "&U19 -> 
C21: C = Cumulative Collections | P21: =COUNTIF(P14:P20,"TRUE") -> 0 | Q21: 12 | T21: Flagler
C22: A = Amount Assessed - Adjusted | T22: Franklin
C23: CR = Collection Rate | F23: =IF(ISBLANK(F21),"N/A",IF(OR(F21=0,F21="N/A"),0,F21/F22)) -> N/A | G23: =IF(ISBLANK(G21),"N/A",IF(OR(G21=0,G21="N/A"),0,G21/G22)) -> N/A | H23: =IF(ISBLANK(H21),"N/A",IF(AND(H21=0,H22=0,NOT(ISBLANK(H21)),NOT(ISBLANK(H22))),1,H21/H22)) -> N/A | I23: =IF(ISBLANK(I21),"N/A",IF(AND(I21=0,I22=0,NOT(ISBLANK(I21)),NOT(ISBLANK(I22))),1,I21/I22)) -> N/A | J23: =IF(ISBLANK(J21),"N/A",IF(AND(J21=0,J22=0,NOT(ISBLANK(J21)),NOT(ISBLANK(J22))),1,J21/J22)) -> N/A | O23: Q1 | P23: Q2 | T23: Gadsden
A24: =LEFT(B24,3)&" "&RIGHT(B24,6) -> CGE CQ4-15 | B24: CGE CQ4-15 | C24: RPE 09/30/14 | G24: Qtr 1 | H24: Qtr 2 | I24: Qtr 3 | J24: Qtr 4 | K24: Qtr 5 | L24: Note: Calculating the % of Circuit Criminal Collections that are | O24: FALSE | P24: FALSE | Q24: =IF(AND(OR(ISBLANK(H13),ISBLANK(H14)),O24=FALSE),"Red","Gray") -> Red | R24: =IF(AND(OR(ISBLANK(I17),ISBLANK(I18)),P24=FALSE),"Red","Gray") -> Red | S24: =IF(AND('Circuit Criminal'!D4=1,S37=1),A12,IF(AND('Circuit Criminal'!D4=2,S37=1),A16,IF(AND('Circuit Criminal'!D4=3,S37=1),A20,IF(AND('Circuit Criminal'!D4=4,S37=1),A24,"")))) ->  | T24: Gilchrist
C25: C = Cumulative Collections | L25: net of Criminal Drug assessments will begin with the | O25: FALSE | P25: FALSE | Q25: =IF(AND(OR(ISBLANK(H17),ISBLANK(H18)),O25=FALSE),"Red","Gray") -> Red | R25: =IF(AND(OR(ISBLANK(I21),ISBLANK(I22)),P25=FALSE),"Red","Gray") -> Red | S25: =IF(AND('Circuit Criminal'!D4=1,S38=1),A16,IF(AND('Circuit Criminal'!D4=2,S38=1),A20,IF(AND('Circuit Criminal'!D4=3,S38=1),A24,IF(AND('Circuit Criminal'!D4=4,S38=1),A28,"")))) ->  | T25: Glades
C26: A = Amount Assessed - Adjusted | L26: 1st quarterly assessment: CGE CQ1-16 reflected in the table below. | O26: FALSE | P26: FALSE | Q26: =IF(AND(OR(ISBLANK(H21),ISBLANK(H22)),O26=FALSE),"Red","Gray") -> Red | R26: =IF(AND(OR(ISBLANK(I25),ISBLANK(I26)),P26=FALSE),"Red","Gray") -> Red | S26: =IF(AND('Circuit Criminal'!D4=1,S39=1),A20,IF(AND('Circuit Criminal'!D4=2,S39=1),A24,IF(AND('Circuit Criminal'!D4=3,S39=1),A28,IF(AND('Circuit Criminal'!D4=4,S39=1),A32,"")))) ->  | T26: Gulf
C27: CR = Collection Rate | G27: =IF(ISBLANK(G25),"N/A",IF(OR(G25=0,G25="N/A"),0,G25/G26)) -> N/A | H27: =IF(ISBLANK(H25),"N/A",IF(AND(H25=0,H26=0,NOT(ISBLANK(H25)),NOT(ISBLANK(H26))),1,H25/H26)) -> N/A | I27: =IF(ISBLANK(I25),"N/A",IF(AND(I25=0,I26=0,NOT(ISBLANK(I25)),NOT(ISBLANK(I26))),1,I25/I26)) -> N/A | J27: =IF(ISBLANK(J25),"N/A",IF(AND(J25=0,J26=0,NOT(ISBLANK(J25)),NOT(ISBLANK(J26))),1,J25/J26)) -> N/A | K27: =IF(ISBLANK(K25),"N/A",IF(AND(K25=0,K26=0,NOT(ISBLANK(K25)),NOT(ISBLANK(K26))),1,K25/K26)) -> N/A | O27: FALSE | P27: FALSE | Q27: =IF(AND(OR(ISBLANK(H25),ISBLANK(H26)),O27=FALSE),"Red","Gray") -> Red | R27: =IF(AND(OR(ISBLANK(I29),ISBLANK(I30)),P27=FALSE),"Red","Gray") -> Red | S27: =IF(AND('Circuit Criminal'!D4=1,S40=1),A24,IF(AND('Circuit Criminal'!D4=2,S40=1),A28,IF(AND('Circuit Criminal'!D4=3,S40=1),A32,IF(AND('Circuit Criminal'!D4=4,S40=1),A36,"")))) ->  | T27: Hamilton
A28: =LEFT(B28,3)&" "&RIGHT(B28,6) -> CGE CQ1-16 | B28: CGE CQ1-16 | C28: RPE 12/31/14 | H28: Qtr 1 | I28: Qtr 2 | J28: Qtr 3 | K28: Qtr 4 | L28: =B28 -> CGE CQ1-16 | M28: 0 | O28: FALSE | P28: FALSE | Q28: =IF(AND(OR(ISBLANK(H29),ISBLANK(H30)),O28=FALSE),"Red","Gray") -> Gray | R28: =IF(AND(OR(ISBLANK(I33),ISBLANK(I34)),P28=FALSE),"Red","Gray") -> Red | S28: =IF(AND('Circuit Criminal'!D4=1,S41=1),A28,IF(AND('Circuit Criminal'!D4=2,S41=1),A32,IF(AND('Circuit Criminal'!D4=3,S41=1),A36,IF(AND('Circuit Criminal'!D4=4,S41=1),A40,"")))) ->  | T28: Hardee
C29: C = Cumulative Collections | H29: 222 | M29: 0 | T29: Hendry
C30: A = Amount Assessed - Adjusted | H30: 2308 | M30: 1 | O30: Q3 | P30: Q4 | T30: Hernando
C31: CR = Collection Rate | H31: =IF(ISBLANK(H29),"N/A",IF(AND(H29=0,H30=0,NOT(ISBLANK(H29)),NOT(ISBLANK(H30))),1,H29/H30)) -> 0.09618717504 | J31: =IF(ISBLANK(J29),"N/A",IF(AND(J29=0,J30=0,NOT(ISBLANK(J29)),NOT(ISBLANK(J30))),1,J29/J30)) -> N/A | K31: =IF(ISBLANK(K29),"N/A",IF(AND(K29=0,K30=0,NOT(ISBLANK(K29)),NOT(ISBLANK(K30))),1,K29/K30)) -> N/A | O31: FALSE | P31: FALSE | Q31: =IF(AND(OR(ISBLANK(J21),ISBLANK(J22)),O31=FALSE),"Red","Gray") -> Red | R31: =IF(AND(OR(ISBLANK(K25),ISBLANK(K26)),P31=FALSE),"Red","Gray") -> Red | T31: Highlands
A32: =LEFT(B32,3)&" "&RIGHT(B32,6) -> CGE CQ2-16 | B32: CGE CQ2-16 | C32: RPE 03/31/15 | I32: Qtr 1 | J32: Qtr 2 | K32: Qtr 3 | L32: =B32 -> CGE CQ2-16 | M32: 0 | O32: FALSE | P32: FALSE | Q32: =IF(AND(OR(ISBLANK(J25),ISBLANK(J26)),O32=FALSE),"Red","Gray") -> Red | R32: =IF(AND(OR(ISBLANK(K29),ISBLANK(K30)),P32=FALSE),"Red","Gray") -> Red | T32: Hillsborough
C33: C = Cumulative Collections | M33: 0 | O33: FALSE | P33: FALSE | Q33: =IF(AND(OR(ISBLANK(J29),ISBLANK(J30)),O33=FALSE),"Red","Gray") -> Red | R33: =IF(AND(OR(ISBLANK(K33),ISBLANK(K34)),P33=FALSE),"Red","Gray") -> Red | T33: Holmes
C34: A = Amount Assessed - Adjusted | M34: 1 | O34: FALSE | P34: FALSE | Q34: =IF(AND(OR(ISBLANK(J33),ISBLANK(J34)),O34=FALSE),"Red","Gray") -> Red | R34: =IF(AND(OR(ISBLANK(K37),ISBLANK(K38)),P34=FALSE),"Red","Gray") -> Red | T34: Indian River
C35: CR = Collection Rate | I35: =IF(ISBLANK(I33),"N/A",IF(AND(I33=0,I34=0,NOT(ISBLANK(I33)),NOT(ISBLANK(I34))),1,I33/I34)) -> N/A | J35: =IF(ISBLANK(J33),"N/A",IF(AND(J33=0,J34=0,NOT(ISBLANK(J33)),NOT(ISBLANK(J34))),1,J33/J34)) -> N/A | K35: =IF(ISBLANK(K33),"N/A",IF(AND(K33=0,K34=0,NOT(ISBLANK(K33)),NOT(ISBLANK(K34))),1,K33/K34)) -> N/A | O35: FALSE | P35: FALSE | Q35: =IF(AND(OR(ISBLANK(J37),ISBLANK(J38)),O35=FALSE),"Red","Gray") -> Red | R35: =IF(AND(OR(ISBLANK(K41),ISBLANK(K42)),P35=FALSE),"Red","Gray") -> Red | T35: Jackson
A36: =LEFT(B36,3)&" "&RIGHT(B36,6) -> CGE CQ3-16 | B36: CGE CQ3-16 | C36: RPE 06/30/15 | J36: Qtr 1 | K36: Qtr 2 | L36: =B36 -> CGE CQ3-16 | M36: 0 | T36: Jefferson
C37: C = Cumulative Collections | M37: 0 | O37: =IF(AND('Circuit Criminal'!$D$4=1,Q24="Red"),"Red","Gray") -> Gray | P37: =IF(AND('Circuit Criminal'!$D$4=2,R24="Red"),"Red","Gray") -> Gray | Q37: =IF(AND('Circuit Criminal'!$D$4=3,Q31="Red"),"Red","Gray") -> Gray | R37: =IF(AND('Circuit Criminal'!$D$4=4,R31="Red"),"Red","Gray") -> Gray | S37: =COUNTIF(O37:R37,"Red") -> 0 | T37: Lafayette
C38: A = Amount Assessed - Adjusted | M38: 1 | O38: =IF(AND('Circuit Criminal'!$D$4=1,Q25="Red"),"Red","Gray") -> Gray | P38: =IF(AND('Circuit Criminal'!$D$4=2,R25="Red"),"Red","Gray") -> Gray | Q38: =IF(AND('Circuit Criminal'!$D$4=3,Q32="Red"),"Red","Gray") -> Gray | R38: =IF(AND('Circuit Criminal'!$D$4=4,R32="Red"),"Red","Gray") -> Gray | S38: =COUNTIF(O38:R38,"Red") -> 0 | T38: Lake
C39: CR = Collection Rate | J39: =IF(ISBLANK(J37),"N/A",IF(AND(J37=0,J38=0,NOT(ISBLANK(J37)),NOT(ISBLANK(J38))),1,J37/J38)) -> N/A | K39: =IF(ISBLANK(K37),"N/A",IF(AND(K37=0,K38=0,NOT(ISBLANK(K37)),NOT(ISBLANK(K38))),1,K37/K38)) -> N/A | O39: =IF(AND('Circuit Criminal'!$D$4=1,Q26="Red"),"Red","Gray") -> Gray | P39: =IF(AND('Circuit Criminal'!$D$4=2,R26="Red"),"Red","Gray") -> Gray | Q39: =IF(AND('Circuit Criminal'!$D$4=3,Q33="Red"),"Red","Gray") -> Gray | R39: =IF(AND('Circuit Criminal'!$D$4=4,R33="Red"),"Red","Gray") -> Gray | S39: =COUNTIF(O39:R39,"Red") -> 0 | T39: Lee
A40: =LEFT(B40,3)&" "&RIGHT(B40,6) -> CGE CQ4-16 | B40: CGE CQ4-16 | C40: RPE 09/30/15 | K40: Qtr 1 | L40: =B40 -> CGE CQ4-16 | M40: ='Circuit Criminal'!H24-'Circuit Criminal Drug Cases'!H25 -> 51186.95 | O40: =IF(AND('Circuit Criminal'!$D$4=1,Q27="Red"),"Red","Gray") -> Gray | P40: =IF(AND('Circuit Criminal'!$D$4=2,R27="Red"),"Red","Gray") -> Gray | Q40: =IF(AND('Circuit Criminal'!$D$4=3,Q34="Red"),"Red","Gray") -> Gray | R40: =IF(AND('Circuit Criminal'!$D$4=4,R34="Red"),"Red","Gray") -> Gray | S40: =COUNTIF(O40:R40,"Red") -> 0 | T40: Leon
C41: C = Cumulative Collections | M41: ='Circuit Criminal'!H25-'Circuit Criminal Drug Cases'!H26 -> 945717 | O41: =IF(AND('Circuit Criminal'!$D$4=1,Q28="Red"),"Red","Gray") -> Gray | P41: =IF(AND('Circuit Criminal'!$D$4=2,R28="Red"),"Red","Gray") -> Gray | Q41: =IF(AND('Circuit Criminal'!$D$4=3,Q35="Red"),"Red","Gray") -> Gray | R41: =IF(AND('Circuit Criminal'!$D$4=4,R35="Red"),"Red","Gray") -> Gray | S41: =COUNTIF(O41:R41,"Red") -> 0 | T41: Levy
C42: A = Amount Assessed - Adjusted | M42: 1 | O42: =COUNTIF(O37:O41,"Red") -> 0 | P42: =COUNTIF(P37:P41,"Red") -> 0 | Q42: =COUNTIF(Q37:Q41,"Red") -> 0 | R42: =COUNTIF(R37:R41,"Red") -> 0 | T42: Liberty
C43: CR = Collection Rate | K43: =IF(ISBLANK(K41),"N/A",IF(OR(K41=0,K41="N/A"),0,K41/K42)) -> N/A | O43: =SUM(O42:R42) -> 0 | T43: Madison
B44: NOTES: | T44: Manatee
B45: Business Rules | D45: 1.) Assessment amount is adjusted each quarter based on business rules within the control group, it is based on the amount that was originally assessed in the first quarter. | T45: Martin
D46: 2.) Quarter 5 Action Plan Note: If Collection Rate is below Standard (highlighted in red), please include a "Reason Code" and "Current Action to Improve". These comments will automatically feed the "Action Plan" tab. | T46: Nassau
D47: 3.) Additional Notes: Please include additional information to explain either of the following conditions that are not consistant with the Collection Report Business Rules. (These dollars will result in a red font): | T47: Okaloosa
E48: a.) Cumulative Collection amount has Decreased from the previous quarter in the same Control Group | T48: Okeechobee
E49: b.) The Amount Assessed - Adjusted has Increased from the previous quarter in the same Control Group | T49: Orange
B50: =MAX('Circuit Criminal'!B51:B98) -> 0 | D50: Issue | F50: Calc 1 Needed | G50: Calc 2 Needed | H50: Calc 3 Needed | I50: Calc 4 Needed | J50: Standard | T50: Putnam
A51: =D$8 -> Circuit Criminal Drug Cases | B51: =IF(E51="YES",MAX(B50)+1,0) -> 0 | C51: =A$12 -> CGE CQ1-15 | D51: ="After 3rd Q, Collections went up by more than set percentage of: "&TEXT(J51,"#0%") -> After 3rd Q, Collections went up by more than set percentage of: 500% | E51: =IF(MAX(F51:G51)>V$11,"YES","NO") -> NO | F51: =IFERROR(IF(NOT(ISBLANK(G13)),(G13-F13)/F13,0),0) -> 0 | G51: =IFERROR(IF(NOT(ISBLANK(H13)),(H13-G13)/G13,0),0) -> 0 | J51: =V$11 -> 5 | T51: Santa Rosa
A52: =D$8 -> Circuit Criminal Drug Cases | B52: =IF(E52="YES",MAX(B$50:B51)+1,0) -> 0 | C52: =A$12 -> CGE CQ1-15 | D52: ="Assessments dropped by more than set percentage of: "&TEXT(J52,"#0%") -> Assessments dropped by more than set percentage of: 15% | E52: =IF(MIN(F52:I52)<(-1*V$12),"YES","NO") -> NO | F52: =IFERROR(IF(NOT(ISBLANK(E14)),(E14-D14)/D14,0),0) -> 0 | G52: =IFERROR(IF(NOT(ISBLANK(F14)),(F14-E14)/E14,0),0) -> 0 | H52: =IFERROR(IF(NOT(ISBLANK(G14)),(G14-F14)/F14,0),0) -> 0 | I52: =IFERROR(IF(NOT(ISBLANK(H14)),(H14-G14)/G14,0),0) -> 0 | J52: =V$12 -> 0.15 | T52: Sumter
A53: Circuit Criminal Drug Cases | B53: =IF(E53="YES",MAX(B$50:B52)+1,0) -> 0 | C53: =A$12 -> CGE CQ1-15 | D53: ="The 5th Quarter Collection Rate did not meet the established performance measure standard of: "&TEXT(J53,"#0%") -> The 5th Quarter Collection Rate did not meet the established performance measure standard of: 0% | E53: =IF(F53="N/A","NO",IF(F53<H$8,"YES","NO")) -> NO | F53: =H15 -> N/A | J53: =H$8 -> 0 | T53: Washington
A54: Circuit Criminal Drug Cases | B54: =IF(E54="YES",MAX(B$50:B53)+1,0) -> 0 | C54: =A$12 -> CGE CQ1-15 | D54: Collections amount decreased from prior quarter | E54: =IF(MIN(F54:I54)<0,"YES","NO") -> NO | F54: =IFERROR(IF(NOT(ISBLANK(E13)),(E13-D13)/D13,0),0) -> 0 | G54: 0 | H54: 0 | I54: 0
A55: Circuit Criminal Drug Cases | B55: =IF(E55="YES",MAX(B$50:B54)+1,0) -> 0 | C55: =A$12 -> CGE CQ1-15 | D55: Assessment amount increased from prior quarter | E55: =IF(MAX(F55:I55)>0,"YES","NO") -> NO | F55: 0 | G55: 0 | H55: 0 | I55: 0
A56: Circuit Criminal Drug Cases | B56: =IF(E56="YES",MAX(B$50:B55)+1,0) -> 0 | C56: =A$16 -> CGE CQ2-15 | D56: ="After 3rd Q, Collections went up by more than set percentage of: "&TEXT(J56,"#0%") -> After 3rd Q, Collections went up by more than set percentage of: 500% | E56: =IF(MAX(F56:G56)>V$11,"YES","NO") -> NO | F56: =IFERROR(IF(NOT(ISBLANK(H17)),(H17-G17)/G17,0),0) -> 0 | G56: =IFERROR(IF(NOT(ISBLANK(I17)),(I17-H17)/H17,0),0) -> 0 | J56: =V$11 -> 5 | T56: Sarasota
A57: Circuit Criminal Drug Cases | B57: =IF(E57="YES",MAX(B$50:B56)+1,0) -> 0 | C57: =A$16 -> CGE CQ2-15 | D57: ="Assessments dropped by more than set percentage of: "&TEXT(J57,"#0%") -> Assessments dropped by more than set percentage of: 15% | E57: =IF(MIN(F57:I57)<(-1*V$12),"YES","NO") -> NO | F57: =IFERROR(IF(NOT(ISBLANK(F18)),(F18-E18)/E18,0),0) -> 0 | G57: =IFERROR(IF(NOT(ISBLANK(G18)),(G18-F18)/F18,0),0) -> 0 | H57: =IFERROR(IF(NOT(ISBLANK(H18)),(H18-G18)/G18,0),0) -> 0 | I57: =IFERROR(IF(NOT(ISBLANK(I18)),(I18-H18)/H18,0),0) -> 0 | J57: =V$12 -> 0.15 | T57: Suwannee
A58: Circuit Criminal Drug Cases | B58: =IF(E58="YES",MAX(B$50:B57)+1,0) -> 0 | C58: =A$16 -> CGE CQ2-15 | D58: Collections amount decreased from prior quarter | E58: =IF(MIN(F58:I58)<0,"YES","NO") -> NO | F58: =IFERROR(IF(NOT(ISBLANK(F17)),(F17-E17)/E17,0),0) -> 0 | G58: 0 | H58: 0 | I58: 0
A59: Circuit Criminal Drug Cases | B59: =IF(E59="YES",MAX(B$50:B58)+1,0) -> 0 | C59: =A$16 -> CGE CQ2-15 | D59: Assessment amount increased from prior quarter | E59: =IF(MAX(F59:I59)>0,"YES","NO") -> NO | F59: 0 | G59: 0 | H59: 0 | I59: 0
A60: Circuit Criminal Drug Cases | B60: =IF(E60="YES",MAX(B$50:B59)+1,0) -> 0 | C60: =A$16 -> CGE CQ2-15 | D60: ="The 5th Quarter Collection Rate did not meet the established performance measure standard of: "&TEXT(J60,"#0%") -> The 5th Quarter Collection Rate did not meet the established performance measure standard of: 0% | E60: =IF(F60="N/A","NO",IF(F60<H$8,"YES","NO")) -> NO | F60: =I19 -> N/A | J60: =H$8 -> 0
A61: Circuit Criminal Drug Cases | B61: =IF(E61="YES",MAX(B$50:B60)+1,0) -> 0 | C61: =A$20 -> CGE CQ3-15 | D61: ="After 3rd Q, Collections went up by more than set percentage of: "&TEXT(J61,"#0%") -> After 3rd Q, Collections went up by more than set percentage of: 500% | E61: =IF(MAX(F61:G61)>V$11,"YES","NO") -> NO | F61: =IFERROR(IF(NOT(ISBLANK(I21)),(I21-H21)/H21,0),0) -> 0 | G61: =IFERROR(IF(NOT(ISBLANK(J21)),(J21-I21)/I21,0),0) -> 0 | J61: =V$11 -> 5 | T61: Seminole
A62: Circuit Criminal Drug Cases | B62: =IF(E62="YES",MAX(B$50:B61)+1,0) -> 0 | C62: =A$20 -> CGE CQ3-15 | D62: ="Assessments dropped by more than set percentage of: "&TEXT(J62,"#0%") -> Assessments dropped by more than set percentage of: 15% | E62: =IF(MIN(F62:I62)<(-1*V$12),"YES","NO") -> NO | F62: =IFERROR(IF(NOT(ISBLANK(G22)),(G22-F22)/F22,0),0) -> 0 | G62: =IFERROR(IF(NOT(ISBLANK(H22)),(H22-G22)/G22,0),0) -> 0 | H62: =IFERROR(IF(NOT(ISBLANK(I22)),(I22-H22)/H22,0),0) -> 0 | I62: =IFERROR(IF(NOT(ISBLANK(J22)),(J22-I22)/I22,0),0) -> 0 | J62: =V$12 -> 0.15 | T62: Taylor
A63: Circuit Criminal Drug Cases | B63: =IF(E63="YES",MAX(B$50:B62)+1,0) -> 0 | C63: =A$20 -> CGE CQ3-15 | D63: Collections amount decreased from prior quarter | E63: =IF(MIN(F63:I63)<0,"YES","NO") -> NO | F63: =IFERROR(IF(NOT(ISBLANK(G21)),(G21-F21)/F21,0),0) -> 0 | G63: 0 | H63: 0 | I63: 0
A64: Circuit Criminal Drug Cases | B64: =IF(E64="YES",MAX(B$50:B63)+1,0) -> 0 | C64: =A$20 -> CGE CQ3-15 | D64: Assessment amount increased from prior quarter | E64: =IF(MAX(F64:I64)>0,"YES","NO") -> NO | F64: 0 | G64: 0 | H64: 0 | I64: 0
A65: Circuit Criminal Drug Cases | B65: =IF(E65="YES",MAX(B$50:B64)+1,0) -> 0 | C65: =A$20 -> CGE CQ3-15 | D65: ="The 5th Quarter Collection Rate did not meet the established performance measure standard of: "&TEXT(J65,"#0%") -> The 5th Quarter Collection Rate did not meet the established performance measure standard of: 0% | E65: =IF(F65="N/A","NO",IF(F65<H$8,"YES","NO")) -> NO | F65: =J23 -> N/A | J65: =H$8 -> 0
A66: Circuit Criminal Drug Cases | B66: =IF(E66="YES",MAX(B$50:B65)+1,0) -> 0 | C66: =A$24 -> CGE CQ4-15 | D66: ="After 3rd Q, Collections went up by more than set percentage of: "&TEXT(J66,"#0%") -> After 3rd Q, Collections went up by more than set percentage of: 500% | E66: =IF(MAX(F66:G66)>V$11,"YES","NO") -> NO | F66: =IFERROR(IF(NOT(ISBLANK(J25)),(J25-I25)/I25,0),0) -> 0 | G66: =IFERROR(IF(NOT(ISBLANK(K25)),(K25-J25)/J25,0),0) -> 0 | J66: =V$11 -> 5 | T66: St. Johns
A67: Circuit Criminal Drug Cases | B67: =IF(E67="YES",MAX(B$50:B66)+1,0) -> 0 | C67: =A$24 -> CGE CQ4-15 | D67: ="Assessments dropped by more than set percentage of: "&TEXT(J67,"#0%") -> Assessments dropped by more than set percentage of: 15% | E67: =IF(MIN(F67:I67)<(-1*V$12),"YES","NO") -> NO | F67: =IFERROR(IF(NOT(ISBLANK(H26)),(H26-G26)/G26,0),0) -> 0 | G67: =IFERROR(IF(NOT(ISBLANK(I26)),(I26-H26)/H26,0),0) -> 0 | H67: =IFERROR(IF(NOT(ISBLANK(J26)),(J26-I26)/I26,0),0) -> 0 | I67: =IFERROR(IF(NOT(ISBLANK(K26)),(K26-J26)/J26,0),0) -> 0 | J67: =V$12 -> 0.15 | T67: Union
A68: Circuit Criminal Drug Cases | B68: =IF(E68="YES",MAX(B$50:B67)+1,0) -> 0 | C68: =A$24 -> CGE CQ4-15 | D68: Collections amount decreased from prior quarter | E68: =IF(MIN(F68:I68)<0,"YES","NO") -> NO | F68: =IFERROR(IF(NOT(ISBLANK(H25)),(H25-G25)/G25,0),0) -> 0 | G68: 0 | H68: 0 | I68: 0
A69: Circuit Criminal Drug Cases | B69: =IF(E69="YES",MAX(B$50:B68)+1,0) -> 0 | C69: =A$24 -> CGE CQ4-15 | D69: Assessment amount increased from prior quarter | E69: =IF(MAX(F69:I69)>0,"YES","NO") -> NO | F69: 0 | G69: 0 | H69: 0 | I69: 0
A70: Circuit Criminal Drug Cases | B70: =IF(E70="YES",MAX(B$50:B69)+1,0) -> 0 | C70: =A$24 -> CGE CQ4-15 | D70: ="The 5th Quarter Collection Rate did not meet the established performance measure standard of: "&TEXT(J70,"#0%") -> The 5th Quarter Collection Rate did not meet the established performance measure standard of: 0% | E70: =IF(F70="N/A","NO",IF(F70<H$8,"YES","NO")) -> NO | F70: =K27 -> N/A | J70: =H$8 -> 0
A71: Circuit Criminal Drug Cases | B71: =IF(E71="YES",MAX(B$50:B70)+1,0) -> 0 | C71: =A$28 -> CGE CQ1-16 | D71: ="After 3rd Q, Collections went up by more than set percentage of: "&TEXT(J71,"#0%") -> After 3rd Q, Collections went up by more than set percentage of: 500% | E71: =IF(MAX(F71)>V$11,"YES","NO") -> NO | F71: =IFERROR(IF(NOT(ISBLANK(K29)),(K29-J29)/J29,0),0) -> 0 | J71: =V$11 -> 5 | T71: St. Lucie
A72: Circuit Criminal Drug Cases | B72: =IF(E72="YES",MAX(B$50:B71)+1,0) -> 0 | C72: =A$28 -> CGE CQ1-16 | D72: ="Assessments dropped by more than set percentage of: "&TEXT(J72,"#0%") -> Assessments dropped by more than set percentage of: 15% | E72: =IF(MIN(F72:H72)<(-1*V$12),"YES","NO") -> NO | F72: =IFERROR(IF(NOT(ISBLANK(I30)),(I30-H30)/H30,0),0) -> 0 | G72: =IFERROR(IF(NOT(ISBLANK(J30)),(J30-I30)/I30,0),0) -> 0 | H72: =IFERROR(IF(NOT(ISBLANK(K30)),(K30-J30)/J30,0),0) -> 0 | J72: =V$12 -> 0.15 | T72: Volusia
A73: Circuit Criminal Drug Cases | B73: =IF(E73="YES",MAX(B$50:B72)+1,0) -> 0 | C73: =A$28 -> CGE CQ1-16 | D73: Collections amount decreased from prior quarter | E73: =IF(MIN(F73:H73)<0,"YES","NO") -> NO | F73: =IFERROR(IF(NOT(ISBLANK(I29)),(I29-H29)/H29,0),0) -> 0 | G73: 0 | H73: 0
A74: Circuit Criminal Drug Cases | B74: =IF(E74="YES",MAX(B$50:B73)+1,0) -> 0 | C74: =A$28 -> CGE CQ1-16 | D74: Assessment amount increased from prior quarter | E74: =IF(MAX(F74:H74)>0,"YES","NO") -> NO | F74: 0 | G74: 0 | H74: 0
A75: Circuit Criminal Drug Cases | B75: =IF(E75="YES",MAX(B$50:B74)+1,0) -> 0 | C75: =A$32 -> CGE CQ2-16 | D75: ="Assessments dropped by more than set percentage of: "&TEXT(J75,"#0%") -> Assessments dropped by more than set percentage of: 15% | E75: =IF(MIN(F75:G75)<(-1*V$12),"YES","NO") -> NO | F75: =IFERROR(IF(NOT(ISBLANK(J34)),(J34-I34)/I34,0),0) -> 0 | G75: =IFERROR(IF(NOT(ISBLANK(K34)),(K34-J34)/J34,0),0) -> 0 | J75: =V$12 -> 0.15 | T75: Wakulla
A76: Circuit Criminal Drug Cases | B76: =IF(E76="YES",MAX(B$50:B75)+1,0) -> 0 | C76: =A$32 -> CGE CQ2-16 | D76: Collections amount decreased from prior quarter | E76: =IF(MIN(F76:G76)<0,"YES","NO") -> NO | F76: =IFERROR(IF(NOT(ISBLANK(J33)),(J33-I33)/I33,0),0) -> 0 | G76: =IFERROR(IF(NOT(ISBLANK(K33)),(K33-J33)/J33,0),0) -> 0
A77: Circuit Criminal Drug Cases | B77: =IF(E77="YES",MAX(B$50:B76)+1,0) -> 0 | C77: =A$32 -> CGE CQ2-16 | D77: Assessment amount increased from prior quarter | E77: =IF(MAX(F77:G77)>0,"YES","NO") -> NO | F77: =IFERROR(IF(NOT(ISBLANK(J34)),(J34-I34)/I34,0),0) -> 0 | G77: =IFERROR(IF(NOT(ISBLANK(K34)),(K34-J34)/J34,0),0) -> 0
A78: Circuit Criminal Drug Cases | B78: =IF(E78="YES",MAX(B$50:B77)+1,0) -> 0 | C78: =A$36 -> CGE CQ3-16 | D78: ="Assessments dropped by more than set percentage of: "&TEXT(J78,"#0%") -> Assessments dropped by more than set percentage of: 15% | E78: =IF(MIN(F78)<(-1*V$12),"YES","NO") -> NO | F78: =IFERROR(IF(NOT(ISBLANK(K38)),(K38-J38)/J38,0),0) -> 0 | J78: =V$12 -> 0.15 | T78: Walton
A79: Circuit Criminal Drug Cases | B79: =IF(E79="YES",MAX(B$50:B78)+1,0) -> 0 | C79: =A$36 -> CGE CQ3-16 | D79: Collections amount decreased from prior quarter | E79: =IF(MIN(F79)<0,"YES","NO") -> NO | F79: =IFERROR(IF(NOT(ISBLANK(K37)),(K37-J37)/J37,0),0) -> 0
A80: Circuit Criminal Drug Cases | B80: =IF(E80="YES",MAX(B$50:B79)+1,0) -> 0 | C80: =A$36 -> CGE CQ3-16 | D80: Assessment amount increased from prior quarter | E80: =IF(MAX(F80)>0,"YES","NO") -> NO | F80: =IFERROR(IF(NOT(ISBLANK(K38)),(K38-J38)/J38,0),0) -> 0

Sheet County Criminal
M2: County Fiscal Year 2014-2015 | T2: CountyNames
M3: Collections Quarterly Report Form for CCOC | T3: Alachua
C4: Report for Quarter Ending: | D4: ='Circuit Criminal'!$D$4 -> December 2014 | T4: Baker
C5: Version #: | D5: ='Circuit Criminal'!$D$5 -> 2 | T5: Bay
C6: County: | D6: ='Circuit Criminal'!D6 -> Brevard | T6: Bradford
T7: Brevard
C8: Court/Case Type: | D8: County Criminal | G8: Performance Measure Standard: | H8: 0.4 | T8: Broward
L9: Action Plan | N9: 1 | O9: 1 | P9: September, 2013 | Q9: 1 | T9: Calhoun
C10: Control Groups | D10: 10/01/13 - 12/31/13 | E10: 01/01/14 - 03/31/14 | F10: 04/01/14 - 06/30/14 | G10: 07/01/14 - 09/30/14 | H10: 10/01/14 - 12/31/14 | I10: 01/01/15 - 03/31/15 | J10: 04/01/15 - 06/30/15 | K10: 07/01/15 - 09/30/15 | L10: Reason Code | M10: Current Actions to Improve | O10: 2 | T10: Charlotte | V10: 5
A11: =LEFT(B11,3)&" "&RIGHT(B11,6) -> CGE CQ1-15 | B11: CGE CQ1-15 | C11: RPE 12/31/13 | D11: Qtr 1 | E11: Qtr 2 | F11: Qtr 3 | G11: Qtr 4 | H11: Qtr 5 | N11: Economy | O11: 3 | Q11: 3 | T11: Citrus | U11: =D6&" "&D8 -> Brevard County Criminal | V11: 0.15
C12: C = Cumulative Collections | D12: =LOOKUP($U$11,Lookup!$C$3:$C$605,Lookup!I$3:I$596) -> 61797.71 | E12: =LOOKUP($U$11,Lookup!$C$3:$C$605,Lookup!J$3:J$596) -> 94690.47 | F12: =LOOKUP($U$11,Lookup!$C$3:$C$605,Lookup!K$3:K$596) -> 131262.07 | G12: =LOOKUP($U$11,Lookup!$C$3:$C$605,Lookup!L$3:L$596) -> 157309.5 | H12: 174274.06 | N12: Incarcerations | O12: 4 | Q12: 4 | T12: Clay | U12: =IF(P13=TRUE,A11,"") -> CGE CQ1-15
C13: A = Amount Assessed - Adjusted | D13: =LOOKUP($U$11,Lookup!$C$3:$C$605,Lookup!D$3:D$596) -> 439836 | E13: =LOOKUP($U$11,Lookup!$C$3:$C$605,Lookup!E$3:E$596) -> 429155 | F13: =LOOKUP($U$11,Lookup!$C$3:$C$605,Lookup!F$3:F$596) -> 427178 | G13: =LOOKUP($U$11,Lookup!$C$3:$C$605,Lookup!G$3:G$596) -> 426559 | H13: 425544.5 | N13: Late/Non-pay/Pay Plans | O13: 5 | P13: =OR(AND(E12<D12,E12>0),AND(F12<E12,F12>0),AND(G12<F12,G12>0),AND(H12<G12,H12>0),AND(F13>E13,E13>0),AND(G13>F13,F13>0),AND(H13<G13,G13>0)) -> TRUE | Q13: 5 | T13: Collier | U13: =IF(P14=TRUE,A15,"") -> 
C14: CR = Collection Rate | D14: =IF(ISBLANK(D12),"N/A",IF(OR(D12=0,D12="N/A"),0,D12/D13)) -> 0.1405017097 | E14: =IF(ISBLANK(E12),"N/A",IF(OR(E12=0,E12="N/A"),0,E12/E13)) -> 0.2206439864 | F14: =IF(ISBLANK(F12),"N/A",IF(OR(F12=0,F12="N/A"),0,F12/F13)) -> 0.307277224 | G14: =IF(ISBLANK(G12),"N/A",IF(OR(G12=0,G12="N/A"),0,G12/G13)) -> 0.3687872018 | H14: =IF(ISBLANK(H12),"N/A",IF(AND(H12=0,H13=0,NOT(ISBLANK(H12)),NOT(ISBLANK(H13))),1,H12/H13)) -> 0.4095319291 | N14: Mandatory Assessment | P14: =OR(AND(F16<E16,F16>0),AND(G16<F16,G16>0),AND(H16<G16,H16>0),AND(I16<H16,I16>0),AND(G17>F17, F17>0),AND(H17>G17, G17>0),AND(I17<H17,I17>0)) -> FALSE | Q14: 6 | T14: Columbia | U14: =IF(P15=TRUE,A19,"") -> 
A15: =LEFT(B15,3)&" "&RIGHT(B15,6) -> CGE CQ2-15 | B15: CGE CQ2-15 | C15: RPE 03/31/14 | E15: Qtr 1 | F15: Qtr 2 | G15: Qtr 3 | H15: Qtr 4 | I15: Qtr 5 | N15: Other | P15: =OR(AND(G20<F20,D10>0),AND(H20<G20,H20>0),AND(I20<H20,I20>0),AND(J20<I20,J20>0),AND(H21>G21, G21>0),AND(I21>H21, H21>0),AND(J21<I21, J21>0)) -> FALSE | Q15: 7 | T15: Dade | U15: =IF(P16=TRUE,A23,"") -> 
C16: C = Cumulative Collections | E16: =LOOKUP($U$11,Lookup!$C$3:$C$605,Lookup!S$3:S$605) -> 77295.94 | F16: =LOOKUP($U$11,Lookup!$C$3:$C$605,Lookup!T$3:T$605) -> 115770.85 | G16: =LOOKUP($U$11,Lookup!$C$3:$C$605,Lookup!U$3:U$605) -> 153354.46 | H16: 175166.28 | N16: Procedural | P16: =OR(AND(H24<G24, H24>0),AND(I24<H24, I24>0),AND(J24<I24, J24>0),AND(K24<J24, K24>0),AND(I25>H25, H25>0),AND(J25>I25, I25>0),AND(K25<J25, J25>0)) -> FALSE | Q16: 8 | T16: Desoto | U16: =IF(P17=TRUE,A27,"") -> 
C17: A = Amount Assessed - Adjusted | E17: =LOOKUP($U$11,Lookup!$C$3:$C$605,Lookup!N$3:N$605) -> 478855.8 | F17: =LOOKUP($U$11,Lookup!$C$3:$C$605,Lookup!O$3:O$605) -> 468915.8 | G17: =LOOKUP($U$11,Lookup!$C$3:$C$605,Lookup!P$3:P$605) -> 466969.8 | H17: 466147.8 | N17: Staffing - Insufficient Personnel | P17: =OR(AND(I28<H28, I28>0),AND(J28<I28, J28>0),AND(K28<J28, K28>0),AND(J29>I29, I29>0),AND(K29>J29, J29>0)) -> FALSE | Q17: 9 | T17: Dixie | U17: =IF(P18=TRUE,A31,"") -> 
C18: CR = Collection Rate | E18: =IF(ISBLANK(E16),"N/A",IF(OR(E16=0,E16="N/A"),0,E16/E17)) -> 0.1614179885 | F18: =IF(ISBLANK(F16),"N/A",IF(OR(F16=0,F16="N/A"),0,F16/F17)) -> 0.2468904865 | G18: =IF(ISBLANK(G16),"N/A",IF(OR(G16=0,G16="N/A"),0,G16/G17)) -> 0.3284033785 | H18: =IF(ISBLANK(H16),"N/A",IF(AND(H16=0,H17=0,NOT(ISBLANK(H16)),NOT(ISBLANK(H17))),1,H16/H17)) -> 0.3757741214 | I18: =IF(ISBLANK(I16),"N/A",IF(AND(I16=0,I17=0,NOT(ISBLANK(I16)),NOT(ISBLANK(I17))),1,I16/I17)) -> N/A | N18: Staffing - Training Required | P18: =OR(AND(J32<I32, J32>0),AND(K32<J32, K32>0),AND(K33>J33, J33>0)) -> FALSE | Q18: 10 | T18: Duval | U18: =IF(P19=TRUE,A35,"") -> 
A19: =LEFT(B19,3)&" "&RIGHT(B19,6) -> CGE CQ3-15 | B19: CGE CQ3-15 | C19: RPE 06/30/14 | F19: Qtr 1 | G19: Qtr 2 | H19: Qtr 3 | I19: Qtr 4 | J19: Qtr 5 | N19: Systems | P19: =OR(K36<J36) -> FALSE | Q19: 11 | T19: Escambia | U19: =U12&" "&U13&" "&U14&" "&U15&" "&U16&" "&U17&" "&U18 -> CGE CQ1-15
C20: C = Cumulative Collections | F20: =LOOKUP($U$11,Lookup!$C$3:$C$605,Lookup!AC$3:AC$605) -> 74685.52 | G20: =LOOKUP($U$11,Lookup!$C$3:$C$605,Lookup!AD$3:AD$605) -> 107609.16 | H20: 140302.59 | P20: =COUNTIF(P13:P19,"TRUE") -> 1 | Q20: 12 | T20: Flagler
C21: A = Amount Assessed - Adjusted | F21: =LOOKUP($U$11,Lookup!$C$3:$C$605,Lookup!X$3:X$605) -> 487507.57 | G21: =LOOKUP($U$11,Lookup!$C$3:$C$605,Lookup!Y$3:Y$605) -> 480892.57 | H21: 479561.57 | T21: Franklin
C22: CR = Collection Rate | F22: =IF(ISBLANK(F20),"N/A",IF(OR(F20=0,F20="N/A"),0,F20/F21)) -> 0.1531986878 | G22: =IF(ISBLANK(G20),"N/A",IF(OR(G20=0,G20="N/A"),0,G20/G21)) -> 0.2237696457 | H22: =IF(ISBLANK(H20),"N/A",IF(AND(H20=0,H21=0,NOT(ISBLANK(H20)),NOT(ISBLANK(H21))),1,H20/H21)) -> 0.2925642895 | I22: =IF(ISBLANK(I20),"N/A",IF(AND(I20=0,I21=0,NOT(ISBLANK(I20)),NOT(ISBLANK(I21))),1,I20/I21)) -> N/A | J22: =IF(ISBLANK(J20),"N/A",IF(AND(J20=0,J21=0,NOT(ISBLANK(J20)),NOT(ISBLANK(J21))),1,J20/J21)) -> N/A | O22: Q1 | P22: Q2 | T22: Gadsden
A23: =LEFT(B23,3)&" "&RIGHT(B23,6) -> CGE CQ4-15 | B23: CGE CQ4-15 | C23: RPE 09/30/14 | G23: Qtr 1 | H23: Qtr 2 | I23: Qtr 3 | J23: Qtr 4 | K23: Qtr 5 | O23: FALSE | P23: FALSE | Q23: =IF(AND(OR(ISBLANK(H12),ISBLANK(H13)),O23=FALSE),"Red","Gray") -> Gray | R23: =IF(AND(OR(ISBLANK(I16),ISBLANK(I17)),P23=FALSE),"Red","Gray") -> Red | S23: =IF(AND('Circuit Criminal'!D4=1,S36=1),A11,IF(AND('Circuit Criminal'!D4=2,S36=1),A15,IF(AND('Circuit Criminal'!D4=3,S36=1),A19,IF(AND('Circuit Criminal'!D4=4,S36=1),A23,"")))) ->  | T23: Gilchrist
C24: C = Cumulative Collections | G24: =LOOKUP($U$11,Lookup!$C$3:$C$605,Lookup!AM$3:AM$605) -> 65958.4 | H24: 93507.69 | O24: FALSE | P24: FALSE | Q24: =IF(AND(OR(ISBLANK(H16),ISBLANK(H17)),O24=FALSE),"Red","Gray") -> Gray | R24: =IF(AND(OR(ISBLANK(I20),ISBLANK(I21)),P24=FALSE),"Red","Gray") -> Red | S24: =IF(AND('Circuit Criminal'!D4=1,S37=1),A15,IF(AND('Circuit Criminal'!D4=2,S37=1),A19,IF(AND('Circuit Criminal'!D4=3,S37=1),A23,IF(AND('Circuit Criminal'!D4=4,S37=1),A27,"")))) ->  | T24: Glades
C25: A = Amount Assessed - Adjusted | G25: =LOOKUP($U$11,Lookup!$C$3:$C$605,Lookup!AH$3:AH$605) -> 469500.35 | H25: 460863.35 | O25: FALSE | P25: FALSE | Q25: =IF(AND(OR(ISBLANK(H20),ISBLANK(H21)),O25=FALSE),"Red","Gray") -> Gray | R25: =IF(AND(OR(ISBLANK(I24),ISBLANK(I25)),P25=FALSE),"Red","Gray") -> Red | S25: =IF(AND('Circuit Criminal'!D4=1,S38=1),A19,IF(AND('Circuit Criminal'!D4=2,S38=1),A23,IF(AND('Circuit Criminal'!D4=3,S38=1),A27,IF(AND('Circuit Criminal'!D4=4,S38=1),A31,"")))) ->  | T25: Gulf
C26: CR = Collection Rate | G26: =IF(ISBLANK(G24),"N/A",IF(OR(G24=0,G24="N/A"),0,G24/G25)) -> 0.1404863702 | H26: =IF(ISBLANK(H24),"N/A",IF(AND(H24=0,H25=0,NOT(ISBLANK(H24)),NOT(ISBLANK(H25))),1,H24/H25)) -> 0.2028967806 | I26: =IF(ISBLANK(I24),"N/A",IF(AND(I24=0,I25=0,NOT(ISBLANK(I24)),NOT(ISBLANK(I25))),1,I24/I25)) -> N/A | J26: =IF(ISBLANK(J24),"N/A",IF(AND(J24=0,J25=0,NOT(ISBLANK(J24)),NOT(ISBLANK(J25))),1,J24/J25)) -> N/A | K26: =IF(ISBLANK(K24),"N/A",IF(AND(K24=0,K25=0,NOT(ISBLANK(K24)),NOT(ISBLANK(K25))),1,K24/K25)) -> N/A | O26: FALSE | P26: FALSE | Q26: =IF(AND(OR(ISBLANK(H24),ISBLANK(H25)),O26=FALSE),"Red","Gray") -> Gray | R26: =IF(AND(OR(ISBLANK(I28),ISBLANK(I29)),P26=FALSE),"Red","Gray") -> Red | S26: =IF(AND('Circuit Criminal'!D4=1,S39=1),A23,IF(AND('Circuit Criminal'!D4=2,S39=1),A27,IF(AND('Circuit Criminal'!D4=3,S39=1),A31,IF(AND('Circuit Criminal'!D4=4,S39=1),A35,"")))) ->  | T26: Hamilton
A27: =LEFT(B27,3)&" "&RIGHT(B27,6) -> CGE CQ1-16 | B27: CGE CQ1-16 | C27: RPE 12/31/14 | H27: Qtr 1 | I27: Qtr 2 | J27: Qtr 3 | K27: Qtr 4 | O27: FALSE | P27: FALSE | Q27: =IF(AND(OR(ISBLANK(H28),ISBLANK(H29)),O27=FALSE),"Red","Gray") -> Gray | R27: =IF(AND(OR(ISBLANK(I32),ISBLANK(I33)),P27=FALSE),"Red","Gray") -> Red | S27: =IF(AND('Circuit Criminal'!D4=1,S40=1),A27,IF(AND('Circuit Criminal'!D4=2,S40=1),A31,IF(AND('Circuit Criminal'!D4=3,S40=1),A35,IF(AND('Circuit Criminal'!D4=4,S40=1),A39,"")))) ->  | T27: Hardee
C28: C = Cumulative Collections | H28: 61568.06 | T28: Hendry
C29: A = Amount Assessed - Adjusted | H29: 428220 | O29: Q3 | P29: Q4 | T29: Hernando
C30: CR = Collection Rate | H30: =IF(ISBLANK(H28),"N/A",IF(AND(H28=0,H29=0,NOT(ISBLANK(H28)),NOT(ISBLANK(H29))),1,H28/H29)) -> 0.1437767036 | I30: =IF(ISBLANK(I28),"N/A",IF(AND(I28=0,I29=0,NOT(ISBLANK(I28)),NOT(ISBLANK(I29))),1,I28/I29)) -> N/A | J30: =IF(ISBLANK(J28),"N/A",IF(AND(J28=0,J29=0,NOT(ISBLANK(J28)),NOT(ISBLANK(J29))),1,J28/J29)) -> N/A | K30: =IF(ISBLANK(K28),"N/A",IF(AND(K28=0,K29=0,NOT(ISBLANK(K28)),NOT(ISBLANK(K29))),1,K28/K29)) -> N/A | O30: FALSE | P30: FALSE | Q30: =IF(AND(OR(ISBLANK(J20),ISBLANK(J21)),O30=FALSE),"Red","Gray") -> Red | R30: =IF(AND(OR(ISBLANK(K24),ISBLANK(K25)),P30=FALSE),"Red","Gray") -> Red | T30: Highlands
A31: =LEFT(B31,3)&" "&RIGHT(B31,6) -> CGE CQ2-16 | B31: CGE CQ2-16 | C31: RPE 03/31/15 | I31: Qtr 1 | J31: Qtr 2 | K31: Qtr 3 | L31: Additional Notes Related to Collection Issues | O31: FALSE | P31: FALSE | Q31: =IF(AND(OR(ISBLANK(J24),ISBLANK(J25)),O31=FALSE),"Red","Gray") -> Red | R31: =IF(AND(OR(ISBLANK(K28),ISBLANK(K29)),P31=FALSE),"Red","Gray") -> Red | T31: Hillsborough
C32: C = Cumulative Collections | O32: FALSE | P32: FALSE | Q32: =IF(AND(OR(ISBLANK(J28),ISBLANK(J29)),O32=FALSE),"Red","Gray") -> Red | R32: =IF(AND(OR(ISBLANK(K32),ISBLANK(K33)),P32=FALSE),"Red","Gray") -> Red | T32: Holmes
C33: A = Amount Assessed - Adjusted | O33: FALSE | P33: FALSE | Q33: =IF(AND(OR(ISBLANK(J32),ISBLANK(J33)),O33=FALSE),"Red","Gray") -> Red | R33: =IF(AND(OR(ISBLANK(K36),ISBLANK(K37)),P33=FALSE),"Red","Gray") -> Red | T33: Indian River
C34: CR = Collection Rate | I34: =IF(ISBLANK(I32),"N/A",IF(AND(I32=0,I33=0,NOT(ISBLANK(I32)),NOT(ISBLANK(I33))),1,I32/I33)) -> N/A | J34: =IF(ISBLANK(J32),"N/A",IF(AND(J32=0,J33=0,NOT(ISBLANK(J32)),NOT(ISBLANK(J33))),1,J32/J33)) -> N/A | K34: =IF(ISBLANK(K32),"N/A",IF(AND(K32=0,K33=0,NOT(ISBLANK(K32)),NOT(ISBLANK(K33))),1,K32/K33)) -> N/A | O34: FALSE | P34: FALSE | Q34: =IF(AND(OR(ISBLANK(J36),ISBLANK(J37)),O34=FALSE),"Red","Gray") -> Red | R34: =IF(AND(OR(ISBLANK(K40),ISBLANK(K41)),P34=FALSE),"Red","Gray") -> Red | T34: Jackson
A35: =LEFT(B35,3)&" "&RIGHT(B35,6) -> CGE CQ3-16 | B35: CGE CQ3-16 | C35: RPE 06/30/15 | J35: Qtr 1 | K35: Qtr 2 | T35: Jefferson
C36: C = Cumulative Collections | O36: =IF(AND('Circuit Criminal'!$D$4=1,Q23="Red"),"Red","Gray") -> Gray | P36: =IF(AND('Circuit Criminal'!$D$4=2,R23="Red"),"Red","Gray") -> Gray | Q36: =IF(AND('Circuit Criminal'!$D$4=3,Q30="Red"),"Red","Gray") -> Gray | R36: =IF(AND('Circuit Criminal'!$D$4=4,R30="Red"),"Red","Gray") -> Gray | S36: =COUNTIF(O36:R36,"Red") -> 0 | T36: Lafayette
C37: A = Amount Assessed - Adjusted | O37: =IF(AND('Circuit Criminal'!$D$4=1,Q24="Red"),"Red","Gray") -> Gray | P37: =IF(AND('Circuit Criminal'!$D$4=2,R24="Red"),"Red","Gray") -> Gray | Q37: =IF(AND('Circuit Criminal'!$D$4=3,Q31="Red"),"Red","Gray") -> Gray | R37: =IF(AND('Circuit Criminal'!$D$4=4,R31="Red"),"Red","Gray") -> Gray | S37: =COUNTIF(O37:R37,"Red") -> 0 | T37: Lake
C38: CR = Collection Rate | J38: =IF(ISBLANK(J36),"N/A",IF(AND(J36=0,J37=0,NOT(ISBLANK(J36)),NOT(ISBLANK(J37))),1,J36/J37)) -> N/A | K38: =IF(ISBLANK(K36),"N/A",IF(AND(K36=0,K37=0,NOT(ISBLANK(K36)),NOT(ISBLANK(K37))),1,K36/K37)) -> N/A | O38: =IF(AND('Circuit Criminal'!$D$4=1,Q25="Red"),"Red","Gray") -> Gray | P38: =IF(AND('Circuit Criminal'!$D$4=2,R25="Red"),"Red","Gray") -> Gray | Q38: =IF(AND('Circuit Criminal'!$D$4=3,Q32="Red"),"Red","Gray") -> Gray | R38: =IF(AND('Circuit Criminal'!$D$4=4,R32="Red"),"Red","Gray") -> Gray | S38: =COUNTIF(O38:R38,"Red") -> 0 | T38: Lee
A39: =LEFT(B39,3)&" "&RIGHT(B39,6) -> CGE CQ4-16 | B39: CGE CQ4-16 | C39: RPE 09/30/15 | K39: Qtr 1 | O39: =IF(AND('Circuit Criminal'!$D$4=1,Q26="Red"),"Red","Gray") -> Gray | P39: =IF(AND('Circuit Criminal'!$D$4=2,R26="Red"),"Red","Gray") -> Gray | Q39: =IF(AND('Circuit Criminal'!$D$4=3,Q33="Red"),"Red","Gray") -> Gray | R39: =IF(AND('Circuit Criminal'!$D$4=4,R33="Red"),"Red","Gray") -> Gray | S39: =COUNTIF(O39:R39,"Red") -> 0 | T39: Leon
C40: C = Cumulative Collections | O40: =IF(AND('Circuit Criminal'!$D$4=1,Q27="Red"),"Red","Gray") -> Gray | P40: =IF(AND('Circuit Criminal'!$D$4=2,R27="Red"),"Red","Gray") -> Gray | Q40: =IF(AND('Circuit Criminal'!$D$4=3,Q34="Red"),"Red","Gray") -> Gray | R40: =IF(AND('Circuit Criminal'!$D$4=4,R34="Red"),"Red","Gray") -> Gray | S40: =COUNTIF(O40:R40,"Red") -> 0 | T40: Levy
C41: A = Amount Assessed - Adjusted | O41: =COUNTIF(O36:O40,"Red") -> 0 | P41: =COUNTIF(P36:P40,"Red") -> 0 | Q41: =COUNTIF(Q36:Q40,"Red") -> 0 | R41: =COUNTIF(R36:R40,"Red") -> 0 | T41: Liberty
C42: CR = Collection Rate | K42: =IF(ISBLANK(K40),"N/A",IF(OR(K40=0,K40="N/A"),0,K40/K41)) -> N/A | O42: =SUM(O41:R41) -> 0 | T42: Madison
B43: NOTES: | T43: Manatee
B44: Business Rules | D44: 1.) Assessment amount is adjusted each quarter based on business rules within the control group, it is based on the amount that was originally assessed in the first quarter. | T44: Martin
D45: 2.) Quarter 5 Action Plan Note: If Collection Rate is below Standard (highlighted in red), please include a "Reason Code" and "Current Action to Improve". These comments will automatically feed the "Action Plan" tab. | T45: Nassau
D46: 3.) Additional Notes: Please include additional information to explain either of the following conditions that are not consistant with the Collection Report Business Rules. (These dollars will result in a red font): | T46: Okaloosa
E47: a.) Cumulative Collection amount has Decreased from the previous quarter in the same Control Group | T47: Okeechobee
E48: b.) The Amount Assessed - Adjusted has Increased from the previous quarter in the same Control Group | T48: Orange
T49: Nassau
T50: Okaloosa
T51: Okeechobee
T52: Orange
T53: Pasco
T54: Pinellas
T55: Polk
B56: =MAX('Circuit Criminal'!B51:B98) -> 0 | D56: Issue | F56: Calc 1 Needed | G56: Calc 2 Needed | H56: Calc 3 Needed | I56: Calc 4 Needed | J56: Standard | T56: Putnam
A57: =D$8 -> County Criminal | B57: =IF(E57="YES",MAX(B56)+1,0) -> 0 | C57: =A$11 -> CGE CQ1-15 | D57: ="After 3rd Q, Collections went up by more than set percentage of: "&TEXT(J57,"#0%") -> After 3rd Q, Collections went up by more than set percentage of: 500% | E57: =IF(MAX(F57:G57)>V$10,"YES","NO") -> NO | F57: =IFERROR(IF(NOT(ISBLANK(G12)),(G12-F12)/F12,0),0) -> 0.1984383608 | G57: =IFERROR(IF(NOT(ISBLANK(H12)),(H12-G12)/G12,0),0) -> 0.1078419294 | J57: =V$10 -> 5 | T57: Santa Rosa
A58: =D$8 -> County Criminal | B58: =IF(E58="YES",MAX(B$56:B57)+1,0) -> 0 | C58: =A$11 -> CGE CQ1-15 | D58: ="Assessments dropped by more than set percentage of: "&TEXT(J58,"#0%") -> Assessments dropped by more than set percentage of: 15% | E58: =IF(MIN(F58:I58)<(-1*V$11),"YES","NO") -> NO | F58: =IFERROR(IF(NOT(ISBLANK(E13)),(E13-D13)/D13,0),0) -> -0.02428405133 | G58: =IFERROR(IF(NOT(ISBLANK(F13)),(F13-E13)/E13,0),0) -> -0.004606727173 | H58: =IFERROR(IF(NOT(ISBLANK(G13)),(G13-F13)/F13,0),0) -> -0.001449044661 | I58: =IFERROR(IF(NOT(ISBLANK(H13)),(H13-G13)/G13,0),0) -> -0.002378334533 | J58: =V$11 -> 0.15 | T58: Sumter
A59: County Criminal | B59: =IF(E59="YES",MAX(B$56:B58)+1,0) -> 0 | C59: =A$11 -> CGE CQ1-15 | D59: ="The 5th Quarter Collection Rate did not meet the established performance measure standard of: "&TEXT(J59,"#0%") -> The 5th Quarter Collection Rate did not meet the established performance measure standard of: 40% | E59: =IF(F59="N/A","NO",IF(F59<H$8,"YES","NO")) -> NO | F59: =H14 -> 0.4095319291 | J59: =H$8 -> 0.4 | T59: Washington
A60: County Criminal | B60: =IF(E60="YES",MAX(B$56:B59)+1,0) -> 0 | C60: =A$11 -> CGE CQ1-15 | D60: Collections amount decreased from prior quarter | E60: =IF(MIN(F60:I60)<0,"YES","NO") -> NO | F60: =IFERROR(IF(NOT(ISBLANK(E12)),(E12-D12)/D12,0),0) -> 0.5322650305 | G60: 0.3862226051 | H60: 0.1984383608 | I60: 0.1078419294
A61: County Criminal | B61: =IF(E61="YES",MAX(B$56:B60)+1,0) -> 0 | C61: =A$11 -> CGE CQ1-15 | D61: Assessment amount increased from prior quarter | E61: =IF(MAX(F61:I61)>0,"YES","NO") -> NO | F61: -0.02428405133 | G61: -0.004606727173 | H61: -0.001449044661 | I61: -0.002378334533
A62: County Criminal | B62: =IF(E62="YES",MAX(B$56:B61)+1,0) -> 0 | C62: =A$15 -> CGE CQ2-15 | D62: ="After 3rd Q, Collections went up by more than set percentage of: "&TEXT(J62,"#0%") -> After 3rd Q, Collections went up by more than set percentage of: 500% | E62: =IF(MAX(F62:G62)>V$10,"YES","NO") -> NO | F62: =IFERROR(IF(NOT(ISBLANK(H16)),(H16-G16)/G16,0),0) -> 0.142231403 | G62: =IFERROR(IF(NOT(ISBLANK(I16)),(I16-H16)/H16,0),0) -> 0 | J62: =V$10 -> 5 | T62: Sarasota
A63: County Criminal | B63: =IF(E63="YES",MAX(B$56:B62)+1,0) -> 0 | C63: =A$15 -> CGE CQ2-15 | D63: ="Assessments dropped by more than set percentage of: "&TEXT(J63,"#0%") -> Assessments dropped by more than set percentage of: 15% | E63: =IF(MIN(F63:I63)<(-1*V$11),"YES","NO") -> NO | F63: =IFERROR(IF(NOT(ISBLANK(F17)),(F17-E17)/E17,0),0) -> -0.02075781477 | G63: =IFERROR(IF(NOT(ISBLANK(G17)),(G17-F17)/F17,0),0) -> -0.004149998784 | H63: =IFERROR(IF(NOT(ISBLANK(H17)),(H17-G17)/G17,0),0) -> -0.00176028514 | I63: =IFERROR(IF(NOT(ISBLANK(I17)),(I17-H17)/H17,0),0) -> 0 | J63: =V$11 -> 0.15 | T63: Suwannee
A64: County Criminal | B64: =IF(E64="YES",MAX(B$56:B63)+1,0) -> 0 | C64: =A$15 -> CGE CQ2-15 | D64: Collections amount decreased from prior quarter | E64: =IF(MIN(F64:I64)<0,"YES","NO") -> NO | F64: =IFERROR(IF(NOT(ISBLANK(F16)),(F16-E16)/E16,0),0) -> 0.4977610726 | G64: 0.3246379378 | H64: 0.142231403 | I64: 0
A65: County Criminal | B65: =IF(E65="YES",MAX(B$56:B64)+1,0) -> 0 | C65: =A$15 -> CGE CQ2-15 | D65: Assessment amount increased from prior quarter | E65: =IF(MAX(F65:I65)>0,"YES","NO") -> NO | F65: -0.02075781477 | G65: -0.004149998784 | H65: -0.00176028514 | I65: 0
A66: County Criminal | B66: =IF(E66="YES",MAX(B$56:B65)+1,0) -> 0 | C66: =A$15 -> CGE CQ2-15 | D66: ="The 5th Quarter Collection Rate did not meet the established performance measure standard of: "&TEXT(J66,"#0%") -> The 5th Quarter Collection Rate did not meet the established performance measure standard of: 40% | E66: =IF(F66="N/A","NO",IF(F66<H$8,"YES","NO")) -> NO | F66: =I18 -> N/A | J66: =H$8 -> 0.4
A67: County Criminal | B67: =IF(E67="YES",MAX(B$56:B66)+1,0) -> 0 | C67: =A$19 -> CGE CQ3-15 | D67: ="After 3rd Q, Collections went up by more than set percentage of: "&TEXT(J67,"#0%") -> After 3rd Q, Collections went up by more than set percentage of: 500% | E67: =IF(MAX(F67:G67)>V$10,"YES","NO") -> NO | F67: =IFERROR(IF(NOT(ISBLANK(I20)),(I20-H20)/H20,0),0) -> 0 | G67: =IFERROR(IF(NOT(ISBLANK(J20)),(J20-I20)/I20,0),0) -> 0 | J67: =V$10 -> 5 | T67: Seminole
A68: County Criminal | B68: =IF(E68="YES",MAX(B$56:B67)+1,0) -> 0 | C68: =A$19 -> CGE CQ3-15 | D68: ="Assessments dropped by more than set percentage of: "&TEXT(J68,"#0%") -> Assessments dropped by more than set percentage of: 15% | E68: =IF(MIN(F68:I68)<(-1*V$11),"YES","NO") -> NO | F68: =IFERROR(IF(NOT(ISBLANK(G21)),(G21-F21)/F21,0),0) -> -0.01356902007 | G68: =IFERROR(IF(NOT(ISBLANK(H21)),(H21-G21)/G21,0),0) -> -0.002767769941 | H68: =IFERROR(IF(NOT(ISBLANK(I21)),(I21-H21)/H21,0),0) -> 0 | I68: =IFERROR(IF(NOT(ISBLANK(J21)),(J21-I21)/I21,0),0) -> 0 | J68: =V$11 -> 0.15 | T68: Taylor
A69: County Criminal | B69: =IF(E69="YES",MAX(B$56:B68)+1,0) -> 0 | C69: =A$19 -> CGE CQ3-15 | D69: Collections amount decreased from prior quarter | E69: =IF(MIN(F69:I69)<0,"YES","NO") -> NO | F69: =IFERROR(IF(NOT(ISBLANK(G20)),(G20-F20)/F20,0),0) -> 0.4408302975 | G69: 0.3038164223 | H69: 0 | I69: 0
A70: County Criminal | B70: =IF(E70="YES",MAX(B$56:B69)+1,0) -> 0 | C70: =A$19 -> CGE CQ3-15 | D70: Assessment amount increased from prior quarter | E70: =IF(MAX(F70:I70)>0,"YES","NO") -> NO | F70: -0.01356902007 | G70: -0.002767769941 | H70: 0 | I70: 0
A71: County Criminal | B71: =IF(E71="YES",MAX(B$56:B70)+1,0) -> 0 | C71: =A$19 -> CGE CQ3-15 | D71: ="The 5th Quarter Collection Rate did not meet the established performance measure standard of: "&TEXT(J71,"#0%") -> The 5th Quarter Collection Rate did not meet the established performance measure standard of: 40% | E71: =IF(F71="N/A","NO",IF(F71<H$8,"YES","NO")) -> NO | F71: =J22 -> N/A | J71: =H$8 -> 0.4
A72: County Criminal | B72: =IF(E72="YES",MAX(B$56:B71)+1,0) -> 0 | C72: =A$23 -> CGE CQ4-15 | D72: ="After 3rd Q, Collections went up by more than set percentage of: "&TEXT(J72,"#0%") -> After 3rd Q, Collections went up by more than set percentage of: 500% | E72: =IF(MAX(F72:G72)>V$10,"YES","NO") -> NO | F72: =IFERROR(IF(NOT(ISBLANK(J24)),(J24-I24)/I24,0),0) -> 0 | G72: =IFERROR(IF(NOT(ISBLANK(K24)),(K24-J24)/J24,0),0) -> 0 | J72: =V$10 -> 5 | T72: St. Johns
A73: County Criminal | B73: =IF(E73="YES",MAX(B$56:B72)+1,0) -> 0 | C73: =A$23 -> CGE CQ4-15 | D73: ="Assessments dropped by more than set percentage of: "&TEXT(J73,"#0%") -> Assessments dropped by more than set percentage of: 15% | E73: =IF(MIN(F73:I73)<(-1*V$11),"YES","NO") -> NO | F73: =IFERROR(IF(NOT(ISBLANK(H25)),(H25-G25)/G25,0),0) -> -0.01839615242 | G73: =IFERROR(IF(NOT(ISBLANK(I25)),(I25-H25)/H25,0),0) -> 0 | H73: =IFERROR(IF(NOT(ISBLANK(J25)),(J25-I25)/I25,0),0) -> 0 | I73: =IFERROR(IF(NOT(ISBLANK(K25)),(K25-J25)/J25,0),0) -> 0 | J73: =V$11 -> 0.15 | T73: Union
A74: County Criminal | B74: =IF(E74="YES",MAX(B$56:B73)+1,0) -> 0 | C74: =A$23 -> CGE CQ4-15 | D74: Collections amount decreased from prior quarter | E74: =IF(MIN(F74:I74)<0,"YES","NO") -> NO | F74: =IFERROR(IF(NOT(ISBLANK(H24)),(H24-G24)/G24,0),0) -> 0.4176767478 | G74: 0 | H74: 0 | I74: 0
A75: County Criminal | B75: =IF(E75="YES",MAX(B$56:B74)+1,0) -> 0 | C75: =A$23 -> CGE CQ4-15 | D75: Assessment amount increased from prior quarter | E75: =IF(MAX(F75:I75)>0,"YES","NO") -> NO | F75: -0.01839615242 | G75: 0 | H75: 0 | I75: 0
A76: County Criminal | B76: =IF(E76="YES",MAX(B$56:B75)+1,0) -> 0 | C76: =A$23 -> CGE CQ4-15 | D76: ="The 5th Quarter Collection Rate did not meet the established performance measure standard of: "&TEXT(J76,"#0%") -> The 5th Quarter Collection Rate did not meet the established performance measure standard of: 40% | E76: =IF(F76="N/A","NO",IF(F76<H$8,"YES","NO")) -> NO | F76: =K26 -> N/A | J76: =H$8 -> 0.4
A77: County Criminal | B77: =IF(E77="YES",MAX(B$56:B76)+1,0) -> 0 | C77: =A$27 -> CGE CQ1-16 | D77: ="After 3rd Q, Collections went up by more than set percentage of: "&TEXT(J77,"#0%") -> After 3rd Q, Collections went up by more than set percentage of: 500% | E77: =IF(MAX(F77)>V$10,"YES","NO") -> NO | F77: =IFERROR(IF(NOT(ISBLANK(K28)),(K28-J28)/J28,0),0) -> 0 | J77: =V$10 -> 5 | T77: St. Lucie
A78: County Criminal | B78: =IF(E78="YES",MAX(B$56:B77)+1,0) -> 0 | C78: =A$27 -> CGE CQ1-16 | D78: ="Assessments dropped by more than set percentage of: "&TEXT(J78,"#0%") -> Assessments dropped by more than set percentage of: 15% | E78: =IF(MIN(F78:H78)<(-1*V$11),"YES","NO") -> NO | F78: =IFERROR(IF(NOT(ISBLANK(I29)),(I29-H29)/H29,0),0) -> 0 | G78: =IFERROR(IF(NOT(ISBLANK(J29)),(J29-I29)/I29,0),0) -> 0 | H78: =IFERROR(IF(NOT(ISBLANK(K29)),(K29-J29)/J29,0),0) -> 0 | J78: =V$11 -> 0.15 | T78: Volusia
A79: County Criminal | B79: =IF(E79="YES",MAX(B$56:B78)+1,0) -> 0 | C79: =A$27 -> CGE CQ1-16 | D79: Collections amount decreased from prior quarter | E79: =IF(MIN(F79:H79)<0,"YES","NO") -> NO | F79: =IFERROR(IF(NOT(ISBLANK(I28)),(I28-H28)/H28,0),0) -> 0 | G79: 0 | H79: 0
A80: County Criminal | B80: =IF(E80="YES",MAX(B$56:B79)+1,0) -> 0 | C80: =A$27 -> CGE CQ1-16 | D80: Assessment amount increased from prior quarter | E80: =IF(MAX(F80:H80)>0,"YES","NO") -> NO | F80: 0 | G80: 0 | H80: 0
A81: County Criminal | B81: =IF(E81="YES",MAX(B$56:B80)+1,0) -> 0 | C81: =A$31 -> CGE CQ2-16 | D81: ="Assessments dropped by more than set percentage of: "&TEXT(J81,"#0%") -> Assessments dropped by more than set percentage of: 15% | E81: =IF(MIN(F81:G81)<(-1*V$11),"YES","NO") -> NO | F81: =IFERROR(IF(NOT(ISBLANK(J33)),(J33-I33)/I33,0),0) -> 0 | G81: =IFERROR(IF(NOT(ISBLANK(K33)),(K33-J33)/J33,0),0) -> 0 | J81: =V$11 -> 0.15 | T81: Wakulla
A82: County Criminal | B82: =IF(E82="YES",MAX(B$56:B81)+1,0) -> 0 | C82: =A$31 -> CGE CQ2-16 | D82: Collections amount decreased from prior quarter | E82: =IF(MIN(F82:G82)<0,"YES","NO") -> NO | F82: =IFERROR(IF(NOT(ISBLANK(J32)),(J32-I32)/I32,0),0) -> 0 | G82: =IFERROR(IF(NOT(ISBLANK(K32)),(K32-J32)/J32,0),0) -> 0
A83: County Criminal | B83: =IF(E83="YES",MAX(B$56:B82)+1,0) -> 0 | C83: =A$31 -> CGE CQ2-16 | D83: Assessment amount increased from prior quarter | E83: =IF(MAX(F83:G83)>0,"YES","NO") -> NO | F83: =IFERROR(IF(NOT(ISBLANK(J33)),(J33-I33)/I33,0),0) -> 0 | G83: =IFERROR(IF(NOT(ISBLANK(K33)),(K33-J33)/J33,0),0) -> 0
A84: County Criminal | B84: =IF(E84="YES",MAX(B$56:B83)+1,0) -> 0 | C84: =A$35 -> CGE CQ3-16 | D84: ="Assessments dropped by more than set percentage of: "&TEXT(J84,"#0%") -> Assessments dropped by more than set percentage of: 15% | E84: =IF(MIN(F84)<(-1*V$11),"YES","NO") -> NO | F84: =IFERROR(IF(NOT(ISBLANK(K37)),(K37-J37)/J37,0),0) -> 0 | J84: =V$11 -> 0.15 | T84: Walton
A85: County Criminal | B85: =IF(E85="YES",MAX(B$56:B84)+1,0) -> 0 | C85: =A$35 -> CGE CQ3-16 | D85: Collections amount decreased from prior quarter | E85: =IF(MIN(F85)<0,"YES","NO") -> NO | F85: =IFERROR(IF(NOT(ISBLANK(K36)),(K36-J36)/J36,0),0) -> 0
A86: County Criminal | B86: =IF(E86="YES",MAX(B$56:B85)+1,0) -> 0 | C86: =A$35 -> CGE CQ3-16 | D86: Assessment amount increased from prior quarter | E86: =IF(MAX(F86)>0,"YES","NO") -> NO | F86: =IFERROR(IF(NOT(ISBLANK(K37)),(K37-J37)/J37,0),0) -> 0

Sheet Juvenile Delinquency
M2: County Fiscal Year 2014-2015 | T2: CountyNames
M3: Collections Quarterly Report Form for CCOC | T3: Alachua
C4: Report for Quarter Ending: | D4: ='Circuit Criminal'!D4 -> December 2014 | T4: Baker
C5: Version #: | D5: ='Circuit Criminal'!$D$5 -> 2 | T5: Bay
C6: County: | D6: ='Circuit Criminal'!D6 -> Brevard | T6: Bradford
T7: Brevard
C8: Court/Case Type: | D8: Juvenile Delinquency | G8: Performance Measure Standard: | H8: 0.09 | T8: Broward
L9: Action Plan | N9: 1 | O9: version #1 | P9: Qtr1 - December | Q9: 1 | T9: Calhoun
C10: Control Groups | D10: 10/01/13 - 12/31/13 | E10: 01/01/14 - 03/31/14 | F10: 04/01/14 - 06/30/14 | G10: 07/01/14 - 09/30/14 | H10: 10/01/14 - 12/31/14 | I10: 01/01/15 - 03/31/15 | J10: 04/01/15 - 06/30/15 | K10: 07/01/15 - 09/30/15 | L10: Reason Code | M10: Current Actions to Improve | O10: ='Circuit Criminal'!O10 -> 2 | P10: ='Circuit Criminal'!P10 -> March 2015 | Q10: ='Circuit Criminal'!Q10 -> 0 | R10: ='Circuit Criminal'!R10 -> 0 | S10: ='Circuit Criminal'!S10 -> 0 | T10: ='Circuit Criminal'!T10 -> Charlotte | U10: ='Circuit Criminal'!U10 -> 0 | V10: ='Circuit Criminal'!V10 -> 5
A11: =LEFT(B11,3)&" "&RIGHT(B11,6) -> CGE CQ1-15 | B11: CGE CQ1-15 | C11: RPE 12/31/13 | D11: Qtr 1 | E11: Qtr 2 | F11: Qtr 3 | G11: Qtr 4 | H11: Qtr 5 | N11: Economy | O11: version #3 | P11: Qtr 3 - June | Q11: 3 | T11: Citrus | U11: =D6&" "&D8 -> Brevard Juvenile Delinquency | V11: 0.15
C12: C = Cumulative Collections | D12: =LOOKUP($U$11,Lookup!$C$3:$C$605,Lookup!I$3:I$596) -> 1644.5 | E12: =LOOKUP($U$11,Lookup!$C$3:$C$605,Lookup!J$3:J$596) -> 2562.5 | F12: =LOOKUP($U$11,Lookup!$C$3:$C$605,Lookup!K$3:K$596) -> 2900.5 | G12: =LOOKUP($U$11,Lookup!$C$3:$C$605,Lookup!L$3:L$596) -> 3206.5 | H12: 3396.5 | N12: Incarcerations | O12: version #4 | P12: Qtr 4 - September | Q12: 4 | T12: Clay | U12: =IF(P13=TRUE,A11,"") -> CGE CQ1-15
C13: A = Amount Assessed - Adjusted | D13: =LOOKUP($U$11,Lookup!$C$3:$C$605,Lookup!D$3:D$596) -> 24137 | E13: =LOOKUP($U$11,Lookup!$C$3:$C$605,Lookup!E$3:E$596) -> 23137 | F13: =LOOKUP($U$11,Lookup!$C$3:$C$605,Lookup!F$3:F$596) -> 22737 | G13: =LOOKUP($U$11,Lookup!$C$3:$C$605,Lookup!G$3:G$596) -> 22637 | H13: 22437 | N13: Late/Non-pay/Pay Plans | O13: version #5 | P13: =OR(AND(E12<D12,E12>0),AND(F12<E12,F12>0),AND(G12<F12,G12>0),AND(H12<G12,H12>0),AND(F13>E13,E13>0),AND(G13>F13,F13>0),AND(H13<G13,G13>0)) -> TRUE | Q13: 5 | T13: Collier | U13: =IF(P14=TRUE,A15,"") -> 
C14: CR = Collection Rate | D14: =IF(ISBLANK(D12),"N/A",IF(OR(D12=0,D12="N/A"),0,D12/D13)) -> 0.06813191366 | E14: =IF(ISBLANK(E12),"N/A",IF(OR(E12=0,E12="N/A"),0,E12/E13)) -> 0.1107533388 | F14: =IF(ISBLANK(F12),"N/A",IF(OR(F12=0,F12="N/A"),0,F12/F13)) -> 0.1275674012 | G14: =IF(ISBLANK(G12),"N/A",IF(OR(G12=0,G12="N/A"),0,G12/G13)) -> 0.1416486284 | H14: =IF(ISBLANK(H12),"N/A",IF(AND(H12=0,H13=0,NOT(ISBLANK(H12)),NOT(ISBLANK(H13))),1,H12/H13)) -> 0.1513794179 | N14: Mandatory Assessment | O14: version #6 | P14: =OR(AND(F16<E16,F16>0),AND(G16<F16,G16>0),AND(H16<G16,H16>0),AND(I16<H16,I16>0),AND(G17>F17, F17>0),AND(H17>G17, G17>0),AND(I17<H17,I17>0)) -> FALSE | Q14: 6 | T14: Columbia | U14: =IF(P15=TRUE,A19,"") -> 
A15: =LEFT(B15,3)&" "&RIGHT(B15,6) -> CGE CQ2-15 | B15: CGE CQ2-15 | C15: RPE 03/31/14 | E15: Qtr 1 | F15: Qtr 2 | G15: Qtr 3 | H15: Qtr 4 | I15: Qtr 5 | N15: Other | O15: version #7 | P15: =OR(AND(G20<F20,D10>0),AND(H20<G20,H20>0),AND(I20<H20,I20>0),AND(J20<I20,J20>0),AND(H21>G21, G21>0),AND(I21>H21, H21>0),AND(J21<I21, J21>0)) -> FALSE | Q15: 7 | T15: Dade | U15: =IF(P16=TRUE,A23,"") -> 
C16: C = Cumulative Collections | E16: =LOOKUP($U$11,Lookup!$C$3:$C$605,Lookup!S$3:S$605) -> 1445.5 | F16: =LOOKUP($U$11,Lookup!$C$3:$C$605,Lookup!T$3:T$605) -> 2001.5 | G16: =LOOKUP($U$11,Lookup!$C$3:$C$605,Lookup!U$3:U$605) -> 2201.62 | H16: 2201.62 | N16: Procedural | O16: version #8 | P16: =OR(AND(H24<G24, H24>0),AND(I24<H24, I24>0),AND(J24<I24, J24>0),AND(K24<J24, K24>0),AND(I25>H25, H25>0),AND(J25>I25, I25>0),AND(K25<J25, J25>0)) -> FALSE | Q16: 8 | T16: Desoto | U16: =IF(P17=TRUE,A27,"") -> 
C17: A = Amount Assessed - Adjusted | E17: =LOOKUP($U$11,Lookup!$C$3:$C$605,Lookup!N$3:N$605) -> 24622.5 | F17: =LOOKUP($U$11,Lookup!$C$3:$C$605,Lookup!O$3:O$605) -> 23872.5 | G17: =LOOKUP($U$11,Lookup!$C$3:$C$605,Lookup!P$3:P$605) -> 23522.5 | H17: 23222.5 | N17: Staffing - Insufficient Personnel | O17: version #9 | P17: =OR(AND(I28<H28, I28>0),AND(J28<I28, J28>0),AND(K28<J28, K28>0),AND(J29>I29, I29>0),AND(K29>J29, J29>0)) -> FALSE | Q17: 9 | T17: Dixie | U17: =IF(P18=TRUE,A31,"") -> 
C18: CR = Collection Rate | E18: =IF(ISBLANK(E16),"N/A",IF(OR(E16=0,E16="N/A"),0,E16/E17)) -> 0.05870646766 | F18: =IF(ISBLANK(F16),"N/A",IF(OR(F16=0,F16="N/A"),0,F16/F17)) -> 0.08384123992 | G18: =IF(ISBLANK(G16),"N/A",IF(OR(G16=0,G16="N/A"),0,G16/G17)) -> 0.09359634393 | H18: =IF(ISBLANK(H16),"N/A",IF(AND(H16=0,H17=0,NOT(ISBLANK(H16)),NOT(ISBLANK(H17))),1,H16/H17)) -> 0.09480546883 | I18: =IF(ISBLANK(I16),"N/A",IF(AND(I16=0,I17=0,NOT(ISBLANK(I16)),NOT(ISBLANK(I17))),1,I16/I17)) -> N/A | N18: Staffing - Training Required | O18: version #10 | P18: =OR(AND(J32<I32, J32>0),AND(K32<J32, K32>0),AND(K33>J33, J33>0)) -> FALSE | Q18: 10 | T18: Duval | U18: =IF(P19=TRUE,A35,"") -> 
A19: =LEFT(B19,3)&" "&RIGHT(B19,6) -> CGE CQ3-15 | B19: CGE CQ3-15 | C19: RPE 06/30/14 | F19: Qtr 1 | G19: Qtr 2 | H19: Qtr 3 | I19: Qtr 4 | J19: Qtr 5 | N19: Systems | O19: version #11 | P19: =OR(K36<J36) -> FALSE | Q19: 11 | T19: Escambia | U19: =U12&" "&U13&" "&U14&" "&U15&" "&U16&" "&U17&" "&U18 -> CGE CQ1-15
C20: C = Cumulative Collections | F20: =LOOKUP($U$11,Lookup!$C$3:$C$605,Lookup!AC$3:AC$605) -> 1571.55 | G20: =LOOKUP($U$11,Lookup!$C$3:$C$605,Lookup!AD$3:AD$605) -> 1771.55 | H20: 1771.55 | O20: version #12 | P20: =COUNTIF(P13:P19,"TRUE") -> 1 | Q20: 12 | T20: Flagler
C21: A = Amount Assessed - Adjusted | F21: =LOOKUP($U$11,Lookup!$C$3:$C$605,Lookup!X$3:X$605) -> 19722.55 | G21: =LOOKUP($U$11,Lookup!$C$3:$C$605,Lookup!Y$3:Y$605) -> 18772.55 | H21: 18572.55 | T21: Franklin
C22: CR = Collection Rate | F22: =IF(ISBLANK(F20),"N/A",IF(OR(F20=0,F20="N/A"),0,F20/F21)) -> 0.07968290104 | G22: =IF(ISBLANK(G20),"N/A",IF(OR(G20=0,G20="N/A"),0,G20/G21)) -> 0.09436917201 | H22: =IF(ISBLANK(H20),"N/A",IF(AND(H20=0,H21=0,NOT(ISBLANK(H20)),NOT(ISBLANK(H21))),1,H20/H21)) -> 0.09538539404 | I22: =IF(ISBLANK(I20),"N/A",IF(AND(I20=0,I21=0,NOT(ISBLANK(I20)),NOT(ISBLANK(I21))),1,I20/I21)) -> N/A | J22: =IF(ISBLANK(J20),"N/A",IF(AND(J20=0,J21=0,NOT(ISBLANK(J20)),NOT(ISBLANK(J21))),1,J20/J21)) -> N/A | O22: Q1 | P22: Q2 | T22: Gadsden
A23: =LEFT(B23,3)&" "&RIGHT(B23,6) -> CGE CQ4-15 | B23: CGE CQ4-15 | C23: RPE 09/30/14 | G23: Qtr 1 | H23: Qtr 2 | I23: Qtr 3 | J23: Qtr 4 | K23: Qtr 5 | O23: FALSE | P23: FALSE | Q23: =IF(AND(OR(ISBLANK(H12),ISBLANK(H13)),O23=FALSE),"Red","Gray") -> Gray | R23: =IF(AND(OR(ISBLANK(I16),ISBLANK(I17)),P23=FALSE),"Red","Gray") -> Red | S23: =IF(AND('Circuit Criminal'!D4=1,S36=1),A11,IF(AND('Circuit Criminal'!D4=2,S36=1),A15,IF(AND('Circuit Criminal'!D4=3,S36=1),A19,IF(AND('Circuit Criminal'!D4=4,S36=1),A23,"")))) ->  | T23: Gilchrist
C24: C = Cumulative Collections | G24: =LOOKUP($U$11,Lookup!$C$3:$C$605,Lookup!AM$3:AM$605) -> 1504 | H24: 1892 | O24: FALSE | P24: FALSE | Q24: =IF(AND(OR(ISBLANK(H16),ISBLANK(H17)),O24=FALSE),"Red","Gray") -> Gray | R24: =IF(AND(OR(ISBLANK(I20),ISBLANK(I21)),P24=FALSE),"Red","Gray") -> Red | S24: =IF(AND('Circuit Criminal'!D4=1,S37=1),A15,IF(AND('Circuit Criminal'!D4=2,S37=1),A19,IF(AND('Circuit Criminal'!D4=3,S37=1),A23,IF(AND('Circuit Criminal'!D4=4,S37=1),A27,"")))) ->  | T24: Glades
C25: A = Amount Assessed - Adjusted | G25: =LOOKUP($U$11,Lookup!$C$3:$C$605,Lookup!AH$3:AH$605) -> 21883 | H25: 21383 | O25: FALSE | P25: FALSE | Q25: =IF(AND(OR(ISBLANK(H20),ISBLANK(H21)),O25=FALSE),"Red","Gray") -> Gray | R25: =IF(AND(OR(ISBLANK(I24),ISBLANK(I25)),P25=FALSE),"Red","Gray") -> Red | S25: =IF(AND('Circuit Criminal'!D4=1,S38=1),A19,IF(AND('Circuit Criminal'!D4=2,S38=1),A23,IF(AND('Circuit Criminal'!D4=3,S38=1),A27,IF(AND('Circuit Criminal'!D4=4,S38=1),A31,"")))) ->  | T25: Gulf
C26: CR = Collection Rate | G26: =IF(ISBLANK(G24),"N/A",IF(OR(G24=0,G24="N/A"),0,G24/G25)) -> 0.06872915048 | H26: =IF(ISBLANK(H24),"N/A",IF(AND(H24=0,H25=0,NOT(ISBLANK(H24)),NOT(ISBLANK(H25))),1,H24/H25)) -> 0.088481504 | I26: =IF(ISBLANK(I24),"N/A",IF(AND(I24=0,I25=0,NOT(ISBLANK(I24)),NOT(ISBLANK(I25))),1,I24/I25)) -> N/A | J26: =IF(ISBLANK(J24),"N/A",IF(AND(J24=0,J25=0,NOT(ISBLANK(J24)),NOT(ISBLANK(J25))),1,J24/J25)) -> N/A | K26: =IF(ISBLANK(K24),"N/A",IF(AND(K24=0,K25=0,NOT(ISBLANK(K24)),NOT(ISBLANK(K25))),1,K24/K25)) -> N/A | O26: FALSE | P26: FALSE | Q26: =IF(AND(OR(ISBLANK(H24),ISBLANK(H25)),O26=FALSE),"Red","Gray") -> Gray | R26: =IF(AND(OR(ISBLANK(I28),ISBLANK(I29)),P26=FALSE),"Red","Gray") -> Red | S26: =IF(AND('Circuit Criminal'!D4=1,S39=1),A23,IF(AND('Circuit Criminal'!D4=2,S39=1),A27,IF(AND('Circuit Criminal'!D4=3,S39=1),A31,IF(AND('Circuit Criminal'!D4=4,S39=1),A35,"")))) ->  | T26: Hamilton
A27: =LEFT(B27,3)&" "&RIGHT(B27,6) -> CGE CQ1-16 | B27: CGE CQ1-16 | C27: RPE 12/31/14 | H27: Qtr 1 | I27: Qtr 2 | J27: Qtr 3 | K27: Qtr 4 | O27: FALSE | P27: FALSE | Q27: =IF(AND(OR(ISBLANK(H28),ISBLANK(H29)),O27=FALSE),"Red","Gray") -> Gray | R27: =IF(AND(OR(ISBLANK(I32),ISBLANK(I33)),P27=FALSE),"Red","Gray") -> Red | S27: =IF(AND('Circuit Criminal'!D4=1,S40=1),A27,IF(AND('Circuit Criminal'!D4=2,S40=1),A31,IF(AND('Circuit Criminal'!D4=3,S40=1),A35,IF(AND('Circuit Criminal'!D4=4,S40=1),A39,"")))) ->  | T27: Hardee
C28: C = Cumulative Collections | H28: 1981 | T28: Hendry
C29: A = Amount Assessed - Adjusted | H29: 29074 | O29: Q3 | P29: Q4 | T29: Hernando
C30: CR = Collection Rate | H30: =IF(ISBLANK(H28),"N/A",IF(AND(H28=0,H29=0,NOT(ISBLANK(H28)),NOT(ISBLANK(H29))),1,H28/H29)) -> 0.06813647933 | I30: =IF(ISBLANK(I28),"N/A",IF(AND(I28=0,I29=0,NOT(ISBLANK(I28)),NOT(ISBLANK(I29))),1,I28/I29)) -> N/A | J30: =IF(ISBLANK(J28),"N/A",IF(AND(J28=0,J29=0,NOT(ISBLANK(J28)),NOT(ISBLANK(J29))),1,J28/J29)) -> N/A | K30: =IF(ISBLANK(K28),"N/A",IF(AND(K28=0,K29=0,NOT(ISBLANK(K28)),NOT(ISBLANK(K29))),1,K28/K29)) -> N/A | O30: FALSE | P30: FALSE | Q30: =IF(AND(OR(ISBLANK(J20),ISBLANK(J21)),O30=FALSE),"Red","Gray") -> Red | R30: =IF(AND(OR(ISBLANK(K24),ISBLANK(K25)),P30=FALSE),"Red","Gray") -> Red | T30: Highlands
A31: =LEFT(B31,3)&" "&RIGHT(B31,6) -> CGE CQ2-16 | B31: CGE CQ2-16 | C31: RPE 03/31/15 | I31: Qtr 1 | J31: Qtr 2 | K31: Qtr 3 | L31: Additional Notes Related to Collection Issues | O31: FALSE | P31: FALSE | Q31: =IF(AND(OR(ISBLANK(J24),ISBLANK(J25)),O31=FALSE),"Red","Gray") -> Red | R31: =IF(AND(OR(ISBLANK(K28),ISBLANK(K29)),P31=FALSE),"Red","Gray") -> Red | T31: Hillsborough
C32: C = Cumulative Collections | O32: FALSE | P32: FALSE | Q32: =IF(AND(OR(ISBLANK(J28),ISBLANK(J29)),O32=FALSE),"Red","Gray") -> Red | R32: =IF(AND(OR(ISBLANK(K32),ISBLANK(K33)),P32=FALSE),"Red","Gray") -> Red | T32: Holmes
C33: A = Amount Assessed - Adjusted | O33: FALSE | P33: FALSE | Q33: =IF(AND(OR(ISBLANK(J32),ISBLANK(J33)),O33=FALSE),"Red","Gray") -> Red | R33: =IF(AND(OR(ISBLANK(K36),ISBLANK(K37)),P33=FALSE),"Red","Gray") -> Red | T33: Indian River
C34: CR = Collection Rate | I34: =IF(ISBLANK(I32),"N/A",IF(AND(I32=0,I33=0,NOT(ISBLANK(I32)),NOT(ISBLANK(I33))),1,I32/I33)) -> N/A | J34: =IF(ISBLANK(J32),"N/A",IF(AND(J32=0,J33=0,NOT(ISBLANK(J32)),NOT(ISBLANK(J33))),1,J32/J33)) -> N/A | K34: =IF(ISBLANK(K32),"N/A",IF(AND(K32=0,K33=0,NOT(ISBLANK(K32)),NOT(ISBLANK(K33))),1,K32/K33)) -> N/A | O34: FALSE | P34: FALSE | Q34: =IF(AND(OR(ISBLANK(J36),ISBLANK(J37)),O34=FALSE),"Red","Gray") -> Red | R34: =IF(AND(OR(ISBLANK(K40),ISBLANK(K41)),P34=FALSE),"Red","Gray") -> Red | T34: Jackson
A35: =LEFT(B35,3)&" "&RIGHT(B35,6) -> CGE CQ3-16 | B35: CGE CQ3-16 | C35: RPE 06/30/15 | J35: Qtr 1 | K35: Qtr 2 | T35: Jefferson
C36: C = Cumulative Collections | O36: =IF(AND('Circuit Criminal'!$D$4=1,Q23="Red"),"Red","Gray") -> Gray | P36: =IF(AND('Circuit Criminal'!$D$4=2,R23="Red"),"Red","Gray") -> Gray | Q36: =IF(AND('Circuit Criminal'!$D$4=3,Q30="Red"),"Red","Gray") -> Gray | R36: =IF(AND('Circuit Criminal'!$D$4=4,R30="Red"),"Red","Gray") -> Gray | S36: =COUNTIF(O36:R36,"Red") -> 0 | T36: Lafayette
C37: A = Amount Assessed - Adjusted | O37: =IF(AND('Circuit Criminal'!$D$4=1,Q24="Red"),"Red","Gray") -> Gray | P37: =IF(AND('Circuit Criminal'!$D$4=2,R24="Red"),"Red","Gray") -> Gray | Q37: =IF(AND('Circuit Criminal'!$D$4=3,Q31="Red"),"Red","Gray") -> Gray | R37: =IF(AND('Circuit Criminal'!$D$4=4,R31="Red"),"Red","Gray") -> Gray | S37: =COUNTIF(O37:R37,"Red") -> 0 | T37: Lake
C38: CR = Collection Rate | J38: =IF(ISBLANK(J36),"N/A",IF(AND(J36=0,J37=0,NOT(ISBLANK(J36)),NOT(ISBLANK(J37))),1,J36/J37)) -> N/A | K38: =IF(ISBLANK(K36),"N/A",IF(AND(K36=0,K37=0,NOT(ISBLANK(K36)),NOT(ISBLANK(K37))),1,K36/K37)) -> N/A | O38: =IF(AND('Circuit Criminal'!$D$4=1,Q25="Red"),"Red","Gray") -> Gray | P38: =IF(AND('Circuit Criminal'!$D$4=2,R25="Red"),"Red","Gray") -> Gray | Q38: =IF(AND('Circuit Criminal'!$D$4=3,Q32="Red"),"Red","Gray") -> Gray | R38: =IF(AND('Circuit Criminal'!$D$4=4,R32="Red"),"Red","Gray") -> Gray | S38: =COUNTIF(O38:R38,"Red") -> 0 | T38: Lee
A39: =LEFT(B39,3)&" "&RIGHT(B39,6) -> CGE CQ4-16 | B39: CGE CQ4-16 | C39: RPE 09/30/15 | K39: Qtr 1 | O39: =IF(AND('Circuit Criminal'!$D$4=1,Q26="Red"),"Red","Gray") -> Gray | P39: =IF(AND('Circuit Criminal'!$D$4=2,R26="Red"),"Red","Gray") -> Gray | Q39: =IF(AND('Circuit Criminal'!$D$4=3,Q33="Red"),"Red","Gray") -> Gray | R39: =IF(AND('Circuit Criminal'!$D$4=4,R33="Red"),"Red","Gray") -> Gray | S39: =COUNTIF(O39:R39,"Red") -> 0 | T39: Leon
C40: C = Cumulative Collections | O40: =IF(AND('Circuit Criminal'!$D$4=1,Q27="Red"),"Red","Gray") -> Gray | P40: =IF(AND('Circuit Criminal'!$D$4=2,R27="Red"),"Red","Gray") -> Gray | Q40: =IF(AND('Circuit Criminal'!$D$4=3,Q34="Red"),"Red","Gray") -> Gray | R40: =IF(AND('Circuit Criminal'!$D$4=4,R34="Red"),"Red","Gray") -> Gray | S40: =COUNTIF(O40:R40,"Red") -> 0 | T40: Levy
C41: A = Amount Assessed - Adjusted | O41: =COUNTIF(O36:O40,"Red") -> 0 | P41: =COUNTIF(P36:P40,"Red") -> 0 | Q41: =COUNTIF(Q36:Q40,"Red") -> 0 | R41: =COUNTIF(R36:R40,"Red") -> 0 | T41: Liberty
C42: CR = Collection Rate | K42: =IF(ISBLANK(K40),"N/A",IF(OR(K40=0,K40="N/A"),0,K40/K41)) -> N/A | O42: =SUM(O41:R41) -> 0 | T42: Madison
B43: NOTES: | T43: Manatee
B44: Business Rules | D44: 1.) Assessment amount is adjusted each quarter based on business rules within the control group, it is based on the amount that was originally assessed in the first quarter. | T44: Martin
D45: 2.) Quarter 5 Action Plan Note: If Collection Rate is below Standard (highlighted in red), please include a "Reason Code" and "Current Action to Improve". These comments will automatically feed the "Action Plan" tab. | T45: Nassau
D46: 3.) Additional Notes: Please include additional information to explain either of the following conditions that are not consistant with the Collection Report Business Rules. (These dollars will result in a red font): | T46: Okaloosa
E47: a.) Cumulative Collection amount has Decreased from the previous quarter in the same Control Group | T47: Okeechobee
E48: b.) The Amount Assessed - Adjusted has Increased from the previous quarter in the same Control Group | T48: Orange
T49: Nassau
T50: Okaloosa
T51: Okeechobee
T52: Orange
T53: Pasco
T54: Pinellas
T55: Polk
B56: =MAX('County Criminal'!B56:B99) -> 0 | D56: Issue | F56: Calc 1 Needed | G56: Calc 2 Needed | H56: Calc 3 Needed | I56: Calc 4 Needed | J56: Standard | T56: Putnam
A57: =D$8 -> Juvenile Delinquency | B57: =IF(E57="YES",MAX(B56)+1,0) -> 0 | C57: =A$11 -> CGE CQ1-15 | D57: ="After 3rd Q, Collections went up by more than set percentage of: "&TEXT(J57,"#0%") -> After 3rd Q, Collections went up by more than set percentage of: 500% | E57: =IF(MAX(F57:G57)>V$10,"YES","NO") -> NO | F57: =IFERROR(IF(NOT(ISBLANK(G12)),(G12-F12)/F12,0),0) -> 0.1054990519 | G57: =IFERROR(IF(NOT(ISBLANK(H12)),(H12-G12)/G12,0),0) -> 0.05925463901 | J57: =V$10 -> 5 | T57: Santa Rosa
A58: =D$8 -> Juvenile Delinquency | B58: =IF(E58="YES",MAX(B$56:B57)+1,0) -> 0 | C58: =A$11 -> CGE CQ1-15 | D58: ="Assessments dropped by more than set percentage of: "&TEXT(J58,"#0%") -> Assessments dropped by more than set percentage of: 15% | E58: =IF(MIN(F58:I58)<(-1*V$11),"YES","NO") -> NO | F58: =IFERROR(IF(NOT(ISBLANK(E13)),(E13-D13)/D13,0),0) -> -0.04143016945 | G58: =IFERROR(IF(NOT(ISBLANK(F13)),(F13-E13)/E13,0),0) -> -0.01728832606 | H58: =IFERROR(IF(NOT(ISBLANK(G13)),(G13-F13)/F13,0),0) -> -0.004398117606 | I58: =IFERROR(IF(NOT(ISBLANK(H13)),(H13-G13)/G13,0),0) -> -0.008835092989 | J58: =V$11 -> 0.15 | T58: Sumter
A59: Juvenile Delinquency | B59: =IF(E59="YES",MAX(B$56:B58)+1,0) -> 0 | C59: =A$11 -> CGE CQ1-15 | D59: ="The 5th Quarter Collection Rate did not meet the established performance measure standard of: "&TEXT(J59,"#0%") -> The 5th Quarter Collection Rate did not meet the established performance measure standard of: 9% | E59: =IF(F59="N/A","NO",IF(F59<H$8,"YES","NO")) -> NO | F59: =H14 -> 0.1513794179 | J59: =H$8 -> 0.09 | T59: Washington
A60: Juvenile Delinquency | B60: =IF(E60="YES",MAX(B$56:B59)+1,0) -> 0 | C60: =A$11 -> CGE CQ1-15 | D60: Collections amount decreased from prior quarter | E60: =IF(MIN(F60:I60)<0,"YES","NO") -> NO | F60: =IFERROR(IF(NOT(ISBLANK(E12)),(E12-D12)/D12,0),0) -> 0.5582243843 | G60: 0.131902439 | H60: 0.1054990519 | I60: 0.05925463901
A61: Juvenile Delinquency | B61: =IF(E61="YES",MAX(B$56:B60)+1,0) -> 0 | C61: =A$11 -> CGE CQ1-15 | D61: Assessment amount increased from prior quarter | E61: =IF(MAX(F61:I61)>0,"YES","NO") -> NO | F61: -0.04143016945 | G61: -0.01728832606 | H61: -0.004398117606 | I61: -0.008835092989
A62: Juvenile Delinquency | B62: =IF(E62="YES",MAX(B$56:B61)+1,0) -> 0 | C62: =A$15 -> CGE CQ2-15 | D62: ="After 3rd Q, Collections went up by more than set percentage of: "&TEXT(J62,"#0%") -> After 3rd Q, Collections went up by more than set percentage of: 500% | E62: =IF(MAX(F62:G62)>V$10,"YES","NO") -> NO | F62: =IFERROR(IF(NOT(ISBLANK(H16)),(H16-G16)/G16,0),0) -> 0 | G62: =IFERROR(IF(NOT(ISBLANK(I16)),(I16-H16)/H16,0),0) -> 0 | J62: =V$10 -> 5 | T62: Sarasota
A63: Juvenile Delinquency | B63: =IF(E63="YES",MAX(B$56:B62)+1,0) -> 0 | C63: =A$15 -> CGE CQ2-15 | D63: ="Assessments dropped by more than set percentage of: "&TEXT(J63,"#0%") -> Assessments dropped by more than set percentage of: 15% | E63: =IF(MIN(F63:I63)<(-1*V$11),"YES","NO") -> NO | F63: =IFERROR(IF(NOT(ISBLANK(F17)),(F17-E17)/E17,0),0) -> -0.03045994517 | G63: =IFERROR(IF(NOT(ISBLANK(G17)),(G17-F17)/F17,0),0) -> -0.01466122107 | H63: =IFERROR(IF(NOT(ISBLANK(H17)),(H17-G17)/G17,0),0) -> -0.01275374641 | I63: =IFERROR(IF(NOT(ISBLANK(I17)),(I17-H17)/H17,0),0) -> 0 | J63: =V$11 -> 0.15 | T63: Suwannee
A64: Juvenile Delinquency | B64: =IF(E64="YES",MAX(B$56:B63)+1,0) -> 0 | C64: =A$15 -> CGE CQ2-15 | D64: Collections amount decreased from prior quarter | E64: =IF(MIN(F64:I64)<0,"YES","NO") -> NO | F64: =IFERROR(IF(NOT(ISBLANK(F16)),(F16-E16)/E16,0),0) -> 0.3846419924 | G64: 0.09998501124 | H64: 0 | I64: 0
A65: Juvenile Delinquency | B65: =IF(E65="YES",MAX(B$56:B64)+1,0) -> 0 | C65: =A$15 -> CGE CQ2-15 | D65: Assessment amount increased from prior quarter | E65: =IF(MAX(F65:I65)>0,"YES","NO") -> NO | F65: -0.03045994517 | G65: -0.01466122107 | H65: -0.01275374641 | I65: 0
A66: Juvenile Delinquency | B66: =IF(E66="YES",MAX(B$56:B65)+1,0) -> 0 | C66: =A$15 -> CGE CQ2-15 | D66: ="The 5th Quarter Collection Rate did not meet the established performance measure standard of: "&TEXT(J66,"#0%") -> The 5th Quarter Collection Rate did not meet the established performance measure standard of: 9% | E66: =IF(F66="N/A","NO",IF(F66<H$8,"YES","NO")) -> NO | F66: =I18 -> N/A | J66: =H$8 -> 0.09
A67: Juvenile Delinquency | B67: =IF(E67="YES",MAX(B$56:B66)+1,0) -> 0 | C67: =A$19 -> CGE CQ3-15 | D67: ="After 3rd Q, Collections went up by more than set percentage of: "&TEXT(J67,"#0%") -> After 3rd Q, Collections went up by more than set percentage of: 500% | E67: =IF(MAX(F67:G67)>V$10,"YES","NO") -> NO | F67: =IFERROR(IF(NOT(ISBLANK(I20)),(I20-H20)/H20,0),0) -> 0 | G67: =IFERROR(IF(NOT(ISBLANK(J20)),(J20-I20)/I20,0),0) -> 0 | J67: =V$10 -> 5 | T67: Seminole
A68: Juvenile Delinquency | B68: =IF(E68="YES",MAX(B$56:B67)+1,0) -> 0 | C68: =A$19 -> CGE CQ3-15 | D68: ="Assessments dropped by more than set percentage of: "&TEXT(J68,"#0%") -> Assessments dropped by more than set percentage of: 15% | E68: =IF(MIN(F68:I68)<(-1*V$11),"YES","NO") -> NO | F68: =IFERROR(IF(NOT(ISBLANK(G21)),(G21-F21)/F21,0),0) -> -0.04816821354 | G68: =IFERROR(IF(NOT(ISBLANK(H21)),(H21-G21)/G21,0),0) -> -0.01065385363 | H68: =IFERROR(IF(NOT(ISBLANK(I21)),(I21-H21)/H21,0),0) -> 0 | I68: =IFERROR(IF(NOT(ISBLANK(J21)),(J21-I21)/I21,0),0) -> 0 | J68: =V$11 -> 0.15 | T68: Taylor
A69: Juvenile Delinquency | B69: =IF(E69="YES",MAX(B$56:B68)+1,0) -> 0 | C69: =A$19 -> CGE CQ3-15 | D69: Collections amount decreased from prior quarter | E69: =IF(MIN(F69:I69)<0,"YES","NO") -> NO | F69: =IFERROR(IF(NOT(ISBLANK(G20)),(G20-F20)/F20,0),0) -> 0.1272628933 | G69: 0 | H69: 0 | I69: 0
A70: Juvenile Delinquency | B70: =IF(E70="YES",MAX(B$56:B69)+1,0) -> 0 | C70: =A$19 -> CGE CQ3-15 | D70: Assessment amount increased from prior quarter | E70: =IF(MAX(F70:I70)>0,"YES","NO") -> NO | F70: -0.04816821354 | G70: -0.01065385363 | H70: 0 | I70: 0
A71: Juvenile Delinquency | B71: =IF(E71="YES",MAX(B$56:B70)+1,0) -> 0 | C71: =A$19 -> CGE CQ3-15 | D71: ="The 5th Quarter Collection Rate did not meet the established performance measure standard of: "&TEXT(J71,"#0%") -> The 5th Quarter Collection Rate did not meet the established performance measure standard of: 9% | E71: =IF(F71="N/A","NO",IF(F71<H$8,"YES","NO")) -> NO | F71: =J22 -> N/A | J71: =H$8 -> 0.09
A72: Juvenile Delinquency | B72: =IF(E72="YES",MAX(B$56:B71)+1,0) -> 0 | C72: =A$23 -> CGE CQ4-15 | D72: ="After 3rd Q, Collections went up by more than set percentage of: "&TEXT(J72,"#0%") -> After 3rd Q, Collections went up by more than set percentage of: 500% | E72: =IF(MAX(F72:G72)>V$10,"YES","NO") -> NO | F72: =IFERROR(IF(NOT(ISBLANK(J24)),(J24-I24)/I24,0),0) -> 0 | G72: =IFERROR(IF(NOT(ISBLANK(K24)),(K24-J24)/J24,0),0) -> 0 | J72: =V$10 -> 5 | T72: St. Johns
A73: Juvenile Delinquency | B73: =IF(E73="YES",MAX(B$56:B72)+1,0) -> 0 | C73: =A$23 -> CGE CQ4-15 | D73: ="Assessments dropped by more than set percentage of: "&TEXT(J73,"#0%") -> Assessments dropped by more than set percentage of: 15% | E73: =IF(MIN(F73:I73)<(-1*V$11),"YES","NO") -> NO | F73: =IFERROR(IF(NOT(ISBLANK(H25)),(H25-G25)/G25,0),0) -> -0.02284878673 | G73: =IFERROR(IF(NOT(ISBLANK(I25)),(I25-H25)/H25,0),0) -> 0 | H73: =IFERROR(IF(NOT(ISBLANK(J25)),(J25-I25)/I25,0),0) -> 0 | I73: =IFERROR(IF(NOT(ISBLANK(K25)),(K25-J25)/J25,0),0) -> 0 | J73: =V$11 -> 0.15 | T73: Union
A74: Juvenile Delinquency | B74: =IF(E74="YES",MAX(B$56:B73)+1,0) -> 0 | C74: =A$23 -> CGE CQ4-15 | D74: Collections amount decreased from prior quarter | E74: =IF(MIN(F74:I74)<0,"YES","NO") -> NO | F74: =IFERROR(IF(NOT(ISBLANK(H24)),(H24-G24)/G24,0),0) -> 0.2579787234 | G74: 0 | H74: 0 | I74: 0
A75: Juvenile Delinquency | B75: =IF(E75="YES",MAX(B$56:B74)+1,0) -> 0 | C75: =A$23 -> CGE CQ4-15 | D75: Assessment amount increased from prior quarter | E75: =IF(MAX(F75:I75)>0,"YES","NO") -> NO | F75: -0.02284878673 | G75: 0 | H75: 0 | I75: 0
A76: Juvenile Delinquency | B76: =IF(E76="YES",MAX(B$56:B75)+1,0) -> 0 | C76: =A$23 -> CGE CQ4-15 | D76: ="The 5th Quarter Collection Rate did not meet the established performance measure standard of: "&TEXT(J76,"#0%") -> The 5th Quarter Collection Rate did not meet the established performance measure standard of: 9% | E76: =IF(F76="N/A","NO",IF(F76<H$8,"YES","NO")) -> NO | F76: =K26 -> N/A | J76: =H$8 -> 0.09
A77: Juvenile Delinquency | B77: =IF(E77="YES",MAX(B$56:B76)+1,0) -> 0 | C77: =A$27 -> CGE CQ1-16 | D77: ="After 3rd Q, Collections went up by more than set percentage of: "&TEXT(J77,"#0%") -> After 3rd Q, Collections went up by more than set percentage of: 500% | E77: =IF(MAX(F77)>V$10,"YES","NO") -> NO | F77: =IFERROR(IF(NOT(ISBLANK(K28)),(K28-J28)/J28,0),0) -> 0 | J77: =V$10 -> 5 | T77: St. Lucie
A78: Juvenile Delinquency | B78: =IF(E78="YES",MAX(B$56:B77)+1,0) -> 0 | C78: =A$27 -> CGE CQ1-16 | D78: ="Assessments dropped by more than set percentage of: "&TEXT(J78,"#0%") -> Assessments dropped by more than set percentage of: 15% | E78: =IF(MIN(F78:H78)<(-1*V$11),"YES","NO") -> NO | F78: =IFERROR(IF(NOT(ISBLANK(I29)),(I29-H29)/H29,0),0) -> 0 | G78: =IFERROR(IF(NOT(ISBLANK(J29)),(J29-I29)/I29,0),0) -> 0 | H78: =IFERROR(IF(NOT(ISBLANK(K29)),(K29-J29)/J29,0),0) -> 0 | J78: =V$11 -> 0.15 | T78: Volusia
A79: Juvenile Delinquency | B79: =IF(E79="YES",MAX(B$56:B78)+1,0) -> 0 | C79: =A$27 -> CGE CQ1-16 | D79: Collections amount decreased from prior quarter | E79: =IF(MIN(F79:H79)<0,"YES","NO") -> NO | F79: =IFERROR(IF(NOT(ISBLANK(I28)),(I28-H28)/H28,0),0) -> 0 | G79: 0 | H79: 0
A80: Juvenile Delinquency | B80: =IF(E80="YES",MAX(B$56:B79)+1,0) -> 0 | C80: =A$27 -> CGE CQ1-16 | D80: Assessment amount increased from prior quarter | E80: =IF(MAX(F80:H80)>0,"YES","NO") -> NO | F80: 0 | G80: 0 | H80: 0
A81: Juvenile Delinquency | B81: =IF(E81="YES",MAX(B$56:B80)+1,0) -> 0 | C81: =A$31 -> CGE CQ2-16 | D81: ="Assessments dropped by more than set percentage of: "&TEXT(J81,"#0%") -> Assessments dropped by more than set percentage of: 15% | E81: =IF(MIN(F81:G81)<(-1*V$11),"YES","NO") -> NO | F81: =IFERROR(IF(NOT(ISBLANK(J33)),(J33-I33)/I33,0),0) -> 0 | G81: =IFERROR(IF(NOT(ISBLANK(K33)),(K33-J33)/J33,0),0) -> 0 | J81: =V$11 -> 0.15 | T81: Wakulla
A82: Juvenile Delinquency | B82: =IF(E82="YES",MAX(B$56:B81)+1,0) -> 0 | C82: =A$31 -> CGE CQ2-16 | D82: Collections amount decreased from prior quarter | E82: =IF(MIN(F82:G82)<0,"YES","NO") -> NO | F82: =IFERROR(IF(NOT(ISBLANK(J32)),(J32-I32)/I32,0),0) -> 0 | G82: =IFERROR(IF(NOT(ISBLANK(K32)),(K32-J32)/J32,0),0) -> 0
A83: Juvenile Delinquency | B83: =IF(E83="YES",MAX(B$56:B82)+1,0) -> 0 | C83: =A$31 -> CGE CQ2-16 | D83: Assessment amount increased from prior quarter | E83: =IF(MAX(F83:G83)>0,"YES","NO") -> NO | F83: =IFERROR(IF(NOT(ISBLANK(J33)),(J33-I33)/I33,0),0) -> 0 | G83: =IFERROR(IF(NOT(ISBLANK(K33)),(K33-J33)/J33,0),0) -> 0
A84: Juvenile Delinquency | B84: =IF(E84="YES",MAX(B$56:B83)+1,0) -> 0 | C84: =A$35 -> CGE CQ3-16 | D84: ="Assessments dropped by more than set percentage of: "&TEXT(J84,"#0%") -> Assessments dropped by more than set percentage of: 15% | E84: =IF(MIN(F84)<(-1*V$11),"YES","NO") -> NO | F84: =IFERROR(IF(NOT(ISBLANK(K37)),(K37-J37)/J37,0),0) -> 0 | J84: =V$11 -> 0.15 | T84: Walton
A85: Juvenile Delinquency | B85: =IF(E85="YES",MAX(B$56:B84)+1,0) -> 0 | C85: =A$35 -> CGE CQ3-16 | D85: Collections amount decreased from prior quarter | E85: =IF(MIN(F85)<0,"YES","NO") -> NO | F85: =IFERROR(IF(NOT(ISBLANK(K36)),(K36-J36)/J36,0),0) -> 0
A86: Juvenile Delinquency | B86: =IF(E86="YES",MAX(B$56:B85)+1,0) -> 0 | C86: =A$35 -> CGE CQ3-16 | D86: Assessment amount increased from prior quarter | E86: =IF(MAX(F86)>0,"YES","NO") -> NO | F86: =IFERROR(IF(NOT(ISBLANK(K37)),(K37-J37)/J37,0),0) -> 0

Sheet Criminal Traffic
M2: County Fiscal Year 2014-2015 | T2: CountyNames
M3: Collections Quarterly Report Form for CCOC | T3: Alachua
C4: Report for Quarter Ending: | D4: ='Circuit Criminal'!D4 -> December 2014 | T4: Baker
C5: Version #: | D5: ='Circuit Criminal'!$D$5 -> 2 | T5: Bay
C6: County: | D6: ='Circuit Criminal'!D6 -> Brevard | T6: Bradford
T7: Brevard
C8: Court/Case Type: | D8: Criminal Traffic | G8: Performance Measure Standard: | H8: 0.4 | T8: Broward
L9: Action Plan | N9: 1 | O9: version #1 | P9: Qtr1 - December | Q9: 1 | T9: Calhoun
C10: Control Groups | D10: 10/01/13 - 12/31/13 | E10: 01/01/14 - 03/31/14 | F10: 04/01/14 - 06/30/14 | G10: 07/01/14 - 09/30/14 | H10: 10/01/14 - 12/31/14 | I10: 01/01/15 - 03/31/15 | J10: 04/01/15 - 06/30/15 | K10: 07/01/15 - 09/30/15 | L10: Reason Code | M10: Current Actions to Improve | O10: version #2 | P10: Qtr 2 - March | T10: Charlotte | V10: 5
A11: =LEFT(B11,3)&" "&RIGHT(B11,6) -> CGE CQ1-15 | B11: CGE CQ1-15 | C11: RPE 12/31/13 | D11: Qtr 1 | E11: Qtr 2 | F11: Qtr 3 | G11: Qtr 4 | H11: Qtr 5 | N11: Economy | O11: version #3 | P11: Qtr 3 - June | Q11: 3 | T11: Citrus | U11: =D6&" "&D8 -> Brevard Criminal Traffic | V11: 0.15
C12: C = Cumulative Collections | D12: =LOOKUP($U$11,Lookup!$C$3:$C$605,Lookup!I$3:I$596) -> 135154.29 | E12: =LOOKUP($U$11,Lookup!$C$3:$C$605,Lookup!J$3:J$596) -> 221348.84 | F12: =LOOKUP($U$11,Lookup!$C$3:$C$605,Lookup!K$3:K$596) -> 292602.74 | G12: =LOOKUP($U$11,Lookup!$C$3:$C$605,Lookup!L$3:L$596) -> 347526.37 | H12: 384649.22 | N12: Incarcerations | O12: version #4 | P12: Qtr 4 - September | Q12: 4 | T12: Clay | U12: =IF(P13=TRUE,A11,"") -> CGE CQ1-15
C13: A = Amount Assessed - Adjusted | D13: =LOOKUP($U$11,Lookup!$C$3:$C$605,Lookup!D$3:D$596) -> 707123.05 | E13: =LOOKUP($U$11,Lookup!$C$3:$C$605,Lookup!E$3:E$596) -> 701113.05 | F13: =LOOKUP($U$11,Lookup!$C$3:$C$605,Lookup!F$3:F$596) -> 694049.05 | G13: =LOOKUP($U$11,Lookup!$C$3:$C$605,Lookup!G$3:G$596) -> 692295.05 | H13: 691067.05 | N13: Late/Non-pay/Pay Plans | O13: version #5 | P13: =OR(AND(E12<D12,E12>0),AND(F12<E12,F12>0),AND(G12<F12,G12>0),AND(H12<G12,H12>0),AND(F13>E13,E13>0),AND(G13>F13,F13>0),AND(H13<G13,G13>0)) -> TRUE | Q13: 5 | T13: Collier | U13: =IF(P14=TRUE,A15,"") -> 
C14: CR = Collection Rate | D14: =IF(ISBLANK(D12),"N/A",IF(OR(D12=0,D12="N/A"),0,D12/D13)) -> 0.1911326324 | E14: =IF(ISBLANK(E12),"N/A",IF(OR(E12=0,E12="N/A"),0,E12/E13)) -> 0.3157106261 | F14: =IF(ISBLANK(F12),"N/A",IF(OR(F12=0,F12="N/A"),0,F12/F13)) -> 0.4215879843 | G14: =IF(ISBLANK(G12),"N/A",IF(OR(G12=0,G12="N/A"),0,G12/G13)) -> 0.5019917014 | H14: =IF(ISBLANK(H12),"N/A",IF(AND(H12=0,H13=0,NOT(ISBLANK(H12)),NOT(ISBLANK(H13))),1,H12/H13)) -> 0.5566018811 | N14: Mandatory Assessment | O14: version #6 | P14: =OR(AND(F16<E16,F16>0),AND(G16<F16,G16>0),AND(H16<G16,H16>0),AND(I16<H16,I16>0),AND(G17>F17, F17>0),AND(H17>G17, G17>0),AND(I17<H17,I17>0)) -> FALSE | Q14: 6 | T14: Columbia | U14: =IF(P15=TRUE,A19,"") -> 
A15: =LEFT(B15,3)&" "&RIGHT(B15,6) -> CGE CQ2-15 | B15: CGE CQ2-15 | C15: RPE 03/31/14 | E15: Qtr 1 | F15: Qtr 2 | G15: Qtr 3 | H15: Qtr 4 | I15: Qtr 5 | N15: Other | O15: version #7 | P15: =OR(AND(G20<F20,D10>0),AND(H20<G20,H20>0),AND(I20<H20,I20>0),AND(J20<I20,J20>0),AND(H21>G21, G21>0),AND(I21>H21, H21>0),AND(J21<I21, J21>0)) -> FALSE | Q15: 7 | T15: Dade | U15: =IF(P16=TRUE,A23,"") -> 
C16: C = Cumulative Collections | E16: =LOOKUP($U$11,Lookup!$C$3:$C$605,Lookup!S$3:S$605) -> 155504.67 | F16: =LOOKUP($U$11,Lookup!$C$3:$C$605,Lookup!T$3:T$605) -> 236618.61 | G16: =LOOKUP($U$11,Lookup!$C$3:$C$605,Lookup!U$3:U$605) -> 314608.98 | H16: 378590.38 | N16: Procedural | O16: version #8 | P16: =OR(AND(H24<G24, H24>0),AND(I24<H24, I24>0),AND(J24<I24, J24>0),AND(K24<J24, K24>0),AND(I25>H25, H25>0),AND(J25>I25, I25>0),AND(K25<J25, J25>0)) -> FALSE | Q16: 8 | T16: Desoto | U16: =IF(P17=TRUE,A27,"") -> 
C17: A = Amount Assessed - Adjusted | E17: =LOOKUP($U$11,Lookup!$C$3:$C$605,Lookup!N$3:N$605) -> 773590.35 | F17: =LOOKUP($U$11,Lookup!$C$3:$C$605,Lookup!O$3:O$605) -> 768619.35 | G17: =LOOKUP($U$11,Lookup!$C$3:$C$605,Lookup!P$3:P$605) -> 761190.35 | H17: 759784.35 | N17: Staffing - Insufficient Personnel | O17: version #9 | P17: =OR(AND(I28<H28, I28>0),AND(J28<I28, J28>0),AND(K28<J28, K28>0),AND(J29>I29, I29>0),AND(K29>J29, J29>0)) -> FALSE | Q17: 9 | T17: Dixie | U17: =IF(P18=TRUE,A31,"") -> 
C18: CR = Collection Rate | E18: =IF(ISBLANK(E16),"N/A",IF(OR(E16=0,E16="N/A"),0,E16/E17)) -> 0.2010168172 | F18: =IF(ISBLANK(F16),"N/A",IF(OR(F16=0,F16="N/A"),0,F16/F17)) -> 0.3078488851 | G18: =IF(ISBLANK(G16),"N/A",IF(OR(G16=0,G16="N/A"),0,G16/G17)) -> 0.4133118345 | H18: =IF(ISBLANK(H16),"N/A",IF(AND(H16=0,H17=0,NOT(ISBLANK(H16)),NOT(ISBLANK(H17))),1,H16/H17)) -> 0.4982866257 | I18: =IF(ISBLANK(I16),"N/A",IF(AND(I16=0,I17=0,NOT(ISBLANK(I16)),NOT(ISBLANK(I17))),1,I16/I17)) -> N/A | N18: Staffing - Training Required | O18: version #10 | P18: =OR(AND(J32<I32, J32>0),AND(K32<J32, K32>0),AND(K33>J33, J33>0)) -> FALSE | Q18: 10 | T18: Duval | U18: =IF(P19=TRUE,A35,"") -> 
A19: =LEFT(B19,3)&" "&RIGHT(B19,6) -> CGE CQ3-15 | B19: CGE CQ3-15 | C19: RPE 06/30/14 | F19: Qtr 1 | G19: Qtr 2 | H19: Qtr 3 | I19: Qtr 4 | J19: Qtr 5 | N19: Systems | O19: version #11 | P19: =OR(K36<J36) -> FALSE | Q19: 11 | T19: Escambia | U19: =U12&" "&U13&" "&U14&" "&U15&" "&U16&" "&U17&" "&U18 -> CGE CQ1-15
C20: C = Cumulative Collections | F20: =LOOKUP($U$11,Lookup!$C$3:$C$605,Lookup!AC$3:AC$605) -> 145215.4 | G20: =LOOKUP($U$11,Lookup!$C$3:$C$605,Lookup!AD$3:AD$605) -> 218594.1 | H20: 291464.29 | O20: version #12 | P20: =COUNTIF(P13:P19,"TRUE") -> 1 | Q20: 12 | T20: Flagler
C21: A = Amount Assessed - Adjusted | F21: =LOOKUP($U$11,Lookup!$C$3:$C$605,Lookup!X$3:X$605) -> 755726.65 | G21: =LOOKUP($U$11,Lookup!$C$3:$C$605,Lookup!Y$3:Y$605) -> 748349.65 | H21: 741886.15 | T21: Franklin
C22: CR = Collection Rate | F22: =IF(ISBLANK(F20),"N/A",IF(OR(F20=0,F20="N/A"),0,F20/F21)) -> 0.1921533401 | G22: =IF(ISBLANK(G20),"N/A",IF(OR(G20=0,G20="N/A"),0,G20/G21)) -> 0.2921015597 | H22: =IF(ISBLANK(H20),"N/A",IF(AND(H20=0,H21=0,NOT(ISBLANK(H20)),NOT(ISBLANK(H21))),1,H20/H21)) -> 0.3928692967 | I22: =IF(ISBLANK(I20),"N/A",IF(AND(I20=0,I21=0,NOT(ISBLANK(I20)),NOT(ISBLANK(I21))),1,I20/I21)) -> N/A | J22: =IF(ISBLANK(J20),"N/A",IF(AND(J20=0,J21=0,NOT(ISBLANK(J20)),NOT(ISBLANK(J21))),1,J20/J21)) -> N/A | O22: Q1 | P22: Q2 | T22: Gadsden
A23: =LEFT(B23,3)&" "&RIGHT(B23,6) -> CGE CQ4-15 | B23: CGE CQ4-15 | C23: RPE 09/30/14 | G23: Qtr 1 | H23: Qtr 2 | I23: Qtr 3 | J23: Qtr 4 | K23: Qtr 5 | O23: FALSE | P23: FALSE | Q23: =IF(AND(OR(ISBLANK(H12),ISBLANK(H13)),O23=FALSE),"Red","Gray") -> Gray | R23: =IF(AND(OR(ISBLANK(I16),ISBLANK(I17)),P23=FALSE),"Red","Gray") -> Red | S23: =IF(AND('Circuit Criminal'!D4=1,S36=1),A11,IF(AND('Circuit Criminal'!D4=2,S36=1),A15,IF(AND('Circuit Criminal'!D4=3,S36=1),A19,IF(AND('Circuit Criminal'!D4=4,S36=1),A23,"")))) ->  | T23: Gilchrist
C24: C = Cumulative Collections | G24: =LOOKUP($U$11,Lookup!$C$3:$C$605,Lookup!AM$3:AM$605) -> 168998.18 | H24: 239592.85 | O24: FALSE | P24: FALSE | Q24: =IF(AND(OR(ISBLANK(H16),ISBLANK(H17)),O24=FALSE),"Red","Gray") -> Gray | R24: =IF(AND(OR(ISBLANK(I20),ISBLANK(I21)),P24=FALSE),"Red","Gray") -> Red | S24: =IF(AND('Circuit Criminal'!D4=1,S37=1),A15,IF(AND('Circuit Criminal'!D4=2,S37=1),A19,IF(AND('Circuit Criminal'!D4=3,S37=1),A23,IF(AND('Circuit Criminal'!D4=4,S37=1),A27,"")))) ->  | T24: Glades
C25: A = Amount Assessed - Adjusted | G25: =LOOKUP($U$11,Lookup!$C$3:$C$605,Lookup!AH$3:AH$605) -> 763003.15 | H25: 758571.15 | O25: FALSE | P25: FALSE | Q25: =IF(AND(OR(ISBLANK(H20),ISBLANK(H21)),O25=FALSE),"Red","Gray") -> Gray | R25: =IF(AND(OR(ISBLANK(I24),ISBLANK(I25)),P25=FALSE),"Red","Gray") -> Red | S25: =IF(AND('Circuit Criminal'!D4=1,S38=1),A19,IF(AND('Circuit Criminal'!D4=2,S38=1),A23,IF(AND('Circuit Criminal'!D4=3,S38=1),A27,IF(AND('Circuit Criminal'!D4=4,S38=1),A31,"")))) ->  | T25: Gulf
C26: CR = Collection Rate | G26: =IF(ISBLANK(G24),"N/A",IF(OR(G24=0,G24="N/A"),0,G24/G25)) -> 0.2214908025 | H26: =IF(ISBLANK(H24),"N/A",IF(AND(H24=0,H25=0,NOT(ISBLANK(H24)),NOT(ISBLANK(H25))),1,H24/H25)) -> 0.3158475642 | I26: =IF(ISBLANK(I24),"N/A",IF(AND(I24=0,I25=0,NOT(ISBLANK(I24)),NOT(ISBLANK(I25))),1,I24/I25)) -> N/A | J26: =IF(ISBLANK(J24),"N/A",IF(AND(J24=0,J25=0,NOT(ISBLANK(J24)),NOT(ISBLANK(J25))),1,J24/J25)) -> N/A | K26: =IF(ISBLANK(K24),"N/A",IF(AND(K24=0,K25=0,NOT(ISBLANK(K24)),NOT(ISBLANK(K25))),1,K24/K25)) -> N/A | O26: FALSE | P26: FALSE | Q26: =IF(AND(OR(ISBLANK(H24),ISBLANK(H25)),O26=FALSE),"Red","Gray") -> Gray | R26: =IF(AND(OR(ISBLANK(I28),ISBLANK(I29)),P26=FALSE),"Red","Gray") -> Red | S26: =IF(AND('Circuit Criminal'!D4=1,S39=1),A23,IF(AND('Circuit Criminal'!D4=2,S39=1),A27,IF(AND('Circuit Criminal'!D4=3,S39=1),A31,IF(AND('Circuit Criminal'!D4=4,S39=1),A35,"")))) ->  | T26: Hamilton
A27: =LEFT(B27,3)&" "&RIGHT(B27,6) -> CGE CQ1-16 | B27: CGE CQ1-16 | C27: RPE 12/31/14 | H27: Qtr 1 | I27: Qtr 2 | J27: Qtr 3 | K27: Qtr 4 | O27: FALSE | P27: FALSE | Q27: =IF(AND(OR(ISBLANK(H28),ISBLANK(H29)),O27=FALSE),"Red","Gray") -> Gray | R27: =IF(AND(OR(ISBLANK(I32),ISBLANK(I33)),P27=FALSE),"Red","Gray") -> Red | S27: =IF(AND('Circuit Criminal'!D4=1,S40=1),A27,IF(AND('Circuit Criminal'!D4=2,S40=1),A31,IF(AND('Circuit Criminal'!D4=3,S40=1),A35,IF(AND('Circuit Criminal'!D4=4,S40=1),A39,"")))) ->  | T27: Hardee
C28: C = Cumulative Collections | H28: 138135.35 | T28: Hendry
C29: A = Amount Assessed - Adjusted | H29: 700495.4 | O29: Q3 | P29: Q4 | T29: Hernando
C30: CR = Collection Rate | H30: =IF(ISBLANK(H28),"N/A",IF(AND(H28=0,H29=0,NOT(ISBLANK(H28)),NOT(ISBLANK(H29))),1,H28/H29)) -> 0.1971966554 | I30: =IF(ISBLANK(I28),"N/A",IF(AND(I28=0,I29=0,NOT(ISBLANK(I28)),NOT(ISBLANK(I29))),1,I28/I29)) -> N/A | J30: =IF(ISBLANK(J28),"N/A",IF(AND(J28=0,J29=0,NOT(ISBLANK(J28)),NOT(ISBLANK(J29))),1,J28/J29)) -> N/A | K30: =IF(ISBLANK(K28),"N/A",IF(AND(K28=0,K29=0,NOT(ISBLANK(K28)),NOT(ISBLANK(K29))),1,K28/K29)) -> N/A | O30: FALSE | P30: FALSE | Q30: =IF(AND(OR(ISBLANK(J20),ISBLANK(J21)),O30=FALSE),"Red","Gray") -> Red | R30: =IF(AND(OR(ISBLANK(K24),ISBLANK(K25)),P30=FALSE),"Red","Gray") -> Red | T30: Highlands
A31: =LEFT(B31,3)&" "&RIGHT(B31,6) -> CGE CQ2-16 | B31: CGE CQ2-16 | C31: RPE 03/31/15 | I31: Qtr 1 | J31: Qtr 2 | K31: Qtr 3 | L31: Additional Notes Related to Collection Issues | O31: FALSE | P31: FALSE | Q31: =IF(AND(OR(ISBLANK(J24),ISBLANK(J25)),O31=FALSE),"Red","Gray") -> Red | R31: =IF(AND(OR(ISBLANK(K28),ISBLANK(K29)),P31=FALSE),"Red","Gray") -> Red | T31: Hillsborough
C32: C = Cumulative Collections | O32: FALSE | P32: FALSE | Q32: =IF(AND(OR(ISBLANK(J28),ISBLANK(J29)),O32=FALSE),"Red","Gray") -> Red | R32: =IF(AND(OR(ISBLANK(K32),ISBLANK(K33)),P32=FALSE),"Red","Gray") -> Red | T32: Holmes
C33: A = Amount Assessed - Adjusted | O33: FALSE | P33: FALSE | Q33: =IF(AND(OR(ISBLANK(J32),ISBLANK(J33)),O33=FALSE),"Red","Gray") -> Red | R33: =IF(AND(OR(ISBLANK(K36),ISBLANK(K37)),P33=FALSE),"Red","Gray") -> Red | T33: Indian River
C34: CR = Collection Rate | I34: =IF(ISBLANK(I32),"N/A",IF(AND(I32=0,I33=0,NOT(ISBLANK(I32)),NOT(ISBLANK(I33))),1,I32/I33)) -> N/A | J34: =IF(ISBLANK(J32),"N/A",IF(AND(J32=0,J33=0,NOT(ISBLANK(J32)),NOT(ISBLANK(J33))),1,J32/J33)) -> N/A | K34: =IF(ISBLANK(K32),"N/A",IF(AND(K32=0,K33=0,NOT(ISBLANK(K32)),NOT(ISBLANK(K33))),1,K32/K33)) -> N/A | O34: FALSE | P34: FALSE | Q34: =IF(AND(OR(ISBLANK(J36),ISBLANK(J37)),O34=FALSE),"Red","Gray") -> Red | R34: =IF(AND(OR(ISBLANK(K40),ISBLANK(K41)),P34=FALSE),"Red","Gray") -> Red | T34: Jackson
A35: =LEFT(B35,3)&" "&RIGHT(B35,6) -> CGE CQ3-16 | B35: CGE CQ3-16 | C35: RPE 06/30/15 | J35: Qtr 1 | K35: Qtr 2 | T35: Jefferson
C36: C = Cumulative Collections | O36: =IF(AND('Circuit Criminal'!$D$4=1,Q23="Red"),"Red","Gray") -> Gray | P36: =IF(AND('Circuit Criminal'!$D$4=2,R23="Red"),"Red","Gray") -> Gray | Q36: =IF(AND('Circuit Criminal'!$D$4=3,Q30="Red"),"Red","Gray") -> Gray | R36: =IF(AND('Circuit Criminal'!$D$4=4,R30="Red"),"Red","Gray") -> Gray | S36: =COUNTIF(O36:R36,"Red") -> 0 | T36: Lafayette
C37: A = Amount Assessed - Adjusted | O37: =IF(AND('Circuit Criminal'!$D$4=1,Q24="Red"),"Red","Gray") -> Gray | P37: =IF(AND('Circuit Criminal'!$D$4=2,R24="Red"),"Red","Gray") -> Gray | Q37: =IF(AND('Circuit Criminal'!$D$4=3,Q31="Red"),"Red","Gray") -> Gray | R37: =IF(AND('Circuit Criminal'!$D$4=4,R31="Red"),"Red","Gray") -> Gray | S37: =COUNTIF(O37:R37,"Red") -> 0 | T37: Lake
C38: CR = Collection Rate | J38: =IF(ISBLANK(J36),"N/A",IF(AND(J36=0,J37=0,NOT(ISBLANK(J36)),NOT(ISBLANK(J37))),1,J36/J37)) -> N/A | K38: =IF(ISBLANK(K36),"N/A",IF(AND(K36=0,K37=0,NOT(ISBLANK(K36)),NOT(ISBLANK(K37))),1,K36/K37)) -> N/A | O38: =IF(AND('Circuit Criminal'!$D$4=1,Q25="Red"),"Red","Gray") -> Gray | P38: =IF(AND('Circuit Criminal'!$D$4=2,R25="Red"),"Red","Gray") -> Gray | Q38: =IF(AND('Circuit Criminal'!$D$4=3,Q32="Red"),"Red","Gray") -> Gray | R38: =IF(AND('Circuit Criminal'!$D$4=4,R32="Red"),"Red","Gray") -> Gray | S38: =COUNTIF(O38:R38,"Red") -> 0 | T38: Lee
A39: =LEFT(B39,3)&" "&RIGHT(B39,6) -> CGE CQ4-16 | B39: CGE CQ4-16 | C39: RPE 09/30/15 | K39: Qtr 1 | O39: =IF(AND('Circuit Criminal'!$D$4=1,Q26="Red"),"Red","Gray") -> Gray | P39: =IF(AND('Circuit Criminal'!$D$4=2,R26="Red"),"Red","Gray") -> Gray | Q39: =IF(AND('Circuit Criminal'!$D$4=3,Q33="Red"),"Red","Gray") -> Gray | R39: =IF(AND('Circuit Criminal'!$D$4=4,R33="Red"),"Red","Gray") -> Gray | S39: =COUNTIF(O39:R39,"Red") -> 0 | T39: Leon
C40: C = Cumulative Collections | O40: =IF(AND('Circuit Criminal'!$D$4=1,Q27="Red"),"Red","Gray") -> Gray | P40: =IF(AND('Circuit Criminal'!$D$4=2,R27="Red"),"Red","Gray") -> Gray | Q40: =IF(AND('Circuit Criminal'!$D$4=3,Q34="Red"),"Red","Gray") -> Gray | R40: =IF(AND('Circuit Criminal'!$D$4=4,R34="Red"),"Red","Gray") -> Gray | S40: =COUNTIF(O40:R40,"Red") -> 0 | T40: Levy
C41: A = Amount Assessed - Adjusted | O41: =COUNTIF(O36:O40,"Red") -> 0 | P41: =COUNTIF(P36:P40,"Red") -> 0 | Q41: =COUNTIF(Q36:Q40,"Red") -> 0 | R41: =COUNTIF(R36:R40,"Red") -> 0 | T41: Liberty
C42: CR = Collection Rate | K42: =IF(ISBLANK(K40),"N/A",IF(OR(K40=0,K40="N/A"),0,K40/K41)) -> N/A | O42: =SUM(O41:R41) -> 0 | T42: Madison
B43: NOTES: | T43: Manatee
B44: Business Rules | D44: 1.) Assessment amount is adjusted each quarter based on business rules within the control group, it is based on the amount that was originally assessed in the first quarter. | T44: Martin
D45: 2.) Quarter 5 Action Plan Note: If Collection Rate is below Standard (highlighted in red), please include a "Reason Code" and "Current Action to Improve". These comments will automatically feed the "Action Plan" tab. | T45: Nassau
D46: 3.) Additional Notes: Please include additional information to explain either of the following conditions that are not consistant with the Collection Report Business Rules. (These dollars will result in a red font): | T46: Okaloosa
E47: a.) Cumulative Collection amount has Decreased from the previous quarter in the same Control Group | T47: Okeechobee
E48: b.) The Amount Assessed - Adjusted has Increased from the previous quarter in the same Control Group | T48: Orange
C49: =CELL("filename",B49) -> S:\REPORTS\Article V Performance Measure\CCOC Collections Rate FY Oct 2014 - Sep 2015\[Brevard FY1415 Collections Dec Ver2.xlsm]Criminal Traffic | T49: Nassau
C50: =SEARCH("\[",C49) -> 86 | T50: Okaloosa
C51: =SEARCH(".xls]",C49) ->  | T51: Okeechobee
T52: Orange
T53: Pasco
T54: Pinellas
T55: Polk
B56: =MAX('Juvenile Delinquency'!B56:B99) -> 0 | D56: Issue | F56: Calc 1 Needed | G56: Calc 2 Needed | H56: Calc 3 Needed | I56: Calc 4 Needed | J56: Standard | T56: Putnam
A57: =D$8 -> Criminal Traffic | B57: =IF(E57="YES",MAX(B56)+1,0) -> 0 | C57: =A$11 -> CGE CQ1-15 | D57: ="After 3rd Q, Collections went up by more than set percentage of: "&TEXT(J57,"#0%") -> After 3rd Q, Collections went up by more than set percentage of: 500% | E57: =IF(MAX(F57:G57)>V$10,"YES","NO") -> NO | F57: =IFERROR(IF(NOT(ISBLANK(G12)),(G12-F12)/F12,0),0) -> 0.1877071623 | G57: =IFERROR(IF(NOT(ISBLANK(H12)),(H12-G12)/G12,0),0) -> 0.1068202393 | J57: =V$10 -> 5 | T57: Santa Rosa
A58: =D$8 -> Criminal Traffic | B58: =IF(E58="YES",MAX(B$56:B57)+1,0) -> 0 | C58: =A$11 -> CGE CQ1-15 | D58: ="Assessments dropped by more than set percentage of: "&TEXT(J58,"#0%") -> Assessments dropped by more than set percentage of: 15% | E58: =IF(MIN(F58:I58)<(-1*V$11),"YES","NO") -> NO | F58: =IFERROR(IF(NOT(ISBLANK(E13)),(E13-D13)/D13,0),0) -> -0.008499227963 | G58: =IFERROR(IF(NOT(ISBLANK(F13)),(F13-E13)/E13,0),0) -> -0.01007540795 | H58: =IFERROR(IF(NOT(ISBLANK(G13)),(G13-F13)/F13,0),0) -> -0.002527198906 | I58: =IFERROR(IF(NOT(ISBLANK(H13)),(H13-G13)/G13,0),0) -> -0.00177381017 | J58: =V$11 -> 0.15 | T58: Sumter
A59: Criminal Traffic | B59: =IF(E59="YES",MAX(B$56:B58)+1,0) -> 0 | C59: =A$11 -> CGE CQ1-15 | D59: ="The 5th Quarter Collection Rate did not meet the established performance measure standard of: "&TEXT(J59,"#0%") -> The 5th Quarter Collection Rate did not meet the established performance measure standard of: 40% | E59: =IF(F59="N/A","NO",IF(F59<H$8,"YES","NO")) -> NO | F59: =H14 -> 0.5566018811 | J59: =H$8 -> 0.4 | T59: Washington
A60: Criminal Traffic | B60: =IF(E60="YES",MAX(B$56:B59)+1,0) -> 0 | C60: =A$11 -> CGE CQ1-15 | D60: Collections amount decreased from prior quarter | E60: =IF(MIN(F60:I60)<0,"YES","NO") -> NO | F60: =IFERROR(IF(NOT(ISBLANK(E12)),(E12-D12)/D12,0),0) -> 0.6377492716 | G60: 0.3219077182 | H60: 0.1877071623 | I60: 0.1068202393
A61: Criminal Traffic | B61: =IF(E61="YES",MAX(B$56:B60)+1,0) -> 0 | C61: =A$11 -> CGE CQ1-15 | D61: Assessment amount increased from prior quarter | E61: =IF(MAX(F61:I61)>0,"YES","NO") -> NO | F61: -0.008499227963 | G61: -0.01007540795 | H61: -0.002527198906 | I61: -0.00177381017
A62: Criminal Traffic | B62: =IF(E62="YES",MAX(B$56:B61)+1,0) -> 0 | C62: =A$15 -> CGE CQ2-15 | D62: ="After 3rd Q, Collections went up by more than set percentage of: "&TEXT(J62,"#0%") -> After 3rd Q, Collections went up by more than set percentage of: 500% | E62: =IF(MAX(F62:G62)>V$10,"YES","NO") -> NO | F62: =IFERROR(IF(NOT(ISBLANK(H16)),(H16-G16)/G16,0),0) -> 0.203368003 | G62: =IFERROR(IF(NOT(ISBLANK(I16)),(I16-H16)/H16,0),0) -> 0 | J62: =V$10 -> 5 | T62: Sarasota
A63: Criminal Traffic | B63: =IF(E63="YES",MAX(B$56:B62)+1,0) -> 0 | C63: =A$15 -> CGE CQ2-15 | D63: ="Assessments dropped by more than set percentage of: "&TEXT(J63,"#0%") -> Assessments dropped by more than set percentage of: 15% | E63: =IF(MIN(F63:I63)<(-1*V$11),"YES","NO") -> NO | F63: =IFERROR(IF(NOT(ISBLANK(F17)),(F17-E17)/E17,0),0) -> -0.006425881605 | G63: =IFERROR(IF(NOT(ISBLANK(G17)),(G17-F17)/F17,0),0) -> -0.009665382481 | H63: =IFERROR(IF(NOT(ISBLANK(H17)),(H17-G17)/G17,0),0) -> -0.001847106969 | I63: =IFERROR(IF(NOT(ISBLANK(I17)),(I17-H17)/H17,0),0) -> 0 | J63: =V$11 -> 0.15 | T63: Suwannee
A64: Criminal Traffic | B64: =IF(E64="YES",MAX(B$56:B63)+1,0) -> 0 | C64: =A$15 -> CGE CQ2-15 | D64: Collections amount decreased from prior quarter | E64: =IF(MIN(F64:I64)<0,"YES","NO") -> NO | F64: =IFERROR(IF(NOT(ISBLANK(F16)),(F16-E16)/E16,0),0) -> 0.5216173894 | G64: 0.3296037028 | H64: 0.203368003 | I64: 0
A65: Criminal Traffic | B65: =IF(E65="YES",MAX(B$56:B64)+1,0) -> 0 | C65: =A$15 -> CGE CQ2-15 | D65: Assessment amount increased from prior quarter | E65: =IF(MAX(F65:I65)>0,"YES","NO") -> NO | F65: -0.006425881605 | G65: -0.009665382481 | H65: -0.001847106969 | I65: 0
A66: Criminal Traffic | B66: =IF(E66="YES",MAX(B$56:B65)+1,0) -> 0 | C66: =A$15 -> CGE CQ2-15 | D66: ="The 5th Quarter Collection Rate did not meet the established performance measure standard of: "&TEXT(J66,"#0%") -> The 5th Quarter Collection Rate did not meet the established performance measure standard of: 40% | E66: =IF(F66="N/A","NO",IF(F66<H$8,"YES","NO")) -> NO | F66: =I18 -> N/A | J66: =H$8 -> 0.4
A67: Criminal Traffic | B67: =IF(E67="YES",MAX(B$56:B66)+1,0) -> 0 | C67: =A$19 -> CGE CQ3-15 | D67: ="After 3rd Q, Collections went up by more than set percentage of: "&TEXT(J67,"#0%") -> After 3rd Q, Collections went up by more than set percentage of: 500% | E67: =IF(MAX(F67:G67)>V$10,"YES","NO") -> NO | F67: =IFERROR(IF(NOT(ISBLANK(I20)),(I20-H20)/H20,0),0) -> 0 | G67: =IFERROR(IF(NOT(ISBLANK(J20)),(J20-I20)/I20,0),0) -> 0 | J67: =V$10 -> 5 | T67: Seminole
A68: Criminal Traffic | B68: =IF(E68="YES",MAX(B$56:B67)+1,0) -> 0 | C68: =A$19 -> CGE CQ3-15 | D68: ="Assessments dropped by more than set percentage of: "&TEXT(J68,"#0%") -> Assessments dropped by more than set percentage of: 15% | E68: =IF(MIN(F68:I68)<(-1*V$11),"YES","NO") -> NO | F68: =IFERROR(IF(NOT(ISBLANK(G21)),(G21-F21)/F21,0),0) -> -0.009761466001 | G68: =IFERROR(IF(NOT(ISBLANK(H21)),(H21-G21)/G21,0),0) -> -0.008637005443 | H68: =IFERROR(IF(NOT(ISBLANK(I21)),(I21-H21)/H21,0),0) -> 0 | I68: =IFERROR(IF(NOT(ISBLANK(J21)),(J21-I21)/I21,0),0) -> 0 | J68: =V$11 -> 0.15 | T68: Taylor
A69: Criminal Traffic | B69: =IF(E69="YES",MAX(B$56:B68)+1,0) -> 0 | C69: =A$19 -> CGE CQ3-15 | D69: Collections amount decreased from prior quarter | E69: =IF(MIN(F69:I69)<0,"YES","NO") -> NO | F69: =IFERROR(IF(NOT(ISBLANK(G20)),(G20-F20)/F20,0),0) -> 0.5053093542 | G69: 0.3333584484 | H69: 0 | I69: 0
A70: Criminal Traffic | B70: =IF(E70="YES",MAX(B$56:B69)+1,0) -> 0 | C70: =A$19 -> CGE CQ3-15 | D70: Assessment amount increased from prior quarter | E70: =IF(MAX(F70:I70)>0,"YES","NO") -> NO | F70: -0.009761466001 | G70: -0.008637005443 | H70: 0 | I70: 0
A71: Criminal Traffic | B71: =IF(E71="YES",MAX(B$56:B70)+1,0) -> 0 | C71: =A$19 -> CGE CQ3-15 | D71: ="The 5th Quarter Collection Rate did not meet the established performance measure standard of: "&TEXT(J71,"#0%") -> The 5th Quarter Collection Rate did not meet the established performance measure standard of: 40% | E71: =IF(F71="N/A","NO",IF(F71<H$8,"YES","NO")) -> NO | F71: =J22 -> N/A | J71: =H$8 -> 0.4
A72: Criminal Traffic | B72: =IF(E72="YES",MAX(B$56:B71)+1,0) -> 0 | C72: =A$23 -> CGE CQ4-15 | D72: ="After 3rd Q, Collections went up by more than set percentage of: "&TEXT(J72,"#0%") -> After 3rd Q, Collections went up by more than set percentage of: 500% | E72: =IF(MAX(F72:G72)>V$10,"YES","NO") -> NO | F72: =IFERROR(IF(NOT(ISBLANK(J24)),(J24-I24)/I24,0),0) -> 0 | G72: =IFERROR(IF(NOT(ISBLANK(K24)),(K24-J24)/J24,0),0) -> 0 | J72: =V$10 -> 5 | T72: St. Johns
A73: Criminal Traffic | B73: =IF(E73="YES",MAX(B$56:B72)+1,0) -> 0 | C73: =A$23 -> CGE CQ4-15 | D73: ="Assessments dropped by more than set percentage of: "&TEXT(J73,"#0%") -> Assessments dropped by more than set percentage of: 15% | E73: =IF(MIN(F73:I73)<(-1*V$11),"YES","NO") -> NO | F73: =IFERROR(IF(NOT(ISBLANK(H25)),(H25-G25)/G25,0),0) -> -0.005808626085 | G73: =IFERROR(IF(NOT(ISBLANK(I25)),(I25-H25)/H25,0),0) -> 0 | H73: =IFERROR(IF(NOT(ISBLANK(J25)),(J25-I25)/I25,0),0) -> 0 | I73: =IFERROR(IF(NOT(ISBLANK(K25)),(K25-J25)/J25,0),0) -> 0 | J73: =V$11 -> 0.15 | T73: Union
A74: Criminal Traffic | B74: =IF(E74="YES",MAX(B$56:B73)+1,0) -> 0 | C74: =A$23 -> CGE CQ4-15 | D74: Collections amount decreased from prior quarter | E74: =IF(MIN(F74:I74)<0,"YES","NO") -> NO | F74: =IFERROR(IF(NOT(ISBLANK(H24)),(H24-G24)/G24,0),0) -> 0.4177244394 | G74: 0 | H74: 0 | I74: 0
A75: Criminal Traffic | B75: =IF(E75="YES",MAX(B$56:B74)+1,0) -> 0 | C75: =A$23 -> CGE CQ4-15 | D75: Assessment amount increased from prior quarter | E75: =IF(MAX(F75:I75)>0,"YES","NO") -> NO | F75: -0.005808626085 | G75: 0 | H75: 0 | I75: 0
A76: Criminal Traffic | B76: =IF(E76="YES",MAX(B$56:B75)+1,0) -> 0 | C76: =A$23 -> CGE CQ4-15 | D76: ="The 5th Quarter Collection Rate did not meet the established performance measure standard of: "&TEXT(J76,"#0%") -> The 5th Quarter Collection Rate did not meet the established performance measure standard of: 40% | E76: =IF(F76="N/A","NO",IF(F76<H$8,"YES","NO")) -> NO | F76: =K26 -> N/A | J76: =H$8 -> 0.4
A77: Criminal Traffic | B77: =IF(E77="YES",MAX(B$56:B76)+1,0) -> 0 | C77: =A$27 -> CGE CQ1-16 | D77: ="After 3rd Q, Collections went up by more than set percentage of: "&TEXT(J77,"#0%") -> After 3rd Q, Collections went up by more than set percentage of: 500% | E77: =IF(MAX(F77)>V$10,"YES","NO") -> NO | F77: =IFERROR(IF(NOT(ISBLANK(K28)),(K28-J28)/J28,0),0) -> 0 | J77: =V$10 -> 5 | T77: St. Lucie
A78: Criminal Traffic | B78: =IF(E78="YES",MAX(B$56:B77)+1,0) -> 0 | C78: =A$27 -> CGE CQ1-16 | D78: ="Assessments dropped by more than set percentage of: "&TEXT(J78,"#0%") -> Assessments dropped by more than set percentage of: 15% | E78: =IF(MIN(F78:H78)<(-1*V$11),"YES","NO") -> NO | F78: =IFERROR(IF(NOT(ISBLANK(I29)),(I29-H29)/H29,0),0) -> 0 | G78: =IFERROR(IF(NOT(ISBLANK(J29)),(J29-I29)/I29,0),0) -> 0 | H78: =IFERROR(IF(NOT(ISBLANK(K29)),(K29-J29)/J29,0),0) -> 0 | J78: =V$11 -> 0.15 | T78: Volusia
A79: Criminal Traffic | B79: =IF(E79="YES",MAX(B$56:B78)+1,0) -> 0 | C79: =A$27 -> CGE CQ1-16 | D79: Collections amount decreased from prior quarter | E79: =IF(MIN(F79:H79)<0,"YES","NO") -> NO | F79: =IFERROR(IF(NOT(ISBLANK(I28)),(I28-H28)/H28,0),0) -> 0 | G79: 0 | H79: 0
A80: Criminal Traffic | B80: =IF(E80="YES",MAX(B$56:B79)+1,0) -> 0 | C80: =A$27 -> CGE CQ1-16 | D80: Assessment amount increased from prior quarter | E80: =IF(MAX(F80:H80)>0,"YES","NO") -> NO | F80: 0 | G80: 0 | H80: 0
A81: Criminal Traffic | B81: =IF(E81="YES",MAX(B$56:B80)+1,0) -> 0 | C81: =A$31 -> CGE CQ2-16 | D81: ="Assessments dropped by more than set percentage of: "&TEXT(J81,"#0%") -> Assessments dropped by more than set percentage of: 15% | E81: =IF(MIN(F81:G81)<(-1*V$11),"YES","NO") -> NO | F81: =IFERROR(IF(NOT(ISBLANK(J33)),(J33-I33)/I33,0),0) -> 0 | G81: =IFERROR(IF(NOT(ISBLANK(K33)),(K33-J33)/J33,0),0) -> 0 | J81: =V$11 -> 0.15 | T81: Wakulla
A82: Criminal Traffic | B82: =IF(E82="YES",MAX(B$56:B81)+1,0) -> 0 | C82: =A$31 -> CGE CQ2-16 | D82: Collections amount decreased from prior quarter | E82: =IF(MIN(F82:G82)<0,"YES","NO") -> NO | F82: =IFERROR(IF(NOT(ISBLANK(J32)),(J32-I32)/I32,0),0) -> 0 | G82: =IFERROR(IF(NOT(ISBLANK(K32)),(K32-J32)/J32,0),0) -> 0
A83: Criminal Traffic | B83: =IF(E83="YES",MAX(B$56:B82)+1,0) -> 0 | C83: =A$31 -> CGE CQ2-16 | D83: Assessment amount increased from prior quarter | E83: =IF(MAX(F83:G83)>0,"YES","NO") -> NO | F83: =IFERROR(IF(NOT(ISBLANK(J33)),(J33-I33)/I33,0),0) -> 0 | G83: =IFERROR(IF(NOT(ISBLANK(K33)),(K33-J33)/J33,0),0) -> 0
A84: Criminal Traffic | B84: =IF(E84="YES",MAX(B$56:B83)+1,0) -> 0 | C84: =A$35 -> CGE CQ3-16 | D84: ="Assessments dropped by more than set percentage of: "&TEXT(J84,"#0%") -> Assessments dropped by more than set percentage of: 15% | E84: =IF(MIN(F84)<(-1*V$11),"YES","NO") -> NO | F84: =IFERROR(IF(NOT(ISBLANK(K37)),(K37-J37)/J37,0),0) -> 0 | J84: =V$11 -> 0.15 | T84: Walton
A85: Criminal Traffic | B85: =IF(E85="YES",MAX(B$56:B84)+1,0) -> 0 | C85: =A$35 -> CGE CQ3-16 | D85: Collections amount decreased from prior quarter | E85: =IF(MIN(F85)<0,"YES","NO") -> NO | F85: =IFERROR(IF(NOT(ISBLANK(K36)),(K36-J36)/J36,0),0) -> 0
A86: Criminal Traffic | B86: =IF(E86="YES",MAX(B$56:B85)+1,0) -> 0 | C86: =A$35 -> CGE CQ3-16 | D86: Assessment amount increased from prior quarter | E86: =IF(MAX(F86)>0,"YES","NO") -> NO | F86: =IFERROR(IF(NOT(ISBLANK(K37)),(K37-J37)/J37,0),0) -> 0

Sheet Circuit Civil
M2: County Fiscal Year 2014-2015 | T2: CountyNames
M3: Collections Quarterly Report Form for CCOC | T3: Alachua
C4: Report for Quarter Ending: | D4: ='Circuit Criminal'!D4 -> December 2014 | T4: Baker
C5: Version #: | D5: ='Circuit Criminal'!$D$5 -> 2 | T5: Bay
C6: County: | D6: ='Circuit Criminal'!D6 -> Brevard | T6: Bradford
T7: Brevard
C8: Court/Case Type: | D8: Circuit Civil | G8: Performance Measure Standard: | H8: 0.9 | T8: Broward
L9: Action Plan | N9: 1 | O9: version #1 | P9: Qtr1 - December | Q9: 1 | T9: Calhoun
C10: Control Groups | D10: 10/01/13 - 12/31/13 | E10: 01/01/14 - 03/31/14 | F10: 04/01/14 - 06/30/14 | G10: 07/01/14 - 09/30/14 | H10: 10/01/14 - 12/31/14 | I10: 01/01/15 - 03/31/15 | J10: 04/01/15 - 06/30/15 | K10: 07/01/15 - 09/30/15 | L10: Reason Code | M10: Current Actions to Improve | O10: version #2 | P10: Qtr 2 - March | T10: Charlotte | V10: 5
A11: =LEFT(B11,3)&" "&RIGHT(B11,6) -> CGE CQ1-15 | B11: CGE CQ1-15 | C11: RPE 12/31/13 | D11: Qtr 1 | E11: Qtr 2 | F11: Qtr 3 | G11: Qtr 4 | H11: Qtr 5 | N11: Economy | O11: version #3 | P11: Qtr 3 - June | Q11: 3 | T11: Citrus | U11: =D6&" "&D8 -> Brevard Circuit Civil | V11: 0.15
C12: C = Cumulative Collections | D12: =LOOKUP($U$11,Lookup!$C$3:$C$605,Lookup!I$3:I$596) -> 952836.84 | E12: =LOOKUP($U$11,Lookup!$C$3:$C$605,Lookup!J$3:J$596) -> 1062000.52 | F12: =LOOKUP($U$11,Lookup!$C$3:$C$605,Lookup!K$3:K$596) -> 1074743.96 | G12: =LOOKUP($U$11,Lookup!$C$3:$C$605,Lookup!L$3:L$596) -> 1075725.6 | H12: 1074238.28 | N12: Incarcerations | O12: version #4 | P12: Qtr 4 - September | Q12: 4 | T12: Clay | U12: =IF(P13=TRUE,A11,"") -> CGE CQ1-15
C13: A = Amount Assessed - Adjusted | D13: =LOOKUP($U$11,Lookup!$C$3:$C$605,Lookup!D$3:D$596) -> 1151288.21 | E13: =LOOKUP($U$11,Lookup!$C$3:$C$605,Lookup!E$3:E$596) -> 1149495.21 | F13: =LOOKUP($U$11,Lookup!$C$3:$C$605,Lookup!F$3:F$596) -> 1149445.21 | G13: =LOOKUP($U$11,Lookup!$C$3:$C$605,Lookup!G$3:G$596) -> 1147047.21 | H13: 1143928.1 | N13: Late/Non-pay/Pay Plans | O13: version #5 | P13: =OR(AND(E12<D12,E12>0),AND(F12<E12,F12>0),AND(G12<F12,G12>0),AND(H12<G12,H12>0),AND(F13>E13,E13>0),AND(G13>F13,F13>0),AND(H13<G13,G13>0)) -> TRUE | Q13: 5 | T13: Collier | U13: =IF(P14=TRUE,A15,"") -> CGE CQ2-15
C14: CR = Collection Rate | D14: =IF(ISBLANK(D12),"N/A",IF(OR(D12=0,D12="N/A"),0,D12/D13)) -> 0.8276266809 | E14: =IF(ISBLANK(E12),"N/A",IF(OR(E12=0,E12="N/A"),0,E12/E13)) -> 0.92388425 | F14: =IF(ISBLANK(F12),"N/A",IF(OR(F12=0,F12="N/A"),0,F12/F13)) -> 0.9350110389 | G14: =IF(ISBLANK(G12),"N/A",IF(OR(G12=0,G12="N/A"),0,G12/G13)) -> 0.9378215566 | H14: =IF(ISBLANK(H12),"N/A",IF(AND(H12=0,H13=0,NOT(ISBLANK(H12)),NOT(ISBLANK(H13))),1,H12/H13)) -> 0.9390784963 | N14: Mandatory Assessment | O14: version #6 | P14: =OR(AND(F16<E16,F16>0),AND(G16<F16,G16>0),AND(H16<G16,H16>0),AND(I16<H16,I16>0),AND(G17>F17, F17>0),AND(H17>G17, G17>0),AND(I17<H17,I17>0)) -> TRUE | Q14: 6 | T14: Columbia | U14: =IF(P15=TRUE,A19,"") -> 
A15: =LEFT(B15,3)&" "&RIGHT(B15,6) -> CGE CQ2-15 | B15: CGE CQ2-15 | C15: RPE 03/31/14 | E15: Qtr 1 | F15: Qtr 2 | G15: Qtr 3 | H15: Qtr 4 | I15: Qtr 5 | N15: Other | O15: version #7 | P15: =OR(AND(G20<F20,D10>0),AND(H20<G20,H20>0),AND(I20<H20,I20>0),AND(J20<I20,J20>0),AND(H21>G21, G21>0),AND(I21>H21, H21>0),AND(J21<I21, J21>0)) -> FALSE | Q15: 7 | T15: Dade | U15: =IF(P16=TRUE,A23,"") -> 
C16: C = Cumulative Collections | E16: =LOOKUP($U$11,Lookup!$C$3:$C$605,Lookup!S$3:S$605) -> 996514 | F16: =LOOKUP($U$11,Lookup!$C$3:$C$605,Lookup!T$3:T$605) -> 1110838.72 | G16: =LOOKUP($U$11,Lookup!$C$3:$C$605,Lookup!U$3:U$605) -> 1116461.46 | H16: 1100463.49 | N16: Procedural | O16: version #8 | P16: =OR(AND(H24<G24, H24>0),AND(I24<H24, I24>0),AND(J24<I24, J24>0),AND(K24<J24, K24>0),AND(I25>H25, H25>0),AND(J25>I25, I25>0),AND(K25<J25, J25>0)) -> FALSE | Q16: 8 | T16: Desoto | U16: =IF(P17=TRUE,A27,"") -> 
C17: A = Amount Assessed - Adjusted | E17: =LOOKUP($U$11,Lookup!$C$3:$C$605,Lookup!N$3:N$605) -> 1177876.71 | F17: =LOOKUP($U$11,Lookup!$C$3:$C$605,Lookup!O$3:O$605) -> 1177746.71 | G17: =LOOKUP($U$11,Lookup!$C$3:$C$605,Lookup!P$3:P$605) -> 1177626.71 | H17: 1175916.21 | N17: Staffing - Insufficient Personnel | O17: version #9 | P17: =OR(AND(I28<H28, I28>0),AND(J28<I28, J28>0),AND(K28<J28, K28>0),AND(J29>I29, I29>0),AND(K29>J29, J29>0)) -> FALSE | Q17: 9 | T17: Dixie | U17: =IF(P18=TRUE,A31,"") -> 
C18: CR = Collection Rate | E18: =IF(ISBLANK(E16),"N/A",IF(OR(E16=0,E16="N/A"),0,E16/E17)) -> 0.8460257271 | F18: =IF(ISBLANK(F16),"N/A",IF(OR(F16=0,F16="N/A"),0,F16/F17)) -> 0.9431898307 | G18: =IF(ISBLANK(G16),"N/A",IF(OR(G16=0,G16="N/A"),0,G16/G17)) -> 0.9480605786 | H18: =IF(ISBLANK(H16),"N/A",IF(AND(H16=0,H17=0,NOT(ISBLANK(H16)),NOT(ISBLANK(H17))),1,H16/H17)) -> 0.935834952 | I18: =IF(ISBLANK(I16),"N/A",IF(AND(I16=0,I17=0,NOT(ISBLANK(I16)),NOT(ISBLANK(I17))),1,I16/I17)) -> N/A | N18: Staffing - Training Required | O18: version #10 | P18: =OR(AND(J32<I32, J32>0),AND(K32<J32, K32>0),AND(K33>J33, J33>0)) -> FALSE | Q18: 10 | T18: Duval | U18: =IF(P19=TRUE,A35,"") -> 
A19: =LEFT(B19,3)&" "&RIGHT(B19,6) -> CGE CQ3-15 | B19: CGE CQ3-15 | C19: RPE 06/30/14 | F19: Qtr 1 | G19: Qtr 2 | H19: Qtr 3 | I19: Qtr 4 | J19: Qtr 5 | N19: Systems | O19: version #11 | P19: =OR(K36<J36) -> FALSE | Q19: 11 | T19: Escambia | U19: =U12&" "&U13&" "&U14&" "&U15&" "&U16&" "&U17&" "&U18 -> CGE CQ1-15 CGE CQ2-15
C20: C = Cumulative Collections | F20: =LOOKUP($U$11,Lookup!$C$3:$C$605,Lookup!AC$3:AC$605) -> 916204.16 | G20: =LOOKUP($U$11,Lookup!$C$3:$C$605,Lookup!AD$3:AD$605) -> 1043697.19 | H20: 1044159.48 | O20: version #12 | P20: =COUNTIF(P13:P19,"TRUE") -> 2 | Q20: 12 | T20: Flagler
C21: A = Amount Assessed - Adjusted | F21: =LOOKUP($U$11,Lookup!$C$3:$C$605,Lookup!X$3:X$605) -> 1061787.06 | G21: =LOOKUP($U$11,Lookup!$C$3:$C$605,Lookup!Y$3:Y$605) -> 1061657.06 | H21: 1061246.06 | T21: Franklin
C22: CR = Collection Rate | F22: =IF(ISBLANK(F20),"N/A",IF(OR(F20=0,F20="N/A"),0,F20/F21)) -> 0.8628887981 | G22: =IF(ISBLANK(G20),"N/A",IF(OR(G20=0,G20="N/A"),0,G20/G21)) -> 0.9830831719 | H22: =IF(ISBLANK(H20),"N/A",IF(AND(H20=0,H21=0,NOT(ISBLANK(H20)),NOT(ISBLANK(H21))),1,H20/H21)) -> 0.9838995115 | I22: =IF(ISBLANK(I20),"N/A",IF(AND(I20=0,I21=0,NOT(ISBLANK(I20)),NOT(ISBLANK(I21))),1,I20/I21)) -> N/A | J22: =IF(ISBLANK(J20),"N/A",IF(AND(J20=0,J21=0,NOT(ISBLANK(J20)),NOT(ISBLANK(J21))),1,J20/J21)) -> N/A | O22: Q1 | P22: Q2 | T22: Gadsden
A23: =LEFT(B23,3)&" "&RIGHT(B23,6) -> CGE CQ4-15 | B23: CGE CQ4-15 | C23: RPE 09/30/14 | G23: Qtr 1 | H23: Qtr 2 | I23: Qtr 3 | J23: Qtr 4 | K23: Qtr 5 | O23: FALSE | P23: FALSE | Q23: =IF(AND(OR(ISBLANK(H12),ISBLANK(H13)),O23=FALSE),"Red","Gray") -> Gray | R23: =IF(AND(OR(ISBLANK(I16),ISBLANK(I17)),P23=FALSE),"Red","Gray") -> Red | S23: =IF(AND('Circuit Criminal'!D4=1,S36=1),A11,IF(AND('Circuit Criminal'!D4=2,S36=1),A15,IF(AND('Circuit Criminal'!D4=3,S36=1),A19,IF(AND('Circuit Criminal'!D4=4,S36=1),A23,"")))) ->  | T23: Gilchrist
C24: C = Cumulative Collections | G24: =LOOKUP($U$11,Lookup!$C$3:$C$605,Lookup!AM$3:AM$605) -> 949918.07 | H24: 1009546.62 | O24: FALSE | P24: FALSE | Q24: =IF(AND(OR(ISBLANK(H16),ISBLANK(H17)),O24=FALSE),"Red","Gray") -> Gray | R24: =IF(AND(OR(ISBLANK(I20),ISBLANK(I21)),P24=FALSE),"Red","Gray") -> Red | S24: =IF(AND('Circuit Criminal'!D4=1,S37=1),A15,IF(AND('Circuit Criminal'!D4=2,S37=1),A19,IF(AND('Circuit Criminal'!D4=3,S37=1),A23,IF(AND('Circuit Criminal'!D4=4,S37=1),A27,"")))) ->  | T24: Glades
C25: A = Amount Assessed - Adjusted | G25: =LOOKUP($U$11,Lookup!$C$3:$C$605,Lookup!AH$3:AH$605) -> 1028695.34 | H25: 1028597.84 | O25: FALSE | P25: FALSE | Q25: =IF(AND(OR(ISBLANK(H20),ISBLANK(H21)),O25=FALSE),"Red","Gray") -> Gray | R25: =IF(AND(OR(ISBLANK(I24),ISBLANK(I25)),P25=FALSE),"Red","Gray") -> Red | S25: =IF(AND('Circuit Criminal'!D4=1,S38=1),A19,IF(AND('Circuit Criminal'!D4=2,S38=1),A23,IF(AND('Circuit Criminal'!D4=3,S38=1),A27,IF(AND('Circuit Criminal'!D4=4,S38=1),A31,"")))) ->  | T25: Gulf
C26: CR = Collection Rate | G26: =IF(ISBLANK(G24),"N/A",IF(OR(G24=0,G24="N/A"),0,G24/G25)) -> 0.923420213 | H26: =IF(ISBLANK(H24),"N/A",IF(AND(H24=0,H25=0,NOT(ISBLANK(H24)),NOT(ISBLANK(H25))),1,H24/H25)) -> 0.9814784561 | I26: =IF(ISBLANK(I24),"N/A",IF(AND(I24=0,I25=0,NOT(ISBLANK(I24)),NOT(ISBLANK(I25))),1,I24/I25)) -> N/A | J26: =IF(ISBLANK(J24),"N/A",IF(AND(J24=0,J25=0,NOT(ISBLANK(J24)),NOT(ISBLANK(J25))),1,J24/J25)) -> N/A | K26: =IF(ISBLANK(K24),"N/A",IF(AND(K24=0,K25=0,NOT(ISBLANK(K24)),NOT(ISBLANK(K25))),1,K24/K25)) -> N/A | O26: FALSE | P26: FALSE | Q26: =IF(AND(OR(ISBLANK(H24),ISBLANK(H25)),O26=FALSE),"Red","Gray") -> Gray | R26: =IF(AND(OR(ISBLANK(I28),ISBLANK(I29)),P26=FALSE),"Red","Gray") -> Red | S26: =IF(AND('Circuit Criminal'!D4=1,S39=1),A23,IF(AND('Circuit Criminal'!D4=2,S39=1),A27,IF(AND('Circuit Criminal'!D4=3,S39=1),A31,IF(AND('Circuit Criminal'!D4=4,S39=1),A35,"")))) ->  | T26: Hamilton
A27: =LEFT(B27,3)&" "&RIGHT(B27,6) -> CGE CQ1-16 | B27: CGE CQ1-16 | C27: RPE 12/31/14 | H27: Qtr 1 | I27: Qtr 2 | J27: Qtr 3 | K27: Qtr 4 | O27: FALSE | P27: FALSE | Q27: =IF(AND(OR(ISBLANK(H28),ISBLANK(H29)),O27=FALSE),"Red","Gray") -> Gray | R27: =IF(AND(OR(ISBLANK(I32),ISBLANK(I33)),P27=FALSE),"Red","Gray") -> Red | S27: =IF(AND('Circuit Criminal'!D4=1,S40=1),A27,IF(AND('Circuit Criminal'!D4=2,S40=1),A31,IF(AND('Circuit Criminal'!D4=3,S40=1),A35,IF(AND('Circuit Criminal'!D4=4,S40=1),A39,"")))) ->  | T27: Hardee
C28: C = Cumulative Collections | H28: 790725.48 | T28: Hendry
C29: A = Amount Assessed - Adjusted | H29: 856517.27 | O29: Q3 | P29: Q4 | T29: Hernando
C30: CR = Collection Rate | H30: =IF(ISBLANK(H28),"N/A",IF(AND(H28=0,H29=0,NOT(ISBLANK(H28)),NOT(ISBLANK(H29))),1,H28/H29)) -> 0.9231868495 | I30: =IF(ISBLANK(I28),"N/A",IF(AND(I28=0,I29=0,NOT(ISBLANK(I28)),NOT(ISBLANK(I29))),1,I28/I29)) -> N/A | J30: =IF(ISBLANK(J28),"N/A",IF(AND(J28=0,J29=0,NOT(ISBLANK(J28)),NOT(ISBLANK(J29))),1,J28/J29)) -> N/A | K30: =IF(ISBLANK(K28),"N/A",IF(AND(K28=0,K29=0,NOT(ISBLANK(K28)),NOT(ISBLANK(K29))),1,K28/K29)) -> N/A | O30: FALSE | P30: FALSE | Q30: =IF(AND(OR(ISBLANK(J20),ISBLANK(J21)),O30=FALSE),"Red","Gray") -> Red | R30: =IF(AND(OR(ISBLANK(K24),ISBLANK(K25)),P30=FALSE),"Red","Gray") -> Red | T30: Highlands
A31: =LEFT(B31,3)&" "&RIGHT(B31,6) -> CGE CQ2-16 | B31: CGE CQ2-16 | C31: RPE 03/31/15 | I31: Qtr 1 | J31: Qtr 2 | K31: Qtr 3 | L31: Additional Notes Related to Collection Issues | O31: FALSE | P31: FALSE | Q31: =IF(AND(OR(ISBLANK(J24),ISBLANK(J25)),O31=FALSE),"Red","Gray") -> Red | R31: =IF(AND(OR(ISBLANK(K28),ISBLANK(K29)),P31=FALSE),"Red","Gray") -> Red | T31: Hillsborough
C32: C = Cumulative Collections | O32: FALSE | P32: FALSE | Q32: =IF(AND(OR(ISBLANK(J28),ISBLANK(J29)),O32=FALSE),"Red","Gray") -> Red | R32: =IF(AND(OR(ISBLANK(K32),ISBLANK(K33)),P32=FALSE),"Red","Gray") -> Red | T32: Holmes
C33: A = Amount Assessed - Adjusted | O33: FALSE | P33: FALSE | Q33: =IF(AND(OR(ISBLANK(J32),ISBLANK(J33)),O33=FALSE),"Red","Gray") -> Red | R33: =IF(AND(OR(ISBLANK(K36),ISBLANK(K37)),P33=FALSE),"Red","Gray") -> Red | T33: Indian River
C34: CR = Collection Rate | I34: =IF(ISBLANK(I32),"N/A",IF(AND(I32=0,I33=0,NOT(ISBLANK(I32)),NOT(ISBLANK(I33))),1,I32/I33)) -> N/A | J34: =IF(ISBLANK(J32),"N/A",IF(AND(J32=0,J33=0,NOT(ISBLANK(J32)),NOT(ISBLANK(J33))),1,J32/J33)) -> N/A | K34: =IF(ISBLANK(K32),"N/A",IF(AND(K32=0,K33=0,NOT(ISBLANK(K32)),NOT(ISBLANK(K33))),1,K32/K33)) -> N/A | O34: FALSE | P34: FALSE | Q34: =IF(AND(OR(ISBLANK(J36),ISBLANK(J37)),O34=FALSE),"Red","Gray") -> Red | R34: =IF(AND(OR(ISBLANK(K40),ISBLANK(K41)),P34=FALSE),"Red","Gray") -> Red | T34: Jackson
A35: =LEFT(B35,3)&" "&RIGHT(B35,6) -> CGE CQ3-16 | B35: CGE CQ3-16 | C35: RPE 06/30/15 | J35: Qtr 1 | K35: Qtr 2 | T35: Jefferson
C36: C = Cumulative Collections | O36: =IF(AND('Circuit Criminal'!$D$4=1,Q23="Red"),"Red","Gray") -> Gray | P36: =IF(AND('Circuit Criminal'!$D$4=2,R23="Red"),"Red","Gray") -> Gray | Q36: =IF(AND('Circuit Criminal'!$D$4=3,Q30="Red"),"Red","Gray") -> Gray | R36: =IF(AND('Circuit Criminal'!$D$4=4,R30="Red"),"Red","Gray") -> Gray | S36: =COUNTIF(O36:R36,"Red") -> 0 | T36: Lafayette
C37: A = Amount Assessed - Adjusted | O37: =IF(AND('Circuit Criminal'!$D$4=1,Q24="Red"),"Red","Gray") -> Gray | P37: =IF(AND('Circuit Criminal'!$D$4=2,R24="Red"),"Red","Gray") -> Gray | Q37: =IF(AND('Circuit Criminal'!$D$4=3,Q31="Red"),"Red","Gray") -> Gray | R37: =IF(AND('Circuit Criminal'!$D$4=4,R31="Red"),"Red","Gray") -> Gray | S37: =COUNTIF(O37:R37,"Red") -> 0 | T37: Lake
C38: CR = Collection Rate | J38: =IF(ISBLANK(J36),"N/A",IF(AND(J36=0,J37=0,NOT(ISBLANK(J36)),NOT(ISBLANK(J37))),1,J36/J37)) -> N/A | K38: =IF(ISBLANK(K36),"N/A",IF(AND(K36=0,K37=0,NOT(ISBLANK(K36)),NOT(ISBLANK(K37))),1,K36/K37)) -> N/A | O38: =IF(AND('Circuit Criminal'!$D$4=1,Q25="Red"),"Red","Gray") -> Gray | P38: =IF(AND('Circuit Criminal'!$D$4=2,R25="Red"),"Red","Gray") -> Gray | Q38: =IF(AND('Circuit Criminal'!$D$4=3,Q32="Red"),"Red","Gray") -> Gray | R38: =IF(AND('Circuit Criminal'!$D$4=4,R32="Red"),"Red","Gray") -> Gray | S38: =COUNTIF(O38:R38,"Red") -> 0 | T38: Lee
A39: =LEFT(B39,3)&" "&RIGHT(B39,6) -> CGE CQ4-16 | B39: CGE CQ4-16 | C39: RPE 09/30/15 | K39: Qtr 1 | O39: =IF(AND('Circuit Criminal'!$D$4=1,Q26="Red"),"Red","Gray") -> Gray | P39: =IF(AND('Circuit Criminal'!$D$4=2,R26="Red"),"Red","Gray") -> Gray | Q39: =IF(AND('Circuit Criminal'!$D$4=3,Q33="Red"),"Red","Gray") -> Gray | R39: =IF(AND('Circuit Criminal'!$D$4=4,R33="Red"),"Red","Gray") -> Gray | S39: =COUNTIF(O39:R39,"Red") -> 0 | T39: Leon
C40: C = Cumulative Collections | O40: =IF(AND('Circuit Criminal'!$D$4=1,Q27="Red"),"Red","Gray") -> Gray | P40: =IF(AND('Circuit Criminal'!$D$4=2,R27="Red"),"Red","Gray") -> Gray | Q40: =IF(AND('Circuit Criminal'!$D$4=3,Q34="Red"),"Red","Gray") -> Gray | R40: =IF(AND('Circuit Criminal'!$D$4=4,R34="Red"),"Red","Gray") -> Gray | S40: =COUNTIF(O40:R40,"Red") -> 0 | T40: Levy
C41: A = Amount Assessed - Adjusted | O41: =COUNTIF(O36:O40,"Red") -> 0 | P41: =COUNTIF(P36:P40,"Red") -> 0 | Q41: =COUNTIF(Q36:Q40,"Red") -> 0 | R41: =COUNTIF(R36:R40,"Red") -> 0 | T41: Liberty
C42: CR = Collection Rate | K42: =IF(ISBLANK(K40),"N/A",IF(OR(K40=0,K40="N/A"),0,K40/K41)) -> N/A | O42: =SUM(O41:R41) -> 0 | T42: Madison
B43: NOTES: | T43: Manatee
B44: Business Rules | D44: 1.) Assessment amount is adjusted each quarter based on business rules within the control group, it is based on the amount that was originally assessed in the first quarter. | T44: Martin
D45: 2.) Quarter 5 Action Plan Note: If Collection Rate is below Standard (highlighted in red), please include a "Reason Code" and "Current Action to Improve". These comments will automatically feed the "Action Plan" tab. | T45: Nassau
D46: 3.) Additional Notes: Please include additional information to explain either of the following conditions that are not consistant with the Collection Report Business Rules. (These dollars will result in a red font): | T46: Okaloosa
E47: a.) Cumulative Collection amount has Decreased from the previous quarter in the same Control Group | T47: Okeechobee
E48: b.) The Amount Assessed - Adjusted has Increased from the previous quarter in the same Control Group | T48: Orange
T49: Nassau
T50: Okaloosa
T51: Okeechobee
T52: Orange
T53: Pasco
T54: Pinellas
T55: Polk
B56: =MAX('Criminal Traffic'!B56:B99) -> 0 | D56: Issue | F56: Calc 1 Needed | G56: Calc 2 Needed | H56: Calc 3 Needed | I56: Calc 4 Needed | J56: Standard | T56: Putnam
A57: =D$8 -> Circuit Civil | B57: =IF(E57="YES",MAX(B56)+1,0) -> 0 | C57: =A$11 -> CGE CQ1-15 | D57: ="After 3rd Q, Collections went up by more than set percentage of: "&TEXT(J57,"#0%") -> After 3rd Q, Collections went up by more than set percentage of: 500% | E57: =IF(MAX(F57:G57)>V$10,"YES","NO") -> NO | F57: =IFERROR(IF(NOT(ISBLANK(G12)),(G12-F12)/F12,0),0) -> 0.0009133710321 | G57: =IFERROR(IF(NOT(ISBLANK(H12)),(H12-G12)/G12,0),0) -> -0.001382620252 | J57: =V$10 -> 5 | T57: Santa Rosa
A58: =D$8 -> Circuit Civil | B58: =IF(E58="YES",MAX(B$56:B57)+1,0) -> 0 | C58: =A$11 -> CGE CQ1-15 | D58: ="Assessments dropped by more than set percentage of: "&TEXT(J58,"#0%") -> Assessments dropped by more than set percentage of: 15% | E58: =IF(MIN(F58:I58)<(-1*V$11),"YES","NO") -> NO | F58: =IFERROR(IF(NOT(ISBLANK(E13)),(E13-D13)/D13,0),0) -> -0.001557385878 | G58: =IFERROR(IF(NOT(ISBLANK(F13)),(F13-E13)/E13,0),0) -> -4.349735394e-05 | H58: =IFERROR(IF(NOT(ISBLANK(G13)),(G13-F13)/F13,0),0) -> -0.00208622384 | I58: =IFERROR(IF(NOT(ISBLANK(H13)),(H13-G13)/G13,0),0) -> -0.002719251634 | J58: =V$11 -> 0.15 | T58: Sumter
A59: Circuit Civil | B59: =IF(E59="YES",MAX(B$56:B58)+1,0) -> 0 | C59: =A$11 -> CGE CQ1-15 | D59: ="The 5th Quarter Collection Rate did not meet the established performance measure standard of: "&TEXT(J59,"#0%") -> The 5th Quarter Collection Rate did not meet the established performance measure standard of: 90% | E59: =IF(F59="N/A","NO",IF(F59<H$8,"YES","NO")) -> NO | F59: =H14 -> 0.9390784963 | J59: =H$8 -> 0.9 | T59: Washington
A60: Circuit Civil | B60: =IF(E60="YES",MAX(B$56:B59)+1,0) -> 1 | C60: =A$11 -> CGE CQ1-15 | D60: Collections amount decreased from prior quarter | E60: =IF(MIN(F60:I60)<0,"YES","NO") -> YES | F60: =IFERROR(IF(NOT(ISBLANK(E12)),(E12-D12)/D12,0),0) -> 0.1145670228 | G60: 0.01199946682 | H60: 0.0009133710321 | I60: -0.001382620252
A61: Circuit Civil | B61: =IF(E61="YES",MAX(B$56:B60)+1,0) -> 0 | C61: =A$11 -> CGE CQ1-15 | D61: Assessment amount increased from prior quarter | E61: =IF(MAX(F61:I61)>0,"YES","NO") -> NO | F61: -0.001557385878 | G61: -4.349735394e-05 | H61: -0.00208622384 | I61: -0.002719251634
A62: Circuit Civil | B62: =IF(E62="YES",MAX(B$56:B61)+1,0) -> 0 | C62: =A$15 -> CGE CQ2-15 | D62: ="After 3rd Q, Collections went up by more than set percentage of: "&TEXT(J62,"#0%") -> After 3rd Q, Collections went up by more than set percentage of: 500% | E62: =IF(MAX(F62:G62)>V$10,"YES","NO") -> NO | F62: =IFERROR(IF(NOT(ISBLANK(H16)),(H16-G16)/G16,0),0) -> -0.01432917353 | G62: =IFERROR(IF(NOT(ISBLANK(I16)),(I16-H16)/H16,0),0) -> 0 | J62: =V$10 -> 5 | T62: Sarasota
A63: Circuit Civil | B63: =IF(E63="YES",MAX(B$56:B62)+1,0) -> 0 | C63: =A$15 -> CGE CQ2-15 | D63: ="Assessments dropped by more than set percentage of: "&TEXT(J63,"#0%") -> Assessments dropped by more than set percentage of: 15% | E63: =IF(MIN(F63:I63)<(-1*V$11),"YES","NO") -> NO | F63: =IFERROR(IF(NOT(ISBLANK(F17)),(F17-E17)/E17,0),0) -> -0.0001103680877 | G63: =IFERROR(IF(NOT(ISBLANK(G17)),(G17-F17)/F17,0),0) -> -0.0001018894801 | H63: =IFERROR(IF(NOT(ISBLANK(H17)),(H17-G17)/G17,0),0) -> -0.001452497625 | I63: =IFERROR(IF(NOT(ISBLANK(I17)),(I17-H17)/H17,0),0) -> 0 | J63: =V$11 -> 0.15 | T63: Suwannee
A64: Circuit Civil | B64: =IF(E64="YES",MAX(B$56:B63)+1,0) -> 2 | C64: =A$15 -> CGE CQ2-15 | D64: Collections amount decreased from prior quarter | E64: =IF(MIN(F64:I64)<0,"YES","NO") -> YES | F64: =IFERROR(IF(NOT(ISBLANK(F16)),(F16-E16)/E16,0),0) -> 0.1147246501 | G64: 0.005061706888 | H64: -0.01432917353 | I64: 0
A65: Circuit Civil | B65: =IF(E65="YES",MAX(B$56:B64)+1,0) -> 0 | C65: =A$15 -> CGE CQ2-15 | D65: Assessment amount increased from prior quarter | E65: =IF(MAX(F65:I65)>0,"YES","NO") -> NO | F65: -0.0001103680877 | G65: -0.0001018894801 | H65: -0.001452497625 | I65: 0
A66: Circuit Civil | B66: =IF(E66="YES",MAX(B$56:B65)+1,0) -> 0 | C66: =A$15 -> CGE CQ2-15 | D66: ="The 5th Quarter Collection Rate did not meet the established performance measure standard of: "&TEXT(J66,"#0%") -> The 5th Quarter Collection Rate did not meet the established performance measure standard of: 90% | E66: =IF(F66="N/A","NO",IF(F66<H$8,"YES","NO")) -> NO | F66: =I18 -> N/A | J66: =H$8 -> 0.9
A67: Circuit Civil | B67: =IF(E67="YES",MAX(B$56:B66)+1,0) -> 0 | C67: =A$19 -> CGE CQ3-15 | D67: ="After 3rd Q, Collections went up by more than set percentage of: "&TEXT(J67,"#0%") -> After 3rd Q, Collections went up by more than set percentage of: 500% | E67: =IF(MAX(F67:G67)>V$10,"YES","NO") -> NO | F67: =IFERROR(IF(NOT(ISBLANK(I20)),(I20-H20)/H20,0),0) -> 0 | G67: =IFERROR(IF(NOT(ISBLANK(J20)),(J20-I20)/I20,0),0) -> 0 | J67: =V$10 -> 5 | T67: Seminole
A68: Circuit Civil | B68: =IF(E68="YES",MAX(B$56:B67)+1,0) -> 0 | C68: =A$19 -> CGE CQ3-15 | D68: ="Assessments dropped by more than set percentage of: "&TEXT(J68,"#0%") -> Assessments dropped by more than set percentage of: 15% | E68: =IF(MIN(F68:I68)<(-1*V$11),"YES","NO") -> NO | F68: =IFERROR(IF(NOT(ISBLANK(G21)),(G21-F21)/F21,0),0) -> -0.0001224350954 | G68: =IFERROR(IF(NOT(ISBLANK(H21)),(H21-G21)/G21,0),0) -> -0.0003871306616 | H68: =IFERROR(IF(NOT(ISBLANK(I21)),(I21-H21)/H21,0),0) -> 0 | I68: =IFERROR(IF(NOT(ISBLANK(J21)),(J21-I21)/I21,0),0) -> 0 | J68: =V$11 -> 0.15 | T68: Taylor
A69: Circuit Civil | B69: =IF(E69="YES",MAX(B$56:B68)+1,0) -> 0 | C69: =A$19 -> CGE CQ3-15 | D69: Collections amount decreased from prior quarter | E69: =IF(MIN(F69:I69)<0,"YES","NO") -> NO | F69: =IFERROR(IF(NOT(ISBLANK(G20)),(G20-F20)/F20,0),0) -> 0.1391535157 | G69: 0.0004429349858 | H69: 0 | I69: 0
A70: Circuit Civil | B70: =IF(E70="YES",MAX(B$56:B69)+1,0) -> 0 | C70: =A$19 -> CGE CQ3-15 | D70: Assessment amount increased from prior quarter | E70: =IF(MAX(F70:I70)>0,"YES","NO") -> NO | F70: -0.0001224350954 | G70: -0.0003871306616 | H70: 0 | I70: 0
A71: Circuit Civil | B71: =IF(E71="YES",MAX(B$56:B70)+1,0) -> 0 | C71: =A$19 -> CGE CQ3-15 | D71: ="The 5th Quarter Collection Rate did not meet the established performance measure standard of: "&TEXT(J71,"#0%") -> The 5th Quarter Collection Rate did not meet the established performance measure standard of: 90% | E71: =IF(F71="N/A","NO",IF(F71<H$8,"YES","NO")) -> NO | F71: =J22 -> N/A | J71: =H$8 -> 0.9
A72: Circuit Civil | B72: =IF(E72="YES",MAX(B$56:B71)+1,0) -> 0 | C72: =A$23 -> CGE CQ4-15 | D72: ="After 3rd Q, Collections went up by more than set percentage of: "&TEXT(J72,"#0%") -> After 3rd Q, Collections went up by more than set percentage of: 500% | E72: =IF(MAX(F72:G72)>V$10,"YES","NO") -> NO | F72: =IFERROR(IF(NOT(ISBLANK(J24)),(J24-I24)/I24,0),0) -> 0 | G72: =IFERROR(IF(NOT(ISBLANK(K24)),(K24-J24)/J24,0),0) -> 0 | J72: =V$10 -> 5 | T72: St. Johns
A73: Circuit Civil | B73: =IF(E73="YES",MAX(B$56:B72)+1,0) -> 0 | C73: =A$23 -> CGE CQ4-15 | D73: ="Assessments dropped by more than set percentage of: "&TEXT(J73,"#0%") -> Assessments dropped by more than set percentage of: 15% | E73: =IF(MIN(F73:I73)<(-1*V$11),"YES","NO") -> NO | F73: =IFERROR(IF(NOT(ISBLANK(H25)),(H25-G25)/G25,0),0) -> -9.478024854e-05 | G73: =IFERROR(IF(NOT(ISBLANK(I25)),(I25-H25)/H25,0),0) -> 0 | H73: =IFERROR(IF(NOT(ISBLANK(J25)),(J25-I25)/I25,0),0) -> 0 | I73: =IFERROR(IF(NOT(ISBLANK(K25)),(K25-J25)/J25,0),0) -> 0 | J73: =V$11 -> 0.15 | T73: Union
A74: Circuit Civil | B74: =IF(E74="YES",MAX(B$56:B73)+1,0) -> 0 | C74: =A$23 -> CGE CQ4-15 | D74: Collections amount decreased from prior quarter | E74: =IF(MIN(F74:I74)<0,"YES","NO") -> NO | F74: =IFERROR(IF(NOT(ISBLANK(H24)),(H24-G24)/G24,0),0) -> 0.06277230835 | G74: 0 | H74: 0 | I74: 0
A75: Circuit Civil | B75: =IF(E75="YES",MAX(B$56:B74)+1,0) -> 0 | C75: =A$23 -> CGE CQ4-15 | D75: Assessment amount increased from prior quarter | E75: =IF(MAX(F75:I75)>0,"YES","NO") -> NO | F75: -9.478024854e-05 | G75: 0 | H75: 0 | I75: 0
A76: Circuit Civil | B76: =IF(E76="YES",MAX(B$56:B75)+1,0) -> 0 | C76: =A$23 -> CGE CQ4-15 | D76: ="The 5th Quarter Collection Rate did not meet the established performance measure standard of: "&TEXT(J76,"#0%") -> The 5th Quarter Collection Rate did not meet the established performance measure standard of: 90% | E76: =IF(F76="N/A","NO",IF(F76<H$8,"YES","NO")) -> NO | F76: =K26 -> N/A | J76: =H$8 -> 0.9
A77: Circuit Civil | B77: =IF(E77="YES",MAX(B$56:B76)+1,0) -> 0 | C77: =A$27 -> CGE CQ1-16 | D77: ="After 3rd Q, Collections went up by more than set percentage of: "&TEXT(J77,"#0%") -> After 3rd Q, Collections went up by more than set percentage of: 500% | E77: =IF(MAX(F77)>V$10,"YES","NO") -> NO | F77: =IFERROR(IF(NOT(ISBLANK(K28)),(K28-J28)/J28,0),0) -> 0 | J77: =V$10 -> 5 | T77: St. Lucie
A78: Circuit Civil | B78: =IF(E78="YES",MAX(B$56:B77)+1,0) -> 0 | C78: =A$27 -> CGE CQ1-16 | D78: ="Assessments dropped by more than set percentage of: "&TEXT(J78,"#0%") -> Assessments dropped by more than set percentage of: 15% | E78: =IF(MIN(F78:H78)<(-1*V$11),"YES","NO") -> NO | F78: =IFERROR(IF(NOT(ISBLANK(I29)),(I29-H29)/H29,0),0) -> 0 | G78: =IFERROR(IF(NOT(ISBLANK(J29)),(J29-I29)/I29,0),0) -> 0 | H78: =IFERROR(IF(NOT(ISBLANK(K29)),(K29-J29)/J29,0),0) -> 0 | J78: =V$11 -> 0.15 | T78: Volusia
A79: Circuit Civil | B79: =IF(E79="YES",MAX(B$56:B78)+1,0) -> 0 | C79: =A$27 -> CGE CQ1-16 | D79: Collections amount decreased from prior quarter | E79: =IF(MIN(F79:H79)<0,"YES","NO") -> NO | F79: =IFERROR(IF(NOT(ISBLANK(I28)),(I28-H28)/H28,0),0) -> 0 | G79: 0 | H79: 0
A80: Circuit Civil | B80: =IF(E80="YES",MAX(B$56:B79)+1,0) -> 0 | C80: =A$27 -> CGE CQ1-16 | D80: Assessment amount increased from prior quarter | E80: =IF(MAX(F80:H80)>0,"YES","NO") -> NO | F80: 0 | G80: 0 | H80: 0
A81: Circuit Civil | B81: =IF(E81="YES",MAX(B$56:B80)+1,0) -> 0 | C81: =A$31 -> CGE CQ2-16 | D81: ="Assessments dropped by more than set percentage of: "&TEXT(J81,"#0%") -> Assessments dropped by more than set percentage of: 15% | E81: =IF(MIN(F81:G81)<(-1*V$11),"YES","NO") -> NO | F81: =IFERROR(IF(NOT(ISBLANK(J33)),(J33-I33)/I33,0),0) -> 0 | G81: =IFERROR(IF(NOT(ISBLANK(K33)),(K33-J33)/J33,0),0) -> 0 | J81: =V$11 -> 0.15 | T81: Wakulla
A82: Circuit Civil | B82: =IF(E82="YES",MAX(B$56:B81)+1,0) -> 0 | C82: =A$31 -> CGE CQ2-16 | D82: Collections amount decreased from prior quarter | E82: =IF(MIN(F82:G82)<0,"YES","NO") -> NO | F82: =IFERROR(IF(NOT(ISBLANK(J32)),(J32-I32)/I32,0),0) -> 0 | G82: =IFERROR(IF(NOT(ISBLANK(K32)),(K32-J32)/J32,0),0) -> 0
A83: Circuit Civil | B83: =IF(E83="YES",MAX(B$56:B82)+1,0) -> 0 | C83: =A$31 -> CGE CQ2-16 | D83: Assessment amount increased from prior quarter | E83: =IF(MAX(F83:G83)>0,"YES","NO") -> NO | F83: =IFERROR(IF(NOT(ISBLANK(J33)),(J33-I33)/I33,0),0) -> 0 | G83: =IFERROR(IF(NOT(ISBLANK(K33)),(K33-J33)/J33,0),0) -> 0
A84: Circuit Civil | B84: =IF(E84="YES",MAX(B$56:B83)+1,0) -> 0 | C84: =A$35 -> CGE CQ3-16 | D84: ="Assessments dropped by more than set percentage of: "&TEXT(J84,"#0%") -> Assessments dropped by more than set percentage of: 15% | E84: =IF(MIN(F84)<(-1*V$11),"YES","NO") -> NO | F84: =IFERROR(IF(NOT(ISBLANK(K37)),(K37-J37)/J37,0),0) -> 0 | J84: =V$11 -> 0.15 | T84: Walton
A85: Circuit Civil | B85: =IF(E85="YES",MAX(B$56:B84)+1,0) -> 0 | C85: =A$35 -> CGE CQ3-16 | D85: Collections amount decreased from prior quarter | E85: =IF(MIN(F85)<0,"YES","NO") -> NO | F85: =IFERROR(IF(NOT(ISBLANK(K36)),(K36-J36)/J36,0),0) -> 0
A86: Circuit Civil | B86: =IF(E86="YES",MAX(B$56:B85)+1,0) -> 0 | C86: =A$35 -> CGE CQ3-16 | D86: Assessment amount increased from prior quarter | E86: =IF(MAX(F86)>0,"YES","NO") -> NO | F86: =IFERROR(IF(NOT(ISBLANK(K37)),(K37-J37)/J37,0),0) -> 0

Sheet County Civil
M2: County Fiscal Year 2014-2015 | T2: CountyNames
M3: Collections Quarterly Report Form for CCOC | T3: Alachua
C4: Report for Quarter Ending: | D4: ='Circuit Criminal'!D4 -> December 2014 | T4: Baker
C5: Version #: | D5: ='Circuit Criminal'!$D$5 -> 2 | T5: Bay
C6: County: | D6: ='Circuit Criminal'!D6 -> Brevard | T6: Bradford
T7: Brevard
C8: Court/Case Type: | D8: County Civil | G8: Performance Measure Standard: | H8: 0.9 | T8: Broward
L9: Action Plan | N9: 1 | O9: version #1 | P9: Qtr1 - December | Q9: 1 | T9: Calhoun
C10: Control Groups | D10: 10/01/13 - 12/31/13 | E10: 01/01/14 - 03/31/14 | F10: 04/01/14 - 06/30/14 | G10: 07/01/14 - 09/30/14 | H10: 10/01/14 - 12/31/14 | I10: 01/01/15 - 03/31/15 | J10: 04/01/15 - 06/30/15 | K10: 07/01/15 - 09/30/15 | L10: Reason Code | M10: Current Actions to Improve | O10: version #2 | P10: Qtr 2 - March | T10: Charlotte | V10: 5
A11: =LEFT(B11,3)&" "&RIGHT(B11,6) -> CGE CQ1-15 | B11: CGE CQ1-15 | C11: RPE 12/31/13 | D11: Qtr 1 | E11: Qtr 2 | F11: Qtr 3 | G11: Qtr 4 | H11: Qtr 5 | N11: Economy | O11: version #3 | P11: Qtr 3 - June | Q11: 3 | T11: Citrus | U11: =D6&" "&D8 -> Brevard County Civil | V11: 0.15
C12: C = Cumulative Collections | D12: =LOOKUP($U$11,Lookup!$C$3:$C$605,Lookup!I$3:I$596) -> 383997.24 | E12: =LOOKUP($U$11,Lookup!$C$3:$C$605,Lookup!J$3:J$596) -> 410621.41 | F12: =LOOKUP($U$11,Lookup!$C$3:$C$605,Lookup!K$3:K$596) -> 414136.41 | G12: =LOOKUP($U$11,Lookup!$C$3:$C$605,Lookup!L$3:L$596) -> 415207.16 | H12: 415217.16 | N12: Incarcerations | O12: version #4 | P12: Qtr 4 - September | Q12: 4 | T12: Clay | U12: =IF(P13=TRUE,A11,"") -> 
C13: A = Amount Assessed - Adjusted | D13: =LOOKUP($U$11,Lookup!$C$3:$C$605,Lookup!D$3:D$596) -> 422698.93 | E13: =LOOKUP($U$11,Lookup!$C$3:$C$605,Lookup!E$3:E$596) -> 422698.93 | F13: =LOOKUP($U$11,Lookup!$C$3:$C$605,Lookup!F$3:F$596) -> 422698.93 | G13: =LOOKUP($U$11,Lookup!$C$3:$C$605,Lookup!G$3:G$596) -> 422688.93 | H13: 422688.93 | N13: Late/Non-pay/Pay Plans | O13: version #5 | P13: =OR(AND(E12<D12,E12>0),AND(F12<E12,F12>0),AND(G12<F12,G12>0),AND(H12<G12,H12>0),AND(F13>E13,E13>0),AND(G13>F13,F13>0),AND(H13<G13,G13>0)) -> FALSE | Q13: 5 | T13: Collier | U13: =IF(P14=TRUE,A15,"") -> 
C14: CR = Collection Rate | D14: =IF(ISBLANK(D12),"N/A",IF(OR(D12=0,D12="N/A"),0,D12/D13)) -> 0.9084414763 | E14: =IF(ISBLANK(E12),"N/A",IF(OR(E12=0,E12="N/A"),0,E12/E13)) -> 0.9714276069 | F14: =IF(ISBLANK(F12),"N/A",IF(OR(F12=0,F12="N/A"),0,F12/F13)) -> 0.9797432182 | G14: =IF(ISBLANK(G12),"N/A",IF(OR(G12=0,G12="N/A"),0,G12/G13)) -> 0.9822995838 | H14: =IF(ISBLANK(H12),"N/A",IF(AND(H12=0,H13=0,NOT(ISBLANK(H12)),NOT(ISBLANK(H13))),1,H12/H13)) -> 0.9823232418 | N14: Mandatory Assessment | O14: version #6 | P14: =OR(AND(F16<E16,F16>0),AND(G16<F16,G16>0),AND(H16<G16,H16>0),AND(I16<H16,I16>0),AND(G17>F17, F17>0),AND(H17>G17, G17>0),AND(I17<H17,I17>0)) -> FALSE | Q14: 6 | T14: Columbia | U14: =IF(P15=TRUE,A19,"") -> 
A15: =LEFT(B15,3)&" "&RIGHT(B15,6) -> CGE CQ2-15 | B15: CGE CQ2-15 | C15: RPE 03/31/14 | E15: Qtr 1 | F15: Qtr 2 | G15: Qtr 3 | H15: Qtr 4 | I15: Qtr 5 | N15: Other | O15: version #7 | P15: =OR(AND(G20<F20,D10>0),AND(H20<G20,H20>0),AND(I20<H20,I20>0),AND(J20<I20,J20>0),AND(H21>G21, G21>0),AND(I21>H21, H21>0),AND(J21<I21, J21>0)) -> FALSE | Q15: 7 | T15: Dade | U15: =IF(P16=TRUE,A23,"") -> 
C16: C = Cumulative Collections | E16: =LOOKUP($U$11,Lookup!$C$3:$C$605,Lookup!S$3:S$605) -> 343899.15 | F16: =LOOKUP($U$11,Lookup!$C$3:$C$605,Lookup!T$3:T$605) -> 380937.65 | G16: =LOOKUP($U$11,Lookup!$C$3:$C$605,Lookup!U$3:U$605) -> 381409.65 | H16: 381727.11 | N16: Procedural | O16: version #8 | P16: =OR(AND(H24<G24, H24>0),AND(I24<H24, I24>0),AND(J24<I24, J24>0),AND(K24<J24, K24>0),AND(I25>H25, H25>0),AND(J25>I25, I25>0),AND(K25<J25, J25>0)) -> FALSE | Q16: 8 | T16: Desoto | U16: =IF(P17=TRUE,A27,"") -> 
C17: A = Amount Assessed - Adjusted | E17: =LOOKUP($U$11,Lookup!$C$3:$C$605,Lookup!N$3:N$605) -> 389933.82 | F17: =LOOKUP($U$11,Lookup!$C$3:$C$605,Lookup!O$3:O$605) -> 385933.82 | G17: =LOOKUP($U$11,Lookup!$C$3:$C$605,Lookup!P$3:P$605) -> 385933.82 | H17: 385933.82 | N17: Staffing - Insufficient Personnel | O17: version #9 | P17: =OR(AND(I28<H28, I28>0),AND(J28<I28, J28>0),AND(K28<J28, K28>0),AND(J29>I29, I29>0),AND(K29>J29, J29>0)) -> FALSE | Q17: 9 | T17: Dixie | U17: =IF(P18=TRUE,A31,"") -> 
C18: CR = Collection Rate | E18: =IF(ISBLANK(E16),"N/A",IF(OR(E16=0,E16="N/A"),0,E16/E17)) -> 0.8819423511 | F18: =IF(ISBLANK(F16),"N/A",IF(OR(F16=0,F16="N/A"),0,F16/F17)) -> 0.9870543349 | G18: =IF(ISBLANK(G16),"N/A",IF(OR(G16=0,G16="N/A"),0,G16/G17)) -> 0.9882773425 | H18: =IF(ISBLANK(H16),"N/A",IF(AND(H16=0,H17=0,NOT(ISBLANK(H16)),NOT(ISBLANK(H17))),1,H16/H17)) -> 0.9890999187 | I18: =IF(ISBLANK(I16),"N/A",IF(AND(I16=0,I17=0,NOT(ISBLANK(I16)),NOT(ISBLANK(I17))),1,I16/I17)) -> N/A | N18: Staffing - Training Required | O18: version #10 | P18: =OR(AND(J32<I32, J32>0),AND(K32<J32, K32>0),AND(K33>J33, J33>0)) -> FALSE | Q18: 10 | T18: Duval | U18: =IF(P19=TRUE,A35,"") -> 
A19: =LEFT(B19,3)&" "&RIGHT(B19,6) -> CGE CQ3-15 | B19: CGE CQ3-15 | C19: RPE 06/30/14 | F19: Qtr 1 | G19: Qtr 2 | H19: Qtr 3 | I19: Qtr 4 | J19: Qtr 5 | N19: Systems | O19: version #11 | P19: =OR(K36<J36) -> FALSE | Q19: 11 | T19: Escambia | U19: =U12&" "&U13&" "&U14&" "&U15&" "&U16&" "&U17&" "&U18 -> 
C20: C = Cumulative Collections | F20: =LOOKUP($U$11,Lookup!$C$3:$C$605,Lookup!AC$3:AC$605) -> 401028.1 | G20: =LOOKUP($U$11,Lookup!$C$3:$C$605,Lookup!AD$3:AD$605) -> 432498.33 | H20: 435042.1 | O20: version #12 | P20: =COUNTIF(P13:P19,"TRUE") -> 0 | Q20: 12 | T20: Flagler
C21: A = Amount Assessed - Adjusted | F21: =LOOKUP($U$11,Lookup!$C$3:$C$605,Lookup!X$3:X$605) -> 437308.32 | G21: =LOOKUP($U$11,Lookup!$C$3:$C$605,Lookup!Y$3:Y$605) -> 437298.32 | H21: 437278.32 | T21: Franklin
C22: CR = Collection Rate | F22: =IF(ISBLANK(F20),"N/A",IF(OR(F20=0,F20="N/A"),0,F20/F21)) -> 0.9170374348 | G22: =IF(ISBLANK(G20),"N/A",IF(OR(G20=0,G20="N/A"),0,G20/G21)) -> 0.9890235343 | H22: =IF(ISBLANK(H20),"N/A",IF(AND(H20=0,H21=0,NOT(ISBLANK(H20)),NOT(ISBLANK(H21))),1,H20/H21)) -> 0.9948860488 | I22: =IF(ISBLANK(I20),"N/A",IF(AND(I20=0,I21=0,NOT(ISBLANK(I20)),NOT(ISBLANK(I21))),1,I20/I21)) -> N/A | J22: =IF(ISBLANK(J20),"N/A",IF(AND(J20=0,J21=0,NOT(ISBLANK(J20)),NOT(ISBLANK(J21))),1,J20/J21)) -> N/A | O22: Q1 | P22: Q2 | T22: Gadsden
A23: =LEFT(B23,3)&" "&RIGHT(B23,6) -> CGE CQ4-15 | B23: CGE CQ4-15 | C23: RPE 09/30/14 | G23: Qtr 1 | H23: Qtr 2 | I23: Qtr 3 | J23: Qtr 4 | K23: Qtr 5 | O23: FALSE | P23: FALSE | Q23: =IF(AND(OR(ISBLANK(H12),ISBLANK(H13)),O23=FALSE),"Red","Gray") -> Gray | R23: =IF(AND(OR(ISBLANK(I16),ISBLANK(I17)),P23=FALSE),"Red","Gray") -> Red | S23: =IF(AND('Circuit Criminal'!D4=1,S36=1),A11,IF(AND('Circuit Criminal'!D4=2,S36=1),A15,IF(AND('Circuit Criminal'!D4=3,S36=1),A19,IF(AND('Circuit Criminal'!D4=4,S36=1),A23,"")))) ->  | T23: Gilchrist
C24: C = Cumulative Collections | G24: =LOOKUP($U$11,Lookup!$C$3:$C$605,Lookup!AM$3:AM$605) -> 447394.07 | H24: 458800.25 | O24: FALSE | P24: FALSE | Q24: =IF(AND(OR(ISBLANK(H16),ISBLANK(H17)),O24=FALSE),"Red","Gray") -> Gray | R24: =IF(AND(OR(ISBLANK(I20),ISBLANK(I21)),P24=FALSE),"Red","Gray") -> Red | S24: =IF(AND('Circuit Criminal'!D4=1,S37=1),A15,IF(AND('Circuit Criminal'!D4=2,S37=1),A19,IF(AND('Circuit Criminal'!D4=3,S37=1),A23,IF(AND('Circuit Criminal'!D4=4,S37=1),A27,"")))) ->  | T24: Glades
C25: A = Amount Assessed - Adjusted | G25: =LOOKUP($U$11,Lookup!$C$3:$C$605,Lookup!AH$3:AH$605) -> 463021.53 | H25: 463021.53 | O25: FALSE | P25: FALSE | Q25: =IF(AND(OR(ISBLANK(H20),ISBLANK(H21)),O25=FALSE),"Red","Gray") -> Gray | R25: =IF(AND(OR(ISBLANK(I24),ISBLANK(I25)),P25=FALSE),"Red","Gray") -> Red | S25: =IF(AND('Circuit Criminal'!D4=1,S38=1),A19,IF(AND('Circuit Criminal'!D4=2,S38=1),A23,IF(AND('Circuit Criminal'!D4=3,S38=1),A27,IF(AND('Circuit Criminal'!D4=4,S38=1),A31,"")))) ->  | T25: Gulf
C26: CR = Collection Rate | G26: =IF(ISBLANK(G24),"N/A",IF(OR(G24=0,G24="N/A"),0,G24/G25)) -> 0.9662489561 | H26: =IF(ISBLANK(H24),"N/A",IF(AND(H24=0,H25=0,NOT(ISBLANK(H24)),NOT(ISBLANK(H25))),1,H24/H25)) -> 0.9908831885 | I26: =IF(ISBLANK(I24),"N/A",IF(AND(I24=0,I25=0,NOT(ISBLANK(I24)),NOT(ISBLANK(I25))),1,I24/I25)) -> N/A | J26: =IF(ISBLANK(J24),"N/A",IF(AND(J24=0,J25=0,NOT(ISBLANK(J24)),NOT(ISBLANK(J25))),1,J24/J25)) -> N/A | K26: =IF(ISBLANK(K24),"N/A",IF(AND(K24=0,K25=0,NOT(ISBLANK(K24)),NOT(ISBLANK(K25))),1,K24/K25)) -> N/A | O26: FALSE | P26: FALSE | Q26: =IF(AND(OR(ISBLANK(H24),ISBLANK(H25)),O26=FALSE),"Red","Gray") -> Gray | R26: =IF(AND(OR(ISBLANK(I28),ISBLANK(I29)),P26=FALSE),"Red","Gray") -> Red | S26: =IF(AND('Circuit Criminal'!D4=1,S39=1),A23,IF(AND('Circuit Criminal'!D4=2,S39=1),A27,IF(AND('Circuit Criminal'!D4=3,S39=1),A31,IF(AND('Circuit Criminal'!D4=4,S39=1),A35,"")))) ->  | T26: Hamilton
A27: =LEFT(B27,3)&" "&RIGHT(B27,6) -> CGE CQ1-16 | B27: CGE CQ1-16 | C27: RPE 12/31/14 | H27: Qtr 1 | I27: Qtr 2 | J27: Qtr 3 | K27: Qtr 4 | O27: FALSE | P27: FALSE | Q27: =IF(AND(OR(ISBLANK(H28),ISBLANK(H29)),O27=FALSE),"Red","Gray") -> Gray | R27: =IF(AND(OR(ISBLANK(I32),ISBLANK(I33)),P27=FALSE),"Red","Gray") -> Red | S27: =IF(AND('Circuit Criminal'!D4=1,S40=1),A27,IF(AND('Circuit Criminal'!D4=2,S40=1),A31,IF(AND('Circuit Criminal'!D4=3,S40=1),A35,IF(AND('Circuit Criminal'!D4=4,S40=1),A39,"")))) ->  | T27: Hardee
C28: C = Cumulative Collections | H28: 423305.53 | T28: Hendry
C29: A = Amount Assessed - Adjusted | H29: 432588.49 | O29: Q3 | P29: Q4 | T29: Hernando
C30: CR = Collection Rate | H30: =IF(ISBLANK(H28),"N/A",IF(AND(H28=0,H29=0,NOT(ISBLANK(H28)),NOT(ISBLANK(H29))),1,H28/H29)) -> 0.9785408992 | I30: =IF(ISBLANK(I28),"N/A",IF(AND(I28=0,I29=0,NOT(ISBLANK(I28)),NOT(ISBLANK(I29))),1,I28/I29)) -> N/A | J30: =IF(ISBLANK(J28),"N/A",IF(AND(J28=0,J29=0,NOT(ISBLANK(J28)),NOT(ISBLANK(J29))),1,J28/J29)) -> N/A | K30: =IF(ISBLANK(K28),"N/A",IF(AND(K28=0,K29=0,NOT(ISBLANK(K28)),NOT(ISBLANK(K29))),1,K28/K29)) -> N/A | O30: FALSE | P30: FALSE | Q30: =IF(AND(OR(ISBLANK(J20),ISBLANK(J21)),O30=FALSE),"Red","Gray") -> Red | R30: =IF(AND(OR(ISBLANK(K24),ISBLANK(K25)),P30=FALSE),"Red","Gray") -> Red | T30: Highlands
A31: =LEFT(B31,3)&" "&RIGHT(B31,6) -> CGE CQ2-16 | B31: CGE CQ2-16 | C31: RPE 03/31/15 | I31: Qtr 1 | J31: Qtr 2 | K31: Qtr 3 | L31: Additional Notes Related to Collection Issues | O31: FALSE | P31: FALSE | Q31: =IF(AND(OR(ISBLANK(J24),ISBLANK(J25)),O31=FALSE),"Red","Gray") -> Red | R31: =IF(AND(OR(ISBLANK(K28),ISBLANK(K29)),P31=FALSE),"Red","Gray") -> Red | T31: Hillsborough
C32: C = Cumulative Collections | O32: FALSE | P32: FALSE | Q32: =IF(AND(OR(ISBLANK(J28),ISBLANK(J29)),O32=FALSE),"Red","Gray") -> Red | R32: =IF(AND(OR(ISBLANK(K32),ISBLANK(K33)),P32=FALSE),"Red","Gray") -> Red | T32: Holmes
C33: A = Amount Assessed - Adjusted | O33: FALSE | P33: FALSE | Q33: =IF(AND(OR(ISBLANK(J32),ISBLANK(J33)),O33=FALSE),"Red","Gray") -> Red | R33: =IF(AND(OR(ISBLANK(K36),ISBLANK(K37)),P33=FALSE),"Red","Gray") -> Red | T33: Indian River
C34: CR = Collection Rate | I34: =IF(ISBLANK(I32),"N/A",IF(AND(I32=0,I33=0,NOT(ISBLANK(I32)),NOT(ISBLANK(I33))),1,I32/I33)) -> N/A | J34: =IF(ISBLANK(J32),"N/A",IF(AND(J32=0,J33=0,NOT(ISBLANK(J32)),NOT(ISBLANK(J33))),1,J32/J33)) -> N/A | K34: =IF(ISBLANK(K32),"N/A",IF(AND(K32=0,K33=0,NOT(ISBLANK(K32)),NOT(ISBLANK(K33))),1,K32/K33)) -> N/A | O34: FALSE | P34: FALSE | Q34: =IF(AND(OR(ISBLANK(J36),ISBLANK(J37)),O34=FALSE),"Red","Gray") -> Red | R34: =IF(AND(OR(ISBLANK(K40),ISBLANK(K41)),P34=FALSE),"Red","Gray") -> Red | T34: Jackson
A35: =LEFT(B35,3)&" "&RIGHT(B35,6) -> CGE CQ3-16 | B35: CGE CQ3-16 | C35: RPE 06/30/15 | J35: Qtr 1 | K35: Qtr 2 | T35: Jefferson
C36: C = Cumulative Collections | O36: =IF(AND('Circuit Criminal'!$D$4=1,Q23="Red"),"Red","Gray") -> Gray | P36: =IF(AND('Circuit Criminal'!$D$4=2,R23="Red"),"Red","Gray") -> Gray | Q36: =IF(AND('Circuit Criminal'!$D$4=3,Q30="Red"),"Red","Gray") -> Gray | R36: =IF(AND('Circuit Criminal'!$D$4=4,R30="Red"),"Red","Gray") -> Gray | S36: =COUNTIF(O36:R36,"Red") -> 0 | T36: Lafayette
C37: A = Amount Assessed - Adjusted | O37: =IF(AND('Circuit Criminal'!$D$4=1,Q24="Red"),"Red","Gray") -> Gray | P37: =IF(AND('Circuit Criminal'!$D$4=2,R24="Red"),"Red","Gray") -> Gray | Q37: =IF(AND('Circuit Criminal'!$D$4=3,Q31="Red"),"Red","Gray") -> Gray | R37: =IF(AND('Circuit Criminal'!$D$4=4,R31="Red"),"Red","Gray") -> Gray | S37: =COUNTIF(O37:R37,"Red") -> 0 | T37: Lake
C38: CR = Collection Rate | J38: =IF(ISBLANK(J36),"N/A",IF(AND(J36=0,J37=0,NOT(ISBLANK(J36)),NOT(ISBLANK(J37))),1,J36/J37)) -> N/A | K38: =IF(ISBLANK(K36),"N/A",IF(AND(K36=0,K37=0,NOT(ISBLANK(K36)),NOT(ISBLANK(K37))),1,K36/K37)) -> N/A | O38: =IF(AND('Circuit Criminal'!$D$4=1,Q25="Red"),"Red","Gray") -> Gray | P38: =IF(AND('Circuit Criminal'!$D$4=2,R25="Red"),"Red","Gray") -> Gray | Q38: =IF(AND('Circuit Criminal'!$D$4=3,Q32="Red"),"Red","Gray") -> Gray | R38: =IF(AND('Circuit Criminal'!$D$4=4,R32="Red"),"Red","Gray") -> Gray | S38: =COUNTIF(O38:R38,"Red") -> 0 | T38: Lee
A39: =LEFT(B39,3)&" "&RIGHT(B39,6) -> CGE CQ4-16 | B39: CGE CQ4-16 | C39: RPE 09/30/15 | K39: Qtr 1 | O39: =IF(AND('Circuit Criminal'!$D$4=1,Q26="Red"),"Red","Gray") -> Gray | P39: =IF(AND('Circuit Criminal'!$D$4=2,R26="Red"),"Red","Gray") -> Gray | Q39: =IF(AND('Circuit Criminal'!$D$4=3,Q33="Red"),"Red","Gray") -> Gray | R39: =IF(AND('Circuit Criminal'!$D$4=4,R33="Red"),"Red","Gray") -> Gray | S39: =COUNTIF(O39:R39,"Red") -> 0 | T39: Leon
C40: C = Cumulative Collections | O40: =IF(AND('Circuit Criminal'!$D$4=1,Q27="Red"),"Red","Gray") -> Gray | P40: =IF(AND('Circuit Criminal'!$D$4=2,R27="Red"),"Red","Gray") -> Gray | Q40: =IF(AND('Circuit Criminal'!$D$4=3,Q34="Red"),"Red","Gray") -> Gray | R40: =IF(AND('Circuit Criminal'!$D$4=4,R34="Red"),"Red","Gray") -> Gray | S40: =COUNTIF(O40:R40,"Red") -> 0 | T40: Levy
C41: A = Amount Assessed - Adjusted | O41: =COUNTIF(O36:O40,"Red") -> 0 | P41: =COUNTIF(P36:P40,"Red") -> 0 | Q41: =COUNTIF(Q36:Q40,"Red") -> 0 | R41: =COUNTIF(R36:R40,"Red") -> 0 | T41: Liberty
C42: CR = Collection Rate | K42: =IF(ISBLANK(K40),"N/A",IF(OR(K40=0,K40="N/A"),0,K40/K41)) -> N/A | O42: =SUM(O41:R41) -> 0 | T42: Madison
B43: NOTES: | T43: Manatee
B44: Business Rules | D44: 1.) Assessment amount is adjusted each quarter based on business rules within the control group, it is based on the amount that was originally assessed in the first quarter. | T44: Martin
D45: 2.) Quarter 5 Action Plan Note: If Collection Rate is below Standard (highlighted in red), please include a "Reason Code" and "Current Action to Improve". These comments will automatically feed the "Action Plan" tab. | T45: Nassau
D46: 3.) Additional Notes: Please include additional information to explain either of the following conditions that are not consistant with the Collection Report Business Rules. (These dollars will result in a red font): | T46: Okaloosa
E47: a.) Cumulative Collection amount has Decreased from the previous quarter in the same Control Group | T47: Okeechobee
E48: b.) The Amount Assessed - Adjusted has Increased from the previous quarter in the same Control Group | T48: Orange
T49: Nassau
T50: Okaloosa
T51: Okeechobee
T52: Orange
T53: Pasco
T54: Pinellas
T55: Polk
B56: =MAX('Circuit Civil'!B56:B99) -> 2 | D56: Issue | F56: Calc 1 Needed | G56: Calc 2 Needed | H56: Calc 3 Needed | I56: Calc 4 Needed | J56: Standard | T56: Putnam
A57: =D$8 -> County Civil | B57: =IF(E57="YES",MAX(B56)+1,0) -> 0 | C57: =A$11 -> CGE CQ1-15 | D57: ="After 3rd Q, Collections went up by more than set percentage of: "&TEXT(J57,"#0%") -> After 3rd Q, Collections went up by more than set percentage of: 500% | E57: =IF(MAX(F57:G57)>V$10,"YES","NO") -> NO | F57: =IFERROR(IF(NOT(ISBLANK(G12)),(G12-F12)/F12,0),0) -> 0.002585500753 | G57: =IFERROR(IF(NOT(ISBLANK(H12)),(H12-G12)/G12,0),0) -> 2.408436309e-05 | J57: =V$10 -> 5 | T57: Santa Rosa
A58: =D$8 -> County Civil | B58: =IF(E58="YES",MAX(B$56:B57)+1,0) -> 0 | C58: =A$11 -> CGE CQ1-15 | D58: ="Assessments dropped by more than set percentage of: "&TEXT(J58,"#0%") -> Assessments dropped by more than set percentage of: 15% | E58: =IF(MIN(F58:I58)<(-1*V$11),"YES","NO") -> NO | F58: =IFERROR(IF(NOT(ISBLANK(E13)),(E13-D13)/D13,0),0) -> 0 | G58: =IFERROR(IF(NOT(ISBLANK(F13)),(F13-E13)/E13,0),0) -> 0 | H58: =IFERROR(IF(NOT(ISBLANK(G13)),(G13-F13)/F13,0),0) -> -2.365750015e-05 | I58: =IFERROR(IF(NOT(ISBLANK(H13)),(H13-G13)/G13,0),0) -> 0 | J58: =V$11 -> 0.15 | T58: Sumter
A59: County Civil | B59: =IF(E59="YES",MAX(B$56:B58)+1,0) -> 0 | C59: =A$11 -> CGE CQ1-15 | D59: ="The 5th Quarter Collection Rate did not meet the established performance measure standard of: "&TEXT(J59,"#0%") -> The 5th Quarter Collection Rate did not meet the established performance measure standard of: 90% | E59: =IF(F59="N/A","NO",IF(F59<H$8,"YES","NO")) -> NO | F59: =H14 -> 0.9823232418 | J59: =H$8 -> 0.9 | T59: Washington
A60: County Civil | B60: =IF(E60="YES",MAX(B$56:B59)+1,0) -> 0 | C60: =A$11 -> CGE CQ1-15 | D60: Collections amount decreased from prior quarter | E60: =IF(MIN(F60:I60)<0,"YES","NO") -> NO | F60: =IFERROR(IF(NOT(ISBLANK(E12)),(E12-D12)/D12,0),0) -> 0.06933427438 | G60: 0.008560196605 | H60: 0.002585500753 | I60: 2.408436309e-05
A61: County Civil | B61: =IF(E61="YES",MAX(B$56:B60)+1,0) -> 0 | C61: =A$11 -> CGE CQ1-15 | D61: Assessment amount increased from prior quarter | E61: =IF(MAX(F61:I61)>0,"YES","NO") -> NO | F61: 0 | G61: 0 | H61: -2.365750015e-05 | I61: 0
A62: County Civil | B62: =IF(E62="YES",MAX(B$56:B61)+1,0) -> 0 | C62: =A$15 -> CGE CQ2-15 | D62: ="After 3rd Q, Collections went up by more than set percentage of: "&TEXT(J62,"#0%") -> After 3rd Q, Collections went up by more than set percentage of: 500% | E62: =IF(MAX(F62:G62)>V$10,"YES","NO") -> NO | F62: =IFERROR(IF(NOT(ISBLANK(H16)),(H16-G16)/G16,0),0) -> 0.0008323334242 | G62: =IFERROR(IF(NOT(ISBLANK(I16)),(I16-H16)/H16,0),0) -> 0 | J62: =V$10 -> 5 | T62: Sarasota
A63: County Civil | B63: =IF(E63="YES",MAX(B$56:B62)+1,0) -> 0 | C63: =A$15 -> CGE CQ2-15 | D63: ="Assessments dropped by more than set percentage of: "&TEXT(J63,"#0%") -> Assessments dropped by more than set percentage of: 15% | E63: =IF(MIN(F63:I63)<(-1*V$11),"YES","NO") -> NO | F63: =IFERROR(IF(NOT(ISBLANK(F17)),(F17-E17)/E17,0),0) -> -0.01025815099 | G63: =IFERROR(IF(NOT(ISBLANK(G17)),(G17-F17)/F17,0),0) -> 0 | H63: =IFERROR(IF(NOT(ISBLANK(H17)),(H17-G17)/G17,0),0) -> 0 | I63: =IFERROR(IF(NOT(ISBLANK(I17)),(I17-H17)/H17,0),0) -> 0 | J63: =V$11 -> 0.15 | T63: Suwannee
A64: County Civil | B64: =IF(E64="YES",MAX(B$56:B63)+1,0) -> 0 | C64: =A$15 -> CGE CQ2-15 | D64: Collections amount decreased from prior quarter | E64: =IF(MIN(F64:I64)<0,"YES","NO") -> NO | F64: =IFERROR(IF(NOT(ISBLANK(F16)),(F16-E16)/E16,0),0) -> 0.1077016329 | G64: 0.001239047912 | H64: 0.0008323334242 | I64: 0
A65: County Civil | B65: =IF(E65="YES",MAX(B$56:B64)+1,0) -> 0 | C65: =A$15 -> CGE CQ2-15 | D65: Assessment amount increased from prior quarter | E65: =IF(MAX(F65:I65)>0,"YES","NO") -> NO | F65: -0.01025815099 | G65: 0 | H65: 0 | I65: 0
A66: County Civil | B66: =IF(E66="YES",MAX(B$56:B65)+1,0) -> 0 | C66: =A$15 -> CGE CQ2-15 | D66: ="The 5th Quarter Collection Rate did not meet the established performance measure standard of: "&TEXT(J66,"#0%") -> The 5th Quarter Collection Rate did not meet the established performance measure standard of: 90% | E66: =IF(F66="N/A","NO",IF(F66<H$8,"YES","NO")) -> NO | F66: =I18 -> N/A | J66: =H$8 -> 0.9
A67: County Civil | B67: =IF(E67="YES",MAX(B$56:B66)+1,0) -> 0 | C67: =A$19 -> CGE CQ3-15 | D67: ="After 3rd Q, Collections went up by more than set percentage of: "&TEXT(J67,"#0%") -> After 3rd Q, Collections went up by more than set percentage of: 500% | E67: =IF(MAX(F67:G67)>V$10,"YES","NO") -> NO | F67: =IFERROR(IF(NOT(ISBLANK(I20)),(I20-H20)/H20,0),0) -> 0 | G67: =IFERROR(IF(NOT(ISBLANK(J20)),(J20-I20)/I20,0),0) -> 0 | J67: =V$10 -> 5 | T67: Seminole
A68: County Civil | B68: =IF(E68="YES",MAX(B$56:B67)+1,0) -> 0 | C68: =A$19 -> CGE CQ3-15 | D68: ="Assessments dropped by more than set percentage of: "&TEXT(J68,"#0%") -> Assessments dropped by more than set percentage of: 15% | E68: =IF(MIN(F68:I68)<(-1*V$11),"YES","NO") -> NO | F68: =IFERROR(IF(NOT(ISBLANK(G21)),(G21-F21)/F21,0),0) -> -2.286716155e-05 | G68: =IFERROR(IF(NOT(ISBLANK(H21)),(H21-G21)/G21,0),0) -> -4.573536894e-05 | H68: =IFERROR(IF(NOT(ISBLANK(I21)),(I21-H21)/H21,0),0) -> 0 | I68: =IFERROR(IF(NOT(ISBLANK(J21)),(J21-I21)/I21,0),0) -> 0 | J68: =V$11 -> 0.15 | T68: Taylor
A69: County Civil | B69: =IF(E69="YES",MAX(B$56:B68)+1,0) -> 0 | C69: =A$19 -> CGE CQ3-15 | D69: Collections amount decreased from prior quarter | E69: =IF(MIN(F69:I69)<0,"YES","NO") -> NO | F69: =IFERROR(IF(NOT(ISBLANK(G20)),(G20-F20)/F20,0),0) -> 0.07847387752 | G69: 0.005881571843 | H69: 0 | I69: 0
A70: County Civil | B70: =IF(E70="YES",MAX(B$56:B69)+1,0) -> 0 | C70: =A$19 -> CGE CQ3-15 | D70: Assessment amount increased from prior quarter | E70: =IF(MAX(F70:I70)>0,"YES","NO") -> NO | F70: -2.286716155e-05 | G70: -4.573536894e-05 | H70: 0 | I70: 0
A71: County Civil | B71: =IF(E71="YES",MAX(B$56:B70)+1,0) -> 0 | C71: =A$19 -> CGE CQ3-15 | D71: ="The 5th Quarter Collection Rate did not meet the established performance measure standard of: "&TEXT(J71,"#0%") -> The 5th Quarter Collection Rate did not meet the established performance measure standard of: 90% | E71: =IF(F71="N/A","NO",IF(F71<H$8,"YES","NO")) -> NO | F71: =J22 -> N/A | J71: =H$8 -> 0.9
A72: County Civil | B72: =IF(E72="YES",MAX(B$56:B71)+1,0) -> 0 | C72: =A$23 -> CGE CQ4-15 | D72: ="After 3rd Q, Collections went up by more than set percentage of: "&TEXT(J72,"#0%") -> After 3rd Q, Collections went up by more than set percentage of: 500% | E72: =IF(MAX(F72:G72)>V$10,"YES","NO") -> NO | F72: =IFERROR(IF(NOT(ISBLANK(J24)),(J24-I24)/I24,0),0) -> 0 | G72: =IFERROR(IF(NOT(ISBLANK(K24)),(K24-J24)/J24,0),0) -> 0 | J72: =V$10 -> 5 | T72: St. Johns
A73: County Civil | B73: =IF(E73="YES",MAX(B$56:B72)+1,0) -> 0 | C73: =A$23 -> CGE CQ4-15 | D73: ="Assessments dropped by more than set percentage of: "&TEXT(J73,"#0%") -> Assessments dropped by more than set percentage of: 15% | E73: =IF(MIN(F73:I73)<(-1*V$11),"YES","NO") -> NO | F73: =IFERROR(IF(NOT(ISBLANK(H25)),(H25-G25)/G25,0),0) -> 0 | G73: =IFERROR(IF(NOT(ISBLANK(I25)),(I25-H25)/H25,0),0) -> 0 | H73: =IFERROR(IF(NOT(ISBLANK(J25)),(J25-I25)/I25,0),0) -> 0 | I73: =IFERROR(IF(NOT(ISBLANK(K25)),(K25-J25)/J25,0),0) -> 0 | J73: =V$11 -> 0.15 | T73: Union
A74: County Civil | B74: =IF(E74="YES",MAX(B$56:B73)+1,0) -> 0 | C74: =A$23 -> CGE CQ4-15 | D74: Collections amount decreased from prior quarter | E74: =IF(MIN(F74:I74)<0,"YES","NO") -> NO | F74: =IFERROR(IF(NOT(ISBLANK(H24)),(H24-G24)/G24,0),0) -> 0.02549470537 | G74: 0 | H74: 0 | I74: 0
A75: County Civil | B75: =IF(E75="YES",MAX(B$56:B74)+1,0) -> 0 | C75: =A$23 -> CGE CQ4-15 | D75: Assessment amount increased from prior quarter | E75: =IF(MAX(F75:I75)>0,"YES","NO") -> NO | F75: 0 | G75: 0 | H75: 0 | I75: 0
A76: County Civil | B76: =IF(E76="YES",MAX(B$56:B75)+1,0) -> 0 | C76: =A$23 -> CGE CQ4-15 | D76: ="The 5th Quarter Collection Rate did not meet the established performance measure standard of: "&TEXT(J76,"#0%") -> The 5th Quarter Collection Rate did not meet the established performance measure standard of: 90% | E76: =IF(F76="N/A","NO",IF(F76<H$8,"YES","NO")) -> NO | F76: =K26 -> N/A | J76: =H$8 -> 0.9
A77: County Civil | B77: =IF(E77="YES",MAX(B$56:B76)+1,0) -> 0 | C77: =A$27 -> CGE CQ1-16 | D77: ="After 3rd Q, Collections went up by more than set percentage of: "&TEXT(J77,"#0%") -> After 3rd Q, Collections went up by more than set percentage of: 500% | E77: =IF(MAX(F77)>V$10,"YES","NO") -> NO | F77: =IFERROR(IF(NOT(ISBLANK(K28)),(K28-J28)/J28,0),0) -> 0 | J77: =V$10 -> 5 | T77: St. Lucie
A78: County Civil | B78: =IF(E78="YES",MAX(B$56:B77)+1,0) -> 0 | C78: =A$27 -> CGE CQ1-16 | D78: ="Assessments dropped by more than set percentage of: "&TEXT(J78,"#0%") -> Assessments dropped by more than set percentage of: 15% | E78: =IF(MIN(F78:H78)<(-1*V$11),"YES","NO") -> NO | F78: =IFERROR(IF(NOT(ISBLANK(I29)),(I29-H29)/H29,0),0) -> 0 | G78: =IFERROR(IF(NOT(ISBLANK(J29)),(J29-I29)/I29,0),0) -> 0 | H78: =IFERROR(IF(NOT(ISBLANK(K29)),(K29-J29)/J29,0),0) -> 0 | J78: =V$11 -> 0.15 | T78: Volusia
A79: County Civil | B79: =IF(E79="YES",MAX(B$56:B78)+1,0) -> 0 | C79: =A$27 -> CGE CQ1-16 | D79: Collections amount decreased from prior quarter | E79: =IF(MIN(F79:H79)<0,"YES","NO") -> NO | F79: =IFERROR(IF(NOT(ISBLANK(I28)),(I28-H28)/H28,0),0) -> 0 | G79: 0 | H79: 0
A80: County Civil | B80: =IF(E80="YES",MAX(B$56:B79)+1,0) -> 0 | C80: =A$27 -> CGE CQ1-16 | D80: Assessment amount increased from prior quarter | E80: =IF(MAX(F80:H80)>0,"YES","NO") -> NO | F80: 0 | G80: 0 | H80: 0
A81: County Civil | B81: =IF(E81="YES",MAX(B$56:B80)+1,0) -> 0 | C81: =A$31 -> CGE CQ2-16 | D81: ="Assessments dropped by more than set percentage of: "&TEXT(J81,"#0%") -> Assessments dropped by more than set percentage of: 15% | E81: =IF(MIN(F81:G81)<(-1*V$11),"YES","NO") -> NO | F81: =IFERROR(IF(NOT(ISBLANK(J33)),(J33-I33)/I33,0),0) -> 0 | G81: =IFERROR(IF(NOT(ISBLANK(K33)),(K33-J33)/J33,0),0) -> 0 | J81: =V$11 -> 0.15 | T81: Wakulla
A82: County Civil | B82: =IF(E82="YES",MAX(B$56:B81)+1,0) -> 0 | C82: =A$31 -> CGE CQ2-16 | D82: Collections amount decreased from prior quarter | E82: =IF(MIN(F82:G82)<0,"YES","NO") -> NO | F82: =IFERROR(IF(NOT(ISBLANK(J32)),(J32-I32)/I32,0),0) -> 0 | G82: =IFERROR(IF(NOT(ISBLANK(K32)),(K32-J32)/J32,0),0) -> 0
A83: County Civil | B83: =IF(E83="YES",MAX(B$56:B82)+1,0) -> 0 | C83: =A$31 -> CGE CQ2-16 | D83: Assessment amount increased from prior quarter | E83: =IF(MAX(F83:G83)>0,"YES","NO") -> NO | F83: =IFERROR(IF(NOT(ISBLANK(J33)),(J33-I33)/I33,0),0) -> 0 | G83: =IFERROR(IF(NOT(ISBLANK(K33)),(K33-J33)/J33,0),0) -> 0
A84: County Civil | B84: =IF(E84="YES",MAX(B$56:B83)+1,0) -> 0 | C84: =A$35 -> CGE CQ3-16 | D84: ="Assessments dropped by more than set percentage of: "&TEXT(J84,"#0%") -> Assessments dropped by more than set percentage of: 15% | E84: =IF(MIN(F84)<(-1*V$11),"YES","NO") -> NO | F84: =IFERROR(IF(NOT(ISBLANK(K37)),(K37-J37)/J37,0),0) -> 0 | J84: =V$11 -> 0.15 | T84: Walton
A85: County Civil | B85: =IF(E85="YES",MAX(B$56:B84)+1,0) -> 0 | C85: =A$35 -> CGE CQ3-16 | D85: Collections amount decreased from prior quarter | E85: =IF(MIN(F85)<0,"YES","NO") -> NO | F85: =IFERROR(IF(NOT(ISBLANK(K36)),(K36-J36)/J36,0),0) -> 0
A86: County Civil | B86: =IF(E86="YES",MAX(B$56:B85)+1,0) -> 0 | C86: =A$35 -> CGE CQ3-16 | D86: Assessment amount increased from prior quarter | E86: =IF(MAX(F86)>0,"YES","NO") -> NO | F86: =IFERROR(IF(NOT(ISBLANK(K37)),(K37-J37)/J37,0),0) -> 0

Sheet Civil Traffic
M2: County Fiscal Year 2014-2015 | T2: CountyNames
M3: Collections Quarterly Report Form for CCOC | T3: Alachua
C4: Report for Quarter Ending: | D4: ='Circuit Criminal'!D4 -> December 2014 | T4: Baker
C5: Version #: | D5: ='Circuit Criminal'!$D$5 -> 2 | T5: Bay
C6: County: | D6: ='Circuit Criminal'!D6 -> Brevard | T6: Bradford
T7: Brevard
C8: Court/Case Type: | D8: Civil Traffic | G8: Performance Measure Standard: | H8: 0.9 | T8: Broward
L9: Action Plan | N9: 1 | O9: version #1 | P9: Qtr1 - December | Q9: 1 | T9: Calhoun
C10: Control Groups | D10: 10/01/13 - 12/31/13 | E10: 01/01/14 - 03/31/14 | F10: 04/01/14 - 06/30/14 | G10: 07/01/14 - 09/30/14 | H10: 10/01/14 - 12/31/14 | I10: 01/01/15 - 03/31/15 | J10: 04/01/15 - 06/30/15 | K10: 07/01/15 - 09/30/15 | L10: Reason Code | M10: Current Actions to Improve | O10: version #2 | P10: Qtr 2 - March | T10: Charlotte | V10: 5
A11: =LEFT(B11,3)&" "&RIGHT(B11,6) -> CGE CQ1-15 | B11: CGE CQ1-15 | C11: RPE 12/31/13 | D11: Qtr 1 | E11: Qtr 2 | F11: Qtr 3 | G11: Qtr 4 | H11: Qtr 5 | N11: Economy | O11: version #3 | P11: Qtr 3 - June | Q11: 3 | T11: Citrus | U11: =D6&" "&D8 -> Brevard Civil Traffic | V11: 0.15
C12: C = Cumulative Collections | D12: =LOOKUP($U$11,Lookup!$C$3:$C$605,Lookup!I$3:I$596) -> 879575.87 | E12: =LOOKUP($U$11,Lookup!$C$3:$C$605,Lookup!J$3:J$596) -> 1328531.79 | F12: =LOOKUP($U$11,Lookup!$C$3:$C$605,Lookup!K$3:K$596) -> 1436090.11 | G12: =LOOKUP($U$11,Lookup!$C$3:$C$605,Lookup!L$3:L$596) -> 1465090.02 | H12: 1480102.77 | N12: Incarcerations | O12: version #4 | P12: Qtr 4 - September | Q12: 4 | T12: Clay | U12: =IF(P13=TRUE,A11,"") -> 
C13: A = Amount Assessed - Adjusted | D13: =LOOKUP($U$11,Lookup!$C$3:$C$605,Lookup!D$3:D$596) -> 1741977.75 | E13: =LOOKUP($U$11,Lookup!$C$3:$C$605,Lookup!E$3:E$596) -> 1637431.39 | F13: =LOOKUP($U$11,Lookup!$C$3:$C$605,Lookup!F$3:F$596) -> 1630368.89 | G13: =LOOKUP($U$11,Lookup!$C$3:$C$605,Lookup!G$3:G$596) -> 1629818.89 | H13: 1629854.39 | N13: Late/Non-pay/Pay Plans | O13: version #5 | P13: =OR(AND(E12<D12,E12>0),AND(F12<E12,F12>0),AND(G12<F12,G12>0),AND(H12<G12,H12>0),AND(F13>E13,E13>0),AND(G13>F13,F13>0),AND(H13<G13,G13>0)) -> FALSE | Q13: 5 | T13: Collier | U13: =IF(P14=TRUE,A15,"") -> 
C14: CR = Collection Rate | D14: =IF(ISBLANK(D12),"N/A",IF(OR(D12=0,D12="N/A"),0,D12/D13)) -> 0.5049294516 | E14: =IF(ISBLANK(E12),"N/A",IF(OR(E12=0,E12="N/A"),0,E12/E13)) -> 0.8113511187 | F14: =IF(ISBLANK(F12),"N/A",IF(OR(F12=0,F12="N/A"),0,F12/F13)) -> 0.8808375324 | G14: =IF(ISBLANK(G12),"N/A",IF(OR(G12=0,G12="N/A"),0,G12/G13)) -> 0.8989281134 | H14: =IF(ISBLANK(H12),"N/A",IF(AND(H12=0,H13=0,NOT(ISBLANK(H12)),NOT(ISBLANK(H13))),1,H12/H13)) -> 0.9081196327 | N14: Mandatory Assessment | O14: version #6 | P14: =OR(AND(F16<E16,F16>0),AND(G16<F16,G16>0),AND(H16<G16,H16>0),AND(I16<H16,I16>0),AND(G17>F17, F17>0),AND(H17>G17, G17>0),AND(I17<H17,I17>0)) -> FALSE | Q14: 6 | T14: Columbia | U14: =IF(P15=TRUE,A19,"") -> 
A15: =LEFT(B15,3)&" "&RIGHT(B15,6) -> CGE CQ2-15 | B15: CGE CQ2-15 | C15: RPE 03/31/14 | E15: Qtr 1 | F15: Qtr 2 | G15: Qtr 3 | H15: Qtr 4 | I15: Qtr 5 | N15: Out of State | O15: version #7 | P15: =OR(AND(G20<F20,D10>0),AND(H20<G20,H20>0),AND(I20<H20,I20>0),AND(J20<I20,J20>0),AND(H21>G21, G21>0),AND(I21>H21, H21>0),AND(J21<I21, J21>0)) -> FALSE | Q15: 7 | T15: Dade | U15: =IF(P16=TRUE,A23,"") -> 
C16: C = Cumulative Collections | E16: =LOOKUP($U$11,Lookup!$C$3:$C$605,Lookup!S$3:S$605) -> 911767.53 | F16: =LOOKUP($U$11,Lookup!$C$3:$C$605,Lookup!T$3:T$605) -> 1327742.35 | G16: =LOOKUP($U$11,Lookup!$C$3:$C$605,Lookup!U$3:U$605) -> 1426330.01 | H16: 1458038.81 | N16: Procedural | O16: version #8 | P16: =OR(AND(H24<G24, H24>0),AND(I24<H24, I24>0),AND(J24<I24, J24>0),AND(K24<J24, K24>0),AND(I25>H25, H25>0),AND(J25>I25, I25>0),AND(K25<J25, J25>0)) -> FALSE | Q16: 8 | T16: Desoto | U16: =IF(P17=TRUE,A27,"") -> 
C17: A = Amount Assessed - Adjusted | E17: =LOOKUP($U$11,Lookup!$C$3:$C$605,Lookup!N$3:N$605) -> 1745365.9 | F17: =LOOKUP($U$11,Lookup!$C$3:$C$605,Lookup!O$3:O$605) -> 1636335.96 | G17: =LOOKUP($U$11,Lookup!$C$3:$C$605,Lookup!P$3:P$605) -> 1629945.4 | H17: 1628702.06 | N17: Staffing - Insufficient Personnel | O17: version #9 | P17: =OR(AND(I28<H28, I28>0),AND(J28<I28, J28>0),AND(K28<J28, K28>0),AND(J29>I29, I29>0),AND(K29>J29, J29>0)) -> FALSE | Q17: 9 | T17: Dixie | U17: =IF(P18=TRUE,A31,"") -> 
C18: CR = Collection Rate | E18: =IF(ISBLANK(E16),"N/A",IF(OR(E16=0,E16="N/A"),0,E16/E17)) -> 0.5223933446 | F18: =IF(ISBLANK(F16),"N/A",IF(OR(F16=0,F16="N/A"),0,F16/F17)) -> 0.8114118265 | G18: =IF(ISBLANK(G16),"N/A",IF(OR(G16=0,G16="N/A"),0,G16/G17)) -> 0.8750783983 | H18: =IF(ISBLANK(H16),"N/A",IF(AND(H16=0,H17=0,NOT(ISBLANK(H16)),NOT(ISBLANK(H17))),1,H16/H17)) -> 0.8952151813 | I18: =IF(ISBLANK(I16),"N/A",IF(AND(I16=0,I17=0,NOT(ISBLANK(I16)),NOT(ISBLANK(I17))),1,I16/I17)) -> N/A | N18: Staffing - Training Required | O18: version #10 | P18: =OR(AND(J32<I32, J32>0),AND(K32<J32, K32>0),AND(K33>J33, J33>0)) -> FALSE | Q18: 10 | T18: Duval | U18: =IF(P19=TRUE,A35,"") -> 
A19: =LEFT(B19,3)&" "&RIGHT(B19,6) -> CGE CQ3-15 | B19: CGE CQ3-15 | C19: RPE 06/30/14 | F19: Qtr 1 | G19: Qtr 2 | H19: Qtr 3 | I19: Qtr 4 | J19: Qtr 5 | N19: Systems | O19: version #11 | P19: =OR(K36<J36) -> FALSE | Q19: 11 | T19: Escambia | U19: =U12&" "&U13&" "&U14&" "&U15&" "&U16&" "&U17&" "&U18 -> 
C20: C = Cumulative Collections | F20: =LOOKUP($U$11,Lookup!$C$3:$C$605,Lookup!AC$3:AC$605) -> 1024256.45 | G20: =LOOKUP($U$11,Lookup!$C$3:$C$605,Lookup!AD$3:AD$605) -> 1493563.22 | H20: 1620002.86 | N20: Other | O20: version #12 | P20: =COUNTIF(P13:P19,"TRUE") -> 0 | Q20: 12 | T20: Flagler
C21: A = Amount Assessed - Adjusted | F21: =LOOKUP($U$11,Lookup!$C$3:$C$605,Lookup!X$3:X$605) -> 1995140.45 | G21: =LOOKUP($U$11,Lookup!$C$3:$C$605,Lookup!Y$3:Y$605) -> 1891993.75 | H21: 1882554.49 | T21: Franklin
C22: CR = Collection Rate | F22: =IF(ISBLANK(F20),"N/A",IF(OR(F20=0,F20="N/A"),0,F20/F21)) -> 0.5133756122 | G22: =IF(ISBLANK(G20),"N/A",IF(OR(G20=0,G20="N/A"),0,G20/G21)) -> 0.7894123435 | H22: =IF(ISBLANK(H20),"N/A",IF(AND(H20=0,H21=0,NOT(ISBLANK(H20)),NOT(ISBLANK(H21))),1,H20/H21)) -> 0.8605343795 | I22: =IF(ISBLANK(I20),"N/A",IF(AND(I20=0,I21=0,NOT(ISBLANK(I20)),NOT(ISBLANK(I21))),1,I20/I21)) -> N/A | J22: =IF(ISBLANK(J20),"N/A",IF(AND(J20=0,J21=0,NOT(ISBLANK(J20)),NOT(ISBLANK(J21))),1,J20/J21)) -> N/A | O22: Q1 | P22: Q2 | T22: Gadsden
A23: =LEFT(B23,3)&" "&RIGHT(B23,6) -> CGE CQ4-15 | B23: CGE CQ4-15 | C23: RPE 09/30/14 | G23: Qtr 1 | H23: Qtr 2 | I23: Qtr 3 | J23: Qtr 4 | K23: Qtr 5 | O23: FALSE | P23: FALSE | Q23: =IF(AND(OR(ISBLANK(H12),ISBLANK(H13)),O23=FALSE),"Red","Gray") -> Gray | R23: =IF(AND(OR(ISBLANK(I16),ISBLANK(I17)),P23=FALSE),"Red","Gray") -> Red | S23: =IF(AND('Circuit Criminal'!D4=1,S36=1),A11,IF(AND('Circuit Criminal'!D4=2,S36=1),A15,IF(AND('Circuit Criminal'!D4=3,S36=1),A19,IF(AND('Circuit Criminal'!D4=4,S36=1),A23,"")))) ->  | T23: Gilchrist
C24: C = Cumulative Collections | G24: =LOOKUP($U$11,Lookup!$C$3:$C$605,Lookup!AM$3:AM$605) -> 1074410.27 | H24: 1536714.01 | O24: FALSE | P24: FALSE | Q24: =IF(AND(OR(ISBLANK(H16),ISBLANK(H17)),O24=FALSE),"Red","Gray") -> Gray | R24: =IF(AND(OR(ISBLANK(I20),ISBLANK(I21)),P24=FALSE),"Red","Gray") -> Red | S24: =IF(AND('Circuit Criminal'!D4=1,S37=1),A15,IF(AND('Circuit Criminal'!D4=2,S37=1),A19,IF(AND('Circuit Criminal'!D4=3,S37=1),A23,IF(AND('Circuit Criminal'!D4=4,S37=1),A27,"")))) ->  | T24: Glades
C25: A = Amount Assessed - Adjusted | G25: =LOOKUP($U$11,Lookup!$C$3:$C$605,Lookup!AH$3:AH$605) -> 2048521.75 | H25: 1937286.78 | O25: FALSE | P25: FALSE | Q25: =IF(AND(OR(ISBLANK(H20),ISBLANK(H21)),O25=FALSE),"Red","Gray") -> Gray | R25: =IF(AND(OR(ISBLANK(I24),ISBLANK(I25)),P25=FALSE),"Red","Gray") -> Red | S25: =IF(AND('Circuit Criminal'!D4=1,S38=1),A19,IF(AND('Circuit Criminal'!D4=2,S38=1),A23,IF(AND('Circuit Criminal'!D4=3,S38=1),A27,IF(AND('Circuit Criminal'!D4=4,S38=1),A31,"")))) ->  | T25: Gulf
C26: CR = Collection Rate | G26: =IF(ISBLANK(G24),"N/A",IF(OR(G24=0,G24="N/A"),0,G24/G25)) -> 0.5244807725 | H26: =IF(ISBLANK(H24),"N/A",IF(AND(H24=0,H25=0,NOT(ISBLANK(H24)),NOT(ISBLANK(H25))),1,H24/H25)) -> 0.793230009 | I26: =IF(ISBLANK(I24),"N/A",IF(AND(I24=0,I25=0,NOT(ISBLANK(I24)),NOT(ISBLANK(I25))),1,I24/I25)) -> N/A | J26: =IF(ISBLANK(J24),"N/A",IF(AND(J24=0,J25=0,NOT(ISBLANK(J24)),NOT(ISBLANK(J25))),1,J24/J25)) -> N/A | K26: =IF(ISBLANK(K24),"N/A",IF(AND(K24=0,K25=0,NOT(ISBLANK(K24)),NOT(ISBLANK(K25))),1,K24/K25)) -> N/A | O26: FALSE | P26: FALSE | Q26: =IF(AND(OR(ISBLANK(H24),ISBLANK(H25)),O26=FALSE),"Red","Gray") -> Gray | R26: =IF(AND(OR(ISBLANK(I28),ISBLANK(I29)),P26=FALSE),"Red","Gray") -> Red | S26: =IF(AND('Circuit Criminal'!D4=1,S39=1),A23,IF(AND('Circuit Criminal'!D4=2,S39=1),A27,IF(AND('Circuit Criminal'!D4=3,S39=1),A31,IF(AND('Circuit Criminal'!D4=4,S39=1),A35,"")))) ->  | T26: Hamilton
A27: =LEFT(B27,3)&" "&RIGHT(B27,6) -> CGE CQ1-16 | B27: CGE CQ1-16 | C27: RPE 12/31/14 | H27: Qtr 1 | I27: Qtr 2 | J27: Qtr 3 | K27: Qtr 4 | O27: FALSE | P27: FALSE | Q27: =IF(AND(OR(ISBLANK(H28),ISBLANK(H29)),O27=FALSE),"Red","Gray") -> Gray | R27: =IF(AND(OR(ISBLANK(I32),ISBLANK(I33)),P27=FALSE),"Red","Gray") -> Red | S27: =IF(AND('Circuit Criminal'!D4=1,S40=1),A27,IF(AND('Circuit Criminal'!D4=2,S40=1),A31,IF(AND('Circuit Criminal'!D4=3,S40=1),A35,IF(AND('Circuit Criminal'!D4=4,S40=1),A39,"")))) ->  | T27: Hardee
C28: C = Cumulative Collections | H28: 809749.26 | T28: Hendry
C29: A = Amount Assessed - Adjusted | H29: 1624356.45 | O29: Q3 | P29: Q4 | T29: Hernando
C30: CR = Collection Rate | H30: =IF(ISBLANK(H28),"N/A",IF(AND(H28=0,H29=0,NOT(ISBLANK(H28)),NOT(ISBLANK(H29))),1,H28/H29)) -> 0.4985046601 | I30: =IF(ISBLANK(I28),"N/A",IF(AND(I28=0,I29=0,NOT(ISBLANK(I28)),NOT(ISBLANK(I29))),1,I28/I29)) -> N/A | J30: =IF(ISBLANK(J28),"N/A",IF(AND(J28=0,J29=0,NOT(ISBLANK(J28)),NOT(ISBLANK(J29))),1,J28/J29)) -> N/A | K30: =IF(ISBLANK(K28),"N/A",IF(AND(K28=0,K29=0,NOT(ISBLANK(K28)),NOT(ISBLANK(K29))),1,K28/K29)) -> N/A | O30: FALSE | P30: FALSE | Q30: =IF(AND(OR(ISBLANK(J20),ISBLANK(J21)),O30=FALSE),"Red","Gray") -> Red | R30: =IF(AND(OR(ISBLANK(K24),ISBLANK(K25)),P30=FALSE),"Red","Gray") -> Red | T30: Highlands
A31: =LEFT(B31,3)&" "&RIGHT(B31,6) -> CGE CQ2-16 | B31: CGE CQ2-16 | C31: RPE 03/31/15 | I31: Qtr 1 | J31: Qtr 2 | K31: Qtr 3 | L31: Additional Notes Related to Collection Issues | O31: FALSE | P31: FALSE | Q31: =IF(AND(OR(ISBLANK(J24),ISBLANK(J25)),O31=FALSE),"Red","Gray") -> Red | R31: =IF(AND(OR(ISBLANK(K28),ISBLANK(K29)),P31=FALSE),"Red","Gray") -> Red | T31: Hillsborough
C32: C = Cumulative Collections | O32: FALSE | P32: FALSE | Q32: =IF(AND(OR(ISBLANK(J28),ISBLANK(J29)),O32=FALSE),"Red","Gray") -> Red | R32: =IF(AND(OR(ISBLANK(K32),ISBLANK(K33)),P32=FALSE),"Red","Gray") -> Red | T32: Holmes
C33: A = Amount Assessed - Adjusted | O33: FALSE | P33: FALSE | Q33: =IF(AND(OR(ISBLANK(J32),ISBLANK(J33)),O33=FALSE),"Red","Gray") -> Red | R33: =IF(AND(OR(ISBLANK(K36),ISBLANK(K37)),P33=FALSE),"Red","Gray") -> Red | T33: Indian River
C34: CR = Collection Rate | I34: =IF(ISBLANK(I32),"N/A",IF(AND(I32=0,I33=0,NOT(ISBLANK(I32)),NOT(ISBLANK(I33))),1,I32/I33)) -> N/A | J34: =IF(ISBLANK(J32),"N/A",IF(AND(J32=0,J33=0,NOT(ISBLANK(J32)),NOT(ISBLANK(J33))),1,J32/J33)) -> N/A | K34: =IF(ISBLANK(K32),"N/A",IF(AND(K32=0,K33=0,NOT(ISBLANK(K32)),NOT(ISBLANK(K33))),1,K32/K33)) -> N/A | O34: FALSE | P34: FALSE | Q34: =IF(AND(OR(ISBLANK(J36),ISBLANK(J37)),O34=FALSE),"Red","Gray") -> Red | R34: =IF(AND(OR(ISBLANK(K40),ISBLANK(K41)),P34=FALSE),"Red","Gray") -> Red | T34: Jackson
A35: =LEFT(B35,3)&" "&RIGHT(B35,6) -> CGE CQ3-16 | B35: CGE CQ3-16 | C35: RPE 06/30/15 | J35: Qtr 1 | K35: Qtr 2 | T35: Jefferson
C36: C = Cumulative Collections | O36: =IF(AND('Circuit Criminal'!$D$4=1,Q23="Red"),"Red","Gray") -> Gray | P36: =IF(AND('Circuit Criminal'!$D$4=2,R23="Red"),"Red","Gray") -> Gray | Q36: =IF(AND('Circuit Criminal'!$D$4=3,Q30="Red"),"Red","Gray") -> Gray | R36: =IF(AND('Circuit Criminal'!$D$4=4,R30="Red"),"Red","Gray") -> Gray | S36: =COUNTIF(O36:R36,"Red") -> 0 | T36: Lafayette
C37: A = Amount Assessed - Adjusted | O37: =IF(AND('Circuit Criminal'!$D$4=1,Q24="Red"),"Red","Gray") -> Gray | P37: =IF(AND('Circuit Criminal'!$D$4=2,R24="Red"),"Red","Gray") -> Gray | Q37: =IF(AND('Circuit Criminal'!$D$4=3,Q31="Red"),"Red","Gray") -> Gray | R37: =IF(AND('Circuit Criminal'!$D$4=4,R31="Red"),"Red","Gray") -> Gray | S37: =COUNTIF(O37:R37,"Red") -> 0 | T37: Lake
C38: CR = Collection Rate | J38: =IF(ISBLANK(J36),"N/A",IF(AND(J36=0,J37=0,NOT(ISBLANK(J36)),NOT(ISBLANK(J37))),1,J36/J37)) -> N/A | K38: =IF(ISBLANK(K36),"N/A",IF(AND(K36=0,K37=0,NOT(ISBLANK(K36)),NOT(ISBLANK(K37))),1,K36/K37)) -> N/A | O38: =IF(AND('Circuit Criminal'!$D$4=1,Q25="Red"),"Red","Gray") -> Gray | P38: =IF(AND('Circuit Criminal'!$D$4=2,R25="Red"),"Red","Gray") -> Gray | Q38: =IF(AND('Circuit Criminal'!$D$4=3,Q32="Red"),"Red","Gray") -> Gray | R38: =IF(AND('Circuit Criminal'!$D$4=4,R32="Red"),"Red","Gray") -> Gray | S38: =COUNTIF(O38:R38,"Red") -> 0 | T38: Lee
A39: =LEFT(B39,3)&" "&RIGHT(B39,6) -> CGE CQ4-16 | B39: CGE CQ4-16 | C39: RPE 09/30/15 | K39: Qtr 1 | O39: =IF(AND('Circuit Criminal'!$D$4=1,Q26="Red"),"Red","Gray") -> Gray | P39: =IF(AND('Circuit Criminal'!$D$4=2,R26="Red"),"Red","Gray") -> Gray | Q39: =IF(AND('Circuit Criminal'!$D$4=3,Q33="Red"),"Red","Gray") -> Gray | R39: =IF(AND('Circuit Criminal'!$D$4=4,R33="Red"),"Red","Gray") -> Gray | S39: =COUNTIF(O39:R39,"Red") -> 0 | T39: Leon
C40: C = Cumulative Collections | O40: =IF(AND('Circuit Criminal'!$D$4=1,Q27="Red"),"Red","Gray") -> Gray | P40: =IF(AND('Circuit Criminal'!$D$4=2,R27="Red"),"Red","Gray") -> Gray | Q40: =IF(AND('Circuit Criminal'!$D$4=3,Q34="Red"),"Red","Gray") -> Gray | R40: =IF(AND('Circuit Criminal'!$D$4=4,R34="Red"),"Red","Gray") -> Gray | S40: =COUNTIF(O40:R40,"Red") -> 0 | T40: Levy
C41: A = Amount Assessed - Adjusted | O41: =COUNTIF(O36:O40,"Red") -> 0 | P41: =COUNTIF(P36:P40,"Red") -> 0 | Q41: =COUNTIF(Q36:Q40,"Red") -> 0 | R41: =COUNTIF(R36:R40,"Red") -> 0 | T41: Liberty
C42: CR = Collection Rate | K42: =IF(ISBLANK(K40),"N/A",IF(OR(K40=0,K40="N/A"),0,K40/K41)) -> N/A | O42: =SUM(O41:R41) -> 0 | T42: Madison
B43: NOTES: | T43: Manatee
B44: Business Rules | D44: 1.) Assessment amount is adjusted each quarter based on business rules within the control group, it is based on the amount that was originally assessed in the first quarter. | T44: Martin
D45: 2.) Quarter 5 Action Plan Note: If Collection Rate is below Standard (highlighted in red), please include a "Reason Code" and "Current Action to Improve". These comments will automatically feed the "Action Plan" tab. | T45: Nassau
D46: 3.) Additional Notes: Please include additional information to explain either of the following conditions that are not consistant with the Collection Report Business Rules. (These dollars will result in a red font): | T46: Okaloosa
E47: a.) Cumulative Collection amount has Decreased from the previous quarter in the same Control Group | T47: Okeechobee
E48: b.) The Amount Assessed - Adjusted has Increased from the previous quarter in the same Control Group | T48: Orange
T49: Nassau
T50: Okaloosa
T51: Okeechobee
T52: Orange
T53: Pasco
T54: Pinellas
T55: Polk
B56: =MAX('County Civil'!B56:B99) -> 2 | D56: Issue | F56: Calc 1 Needed | G56: Calc 2 Needed | H56: Calc 3 Needed | I56: Calc 4 Needed | J56: Standard | T56: Putnam
A57: =D$8 -> Civil Traffic | B57: =IF(E57="YES",MAX(B56)+1,0) -> 0 | C57: =A$11 -> CGE CQ1-15 | D57: ="After 3rd Q, Collections went up by more than set percentage of: "&TEXT(J57,"#0%") -> After 3rd Q, Collections went up by more than set percentage of: 500% | E57: =IF(MAX(F57:G57)>V$10,"YES","NO") -> NO | F57: =IFERROR(IF(NOT(ISBLANK(G12)),(G12-F12)/F12,0),0) -> 0.02019365623 | G57: =IFERROR(IF(NOT(ISBLANK(H12)),(H12-G12)/G12,0),0) -> 0.01024698127 | J57: =V$10 -> 5 | T57: Santa Rosa
A58: =D$8 -> Civil Traffic | B58: =IF(E58="YES",MAX(B$56:B57)+1,0) -> 0 | C58: =A$11 -> CGE CQ1-15 | D58: ="Assessments dropped by more than set percentage of: "&TEXT(J58,"#0%") -> Assessments dropped by more than set percentage of: 15% | E58: =IF(MIN(F58:I58)<(-1*V$11),"YES","NO") -> NO | F58: =IFERROR(IF(NOT(ISBLANK(E13)),(E13-D13)/D13,0),0) -> -0.0600158986 | G58: =IFERROR(IF(NOT(ISBLANK(F13)),(F13-E13)/E13,0),0) -> -0.004313157817 | H58: =IFERROR(IF(NOT(ISBLANK(G13)),(G13-F13)/F13,0),0) -> -0.0003373469669 | I58: =IFERROR(IF(NOT(ISBLANK(H13)),(H13-G13)/G13,0),0) -> 2.178156126e-05 | J58: =V$11 -> 0.15 | T58: Sumter
A59: Civil Traffic | B59: =IF(E59="YES",MAX(B$56:B58)+1,0) -> 0 | C59: =A$11 -> CGE CQ1-15 | D59: ="The 5th Quarter Collection Rate did not meet the established performance measure standard of: "&TEXT(J59,"#0%") -> The 5th Quarter Collection Rate did not meet the established performance measure standard of: 90% | E59: =IF(F59="N/A","NO",IF(F59<H$8,"YES","NO")) -> NO | F59: =H14 -> 0.9081196327 | J59: =H$8 -> 0.9 | T59: Washington
A60: Civil Traffic | B60: =IF(E60="YES",MAX(B$56:B59)+1,0) -> 0 | C60: =A$11 -> CGE CQ1-15 | D60: Collections amount decreased from prior quarter | E60: =IF(MIN(F60:I60)<0,"YES","NO") -> NO | F60: =IFERROR(IF(NOT(ISBLANK(E12)),(E12-D12)/D12,0),0) -> 0.5104231884 | G60: 0.08096029076 | H60: 0.02019365623 | I60: 0.01024698127
A61: Civil Traffic | B61: =IF(E61="YES",MAX(B$56:B60)+1,0) -> 3 | C61: =A$11 -> CGE CQ1-15 | D61: Assessment amount increased from prior quarter | E61: =IF(MAX(F61:I61)>0,"YES","NO") -> YES | F61: -0.0600158986 | G61: -0.004313157817 | H61: -0.0003373469669 | I61: 2.178156126e-05
A62: Civil Traffic | B62: =IF(E62="YES",MAX(B$56:B61)+1,0) -> 0 | C62: =A$15 -> CGE CQ2-15 | D62: ="After 3rd Q, Collections went up by more than set percentage of: "&TEXT(J62,"#0%") -> After 3rd Q, Collections went up by more than set percentage of: 500% | E62: =IF(MAX(F62:G62)>V$10,"YES","NO") -> NO | F62: =IFERROR(IF(NOT(ISBLANK(H16)),(H16-G16)/G16,0),0) -> 0.02223104035 | G62: =IFERROR(IF(NOT(ISBLANK(I16)),(I16-H16)/H16,0),0) -> 0 | J62: =V$10 -> 5 | T62: Sarasota
A63: Civil Traffic | B63: =IF(E63="YES",MAX(B$56:B62)+1,0) -> 0 | C63: =A$15 -> CGE CQ2-15 | D63: ="Assessments dropped by more than set percentage of: "&TEXT(J63,"#0%") -> Assessments dropped by more than set percentage of: 15% | E63: =IF(MIN(F63:I63)<(-1*V$11),"YES","NO") -> NO | F63: =IFERROR(IF(NOT(ISBLANK(F17)),(F17-E17)/E17,0),0) -> -0.06246824233 | G63: =IFERROR(IF(NOT(ISBLANK(G17)),(G17-F17)/F17,0),0) -> -0.003905408276 | H63: =IFERROR(IF(NOT(ISBLANK(H17)),(H17-G17)/G17,0),0) -> -0.0007628108279 | I63: =IFERROR(IF(NOT(ISBLANK(I17)),(I17-H17)/H17,0),0) -> 0 | J63: =V$11 -> 0.15 | T63: Suwannee
A64: Civil Traffic | B64: =IF(E64="YES",MAX(B$56:B63)+1,0) -> 0 | C64: =A$15 -> CGE CQ2-15 | D64: Collections amount decreased from prior quarter | E64: =IF(MIN(F64:I64)<0,"YES","NO") -> NO | F64: =IFERROR(IF(NOT(ISBLANK(F16)),(F16-E16)/E16,0),0) -> 0.4562290346 | G64: 0.0742521017 | H64: 0.02223104035 | I64: 0
A65: Civil Traffic | B65: =IF(E65="YES",MAX(B$56:B64)+1,0) -> 0 | C65: =A$15 -> CGE CQ2-15 | D65: Assessment amount increased from prior quarter | E65: =IF(MAX(F65:I65)>0,"YES","NO") -> NO | F65: -0.06246824233 | G65: -0.003905408276 | H65: -0.0007628108279 | I65: 0
A66: Civil Traffic | B66: =IF(E66="YES",MAX(B$56:B65)+1,0) -> 0 | C66: =A$15 -> CGE CQ2-15 | D66: ="The 5th Quarter Collection Rate did not meet the established performance measure standard of: "&TEXT(J66,"#0%") -> The 5th Quarter Collection Rate did not meet the established performance measure standard of: 90% | E66: =IF(F66="N/A","NO",IF(F66<H$8,"YES","NO")) -> NO | F66: =I18 -> N/A | J66: =H$8 -> 0.9
A67: Civil Traffic | B67: =IF(E67="YES",MAX(B$56:B66)+1,0) -> 0 | C67: =A$19 -> CGE CQ3-15 | D67: ="After 3rd Q, Collections went up by more than set percentage of: "&TEXT(J67,"#0%") -> After 3rd Q, Collections went up by more than set percentage of: 500% | E67: =IF(MAX(F67:G67)>V$10,"YES","NO") -> NO | F67: =IFERROR(IF(NOT(ISBLANK(I20)),(I20-H20)/H20,0),0) -> 0 | G67: =IFERROR(IF(NOT(ISBLANK(J20)),(J20-I20)/I20,0),0) -> 0 | J67: =V$10 -> 5 | T67: Seminole
A68: Civil Traffic | B68: =IF(E68="YES",MAX(B$56:B67)+1,0) -> 0 | C68: =A$19 -> CGE CQ3-15 | D68: ="Assessments dropped by more than set percentage of: "&TEXT(J68,"#0%") -> Assessments dropped by more than set percentage of: 15% | E68: =IF(MIN(F68:I68)<(-1*V$11),"YES","NO") -> NO | F68: =IFERROR(IF(NOT(ISBLANK(G21)),(G21-F21)/F21,0),0) -> -0.05169896686 | G68: =IFERROR(IF(NOT(ISBLANK(H21)),(H21-G21)/G21,0),0) -> -0.004989054536 | H68: =IFERROR(IF(NOT(ISBLANK(I21)),(I21-H21)/H21,0),0) -> 0 | I68: =IFERROR(IF(NOT(ISBLANK(J21)),(J21-I21)/I21,0),0) -> 0 | J68: =V$11 -> 0.15 | T68: Taylor
A69: Civil Traffic | B69: =IF(E69="YES",MAX(B$56:B68)+1,0) -> 0 | C69: =A$19 -> CGE CQ3-15 | D69: Collections amount decreased from prior quarter | E69: =IF(MIN(F69:I69)<0,"YES","NO") -> NO | F69: =IFERROR(IF(NOT(ISBLANK(G20)),(G20-F20)/F20,0),0) -> 0.4581926431 | G69: 0.08465636962 | H69: 0 | I69: 0
A70: Civil Traffic | B70: =IF(E70="YES",MAX(B$56:B69)+1,0) -> 0 | C70: =A$19 -> CGE CQ3-15 | D70: Assessment amount increased from prior quarter | E70: =IF(MAX(F70:I70)>0,"YES","NO") -> NO | F70: -0.05169896686 | G70: -0.004989054536 | H70: 0 | I70: 0
A71: Civil Traffic | B71: =IF(E71="YES",MAX(B$56:B70)+1,0) -> 0 | C71: =A$19 -> CGE CQ3-15 | D71: ="The 5th Quarter Collection Rate did not meet the established performance measure standard of: "&TEXT(J71,"#0%") -> The 5th Quarter Collection Rate did not meet the established performance measure standard of: 90% | E71: =IF(F71="N/A","NO",IF(F71<H$8,"YES","NO")) -> NO | F71: =J22 -> N/A | J71: =H$8 -> 0.9
A72: Civil Traffic | B72: =IF(E72="YES",MAX(B$56:B71)+1,0) -> 0 | C72: =A$23 -> CGE CQ4-15 | D72: ="After 3rd Q, Collections went up by more than set percentage of: "&TEXT(J72,"#0%") -> After 3rd Q, Collections went up by more than set percentage of: 500% | E72: =IF(MAX(F72:G72)>V$10,"YES","NO") -> NO | F72: =IFERROR(IF(NOT(ISBLANK(J24)),(J24-I24)/I24,0),0) -> 0 | G72: =IFERROR(IF(NOT(ISBLANK(K24)),(K24-J24)/J24,0),0) -> 0 | J72: =V$10 -> 5 | T72: St. Johns
A73: Civil Traffic | B73: =IF(E73="YES",MAX(B$56:B72)+1,0) -> 0 | C73: =A$23 -> CGE CQ4-15 | D73: ="Assessments dropped by more than set percentage of: "&TEXT(J73,"#0%") -> Assessments dropped by more than set percentage of: 15% | E73: =IF(MIN(F73:I73)<(-1*V$11),"YES","NO") -> NO | F73: =IFERROR(IF(NOT(ISBLANK(H25)),(H25-G25)/G25,0),0) -> -0.05430011666 | G73: =IFERROR(IF(NOT(ISBLANK(I25)),(I25-H25)/H25,0),0) -> 0 | H73: =IFERROR(IF(NOT(ISBLANK(J25)),(J25-I25)/I25,0),0) -> 0 | I73: =IFERROR(IF(NOT(ISBLANK(K25)),(K25-J25)/J25,0),0) -> 0 | J73: =V$11 -> 0.15 | T73: Union
A74: Civil Traffic | B74: =IF(E74="YES",MAX(B$56:B73)+1,0) -> 0 | C74: =A$23 -> CGE CQ4-15 | D74: Collections amount decreased from prior quarter | E74: =IF(MIN(F74:I74)<0,"YES","NO") -> NO | F74: =IFERROR(IF(NOT(ISBLANK(H24)),(H24-G24)/G24,0),0) -> 0.4302860396 | G74: 0 | H74: 0 | I74: 0
A75: Civil Traffic | B75: =IF(E75="YES",MAX(B$56:B74)+1,0) -> 0 | C75: =A$23 -> CGE CQ4-15 | D75: Assessment amount increased from prior quarter | E75: =IF(MAX(F75:I75)>0,"YES","NO") -> NO | F75: -0.05430011666 | G75: 0 | H75: 0 | I75: 0
A76: Civil Traffic | B76: =IF(E76="YES",MAX(B$56:B75)+1,0) -> 0 | C76: =A$23 -> CGE CQ4-15 | D76: ="The 5th Quarter Collection Rate did not meet the established performance measure standard of: "&TEXT(J76,"#0%") -> The 5th Quarter Collection Rate did not meet the established performance measure standard of: 90% | E76: =IF(F76="N/A","NO",IF(F76<H$8,"YES","NO")) -> NO | F76: =K26 -> N/A | J76: =H$8 -> 0.9
A77: Civil Traffic | B77: =IF(E77="YES",MAX(B$56:B76)+1,0) -> 0 | C77: =A$27 -> CGE CQ1-16 | D77: ="After 3rd Q, Collections went up by more than set percentage of: "&TEXT(J77,"#0%") -> After 3rd Q, Collections went up by more than set percentage of: 500% | E77: =IF(MAX(F77)>V$10,"YES","NO") -> NO | F77: =IFERROR(IF(NOT(ISBLANK(K28)),(K28-J28)/J28,0),0) -> 0 | J77: =V$10 -> 5 | T77: St. Lucie
A78: Civil Traffic | B78: =IF(E78="YES",MAX(B$56:B77)+1,0) -> 0 | C78: =A$27 -> CGE CQ1-16 | D78: ="Assessments dropped by more than set percentage of: "&TEXT(J78,"#0%") -> Assessments dropped by more than set percentage of: 15% | E78: =IF(MIN(F78:H78)<(-1*V$11),"YES","NO") -> NO | F78: =IFERROR(IF(NOT(ISBLANK(I29)),(I29-H29)/H29,0),0) -> 0 | G78: =IFERROR(IF(NOT(ISBLANK(J29)),(J29-I29)/I29,0),0) -> 0 | H78: =IFERROR(IF(NOT(ISBLANK(K29)),(K29-J29)/J29,0),0) -> 0 | J78: =V$11 -> 0.15 | T78: Volusia
A79: Civil Traffic | B79: =IF(E79="YES",MAX(B$56:B78)+1,0) -> 0 | C79: =A$27 -> CGE CQ1-16 | D79: Collections amount decreased from prior quarter | E79: =IF(MIN(F79:H79)<0,"YES","NO") -> NO | F79: =IFERROR(IF(NOT(ISBLANK(I28)),(I28-H28)/H28,0),0) -> 0 | G79: 0 | H79: 0
A80: Civil Traffic | B80: =IF(E80="YES",MAX(B$56:B79)+1,0) -> 0 | C80: =A$27 -> CGE CQ1-16 | D80: Assessment amount increased from prior quarter | E80: =IF(MAX(F80:H80)>0,"YES","NO") -> NO | F80: 0 | G80: 0 | H80: 0
A81: Civil Traffic | B81: =IF(E81="YES",MAX(B$56:B80)+1,0) -> 0 | C81: =A$31 -> CGE CQ2-16 | D81: ="Assessments dropped by more than set percentage of: "&TEXT(J81,"#0%") -> Assessments dropped by more than set percentage of: 15% | E81: =IF(MIN(F81:G81)<(-1*V$11),"YES","NO") -> NO | F81: =IFERROR(IF(NOT(ISBLANK(J33)),(J33-I33)/I33,0),0) -> 0 | G81: =IFERROR(IF(NOT(ISBLANK(K33)),(K33-J33)/J33,0),0) -> 0 | J81: =V$11 -> 0.15 | T81: Wakulla
A82: Civil Traffic | B82: =IF(E82="YES",MAX(B$56:B81)+1,0) -> 0 | C82: =A$31 -> CGE CQ2-16 | D82: Collections amount decreased from prior quarter | E82: =IF(MIN(F82:G82)<0,"YES","NO") -> NO | F82: =IFERROR(IF(NOT(ISBLANK(J32)),(J32-I32)/I32,0),0) -> 0 | G82: =IFERROR(IF(NOT(ISBLANK(K32)),(K32-J32)/J32,0),0) -> 0
A83: Civil Traffic | B83: =IF(E83="YES",MAX(B$56:B82)+1,0) -> 0 | C83: =A$31 -> CGE CQ2-16 | D83: Assessment amount increased from prior quarter | E83: =IF(MAX(F83:G83)>0,"YES","NO") -> NO | F83: =IFERROR(IF(NOT(ISBLANK(J33)),(J33-I33)/I33,0),0) -> 0 | G83: =IFERROR(IF(NOT(ISBLANK(K33)),(K33-J33)/J33,0),0) -> 0
A84: Civil Traffic | B84: =IF(E84="YES",MAX(B$56:B83)+1,0) -> 0 | C84: =A$35 -> CGE CQ3-16 | D84: ="Assessments dropped by more than set percentage of: "&TEXT(J84,"#0%") -> Assessments dropped by more than set percentage of: 15% | E84: =IF(MIN(F84)<(-1*V$11),"YES","NO") -> NO | F84: =IFERROR(IF(NOT(ISBLANK(K37)),(K37-J37)/J37,0),0) -> 0 | J84: =V$11 -> 0.15 | T84: Walton
A85: Civil Traffic | B85: =IF(E85="YES",MAX(B$56:B84)+1,0) -> 0 | C85: =A$35 -> CGE CQ3-16 | D85: Collections amount decreased from prior quarter | E85: =IF(MIN(F85)<0,"YES","NO") -> NO | F85: =IFERROR(IF(NOT(ISBLANK(K36)),(K36-J36)/J36,0),0) -> 0
A86: Civil Traffic | B86: =IF(E86="YES",MAX(B$56:B85)+1,0) -> 0 | C86: =A$35 -> CGE CQ3-16 | D86: Assessment amount increased from prior quarter | E86: =IF(MAX(F86)>0,"YES","NO") -> NO | F86: =IFERROR(IF(NOT(ISBLANK(K37)),(K37-J37)/J37,0),0) -> 0

Sheet Probate
M2: County Fiscal Year 2014-2015 | T2: CountyNames
M3: Collections Quarterly Report Form for CCOC | T3: Alachua
C4: Report for Quarter Ending: | D4: ='Circuit Criminal'!D4 -> December 2014 | T4: Baker
C5: Version #: | D5: ='Circuit Criminal'!$D$5 -> 2 | T5: Bay
C6: County: | D6: ='Circuit Criminal'!D6 -> Brevard | T6: Bradford
T7: Brevard
C8: Court/Case Type: | D8: Probate | G8: Performance Measure Standard: | H8: 0.9 | T8: Broward
L9: Action Plan | N9: 1 | O9: version #1 | P9: Qtr1 - December | Q9: 1 | T9: Calhoun
C10: Control Groups | D10: 10/01/13 - 12/31/13 | E10: 01/01/14 - 03/31/14 | F10: 04/01/14 - 06/30/14 | G10: 07/01/14 - 09/30/14 | H10: 10/01/14 - 12/31/14 | I10: 01/01/15 - 03/31/15 | J10: 04/01/15 - 06/30/15 | K10: 07/01/15 - 09/30/15 | L10: Reason Code | M10: Current Actions to Improve | O10: version #2 | P10: Qtr 2 - March | T10: Charlotte | V10: 5
A11: =LEFT(B11,3)&" "&RIGHT(B11,6) -> CGE CQ1-15 | B11: CGE CQ1-15 | C11: RPE 12/31/13 | D11: Qtr 1 | E11: Qtr 2 | F11: Qtr 3 | G11: Qtr 4 | H11: Qtr 5 | N11: Economy | O11: version #3 | P11: Qtr 3 - June | Q11: 3 | T11: Citrus | U11: =D6&" "&D8 -> Brevard Probate | V11: 0.15
C12: C = Cumulative Collections | D12: =LOOKUP($U$11,Lookup!$C$3:$C$605,Lookup!I$3:I$596) -> 177866.2 | E12: =LOOKUP($U$11,Lookup!$C$3:$C$605,Lookup!J$3:J$596) -> 184811.39 | F12: =LOOKUP($U$11,Lookup!$C$3:$C$605,Lookup!K$3:K$596) -> 185041.39 | G12: =LOOKUP($U$11,Lookup!$C$3:$C$605,Lookup!L$3:L$596) -> 186798.39 | H12: 186798.39 | N12: Incarcerations | O12: version #4 | P12: Qtr 4 - September | Q12: 4 | T12: Clay | U12: =IF(P13=TRUE,A11,"") -> 
C13: A = Amount Assessed - Adjusted | D13: =LOOKUP($U$11,Lookup!$C$3:$C$605,Lookup!D$3:D$596) -> 192188.3 | E13: =LOOKUP($U$11,Lookup!$C$3:$C$605,Lookup!E$3:E$596) -> 192188.3 | F13: =LOOKUP($U$11,Lookup!$C$3:$C$605,Lookup!F$3:F$596) -> 192188.3 | G13: =LOOKUP($U$11,Lookup!$C$3:$C$605,Lookup!G$3:G$596) -> 192188.3 | H13: 192188.3 | N13: Late/Non-pay/Pay Plans | O13: version #5 | P13: =OR(AND(E12<D12,E12>0),AND(F12<E12,F12>0),AND(G12<F12,G12>0),AND(H12<G12,H12>0),AND(F13>E13,E13>0),AND(G13>F13,F13>0),AND(H13<G13,G13>0)) -> FALSE | Q13: 5 | T13: Collier | U13: =IF(P14=TRUE,A15,"") -> 
C14: CR = Collection Rate | D14: =IF(ISBLANK(D12),"N/A",IF(OR(D12=0,D12="N/A"),0,D12/D13)) -> 0.9254788143 | E14: =IF(ISBLANK(E12),"N/A",IF(OR(E12=0,E12="N/A"),0,E12/E13)) -> 0.9616162378 | F14: =IF(ISBLANK(F12),"N/A",IF(OR(F12=0,F12="N/A"),0,F12/F13)) -> 0.9628129808 | G14: =IF(ISBLANK(G12),"N/A",IF(OR(G12=0,G12="N/A"),0,G12/G13)) -> 0.9719550566 | H14: =IF(ISBLANK(H12),"N/A",IF(AND(H12=0,H13=0,NOT(ISBLANK(H12)),NOT(ISBLANK(H13))),1,H12/H13)) -> 0.9719550566 | N14: Mandatory Assessment | O14: version #6 | P14: =OR(AND(F16<E16,F16>0),AND(G16<F16,G16>0),AND(H16<G16,H16>0),AND(I16<H16,I16>0),AND(G17>F17, F17>0),AND(H17>G17, G17>0),AND(I17<H17,I17>0)) -> FALSE | Q14: 6 | T14: Columbia | U14: =IF(P15=TRUE,A19,"") -> 
A15: =LEFT(B15,3)&" "&RIGHT(B15,6) -> CGE CQ2-15 | B15: CGE CQ2-15 | C15: RPE 03/31/14 | E15: Qtr 1 | F15: Qtr 2 | G15: Qtr 3 | H15: Qtr 4 | I15: Qtr 5 | N15: Other | O15: version #7 | P15: =OR(AND(G20<F20,D10>0),AND(H20<G20,H20>0),AND(I20<H20,I20>0),AND(J20<I20,J20>0),AND(H21>G21, G21>0),AND(I21>H21, H21>0),AND(J21<I21, J21>0)) -> FALSE | Q15: 7 | T15: Dade | U15: =IF(P16=TRUE,A23,"") -> 
C16: C = Cumulative Collections | E16: =LOOKUP($U$11,Lookup!$C$3:$C$605,Lookup!S$3:S$605) -> 174911.31 | F16: =LOOKUP($U$11,Lookup!$C$3:$C$605,Lookup!T$3:T$605) -> 194863.31 | G16: =LOOKUP($U$11,Lookup!$C$3:$C$605,Lookup!U$3:U$605) -> 195494.31 | H16: 195494.31 | N16: Procedural | O16: version #8 | P16: =OR(AND(H24<G24, H24>0),AND(I24<H24, I24>0),AND(J24<I24, J24>0),AND(K24<J24, K24>0),AND(I25>H25, H25>0),AND(J25>I25, I25>0),AND(K25<J25, J25>0)) -> FALSE | Q16: 8 | T16: Desoto | U16: =IF(P17=TRUE,A27,"") -> 
C17: A = Amount Assessed - Adjusted | E17: =LOOKUP($U$11,Lookup!$C$3:$C$605,Lookup!N$3:N$605) -> 198499.5 | F17: =LOOKUP($U$11,Lookup!$C$3:$C$605,Lookup!O$3:O$605) -> 198499.5 | G17: =LOOKUP($U$11,Lookup!$C$3:$C$605,Lookup!P$3:P$605) -> 198499.5 | H17: 198414.5 | N17: Staffing - Insufficient Personnel | O17: version #9 | P17: =OR(AND(I28<H28, I28>0),AND(J28<I28, J28>0),AND(K28<J28, K28>0),AND(J29>I29, I29>0),AND(K29>J29, J29>0)) -> FALSE | Q17: 9 | T17: Dixie | U17: =IF(P18=TRUE,A31,"") -> 
C18: CR = Collection Rate | E18: =IF(ISBLANK(E16),"N/A",IF(OR(E16=0,E16="N/A"),0,E16/E17)) -> 0.8811675092 | F18: =IF(ISBLANK(F16),"N/A",IF(OR(F16=0,F16="N/A"),0,F16/F17)) -> 0.9816816163 | G18: =IF(ISBLANK(G16),"N/A",IF(OR(G16=0,G16="N/A"),0,G16/G17)) -> 0.9848604656 | H18: =IF(ISBLANK(H16),"N/A",IF(AND(H16=0,H17=0,NOT(ISBLANK(H16)),NOT(ISBLANK(H17))),1,H16/H17)) -> 0.985282376 | I18: =IF(ISBLANK(I16),"N/A",IF(AND(I16=0,I17=0,NOT(ISBLANK(I16)),NOT(ISBLANK(I17))),1,I16/I17)) -> N/A | N18: Staffing - Training Required | O18: version #10 | P18: =OR(AND(J32<I32, J32>0),AND(K32<J32, K32>0),AND(K33>J33, J33>0)) -> FALSE | Q18: 10 | T18: Duval | U18: =IF(P19=TRUE,A35,"") -> 
A19: =LEFT(B19,3)&" "&RIGHT(B19,6) -> CGE CQ3-15 | B19: CGE CQ3-15 | C19: RPE 06/30/14 | F19: Qtr 1 | G19: Qtr 2 | H19: Qtr 3 | I19: Qtr 4 | J19: Qtr 5 | N19: Systems | O19: version #11 | P19: =OR(K36<J36) -> FALSE | Q19: 11 | T19: Escambia | U19: =U12&" "&U13&" "&U14&" "&U15&" "&U16&" "&U17&" "&U18 -> 
C20: C = Cumulative Collections | F20: =LOOKUP($U$11,Lookup!$C$3:$C$605,Lookup!AC$3:AC$605) -> 187318.15 | G20: =LOOKUP($U$11,Lookup!$C$3:$C$605,Lookup!AD$3:AD$605) -> 215460.15 | H20: 216204.48 | O20: version #12 | P20: =COUNTIF(P13:P19,"TRUE") -> 0 | Q20: 12 | T20: Flagler
C21: A = Amount Assessed - Adjusted | F21: =LOOKUP($U$11,Lookup!$C$3:$C$605,Lookup!X$3:X$605) -> 217806.15 | G21: =LOOKUP($U$11,Lookup!$C$3:$C$605,Lookup!Y$3:Y$605) -> 217461.15 | H21: 217461.15 | T21: Franklin
C22: CR = Collection Rate | F22: =IF(ISBLANK(F20),"N/A",IF(OR(F20=0,F20="N/A"),0,F20/F21)) -> 0.860022318 | G22: =IF(ISBLANK(G20),"N/A",IF(OR(G20=0,G20="N/A"),0,G20/G21)) -> 0.9907983564 | H22: =IF(ISBLANK(H20),"N/A",IF(AND(H20=0,H21=0,NOT(ISBLANK(H20)),NOT(ISBLANK(H21))),1,H20/H21)) -> 0.9942211747 | I22: =IF(ISBLANK(I20),"N/A",IF(AND(I20=0,I21=0,NOT(ISBLANK(I20)),NOT(ISBLANK(I21))),1,I20/I21)) -> N/A | J22: =IF(ISBLANK(J20),"N/A",IF(AND(J20=0,J21=0,NOT(ISBLANK(J20)),NOT(ISBLANK(J21))),1,J20/J21)) -> N/A | O22: Q1 | P22: Q2 | T22: Gadsden
A23: =LEFT(B23,3)&" "&RIGHT(B23,6) -> CGE CQ4-15 | B23: CGE CQ4-15 | C23: RPE 09/30/14 | G23: Qtr 1 | H23: Qtr 2 | I23: Qtr 3 | J23: Qtr 4 | K23: Qtr 5 | O23: FALSE | P23: FALSE | Q23: =IF(AND(OR(ISBLANK(H12),ISBLANK(H13)),O23=FALSE),"Red","Gray") -> Gray | R23: =IF(AND(OR(ISBLANK(I16),ISBLANK(I17)),P23=FALSE),"Red","Gray") -> Red | S23: =IF(AND('Circuit Criminal'!D4=1,S36=1),A11,IF(AND('Circuit Criminal'!D4=2,S36=1),A15,IF(AND('Circuit Criminal'!D4=3,S36=1),A19,IF(AND('Circuit Criminal'!D4=4,S36=1),A23,"")))) ->  | T23: Gilchrist
C24: C = Cumulative Collections | G24: =LOOKUP($U$11,Lookup!$C$3:$C$605,Lookup!AM$3:AM$605) -> 210565.98 | H24: 216160.5 | O24: FALSE | P24: FALSE | Q24: =IF(AND(OR(ISBLANK(H16),ISBLANK(H17)),O24=FALSE),"Red","Gray") -> Gray | R24: =IF(AND(OR(ISBLANK(I20),ISBLANK(I21)),P24=FALSE),"Red","Gray") -> Red | S24: =IF(AND('Circuit Criminal'!D4=1,S37=1),A15,IF(AND('Circuit Criminal'!D4=2,S37=1),A19,IF(AND('Circuit Criminal'!D4=3,S37=1),A23,IF(AND('Circuit Criminal'!D4=4,S37=1),A27,"")))) ->  | T24: Glades
C25: A = Amount Assessed - Adjusted | G25: =LOOKUP($U$11,Lookup!$C$3:$C$605,Lookup!AH$3:AH$605) -> 218880.65 | H25: 218880.65 | O25: FALSE | P25: FALSE | Q25: =IF(AND(OR(ISBLANK(H20),ISBLANK(H21)),O25=FALSE),"Red","Gray") -> Gray | R25: =IF(AND(OR(ISBLANK(I24),ISBLANK(I25)),P25=FALSE),"Red","Gray") -> Red | S25: =IF(AND('Circuit Criminal'!D4=1,S38=1),A19,IF(AND('Circuit Criminal'!D4=2,S38=1),A23,IF(AND('Circuit Criminal'!D4=3,S38=1),A27,IF(AND('Circuit Criminal'!D4=4,S38=1),A31,"")))) ->  | T25: Gulf
C26: CR = Collection Rate | G26: =IF(ISBLANK(G24),"N/A",IF(OR(G24=0,G24="N/A"),0,G24/G25)) -> 0.9620127681 | H26: =IF(ISBLANK(H24),"N/A",IF(AND(H24=0,H25=0,NOT(ISBLANK(H24)),NOT(ISBLANK(H25))),1,H24/H25)) -> 0.987572451 | I26: =IF(ISBLANK(I24),"N/A",IF(AND(I24=0,I25=0,NOT(ISBLANK(I24)),NOT(ISBLANK(I25))),1,I24/I25)) -> N/A | J26: =IF(ISBLANK(J24),"N/A",IF(AND(J24=0,J25=0,NOT(ISBLANK(J24)),NOT(ISBLANK(J25))),1,J24/J25)) -> N/A | K26: =IF(ISBLANK(K24),"N/A",IF(AND(K24=0,K25=0,NOT(ISBLANK(K24)),NOT(ISBLANK(K25))),1,K24/K25)) -> N/A | O26: FALSE | P26: FALSE | Q26: =IF(AND(OR(ISBLANK(H24),ISBLANK(H25)),O26=FALSE),"Red","Gray") -> Gray | R26: =IF(AND(OR(ISBLANK(I28),ISBLANK(I29)),P26=FALSE),"Red","Gray") -> Red | S26: =IF(AND('Circuit Criminal'!D4=1,S39=1),A23,IF(AND('Circuit Criminal'!D4=2,S39=1),A27,IF(AND('Circuit Criminal'!D4=3,S39=1),A31,IF(AND('Circuit Criminal'!D4=4,S39=1),A35,"")))) ->  | T26: Hamilton
A27: =LEFT(B27,3)&" "&RIGHT(B27,6) -> CGE CQ1-16 | B27: CGE CQ1-16 | C27: RPE 12/31/14 | H27: Qtr 1 | I27: Qtr 2 | J27: Qtr 3 | K27: Qtr 4 | O27: FALSE | P27: FALSE | Q27: =IF(AND(OR(ISBLANK(H28),ISBLANK(H29)),O27=FALSE),"Red","Gray") -> Gray | R27: =IF(AND(OR(ISBLANK(I32),ISBLANK(I33)),P27=FALSE),"Red","Gray") -> Red | S27: =IF(AND('Circuit Criminal'!D4=1,S40=1),A27,IF(AND('Circuit Criminal'!D4=2,S40=1),A31,IF(AND('Circuit Criminal'!D4=3,S40=1),A35,IF(AND('Circuit Criminal'!D4=4,S40=1),A39,"")))) ->  | T27: Hardee
C28: C = Cumulative Collections | H28: 188761.82 | T28: Hendry
C29: A = Amount Assessed - Adjusted | H29: 192352.5 | O29: Q3 | P29: Q4 | T29: Hernando
C30: CR = Collection Rate | H30: =IF(ISBLANK(H28),"N/A",IF(AND(H28=0,H29=0,NOT(ISBLANK(H28)),NOT(ISBLANK(H29))),1,H28/H29)) -> 0.9813328135 | I30: =IF(ISBLANK(I28),"N/A",IF(AND(I28=0,I29=0,NOT(ISBLANK(I28)),NOT(ISBLANK(I29))),1,I28/I29)) -> N/A | J30: =IF(ISBLANK(J28),"N/A",IF(AND(J28=0,J29=0,NOT(ISBLANK(J28)),NOT(ISBLANK(J29))),1,J28/J29)) -> N/A | K30: =IF(ISBLANK(K28),"N/A",IF(AND(K28=0,K29=0,NOT(ISBLANK(K28)),NOT(ISBLANK(K29))),1,K28/K29)) -> N/A | O30: FALSE | P30: FALSE | Q30: =IF(AND(OR(ISBLANK(J20),ISBLANK(J21)),O30=FALSE),"Red","Gray") -> Red | R30: =IF(AND(OR(ISBLANK(K24),ISBLANK(K25)),P30=FALSE),"Red","Gray") -> Red | T30: Highlands
A31: =LEFT(B31,3)&" "&RIGHT(B31,6) -> CGE CQ2-16 | B31: CGE CQ2-16 | C31: RPE 03/31/15 | I31: Qtr 1 | J31: Qtr 2 | K31: Qtr 3 | L31: Additional Notes Related to Collection Issues | O31: FALSE | P31: FALSE | Q31: =IF(AND(OR(ISBLANK(J24),ISBLANK(J25)),O31=FALSE),"Red","Gray") -> Red | R31: =IF(AND(OR(ISBLANK(K28),ISBLANK(K29)),P31=FALSE),"Red","Gray") -> Red | T31: Hillsborough
C32: C = Cumulative Collections | O32: FALSE | P32: FALSE | Q32: =IF(AND(OR(ISBLANK(J28),ISBLANK(J29)),O32=FALSE),"Red","Gray") -> Red | R32: =IF(AND(OR(ISBLANK(K32),ISBLANK(K33)),P32=FALSE),"Red","Gray") -> Red | T32: Holmes
C33: A = Amount Assessed - Adjusted | O33: FALSE | P33: FALSE | Q33: =IF(AND(OR(ISBLANK(J32),ISBLANK(J33)),O33=FALSE),"Red","Gray") -> Red | R33: =IF(AND(OR(ISBLANK(K36),ISBLANK(K37)),P33=FALSE),"Red","Gray") -> Red | T33: Indian River
C34: CR = Collection Rate | I34: =IF(ISBLANK(I32),"N/A",IF(AND(I32=0,I33=0,NOT(ISBLANK(I32)),NOT(ISBLANK(I33))),1,I32/I33)) -> N/A | J34: =IF(ISBLANK(J32),"N/A",IF(AND(J32=0,J33=0,NOT(ISBLANK(J32)),NOT(ISBLANK(J33))),1,J32/J33)) -> N/A | K34: =IF(ISBLANK(K32),"N/A",IF(AND(K32=0,K33=0,NOT(ISBLANK(K32)),NOT(ISBLANK(K33))),1,K32/K33)) -> N/A | O34: FALSE | P34: FALSE | Q34: =IF(AND(OR(ISBLANK(J36),ISBLANK(J37)),O34=FALSE),"Red","Gray") -> Red | R34: =IF(AND(OR(ISBLANK(K40),ISBLANK(K41)),P34=FALSE),"Red","Gray") -> Red | T34: Jackson
A35: =LEFT(B35,3)&" "&RIGHT(B35,6) -> CGE CQ3-16 | B35: CGE CQ3-16 | C35: RPE 06/30/15 | J35: Qtr 1 | K35: Qtr 2 | T35: Jefferson
C36: C = Cumulative Collections | O36: =IF(AND('Circuit Criminal'!$D$4=1,Q23="Red"),"Red","Gray") -> Gray | P36: =IF(AND('Circuit Criminal'!$D$4=2,R23="Red"),"Red","Gray") -> Gray | Q36: =IF(AND('Circuit Criminal'!$D$4=3,Q30="Red"),"Red","Gray") -> Gray | R36: =IF(AND('Circuit Criminal'!$D$4=4,R30="Red"),"Red","Gray") -> Gray | S36: =COUNTIF(O36:R36,"Red") -> 0 | T36: Lafayette
C37: A = Amount Assessed - Adjusted | O37: =IF(AND('Circuit Criminal'!$D$4=1,Q24="Red"),"Red","Gray") -> Gray | P37: =IF(AND('Circuit Criminal'!$D$4=2,R24="Red"),"Red","Gray") -> Gray | Q37: =IF(AND('Circuit Criminal'!$D$4=3,Q31="Red"),"Red","Gray") -> Gray | R37: =IF(AND('Circuit Criminal'!$D$4=4,R31="Red"),"Red","Gray") -> Gray | S37: =COUNTIF(O37:R37,"Red") -> 0 | T37: Lake
C38: CR = Collection Rate | J38: =IF(ISBLANK(J36),"N/A",IF(AND(J36=0,J37=0,NOT(ISBLANK(J36)),NOT(ISBLANK(J37))),1,J36/J37)) -> N/A | K38: =IF(ISBLANK(K36),"N/A",IF(AND(K36=0,K37=0,NOT(ISBLANK(K36)),NOT(ISBLANK(K37))),1,K36/K37)) -> N/A | O38: =IF(AND('Circuit Criminal'!$D$4=1,Q25="Red"),"Red","Gray") -> Gray | P38: =IF(AND('Circuit Criminal'!$D$4=2,R25="Red"),"Red","Gray") -> Gray | Q38: =IF(AND('Circuit Criminal'!$D$4=3,Q32="Red"),"Red","Gray") -> Gray | R38: =IF(AND('Circuit Criminal'!$D$4=4,R32="Red"),"Red","Gray") -> Gray | S38: =COUNTIF(O38:R38,"Red") -> 0 | T38: Lee
A39: =LEFT(B39,3)&" "&RIGHT(B39,6) -> CGE CQ4-16 | B39: CGE CQ4-16 | C39: RPE 09/30/15 | K39: Qtr 1 | O39: =IF(AND('Circuit Criminal'!$D$4=1,Q26="Red"),"Red","Gray") -> Gray | P39: =IF(AND('Circuit Criminal'!$D$4=2,R26="Red"),"Red","Gray") -> Gray | Q39: =IF(AND('Circuit Criminal'!$D$4=3,Q33="Red"),"Red","Gray") -> Gray | R39: =IF(AND('Circuit Criminal'!$D$4=4,R33="Red"),"Red","Gray") -> Gray | S39: =COUNTIF(O39:R39,"Red") -> 0 | T39: Leon
C40: C = Cumulative Collections | O40: =IF(AND('Circuit Criminal'!$D$4=1,Q27="Red"),"Red","Gray") -> Gray | P40: =IF(AND('Circuit Criminal'!$D$4=2,R27="Red"),"Red","Gray") -> Gray | Q40: =IF(AND('Circuit Criminal'!$D$4=3,Q34="Red"),"Red","Gray") -> Gray | R40: =IF(AND('Circuit Criminal'!$D$4=4,R34="Red"),"Red","Gray") -> Gray | S40: =COUNTIF(O40:R40,"Red") -> 0 | T40: Levy
C41: A = Amount Assessed - Adjusted | O41: =COUNTIF(O36:O40,"Red") -> 0 | P41: =COUNTIF(P36:P40,"Red") -> 0 | Q41: =COUNTIF(Q36:Q40,"Red") -> 0 | R41: =COUNTIF(R36:R40,"Red") -> 0 | T41: Liberty
C42: CR = Collection Rate | K42: =IF(ISBLANK(K40),"N/A",IF(OR(K40=0,K40="N/A"),0,K40/K41)) -> N/A | O42: =SUM(O41:R41) -> 0 | T42: Madison
B43: NOTES: | T43: Manatee
B44: Business Rules | D44: 1.) Assessment amount is adjusted each quarter based on business rules within the control group, it is based on the amount that was originally assessed in the first quarter. | T44: Martin
D45: 2.) Quarter 5 Action Plan Note: If Collection Rate is below Standard (highlighted in red), please include a "Reason Code" and "Current Action to Improve". These comments will automatically feed the "Action Plan" tab. | T45: Nassau
D46: 3.) Additional Notes: Please include additional information to explain either of the following conditions that are not consistant with the Collection Report Business Rules. (These dollars will result in a red font): | T46: Okaloosa
E47: a.) Cumulative Collection amount has Decreased from the previous quarter in the same Control Group | T47: Okeechobee
E48: b.) The Amount Assessed - Adjusted has Increased from the previous quarter in the same Control Group | T48: Orange
T49: Nassau
T50: Okaloosa
T51: Okeechobee
T52: Orange
T53: Pasco
T54: Nassau
T55: Okaloosa
T56: Okeechobee
T57: Orange
T58: Pasco
T59: Pinellas
T60: Polk
B61: =MAX('Civil Traffic'!B56:B99) -> 3 | D61: Issue | F61: Calc 1 Needed | G61: Calc 2 Needed | H61: Calc 3 Needed | I61: Calc 4 Needed | J61: Standard | T61: Putnam
A62: =D$8 -> Probate | B62: =IF(E62="YES",MAX(B61)+1,0) -> 0 | C62: =A$11 -> CGE CQ1-15 | D62: ="After 3rd Q, Collections went up by more than set percentage of: "&TEXT(J62,"#0%") -> After 3rd Q, Collections went up by more than set percentage of: 500% | E62: =IF(MAX(F62:G62)>V$10,"YES","NO") -> NO | F62: =IFERROR(IF(NOT(ISBLANK(G12)),(G12-F12)/F12,0),0) -> 0.009495172945 | G62: =IFERROR(IF(NOT(ISBLANK(H12)),(H12-G12)/G12,0),0) -> 0 | J62: =V$10 -> 5 | T62: Santa Rosa
A63: =D$8 -> Probate | B63: =IF(E63="YES",MAX(B$61:B62)+1,0) -> 0 | C63: =A$11 -> CGE CQ1-15 | D63: ="Assessments dropped by more than set percentage of: "&TEXT(J63,"#0%") -> Assessments dropped by more than set percentage of: 15% | E63: =IF(MIN(F63:I63)<(-1*V$11),"YES","NO") -> NO | F63: =IFERROR(IF(NOT(ISBLANK(E13)),(E13-D13)/D13,0),0) -> 0 | G63: =IFERROR(IF(NOT(ISBLANK(F13)),(F13-E13)/E13,0),0) -> 0 | H63: =IFERROR(IF(NOT(ISBLANK(G13)),(G13-F13)/F13,0),0) -> 0 | I63: =IFERROR(IF(NOT(ISBLANK(H13)),(H13-G13)/G13,0),0) -> 0 | J63: =V$11 -> 0.15 | T63: Sumter
A64: Probate | B64: =IF(E64="YES",MAX(B$61:B63)+1,0) -> 0 | C64: =A$11 -> CGE CQ1-15 | D64: ="The 5th Quarter Collection Rate did not meet the established performance measure standard of: "&TEXT(J64,"#0%") -> The 5th Quarter Collection Rate did not meet the established performance measure standard of: 90% | E64: =IF(F64="N/A","NO",IF(F64<H$8,"YES","NO")) -> NO | F64: =H14 -> 0.9719550566 | J64: =H$8 -> 0.9 | T64: Washington
A65: Probate | B65: =IF(E65="YES",MAX(B$61:B64)+1,0) -> 0 | C65: =A$11 -> CGE CQ1-15 | D65: Collections amount decreased from prior quarter | E65: =IF(MIN(F65:I65)<0,"YES","NO") -> NO | F65: =IFERROR(IF(NOT(ISBLANK(E12)),(E12-D12)/D12,0),0) -> 0.03904727261 | G65: 0.00124451204 | H65: 0.009495172945 | I65: 0
A66: Probate | B66: =IF(E66="YES",MAX(B$61:B65)+1,0) -> 0 | C66: =A$11 -> CGE CQ1-15 | D66: Assessment amount increased from prior quarter | E66: =IF(MAX(F66:I66)>0,"YES","NO") -> NO | F66: 0 | G66: 0 | H66: 0 | I66: 0
A67: Probate | B67: =IF(E67="YES",MAX(B$61:B66)+1,0) -> 0 | C67: =A$15 -> CGE CQ2-15 | D67: ="After 3rd Q, Collections went up by more than set percentage of: "&TEXT(J67,"#0%") -> After 3rd Q, Collections went up by more than set percentage of: 500% | E67: =IF(MAX(F67:G67)>V$10,"YES","NO") -> NO | F67: =IFERROR(IF(NOT(ISBLANK(H16)),(H16-G16)/G16,0),0) -> 0 | G67: =IFERROR(IF(NOT(ISBLANK(I16)),(I16-H16)/H16,0),0) -> 0 | J67: =V$10 -> 5 | T67: Sarasota
A68: Probate | B68: =IF(E68="YES",MAX(B$61:B67)+1,0) -> 0 | C68: =A$15 -> CGE CQ2-15 | D68: ="Assessments dropped by more than set percentage of: "&TEXT(J68,"#0%") -> Assessments dropped by more than set percentage of: 15% | E68: =IF(MIN(F68:I68)<(-1*V$11),"YES","NO") -> NO | F68: =IFERROR(IF(NOT(ISBLANK(F17)),(F17-E17)/E17,0),0) -> 0 | G68: =IFERROR(IF(NOT(ISBLANK(G17)),(G17-F17)/F17,0),0) -> 0 | H68: =IFERROR(IF(NOT(ISBLANK(H17)),(H17-G17)/G17,0),0) -> -0.0004282126655 | I68: =IFERROR(IF(NOT(ISBLANK(I17)),(I17-H17)/H17,0),0) -> 0 | J68: =V$11 -> 0.15 | T68: Suwannee
A69: Probate | B69: =IF(E69="YES",MAX(B$61:B68)+1,0) -> 0 | C69: =A$15 -> CGE CQ2-15 | D69: Collections amount decreased from prior quarter | E69: =IF(MIN(F69:I69)<0,"YES","NO") -> NO | F69: =IFERROR(IF(NOT(ISBLANK(F16)),(F16-E16)/E16,0),0) -> 0.1140692389 | G69: 0.003238167308 | H69: 0 | I69: 0
A70: Probate | B70: =IF(E70="YES",MAX(B$61:B69)+1,0) -> 0 | C70: =A$15 -> CGE CQ2-15 | D70: Assessment amount increased from prior quarter | E70: =IF(MAX(F70:I70)>0,"YES","NO") -> NO | F70: 0 | G70: 0 | H70: -0.0004282126655 | I70: 0
A71: Probate | B71: =IF(E71="YES",MAX(B$61:B70)+1,0) -> 0 | C71: =A$15 -> CGE CQ2-15 | D71: ="The 5th Quarter Collection Rate did not meet the established performance measure standard of: "&TEXT(J71,"#0%") -> The 5th Quarter Collection Rate did not meet the established performance measure standard of: 90% | E71: =IF(F71="N/A","NO",IF(F71<H$8,"YES","NO")) -> NO | F71: =I18 -> N/A | J71: =H$8 -> 0.9
A72: Probate | B72: =IF(E72="YES",MAX(B$61:B71)+1,0) -> 0 | C72: =A$19 -> CGE CQ3-15 | D72: ="After 3rd Q, Collections went up by more than set percentage of: "&TEXT(J72,"#0%") -> After 3rd Q, Collections went up by more than set percentage of: 500% | E72: =IF(MAX(F72:G72)>V$10,"YES","NO") -> NO | F72: =IFERROR(IF(NOT(ISBLANK(I20)),(I20-H20)/H20,0),0) -> 0 | G72: =IFERROR(IF(NOT(ISBLANK(J20)),(J20-I20)/I20,0),0) -> 0 | J72: =V$10 -> 5 | T72: Seminole
A73: Probate | B73: =IF(E73="YES",MAX(B$61:B72)+1,0) -> 0 | C73: =A$19 -> CGE CQ3-15 | D73: ="Assessments dropped by more than set percentage of: "&TEXT(J73,"#0%") -> Assessments dropped by more than set percentage of: 15% | E73: =IF(MIN(F73:I73)<(-1*V$11),"YES","NO") -> NO | F73: =IFERROR(IF(NOT(ISBLANK(G21)),(G21-F21)/F21,0),0) -> -0.001583977312 | G73: =IFERROR(IF(NOT(ISBLANK(H21)),(H21-G21)/G21,0),0) -> 0 | H73: =IFERROR(IF(NOT(ISBLANK(I21)),(I21-H21)/H21,0),0) -> 0 | I73: =IFERROR(IF(NOT(ISBLANK(J21)),(J21-I21)/I21,0),0) -> 0 | J73: =V$11 -> 0.15 | T73: Taylor
A74: Probate | B74: =IF(E74="YES",MAX(B$61:B73)+1,0) -> 0 | C74: =A$19 -> CGE CQ3-15 | D74: Collections amount decreased from prior quarter | E74: =IF(MIN(F74:I74)<0,"YES","NO") -> NO | F74: =IFERROR(IF(NOT(ISBLANK(G20)),(G20-F20)/F20,0),0) -> 0.1502363759 | G74: 0.003454606339 | H74: 0 | I74: 0
A75: Probate | B75: =IF(E75="YES",MAX(B$61:B74)+1,0) -> 0 | C75: =A$19 -> CGE CQ3-15 | D75: Assessment amount increased from prior quarter | E75: =IF(MAX(F75:I75)>0,"YES","NO") -> NO | F75: -0.001583977312 | G75: 0 | H75: 0 | I75: 0
A76: Probate | B76: =IF(E76="YES",MAX(B$61:B75)+1,0) -> 0 | C76: =A$19 -> CGE CQ3-15 | D76: ="The 5th Quarter Collection Rate did not meet the established performance measure standard of: "&TEXT(J76,"#0%") -> The 5th Quarter Collection Rate did not meet the established performance measure standard of: 90% | E76: =IF(F76="N/A","NO",IF(F76<H$8,"YES","NO")) -> NO | F76: =J22 -> N/A | J76: =H$8 -> 0.9
A77: Probate | B77: =IF(E77="YES",MAX(B$61:B76)+1,0) -> 0 | C77: =A$23 -> CGE CQ4-15 | D77: ="After 3rd Q, Collections went up by more than set percentage of: "&TEXT(J77,"#0%") -> After 3rd Q, Collections went up by more than set percentage of: 500% | E77: =IF(MAX(F77:G77)>V$10,"YES","NO") -> NO | F77: =IFERROR(IF(NOT(ISBLANK(J24)),(J24-I24)/I24,0),0) -> 0 | G77: =IFERROR(IF(NOT(ISBLANK(K24)),(K24-J24)/J24,0),0) -> 0 | J77: =V$10 -> 5 | T77: St. Johns
A78: Probate | B78: =IF(E78="YES",MAX(B$61:B77)+1,0) -> 0 | C78: =A$23 -> CGE CQ4-15 | D78: ="Assessments dropped by more than set percentage of: "&TEXT(J78,"#0%") -> Assessments dropped by more than set percentage of: 15% | E78: =IF(MIN(F78:I78)<(-1*V$11),"YES","NO") -> NO | F78: =IFERROR(IF(NOT(ISBLANK(H25)),(H25-G25)/G25,0),0) -> 0 | G78: =IFERROR(IF(NOT(ISBLANK(I25)),(I25-H25)/H25,0),0) -> 0 | H78: =IFERROR(IF(NOT(ISBLANK(J25)),(J25-I25)/I25,0),0) -> 0 | I78: =IFERROR(IF(NOT(ISBLANK(K25)),(K25-J25)/J25,0),0) -> 0 | J78: =V$11 -> 0.15 | T78: Union
A79: Probate | B79: =IF(E79="YES",MAX(B$61:B78)+1,0) -> 0 | C79: =A$23 -> CGE CQ4-15 | D79: Collections amount decreased from prior quarter | E79: =IF(MIN(F79:I79)<0,"YES","NO") -> NO | F79: =IFERROR(IF(NOT(ISBLANK(H24)),(H24-G24)/G24,0),0) -> 0.02656896427 | G79: 0 | H79: 0 | I79: 0
A80: Probate | B80: =IF(E80="YES",MAX(B$61:B79)+1,0) -> 0 | C80: =A$23 -> CGE CQ4-15 | D80: Assessment amount increased from prior quarter | E80: =IF(MAX(F80:I80)>0,"YES","NO") -> NO | F80: 0 | G80: 0 | H80: 0 | I80: 0
A81: Probate | B81: =IF(E81="YES",MAX(B$61:B80)+1,0) -> 0 | C81: =A$23 -> CGE CQ4-15 | D81: ="The 5th Quarter Collection Rate did not meet the established performance measure standard of: "&TEXT(J81,"#0%") -> The 5th Quarter Collection Rate did not meet the established performance measure standard of: 90% | E81: =IF(F81="N/A","NO",IF(F81<H$8,"YES","NO")) -> NO | F81: =K26 -> N/A | J81: =H$8 -> 0.9
A82: Probate | B82: =IF(E82="YES",MAX(B$61:B81)+1,0) -> 0 | C82: =A$27 -> CGE CQ1-16 | D82: ="After 3rd Q, Collections went up by more than set percentage of: "&TEXT(J82,"#0%") -> After 3rd Q, Collections went up by more than set percentage of: 500% | E82: =IF(MAX(F82)>V$10,"YES","NO") -> NO | F82: =IFERROR(IF(NOT(ISBLANK(K28)),(K28-J28)/J28,0),0) -> 0 | J82: =V$10 -> 5 | T82: St. Lucie
A83: Probate | B83: =IF(E83="YES",MAX(B$61:B82)+1,0) -> 0 | C83: =A$27 -> CGE CQ1-16 | D83: ="Assessments dropped by more than set percentage of: "&TEXT(J83,"#0%") -> Assessments dropped by more than set percentage of: 15% | E83: =IF(MIN(F83:H83)<(-1*V$11),"YES","NO") -> NO | F83: =IFERROR(IF(NOT(ISBLANK(I29)),(I29-H29)/H29,0),0) -> 0 | G83: =IFERROR(IF(NOT(ISBLANK(J29)),(J29-I29)/I29,0),0) -> 0 | H83: =IFERROR(IF(NOT(ISBLANK(K29)),(K29-J29)/J29,0),0) -> 0 | J83: =V$11 -> 0.15 | T83: Volusia
A84: Probate | B84: =IF(E84="YES",MAX(B$61:B83)+1,0) -> 0 | C84: =A$27 -> CGE CQ1-16 | D84: Collections amount decreased from prior quarter | E84: =IF(MIN(F84:H84)<0,"YES","NO") -> NO | F84: =IFERROR(IF(NOT(ISBLANK(I28)),(I28-H28)/H28,0),0) -> 0 | G84: 0 | H84: 0
A85: Probate | B85: =IF(E85="YES",MAX(B$61:B84)+1,0) -> 0 | C85: =A$27 -> CGE CQ1-16 | D85: Assessment amount increased from prior quarter | E85: =IF(MAX(F85:H85)>0,"YES","NO") -> NO | F85: 0 | G85: 0 | H85: 0
A86: Probate | B86: =IF(E86="YES",MAX(B$61:B85)+1,0) -> 0 | C86: =A$31 -> CGE CQ2-16 | D86: ="Assessments dropped by more than set percentage of: "&TEXT(J86,"#0%") -> Assessments dropped by more than set percentage of: 15% | E86: =IF(MIN(F86:G86)<(-1*V$11),"YES","NO") -> NO | F86: =IFERROR(IF(NOT(ISBLANK(J33)),(J33-I33)/I33,0),0) -> 0 | G86: =IFERROR(IF(NOT(ISBLANK(K33)),(K33-J33)/J33,0),0) -> 0 | J86: =V$11 -> 0.15 | T86: Wakulla
A87: Probate | B87: =IF(E87="YES",MAX(B$61:B86)+1,0) -> 0 | C87: =A$31 -> CGE CQ2-16 | D87: Collections amount decreased from prior quarter | E87: =IF(MIN(F87:G87)<0,"YES","NO") -> NO | F87: =IFERROR(IF(NOT(ISBLANK(J32)),(J32-I32)/I32,0),0) -> 0 | G87: =IFERROR(IF(NOT(ISBLANK(K32)),(K32-J32)/J32,0),0) -> 0
A88: Probate | B88: =IF(E88="YES",MAX(B$61:B87)+1,0) -> 0 | C88: =A$31 -> CGE CQ2-16 | D88: Assessment amount increased from prior quarter | E88: =IF(MAX(F88:G88)>0,"YES","NO") -> NO | F88: =IFERROR(IF(NOT(ISBLANK(J33)),(J33-I33)/I33,0),0) -> 0 | G88: =IFERROR(IF(NOT(ISBLANK(K33)),(K33-J33)/J33,0),0) -> 0
A89: Probate | B89: =IF(E89="YES",MAX(B$61:B88)+1,0) -> 0 | C89: =A$35 -> CGE CQ3-16 | D89: ="Assessments dropped by more than set percentage of: "&TEXT(J89,"#0%") -> Assessments dropped by more than set percentage of: 15% | E89: =IF(MIN(F89)<(-1*V$11),"YES","NO") -> NO | F89: =IFERROR(IF(NOT(ISBLANK(K37)),(K37-J37)/J37,0),0) -> 0 | J89: =V$11 -> 0.15 | T89: Walton
A90: Probate | B90: =IF(E90="YES",MAX(B$61:B89)+1,0) -> 0 | C90: =A$35 -> CGE CQ3-16 | D90: Collections amount decreased from prior quarter | E90: =IF(MIN(F90)<0,"YES","NO") -> NO | F90: =IFERROR(IF(NOT(ISBLANK(K36)),(K36-J36)/J36,0),0) -> 0
A91: Probate | B91: =IF(E91="YES",MAX(B$61:B90)+1,0) -> 0 | C91: =A$35 -> CGE CQ3-16 | D91: Assessment amount increased from prior quarter | E91: =IF(MAX(F91)>0,"YES","NO") -> NO | F91: =IFERROR(IF(NOT(ISBLANK(K37)),(K37-J37)/J37,0),0) -> 0

Sheet Family
M2: County Fiscal Year 2014-2015 | T2: CountyNames
M3: Collections Quarterly Report Form for CCOC | T3: Alachua
C4: Report for Quarter Ending: | D4: ='Circuit Criminal'!D4 -> December 2014 | T4: Baker
C5: Version #: | D5: ='Circuit Criminal'!$D$5 -> 2 | T5: Bay
C6: County: | D6: ='Circuit Criminal'!D6 -> Brevard | T6: Bradford
T7: Brevard
C8: Court/Case Type: | D8: Family | G8: Performance Measure Standard: | H8: 0.75 | T8: Broward
L9: Action Plan | N9: 1 | O9: version #1 | P9: Qtr1 - December | Q9: 1 | T9: Calhoun
C10: Control Groups | D10: 10/01/13 - 12/31/13 | E10: 01/01/14 - 03/31/14 | F10: 04/01/14 - 06/30/14 | G10: 07/01/14 - 09/30/14 | H10: 10/01/14 - 12/31/14 | I10: 01/01/15 - 03/31/15 | J10: 04/01/15 - 06/30/15 | K10: 07/01/15 - 09/30/15 | L10: Reason Code | M10: Current Actions to Improve | O10: version #2 | P10: Qtr 2 - March | T10: Charlotte | V10: 5
A11: =LEFT(B11,3)&" "&RIGHT(B11,6) -> CGE CQ1-15 | B11: CGE CQ1-15 | C11: RPE 12/31/13 | D11: Qtr 1 | E11: Qtr 2 | F11: Qtr 3 | G11: Qtr 4 | H11: Qtr 5 | N11: Economy | O11: version #3 | P11: Qtr 3 - June | Q11: 3 | T11: Citrus | U11: =D6&" "&D8 -> Brevard Family | V11: 0.15
C12: C = Cumulative Collections | D12: =LOOKUP($U$11,Lookup!$C$3:$C$605,Lookup!I$3:I$596) -> 259175.9 | E12: =LOOKUP($U$11,Lookup!$C$3:$C$605,Lookup!J$3:J$596) -> 271869.8 | F12: =LOOKUP($U$11,Lookup!$C$3:$C$605,Lookup!K$3:K$596) -> 274440 | G12: =LOOKUP($U$11,Lookup!$C$3:$C$605,Lookup!L$3:L$596) -> 275303 | H12: 275329 | N12: Incarcerations | O12: version #4 | P12: Qtr 4 - September | Q12: 4 | T12: Clay | U12: =IF(P13=TRUE,A11,"") -> 
C13: A = Amount Assessed - Adjusted | D13: =LOOKUP($U$11,Lookup!$C$3:$C$605,Lookup!D$3:D$596) -> 291809 | E13: =LOOKUP($U$11,Lookup!$C$3:$C$605,Lookup!E$3:E$596) -> 291809 | F13: =LOOKUP($U$11,Lookup!$C$3:$C$605,Lookup!F$3:F$596) -> 291809 | G13: =LOOKUP($U$11,Lookup!$C$3:$C$605,Lookup!G$3:G$596) -> 291809 | H13: 291809 | N13: Late/Non-pay/Pay Plans | O13: version #5 | P13: =OR(AND(E12<D12,E12>0),AND(F12<E12,F12>0),AND(G12<F12,G12>0),AND(H12<G12,H12>0),AND(F13>E13,E13>0),AND(G13>F13,F13>0),AND(H13<G13,G13>0)) -> FALSE | Q13: 5 | T13: Collier | U13: =IF(P14=TRUE,A15,"") -> 
C14: CR = Collection Rate | D14: =IF(ISBLANK(D12),"N/A",IF(OR(D12=0,D12="N/A"),0,D12/D13)) -> 0.8881696589 | E14: =IF(ISBLANK(E12),"N/A",IF(OR(E12=0,E12="N/A"),0,E12/E13)) -> 0.9316703734 | F14: =IF(ISBLANK(F12),"N/A",IF(OR(F12=0,F12="N/A"),0,F12/F13)) -> 0.9404781895 | G14: =IF(ISBLANK(G12),"N/A",IF(OR(G12=0,G12="N/A"),0,G12/G13)) -> 0.9434356034 | H14: =IF(ISBLANK(H12),"N/A",IF(AND(H12=0,H13=0,NOT(ISBLANK(H12)),NOT(ISBLANK(H13))),1,H12/H13)) -> 0.9435247028 | N14: Mandatory Assessment | O14: version #6 | P14: =OR(AND(F16<E16,F16>0),AND(G16<F16,G16>0),AND(H16<G16,H16>0),AND(I16<H16,I16>0),AND(G17>F17, F17>0),AND(H17>G17, G17>0),AND(I17<H17,I17>0)) -> FALSE | Q14: 6 | T14: Columbia | U14: =IF(P15=TRUE,A19,"") -> 
A15: =LEFT(B15,3)&" "&RIGHT(B15,6) -> CGE CQ2-15 | B15: CGE CQ2-15 | C15: RPE 03/31/14 | E15: Qtr 1 | F15: Qtr 2 | G15: Qtr 3 | H15: Qtr 4 | I15: Qtr 5 | N15: Other | O15: version #7 | P15: =OR(AND(G20<F20,D10>0),AND(H20<G20,H20>0),AND(I20<H20,I20>0),AND(J20<I20,J20>0),AND(H21>G21, G21>0),AND(I21>H21, H21>0),AND(J21<I21, J21>0)) -> FALSE | Q15: 7 | T15: Dade | U15: =IF(P16=TRUE,A23,"") -> 
C16: C = Cumulative Collections | E16: =LOOKUP($U$11,Lookup!$C$3:$C$605,Lookup!S$3:S$605) -> 266064.68 | F16: =LOOKUP($U$11,Lookup!$C$3:$C$605,Lookup!T$3:T$605) -> 288315.75 | G16: =LOOKUP($U$11,Lookup!$C$3:$C$605,Lookup!U$3:U$605) -> 289465.62 | H16: 289717.62 | N16: Procedural | O16: version #8 | P16: =OR(AND(H24<G24, H24>0),AND(I24<H24, I24>0),AND(J24<I24, J24>0),AND(K24<J24, K24>0),AND(I25>H25, H25>0),AND(J25>I25, I25>0),AND(K25<J25, J25>0)) -> FALSE | Q16: 8 | T16: Desoto | U16: =IF(P17=TRUE,A27,"") -> 
C17: A = Amount Assessed - Adjusted | E17: =LOOKUP($U$11,Lookup!$C$3:$C$605,Lookup!N$3:N$605) -> 301655.08 | F17: =LOOKUP($U$11,Lookup!$C$3:$C$605,Lookup!O$3:O$605) -> 301655.08 | G17: =LOOKUP($U$11,Lookup!$C$3:$C$605,Lookup!P$3:P$605) -> 301246.08 | H17: 301246.08 | N17: Staffing - Insufficient Personnel | O17: version #9 | P17: =OR(AND(I28<H28, I28>0),AND(J28<I28, J28>0),AND(K28<J28, K28>0),AND(J29>I29, I29>0),AND(K29>J29, J29>0)) -> FALSE | Q17: 9 | T17: Dixie | U17: =IF(P18=TRUE,A31,"") -> 
C18: CR = Collection Rate | E18: =IF(ISBLANK(E16),"N/A",IF(OR(E16=0,E16="N/A"),0,E16/E17)) -> 0.8820162419 | F18: =IF(ISBLANK(F16),"N/A",IF(OR(F16=0,F16="N/A"),0,F16/F17)) -> 0.9557795281 | G18: =IF(ISBLANK(G16),"N/A",IF(OR(G16=0,G16="N/A"),0,G16/G17)) -> 0.9608942297 | H18: =IF(ISBLANK(H16),"N/A",IF(AND(H16=0,H17=0,NOT(ISBLANK(H16)),NOT(ISBLANK(H17))),1,H16/H17)) -> 0.9617307551 | I18: =IF(ISBLANK(I16),"N/A",IF(AND(I16=0,I17=0,NOT(ISBLANK(I16)),NOT(ISBLANK(I17))),1,I16/I17)) -> N/A | N18: Staffing - Training Required | O18: version #10 | P18: =OR(AND(J32<I32, J32>0),AND(K32<J32, K32>0),AND(K33>J33, J33>0)) -> FALSE | Q18: 10 | T18: Duval | U18: =IF(P19=TRUE,A35,"") -> 
A19: =LEFT(B19,3)&" "&RIGHT(B19,6) -> CGE CQ3-15 | B19: CGE CQ3-15 | C19: RPE 06/30/14 | F19: Qtr 1 | G19: Qtr 2 | H19: Qtr 3 | I19: Qtr 4 | J19: Qtr 5 | N19: Systems | O19: version #11 | P19: =OR(K36<J36) -> FALSE | Q19: 11 | T19: Escambia | U19: =U12&" "&U13&" "&U14&" "&U15&" "&U16&" "&U17&" "&U18 -> 
C20: C = Cumulative Collections | F20: =LOOKUP($U$11,Lookup!$C$3:$C$605,Lookup!AC$3:AC$605) -> 279366.45 | G20: =LOOKUP($U$11,Lookup!$C$3:$C$605,Lookup!AD$3:AD$605) -> 298799.24 | H20: 301005.74 | O20: version #12 | P20: =COUNTIF(P13:P19,"TRUE") -> 0 | Q20: 12 | T20: Flagler
C21: A = Amount Assessed - Adjusted | F21: =LOOKUP($U$11,Lookup!$C$3:$C$605,Lookup!X$3:X$605) -> 322212.45 | G21: =LOOKUP($U$11,Lookup!$C$3:$C$605,Lookup!Y$3:Y$605) -> 322152.45 | H21: 322152.45 | T21: Franklin
C22: CR = Collection Rate | F22: =IF(ISBLANK(F20),"N/A",IF(OR(F20=0,F20="N/A"),0,F20/F21)) -> 0.8670256224 | G22: =IF(ISBLANK(G20),"N/A",IF(OR(G20=0,G20="N/A"),0,G20/G21)) -> 0.9275088239 | H22: =IF(ISBLANK(H20),"N/A",IF(AND(H20=0,H21=0,NOT(ISBLANK(H20)),NOT(ISBLANK(H21))),1,H20/H21)) -> 0.9343580656 | I22: =IF(ISBLANK(I20),"N/A",IF(AND(I20=0,I21=0,NOT(ISBLANK(I20)),NOT(ISBLANK(I21))),1,I20/I21)) -> N/A | J22: =IF(ISBLANK(J20),"N/A",IF(AND(J20=0,J21=0,NOT(ISBLANK(J20)),NOT(ISBLANK(J21))),1,J20/J21)) -> N/A | O22: Q1 | P22: Q2 | T22: Gadsden
A23: =LEFT(B23,3)&" "&RIGHT(B23,6) -> CGE CQ4-15 | B23: CGE CQ4-15 | C23: RPE 09/30/14 | G23: Qtr 1 | H23: Qtr 2 | I23: Qtr 3 | J23: Qtr 4 | K23: Qtr 5 | O23: FALSE | P23: FALSE | Q23: =IF(AND(OR(ISBLANK(H12),ISBLANK(H13)),O23=FALSE),"Red","Gray") -> Gray | R23: =IF(AND(OR(ISBLANK(I16),ISBLANK(I17)),P23=FALSE),"Red","Gray") -> Red | S23: =IF(AND('Circuit Criminal'!D4=1,S36=1),A11,IF(AND('Circuit Criminal'!D4=2,S36=1),A15,IF(AND('Circuit Criminal'!D4=3,S36=1),A19,IF(AND('Circuit Criminal'!D4=4,S36=1),A23,"")))) ->  | T23: Gilchrist
C24: C = Cumulative Collections | G24: =LOOKUP($U$11,Lookup!$C$3:$C$605,Lookup!AM$3:AM$605) -> 269348.02 | H24: 279395.55 | O24: FALSE | P24: FALSE | Q24: =IF(AND(OR(ISBLANK(H16),ISBLANK(H17)),O24=FALSE),"Red","Gray") -> Gray | R24: =IF(AND(OR(ISBLANK(I20),ISBLANK(I21)),P24=FALSE),"Red","Gray") -> Red | S24: =IF(AND('Circuit Criminal'!D4=1,S37=1),A15,IF(AND('Circuit Criminal'!D4=2,S37=1),A19,IF(AND('Circuit Criminal'!D4=3,S37=1),A23,IF(AND('Circuit Criminal'!D4=4,S37=1),A27,"")))) ->  | T24: Glades
C25: A = Amount Assessed - Adjusted | G25: =LOOKUP($U$11,Lookup!$C$3:$C$605,Lookup!AH$3:AH$605) -> 300420.6 | H25: 300420.6 | O25: FALSE | P25: FALSE | Q25: =IF(AND(OR(ISBLANK(H20),ISBLANK(H21)),O25=FALSE),"Red","Gray") -> Gray | R25: =IF(AND(OR(ISBLANK(I24),ISBLANK(I25)),P25=FALSE),"Red","Gray") -> Red | S25: =IF(AND('Circuit Criminal'!D4=1,S38=1),A19,IF(AND('Circuit Criminal'!D4=2,S38=1),A23,IF(AND('Circuit Criminal'!D4=3,S38=1),A27,IF(AND('Circuit Criminal'!D4=4,S38=1),A31,"")))) ->  | T25: Gulf
C26: CR = Collection Rate | G26: =IF(ISBLANK(G24),"N/A",IF(OR(G24=0,G24="N/A"),0,G24/G25)) -> 0.8965697426 | H26: =IF(ISBLANK(H24),"N/A",IF(AND(H24=0,H25=0,NOT(ISBLANK(H24)),NOT(ISBLANK(H25))),1,H24/H25)) -> 0.9300146195 | I26: =IF(ISBLANK(I24),"N/A",IF(AND(I24=0,I25=0,NOT(ISBLANK(I24)),NOT(ISBLANK(I25))),1,I24/I25)) -> N/A | J26: =IF(ISBLANK(J24),"N/A",IF(AND(J24=0,J25=0,NOT(ISBLANK(J24)),NOT(ISBLANK(J25))),1,J24/J25)) -> N/A | K26: =IF(ISBLANK(K24),"N/A",IF(AND(K24=0,K25=0,NOT(ISBLANK(K24)),NOT(ISBLANK(K25))),1,K24/K25)) -> N/A | O26: FALSE | P26: FALSE | Q26: =IF(AND(OR(ISBLANK(H24),ISBLANK(H25)),O26=FALSE),"Red","Gray") -> Gray | R26: =IF(AND(OR(ISBLANK(I28),ISBLANK(I29)),P26=FALSE),"Red","Gray") -> Red | S26: =IF(AND('Circuit Criminal'!D4=1,S39=1),A23,IF(AND('Circuit Criminal'!D4=2,S39=1),A27,IF(AND('Circuit Criminal'!D4=3,S39=1),A31,IF(AND('Circuit Criminal'!D4=4,S39=1),A35,"")))) ->  | T26: Hamilton
A27: =LEFT(B27,3)&" "&RIGHT(B27,6) -> CGE CQ1-16 | B27: CGE CQ1-16 | C27: RPE 12/31/14 | H27: Qtr 1 | I27: Qtr 2 | J27: Qtr 3 | K27: Qtr 4 | O27: FALSE | P27: FALSE | Q27: =IF(AND(OR(ISBLANK(H28),ISBLANK(H29)),O27=FALSE),"Red","Gray") -> Gray | R27: =IF(AND(OR(ISBLANK(I32),ISBLANK(I33)),P27=FALSE),"Red","Gray") -> Red | S27: =IF(AND('Circuit Criminal'!D4=1,S40=1),A27,IF(AND('Circuit Criminal'!D4=2,S40=1),A31,IF(AND('Circuit Criminal'!D4=3,S40=1),A35,IF(AND('Circuit Criminal'!D4=4,S40=1),A39,"")))) ->  | T27: Hardee
C28: C = Cumulative Collections | H28: 250309.21 | T28: Hendry
C29: A = Amount Assessed - Adjusted | H29: 275638.5 | O29: Q3 | P29: Q4 | T29: Hernando
C30: CR = Collection Rate | H30: =IF(ISBLANK(H28),"N/A",IF(AND(H28=0,H29=0,NOT(ISBLANK(H28)),NOT(ISBLANK(H29))),1,H28/H29)) -> 0.9081068501 | I30: =IF(ISBLANK(I28),"N/A",IF(AND(I28=0,I29=0,NOT(ISBLANK(I28)),NOT(ISBLANK(I29))),1,I28/I29)) -> N/A | J30: =IF(ISBLANK(J28),"N/A",IF(AND(J28=0,J29=0,NOT(ISBLANK(J28)),NOT(ISBLANK(J29))),1,J28/J29)) -> N/A | K30: =IF(ISBLANK(K28),"N/A",IF(AND(K28=0,K29=0,NOT(ISBLANK(K28)),NOT(ISBLANK(K29))),1,K28/K29)) -> N/A | O30: FALSE | P30: FALSE | Q30: =IF(AND(OR(ISBLANK(J20),ISBLANK(J21)),O30=FALSE),"Red","Gray") -> Red | R30: =IF(AND(OR(ISBLANK(K24),ISBLANK(K25)),P30=FALSE),"Red","Gray") -> Red | T30: Highlands
A31: =LEFT(B31,3)&" "&RIGHT(B31,6) -> CGE CQ2-16 | B31: CGE CQ2-16 | C31: RPE 03/31/15 | I31: Qtr 1 | J31: Qtr 2 | K31: Qtr 3 | L31: Additional Notes Related to Collection Issues | O31: FALSE | P31: FALSE | Q31: =IF(AND(OR(ISBLANK(J24),ISBLANK(J25)),O31=FALSE),"Red","Gray") -> Red | R31: =IF(AND(OR(ISBLANK(K28),ISBLANK(K29)),P31=FALSE),"Red","Gray") -> Red | T31: Hillsborough
C32: C = Cumulative Collections | O32: FALSE | P32: FALSE | Q32: =IF(AND(OR(ISBLANK(J28),ISBLANK(J29)),O32=FALSE),"Red","Gray") -> Red | R32: =IF(AND(OR(ISBLANK(K32),ISBLANK(K33)),P32=FALSE),"Red","Gray") -> Red | T32: Holmes
C33: A = Amount Assessed - Adjusted | O33: FALSE | P33: FALSE | Q33: =IF(AND(OR(ISBLANK(J32),ISBLANK(J33)),O33=FALSE),"Red","Gray") -> Red | R33: =IF(AND(OR(ISBLANK(K36),ISBLANK(K37)),P33=FALSE),"Red","Gray") -> Red | T33: Indian River
C34: CR = Collection Rate | I34: =IF(ISBLANK(I32),"N/A",IF(AND(I32=0,I33=0,NOT(ISBLANK(I32)),NOT(ISBLANK(I33))),1,I32/I33)) -> N/A | J34: =IF(ISBLANK(J32),"N/A",IF(AND(J32=0,J33=0,NOT(ISBLANK(J32)),NOT(ISBLANK(J33))),1,J32/J33)) -> N/A | K34: =IF(ISBLANK(K32),"N/A",IF(AND(K32=0,K33=0,NOT(ISBLANK(K32)),NOT(ISBLANK(K33))),1,K32/K33)) -> N/A | O34: FALSE | P34: FALSE | Q34: =IF(AND(OR(ISBLANK(J36),ISBLANK(J37)),O34=FALSE),"Red","Gray") -> Red | R34: =IF(AND(OR(ISBLANK(K40),ISBLANK(K41)),P34=FALSE),"Red","Gray") -> Red | T34: Jackson
A35: =LEFT(B35,3)&" "&RIGHT(B35,6) -> CGE CQ3-16 | B35: CGE CQ3-16 | C35: RPE 06/30/15 | J35: Qtr 1 | K35: Qtr 2 | T35: Jefferson
C36: C = Cumulative Collections | O36: =IF(AND('Circuit Criminal'!$D$4=1,Q23="Red"),"Red","Gray") -> Gray | P36: =IF(AND('Circuit Criminal'!$D$4=2,R23="Red"),"Red","Gray") -> Gray | Q36: =IF(AND('Circuit Criminal'!$D$4=3,Q30="Red"),"Red","Gray") -> Gray | R36: =IF(AND('Circuit Criminal'!$D$4=4,R30="Red"),"Red","Gray") -> Gray | S36: =COUNTIF(O36:R36,"Red") -> 0 | T36: Lafayette
C37: A = Amount Assessed - Adjusted | O37: =IF(AND('Circuit Criminal'!$D$4=1,Q24="Red"),"Red","Gray") -> Gray | P37: =IF(AND('Circuit Criminal'!$D$4=2,R24="Red"),"Red","Gray") -> Gray | Q37: =IF(AND('Circuit Criminal'!$D$4=3,Q31="Red"),"Red","Gray") -> Gray | R37: =IF(AND('Circuit Criminal'!$D$4=4,R31="Red"),"Red","Gray") -> Gray | S37: =COUNTIF(O37:R37,"Red") -> 0 | T37: Lake
C38: CR = Collection Rate | J38: =IF(ISBLANK(J36),"N/A",IF(AND(J36=0,J37=0,NOT(ISBLANK(J36)),NOT(ISBLANK(J37))),1,J36/J37)) -> N/A | K38: =IF(ISBLANK(K36),"N/A",IF(AND(K36=0,K37=0,NOT(ISBLANK(K36)),NOT(ISBLANK(K37))),1,K36/K37)) -> N/A | O38: =IF(AND('Circuit Criminal'!$D$4=1,Q25="Red"),"Red","Gray") -> Gray | P38: =IF(AND('Circuit Criminal'!$D$4=2,R25="Red"),"Red","Gray") -> Gray | Q38: =IF(AND('Circuit Criminal'!$D$4=3,Q32="Red"),"Red","Gray") -> Gray | R38: =IF(AND('Circuit Criminal'!$D$4=4,R32="Red"),"Red","Gray") -> Gray | S38: =COUNTIF(O38:R38,"Red") -> 0 | T38: Lee
A39: =LEFT(B39,3)&" "&RIGHT(B39,6) -> CGE CQ4-16 | B39: CGE CQ4-16 | C39: RPE 09/30/15 | K39: Qtr 1 | O39: =IF(AND('Circuit Criminal'!$D$4=1,Q26="Red"),"Red","Gray") -> Gray | P39: =IF(AND('Circuit Criminal'!$D$4=2,R26="Red"),"Red","Gray") -> Gray | Q39: =IF(AND('Circuit Criminal'!$D$4=3,Q33="Red"),"Red","Gray") -> Gray | R39: =IF(AND('Circuit Criminal'!$D$4=4,R33="Red"),"Red","Gray") -> Gray | S39: =COUNTIF(O39:R39,"Red") -> 0 | T39: Leon
C40: C = Cumulative Collections | O40: =IF(AND('Circuit Criminal'!$D$4=1,Q27="Red"),"Red","Gray") -> Gray | P40: =IF(AND('Circuit Criminal'!$D$4=2,R27="Red"),"Red","Gray") -> Gray | Q40: =IF(AND('Circuit Criminal'!$D$4=3,Q34="Red"),"Red","Gray") -> Gray | R40: =IF(AND('Circuit Criminal'!$D$4=4,R34="Red"),"Red","Gray") -> Gray | S40: =COUNTIF(O40:R40,"Red") -> 0 | T40: Levy
C41: A = Amount Assessed - Adjusted | O41: =COUNTIF(O36:O40,"Red") -> 0 | P41: =COUNTIF(P36:P40,"Red") -> 0 | Q41: =COUNTIF(Q36:Q40,"Red") -> 0 | R41: =COUNTIF(R36:R40,"Red") -> 0 | T41: Liberty
C42: CR = Collection Rate | K42: =IF(ISBLANK(K40),"N/A",IF(OR(K40=0,K40="N/A"),0,K40/K41)) -> N/A | O42: =SUM(O41:R41) -> 0 | T42: Madison
B43: NOTES: | T43: Manatee
B44: Business Rules | D44: 1.) Assessment amount is adjusted each quarter based on business rules within the control group, it is based on the amount that was originally assessed in the first quarter. | T44: Martin
D45: 2.) Quarter 5 Action Plan Note: If Collection Rate is below Standard (highlighted in red), please include a "Reason Code" and "Current Action to Improve". These comments will automatically feed the "Action Plan" tab. | T45: Nassau
D46: 3.) Additional Notes: Please include additional information to explain either of the following conditions that are not consistant with the Collection Report Business Rules. (These dollars will result in a red font): | T46: Okaloosa
E47: a.) Cumulative Collection amount has Decreased from the previous quarter in the same Control Group | T47: Okeechobee
E48: b.) The Amount Assessed - Adjusted has Increased from the previous quarter in the same Control Group | T48: Orange
T49: Nassau
T50: Okaloosa
T51: Okeechobee
T52: Orange
T53: Pasco
T54: Pinellas
T55: Polk
B56: =MAX(Probate!B61:B104) -> 3 | D56: Issue | F56: Calc 1 Needed | G56: Calc 2 Needed | H56: Calc 3 Needed | I56: Calc 4 Needed | J56: Standard | T56: Putnam
A57: =D$8 -> Family | B57: =IF(E57="YES",MAX(B56)+1,0) -> 0 | C57: =A$11 -> CGE CQ1-15 | D57: ="After 3rd Q, Collections went up by more than set percentage of: "&TEXT(J57,"#0%") -> After 3rd Q, Collections went up by more than set percentage of: 500% | E57: =IF(MAX(F57:G57)>V$10,"YES","NO") -> NO | F57: =IFERROR(IF(NOT(ISBLANK(G12)),(G12-F12)/F12,0),0) -> 0.003144585337 | G57: =IFERROR(IF(NOT(ISBLANK(H12)),(H12-G12)/G12,0),0) -> 9.44413973e-05 | J57: =V$10 -> 5 | T57: Santa Rosa
A58: =D$8 -> Family | B58: =IF(E58="YES",MAX(B$56:B57)+1,0) -> 0 | C58: =A$11 -> CGE CQ1-15 | D58: ="Assessments dropped by more than set percentage of: "&TEXT(J58,"#0%") -> Assessments dropped by more than set percentage of: 15% | E58: =IF(MIN(F58:I58)<(-1*V$11),"YES","NO") -> NO | F58: =IFERROR(IF(NOT(ISBLANK(E13)),(E13-D13)/D13,0),0) -> 0 | G58: =IFERROR(IF(NOT(ISBLANK(F13)),(F13-E13)/E13,0),0) -> 0 | H58: =IFERROR(IF(NOT(ISBLANK(G13)),(G13-F13)/F13,0),0) -> 0 | I58: =IFERROR(IF(NOT(ISBLANK(H13)),(H13-G13)/G13,0),0) -> 0 | J58: =V$11 -> 0.15 | T58: Sumter
A59: Family | B59: =IF(E59="YES",MAX(B$56:B58)+1,0) -> 0 | C59: =A$11 -> CGE CQ1-15 | D59: ="The 5th Quarter Collection Rate did not meet the established performance measure standard of: "&TEXT(J59,"#0%") -> The 5th Quarter Collection Rate did not meet the established performance measure standard of: 75% | E59: =IF(F59="N/A","NO",IF(F59<H$8,"YES","NO")) -> NO | F59: =H14 -> 0.9435247028 | J59: =H$8 -> 0.75 | T59: Washington
A60: Family | B60: =IF(E60="YES",MAX(B$56:B59)+1,0) -> 0 | C60: =A$11 -> CGE CQ1-15 | D60: Collections amount decreased from prior quarter | E60: =IF(MIN(F60:I60)<0,"YES","NO") -> NO | F60: =IFERROR(IF(NOT(ISBLANK(E12)),(E12-D12)/D12,0),0) -> 0.04897793352 | G60: 0.009453790013 | H60: 0.003144585337 | I60: 9.44413973e-05
A61: Family | B61: =IF(E61="YES",MAX(B$56:B60)+1,0) -> 0 | C61: =A$11 -> CGE CQ1-15 | D61: Assessment amount increased from prior quarter | E61: =IF(MAX(F61:I61)>0,"YES","NO") -> NO | F61: 0 | G61: 0 | H61: 0 | I61: 0
A62: Family | B62: =IF(E62="YES",MAX(B$56:B61)+1,0) -> 0 | C62: =A$15 -> CGE CQ2-15 | D62: ="After 3rd Q, Collections went up by more than set percentage of: "&TEXT(J62,"#0%") -> After 3rd Q, Collections went up by more than set percentage of: 500% | E62: =IF(MAX(F62:G62)>V$10,"YES","NO") -> NO | F62: =IFERROR(IF(NOT(ISBLANK(H16)),(H16-G16)/G16,0),0) -> 0.000870569707 | G62: =IFERROR(IF(NOT(ISBLANK(I16)),(I16-H16)/H16,0),0) -> 0 | J62: =V$10 -> 5 | T62: Sarasota
A63: Family | B63: =IF(E63="YES",MAX(B$56:B62)+1,0) -> 0 | C63: =A$15 -> CGE CQ2-15 | D63: ="Assessments dropped by more than set percentage of: "&TEXT(J63,"#0%") -> Assessments dropped by more than set percentage of: 15% | E63: =IF(MIN(F63:I63)<(-1*V$11),"YES","NO") -> NO | F63: =IFERROR(IF(NOT(ISBLANK(F17)),(F17-E17)/E17,0),0) -> 0 | G63: =IFERROR(IF(NOT(ISBLANK(G17)),(G17-F17)/F17,0),0) -> -0.001355853182 | H63: =IFERROR(IF(NOT(ISBLANK(H17)),(H17-G17)/G17,0),0) -> 0 | I63: =IFERROR(IF(NOT(ISBLANK(I17)),(I17-H17)/H17,0),0) -> 0 | J63: =V$11 -> 0.15 | T63: Suwannee
A64: Family | B64: =IF(E64="YES",MAX(B$56:B63)+1,0) -> 0 | C64: =A$15 -> CGE CQ2-15 | D64: Collections amount decreased from prior quarter | E64: =IF(MIN(F64:I64)<0,"YES","NO") -> NO | F64: =IFERROR(IF(NOT(ISBLANK(F16)),(F16-E16)/E16,0),0) -> 0.08363030373 | G64: 0.003988231652 | H64: 0.000870569707 | I64: 0
A65: Family | B65: =IF(E65="YES",MAX(B$56:B64)+1,0) -> 0 | C65: =A$15 -> CGE CQ2-15 | D65: Assessment amount increased from prior quarter | E65: =IF(MAX(F65:I65)>0,"YES","NO") -> NO | F65: 0 | G65: -0.001355853182 | H65: 0 | I65: 0
A66: Family | B66: =IF(E66="YES",MAX(B$56:B65)+1,0) -> 0 | C66: =A$15 -> CGE CQ2-15 | D66: ="The 5th Quarter Collection Rate did not meet the established performance measure standard of: "&TEXT(J66,"#0%") -> The 5th Quarter Collection Rate did not meet the established performance measure standard of: 75% | E66: =IF(F66="N/A","NO",IF(F66<H$8,"YES","NO")) -> NO | F66: =I18 -> N/A | J66: =H$8 -> 0.75
A67: Family | B67: =IF(E67="YES",MAX(B$56:B66)+1,0) -> 0 | C67: =A$19 -> CGE CQ3-15 | D67: ="After 3rd Q, Collections went up by more than set percentage of: "&TEXT(J67,"#0%") -> After 3rd Q, Collections went up by more than set percentage of: 500% | E67: =IF(MAX(F67:G67)>V$10,"YES","NO") -> NO | F67: =IFERROR(IF(NOT(ISBLANK(I20)),(I20-H20)/H20,0),0) -> 0 | G67: =IFERROR(IF(NOT(ISBLANK(J20)),(J20-I20)/I20,0),0) -> 0 | J67: =V$10 -> 5 | T67: Seminole
A68: Family | B68: =IF(E68="YES",MAX(B$56:B67)+1,0) -> 0 | C68: =A$19 -> CGE CQ3-15 | D68: ="Assessments dropped by more than set percentage of: "&TEXT(J68,"#0%") -> Assessments dropped by more than set percentage of: 15% | E68: =IF(MIN(F68:I68)<(-1*V$11),"YES","NO") -> NO | F68: =IFERROR(IF(NOT(ISBLANK(G21)),(G21-F21)/F21,0),0) -> -0.0001862125439 | G68: =IFERROR(IF(NOT(ISBLANK(H21)),(H21-G21)/G21,0),0) -> 0 | H68: =IFERROR(IF(NOT(ISBLANK(I21)),(I21-H21)/H21,0),0) -> 0 | I68: =IFERROR(IF(NOT(ISBLANK(J21)),(J21-I21)/I21,0),0) -> 0 | J68: =V$11 -> 0.15 | T68: Taylor
A69: Family | B69: =IF(E69="YES",MAX(B$56:B68)+1,0) -> 0 | C69: =A$19 -> CGE CQ3-15 | D69: Collections amount decreased from prior quarter | E69: =IF(MIN(F69:I69)<0,"YES","NO") -> NO | F69: =IFERROR(IF(NOT(ISBLANK(G20)),(G20-F20)/F20,0),0) -> 0.06956021383 | G69: 0.007384556935 | H69: 0 | I69: 0
A70: Family | B70: =IF(E70="YES",MAX(B$56:B69)+1,0) -> 0 | C70: =A$19 -> CGE CQ3-15 | D70: Assessment amount increased from prior quarter | E70: =IF(MAX(F70:I70)>0,"YES","NO") -> NO | F70: -0.0001862125439 | G70: 0 | H70: 0 | I70: 0
A71: Family | B71: =IF(E71="YES",MAX(B$56:B70)+1,0) -> 0 | C71: =A$19 -> CGE CQ3-15 | D71: ="The 5th Quarter Collection Rate did not meet the established performance measure standard of: "&TEXT(J71,"#0%") -> The 5th Quarter Collection Rate did not meet the established performance measure standard of: 75% | E71: =IF(F71="N/A","NO",IF(F71<H$8,"YES","NO")) -> NO | F71: =J22 -> N/A | J71: =H$8 -> 0.75
A72: Family | B72: =IF(E72="YES",MAX(B$56:B71)+1,0) -> 0 | C72: =A$23 -> CGE CQ4-15 | D72: ="After 3rd Q, Collections went up by more than set percentage of: "&TEXT(J72,"#0%") -> After 3rd Q, Collections went up by more than set percentage of: 500% | E72: =IF(MAX(F72:G72)>V$10,"YES","NO") -> NO | F72: =IFERROR(IF(NOT(ISBLANK(J24)),(J24-I24)/I24,0),0) -> 0 | G72: =IFERROR(IF(NOT(ISBLANK(K24)),(K24-J24)/J24,0),0) -> 0 | J72: =V$10 -> 5 | T72: St. Johns
A73: Family | B73: =IF(E73="YES",MAX(B$56:B72)+1,0) -> 0 | C73: =A$23 -> CGE CQ4-15 | D73: ="Assessments dropped by more than set percentage of: "&TEXT(J73,"#0%") -> Assessments dropped by more than set percentage of: 15% | E73: =IF(MIN(F73:I73)<(-1*V$11),"YES","NO") -> NO | F73: =IFERROR(IF(NOT(ISBLANK(H25)),(H25-G25)/G25,0),0) -> 0 | G73: =IFERROR(IF(NOT(ISBLANK(I25)),(I25-H25)/H25,0),0) -> 0 | H73: =IFERROR(IF(NOT(ISBLANK(J25)),(J25-I25)/I25,0),0) -> 0 | I73: =IFERROR(IF(NOT(ISBLANK(K25)),(K25-J25)/J25,0),0) -> 0 | J73: =V$11 -> 0.15 | T73: Union
A74: Family | B74: =IF(E74="YES",MAX(B$56:B73)+1,0) -> 0 | C74: =A$23 -> CGE CQ4-15 | D74: Collections amount decreased from prior quarter | E74: =IF(MIN(F74:I74)<0,"YES","NO") -> NO | F74: =IFERROR(IF(NOT(ISBLANK(H24)),(H24-G24)/G24,0),0) -> 0.03730315151 | G74: 0 | H74: 0 | I74: 0
A75: Family | B75: =IF(E75="YES",MAX(B$56:B74)+1,0) -> 0 | C75: =A$23 -> CGE CQ4-15 | D75: Assessment amount increased from prior quarter | E75: =IF(MAX(F75:I75)>0,"YES","NO") -> NO | F75: 0 | G75: 0 | H75: 0 | I75: 0
A76: Family | B76: =IF(E76="YES",MAX(B$56:B75)+1,0) -> 0 | C76: =A$23 -> CGE CQ4-15 | D76: ="The 5th Quarter Collection Rate did not meet the established performance measure standard of: "&TEXT(J76,"#0%") -> The 5th Quarter Collection Rate did not meet the established performance measure standard of: 75% | E76: =IF(F76="N/A","NO",IF(F76<H$8,"YES","NO")) -> NO | F76: =K26 -> N/A | J76: =H$8 -> 0.75
A77: Family | B77: =IF(E77="YES",MAX(B$56:B76)+1,0) -> 0 | C77: =A$27 -> CGE CQ1-16 | D77: ="After 3rd Q, Collections went up by more than set percentage of: "&TEXT(J77,"#0%") -> After 3rd Q, Collections went up by more than set percentage of: 500% | E77: =IF(MAX(F77)>V$10,"YES","NO") -> NO | F77: =IFERROR(IF(NOT(ISBLANK(K28)),(K28-J28)/J28,0),0) -> 0 | J77: =V$10 -> 5 | T77: St. Lucie
A78: Family | B78: =IF(E78="YES",MAX(B$56:B77)+1,0) -> 0 | C78: =A$27 -> CGE CQ1-16 | D78: ="Assessments dropped by more than set percentage of: "&TEXT(J78,"#0%") -> Assessments dropped by more than set percentage of: 15% | E78: =IF(MIN(F78:H78)<(-1*V$11),"YES","NO") -> NO | F78: =IFERROR(IF(NOT(ISBLANK(I29)),(I29-H29)/H29,0),0) -> 0 | G78: =IFERROR(IF(NOT(ISBLANK(J29)),(J29-I29)/I29,0),0) -> 0 | H78: =IFERROR(IF(NOT(ISBLANK(K29)),(K29-J29)/J29,0),0) -> 0 | J78: =V$11 -> 0.15 | T78: Volusia
A79: Family | B79: =IF(E79="YES",MAX(B$56:B78)+1,0) -> 0 | C79: =A$27 -> CGE CQ1-16 | D79: Collections amount decreased from prior quarter | E79: =IF(MIN(F79:H79)<0,"YES","NO") -> NO | F79: =IFERROR(IF(NOT(ISBLANK(I28)),(I28-H28)/H28,0),0) -> 0 | G79: 0 | H79: 0
A80: Family | B80: =IF(E80="YES",MAX(B$56:B79)+1,0) -> 0 | C80: =A$27 -> CGE CQ1-16 | D80: Assessment amount increased from prior quarter | E80: =IF(MAX(F80:H80)>0,"YES","NO") -> NO | F80: 0 | G80: 0 | H80: 0
A81: Family | B81: =IF(E81="YES",MAX(B$56:B80)+1,0) -> 0 | C81: =A$31 -> CGE CQ2-16 | D81: ="Assessments dropped by more than set percentage of: "&TEXT(J81,"#0%") -> Assessments dropped by more than set percentage of: 15% | E81: =IF(MIN(F81:G81)<(-1*V$11),"YES","NO") -> NO | F81: =IFERROR(IF(NOT(ISBLANK(J33)),(J33-I33)/I33,0),0) -> 0 | G81: =IFERROR(IF(NOT(ISBLANK(K33)),(K33-J33)/J33,0),0) -> 0 | J81: =V$11 -> 0.15 | T81: Wakulla
A82: Family | B82: =IF(E82="YES",MAX(B$56:B81)+1,0) -> 0 | C82: =A$31 -> CGE CQ2-16 | D82: Collections amount decreased from prior quarter | E82: =IF(MIN(F82:G82)<0,"YES","NO") -> NO | F82: =IFERROR(IF(NOT(ISBLANK(J32)),(J32-I32)/I32,0),0) -> 0 | G82: =IFERROR(IF(NOT(ISBLANK(K32)),(K32-J32)/J32,0),0) -> 0
A83: Family | B83: =IF(E83="YES",MAX(B$56:B82)+1,0) -> 0 | C83: =A$31 -> CGE CQ2-16 | D83: Assessment amount increased from prior quarter | E83: =IF(MAX(F83:G83)>0,"YES","NO") -> NO | F83: =IFERROR(IF(NOT(ISBLANK(J33)),(J33-I33)/I33,0),0) -> 0 | G83: =IFERROR(IF(NOT(ISBLANK(K33)),(K33-J33)/J33,0),0) -> 0
A84: Family | B84: =IF(E84="YES",MAX(B$56:B83)+1,0) -> 0 | C84: =A$35 -> CGE CQ3-16 | D84: ="Assessments dropped by more than set percentage of: "&TEXT(J84,"#0%") -> Assessments dropped by more than set percentage of: 15% | E84: =IF(MIN(F84)<(-1*V$11),"YES","NO") -> NO | F84: =IFERROR(IF(NOT(ISBLANK(K37)),(K37-J37)/J37,0),0) -> 0 | J84: =V$11 -> 0.15 | T84: Walton
A85: Family | B85: =IF(E85="YES",MAX(B$56:B84)+1,0) -> 0 | C85: =A$35 -> CGE CQ3-16 | D85: Collections amount decreased from prior quarter | E85: =IF(MIN(F85)<0,"YES","NO") -> NO | F85: =IFERROR(IF(NOT(ISBLANK(K36)),(K36-J36)/J36,0),0) -> 0
A86: Family | B86: =IF(E86="YES",MAX(B$56:B85)+1,0) -> 0 | C86: =A$35 -> CGE CQ3-16 | D86: Assessment amount increased from prior quarter | E86: =IF(MAX(F86)>0,"YES","NO") -> NO | F86: =IFERROR(IF(NOT(ISBLANK(K37)),(K37-J37)/J37,0),0) -> 0

Sheet Corrective Action Tab (hidden)
K2: State Fiscal Year 2010-11
K3: Collections Quarterly Report Form for CCOC
C4: Report for Quarter Ending: | D4: =Family!D4 -> December 2014 | H4: Corrective Action Tab
C5: Version #: | D5: =Family!D5 -> 2
C6: County: | D6: ='Circuit Criminal'!D6:E6 -> Brevard
A8: Max All | B8: Max 1 | C8: Max 2 | D8: Max 3 | E8: Max 4 | F8: Max 5 | G8: Max 6 | H8: Max 7 | I8: Max 8
A9: =MAX(Family!B56:B99) -> 3 | B9: ='County Criminal'!B56 -> 0 | C9: ='Juvenile Delinquency'!B56 -> 0 | D9: ='Criminal Traffic'!B56 -> 0 | F9: ='County Civil'!B56 -> 2 | G9: ='Civil Traffic'!B56 -> 2 | H9: =Probate!B61 -> 3 | I9: =Family!B56 -> 3
B10: Item # | C10: Court Type | D10: Control Group | E10: Issue | F10: Cause | H10: Corrective Action | J10: Timeframe for Rectification | K10: Notes | L10: 0 | M10: Cause List | N10: Corrective Action List | O10: Timeframe List
A11: 1 | B11: =IF(A$9=0,"No items for this report",IF(A11<=A$9,A11,"")) -> 1 | C11: =IF($B11<>"",VLOOKUP($B11,CATLookup!$A$2:$E$271,2,FALSE),"") -> Circuit Civil | D11: =IF($B11<>"",VLOOKUP($B11,CATLookup!$A$2:$E$271,3,FALSE),"") -> CGE CQ1-15 | E11: =IF($B11<>"",VLOOKUP($B11,CATLookup!$A$2:$E$271,4,FALSE),"") -> Collections amount decreased from prior quarter | L11: =IF(B11<>"",L10+1,1) -> 1 | M11: System Error: Data Entry Error in System | O11: No timeframe needed as issue has resolved itself
A12: 2 | B12: =IF(A$9=0,"No items for this report",IF(A12<=A$9,A12,"")) -> 2 | C12: =IF($B12<>"",VLOOKUP($B12,CATLookup!$A$2:$E$271,2,FALSE),"") -> Civil Traffic | D12: =IF($B12<>"",VLOOKUP($B12,CATLookup!$A$2:$E$271,3,FALSE),"") -> CGE CQ1-15 | E12: =IF($B12<>"",VLOOKUP($B12,CATLookup!$A$2:$E$271,4,FALSE),"") -> Assessment amount increased from prior quarter | L12: =IF(B12<>"",L11+1,1) -> 2 | M12: System Error: System is unable to process according to business rules | O12: 1 month, will revise report
A13: 3 | B13: 3 | C13: =IF($B13<>"",VLOOKUP($B13,CATLookup!$A$2:$E$271,2,FALSE),"") -> Circuit Civil | D13: =IF($B13<>"",VLOOKUP($B13,CATLookup!$A$2:$E$271,3,FALSE),"") -> CGE CQ2-15 | E13: =IF($B13<>"",VLOOKUP($B13,CATLookup!$A$2:$E$271,4,FALSE),"") -> Collections amount decreased from prior quarter | L13: 3 | M13: Returned Checks | O13: 1 month, no report revision
A14: 4 | C14: =IF($B14<>"",VLOOKUP($B14,CATLookup!$A$2:$E$271,2,FALSE),"") ->  | D14: =IF($B14<>"",VLOOKUP($B14,CATLookup!$A$2:$E$271,3,FALSE),"") ->  | E14: =IF($B14<>"",VLOOKUP($B14,CATLookup!$A$2:$E$271,4,FALSE),"") ->  | L14: 1 | M14: Economic Factors: Short-staffed and unable to push collection effort | O14: 3 months, will revise report
A15: 5 | C15: =IF($B15<>"",VLOOKUP($B15,CATLookup!$A$2:$E$271,2,FALSE),"") ->  | D15: =IF($B15<>"",VLOOKUP($B15,CATLookup!$A$2:$E$271,3,FALSE),"") ->  | E15: =IF($B15<>"",VLOOKUP($B15,CATLookup!$A$2:$E$271,4,FALSE),"") ->  | L15: 1 | M15: Economic Factors: Population Area primarily not able to pay due to current economic status | O15: 3 months, no report revision
A16: 6 | C16: =IF($B16<>"",VLOOKUP($B16,CATLookup!$A$2:$E$271,2,FALSE),"") ->  | D16: =IF($B16<>"",VLOOKUP($B16,CATLookup!$A$2:$E$271,3,FALSE),"") ->  | E16: =IF($B16<>"",VLOOKUP($B16,CATLookup!$A$2:$E$271,4,FALSE),"") ->  | L16: 1 | M16: Judicial Waivers were unusually large | O16: 6 months, will revise report
A17: 7 | C17: =IF($B17<>"",VLOOKUP($B17,CATLookup!$A$2:$E$271,2,FALSE),"") ->  | D17: =IF($B17<>"",VLOOKUP($B17,CATLookup!$A$2:$E$271,3,FALSE),"") ->  | E17: =IF($B17<>"",VLOOKUP($B17,CATLookup!$A$2:$E$271,4,FALSE),"") ->  | L17: 1 | M17: Large case outside of the norm (generally drug seizure case) | O17: 6 months, no report revision
A18: 8 | C18: =IF($B18<>"",VLOOKUP($B18,CATLookup!$A$2:$E$271,2,FALSE),"") ->  | D18: =IF($B18<>"",VLOOKUP($B18,CATLookup!$A$2:$E$271,3,FALSE),"") ->  | E18: =IF($B18<>"",VLOOKUP($B18,CATLookup!$A$2:$E$271,4,FALSE),"") ->  | L18: 1 | M18: Payment Plan Extensions causing decrease in Collections | O18: 9 months, will revise report
A19: 9 | C19: =IF($B19<>"",VLOOKUP($B19,CATLookup!$A$2:$E$271,2,FALSE),"") ->  | D19: =IF($B19<>"",VLOOKUP($B19,CATLookup!$A$2:$E$271,3,FALSE),"") ->  | E19: =IF($B19<>"",VLOOKUP($B19,CATLookup!$A$2:$E$271,4,FALSE),"") ->  | L19: 1 | M19: Other (Detail in Notes) | O19: 9 months, no report revision
A20: 10 | C20: =IF($B20<>"",VLOOKUP($B20,CATLookup!$A$2:$E$271,2,FALSE),"") ->  | D20: =IF($B20<>"",VLOOKUP($B20,CATLookup!$A$2:$E$271,3,FALSE),"") ->  | E20: =IF($B20<>"",VLOOKUP($B20,CATLookup!$A$2:$E$271,4,FALSE),"") ->  | L20: 1 | O20: 1 year, will revise report
A21: 11 | C21: =IF($B21<>"",VLOOKUP($B21,CATLookup!$A$2:$E$271,2,FALSE),"") ->  | D21: =IF($B21<>"",VLOOKUP($B21,CATLookup!$A$2:$E$271,3,FALSE),"") ->  | E21: =IF($B21<>"",VLOOKUP($B21,CATLookup!$A$2:$E$271,4,FALSE),"") ->  | L21: 1 | O21: 1 year, no report revision
A22: 12 | C22: =IF($B22<>"",VLOOKUP($B22,CATLookup!$A$2:$E$271,2,FALSE),"") ->  | D22: =IF($B22<>"",VLOOKUP($B22,CATLookup!$A$2:$E$271,3,FALSE),"") ->  | E22: =IF($B22<>"",VLOOKUP($B22,CATLookup!$A$2:$E$271,4,FALSE),"") ->  | L22: 1 | O22: 18 months, will revise report
A23: 13 | C23: =IF($B23<>"",VLOOKUP($B23,CATLookup!$A$2:$E$271,2,FALSE),"") ->  | D23: =IF($B23<>"",VLOOKUP($B23,CATLookup!$A$2:$E$271,3,FALSE),"") ->  | E23: =IF($B23<>"",VLOOKUP($B23,CATLookup!$A$2:$E$271,4,FALSE),"") ->  | L23: 1 | O23: 18 months, no report revision
A24: 14 | C24: =IF($B24<>"",VLOOKUP($B24,CATLookup!$A$2:$E$271,2,FALSE),"") ->  | D24: =IF($B24<>"",VLOOKUP($B24,CATLookup!$A$2:$E$271,3,FALSE),"") ->  | E24: =IF($B24<>"",VLOOKUP($B24,CATLookup!$A$2:$E$271,4,FALSE),"") ->  | L24: 1 | O24: 2+ years, will revise report
A25: 15 | C25: =IF($B25<>"",VLOOKUP($B25,CATLookup!$A$2:$E$271,2,FALSE),"") ->  | D25: =IF($B25<>"",VLOOKUP($B25,CATLookup!$A$2:$E$271,3,FALSE),"") ->  | E25: =IF($B25<>"",VLOOKUP($B25,CATLookup!$A$2:$E$271,4,FALSE),"") ->  | L25: 1 | O25: 2+ years, no report revision
A26: 16 | C26: =IF($B26<>"",VLOOKUP($B26,CATLookup!$A$2:$E$271,2,FALSE),"") ->  | D26: =IF($B26<>"",VLOOKUP($B26,CATLookup!$A$2:$E$271,3,FALSE),"") ->  | E26: =IF($B26<>"",VLOOKUP($B26,CATLookup!$A$2:$E$271,4,FALSE),"") ->  | L26: 1
A27: 17 | C27: =IF($B27<>"",VLOOKUP($B27,CATLookup!$A$2:$E$271,2,FALSE),"") ->  | D27: =IF($B27<>"",VLOOKUP($B27,CATLookup!$A$2:$E$271,3,FALSE),"") ->  | E27: =IF($B27<>"",VLOOKUP($B27,CATLookup!$A$2:$E$271,4,FALSE),"") ->  | L27: 1
A28: 18 | C28: =IF($B28<>"",VLOOKUP($B28,CATLookup!$A$2:$E$271,2,FALSE),"") ->  | D28: =IF($B28<>"",VLOOKUP($B28,CATLookup!$A$2:$E$271,3,FALSE),"") ->  | E28: =IF($B28<>"",VLOOKUP($B28,CATLookup!$A$2:$E$271,4,FALSE),"") ->  | L28: 1
A29: 19 | C29: =IF($B29<>"",VLOOKUP($B29,CATLookup!$A$2:$E$271,2,FALSE),"") ->  | D29: =IF($B29<>"",VLOOKUP($B29,CATLookup!$A$2:$E$271,3,FALSE),"") ->  | E29: =IF($B29<>"",VLOOKUP($B29,CATLookup!$A$2:$E$271,4,FALSE),"") ->  | L29: 1
A30: 20 | C30: =IF($B30<>"",VLOOKUP($B30,CATLookup!$A$2:$E$271,2,FALSE),"") ->  | D30: =IF($B30<>"",VLOOKUP($B30,CATLookup!$A$2:$E$271,3,FALSE),"") ->  | E30: =IF($B30<>"",VLOOKUP($B30,CATLookup!$A$2:$E$271,4,FALSE),"") ->  | L30: 1
A31: 21 | C31: =IF($B31<>"",VLOOKUP($B31,CATLookup!$A$2:$E$271,2,FALSE),"") ->  | D31: =IF($B31<>"",VLOOKUP($B31,CATLookup!$A$2:$E$271,3,FALSE),"") ->  | E31: =IF($B31<>"",VLOOKUP($B31,CATLookup!$A$2:$E$271,4,FALSE),"") ->  | L31: 1
A32: 22 | C32: =IF($B32<>"",VLOOKUP($B32,CATLookup!$A$2:$E$271,2,FALSE),"") ->  | D32: =IF($B32<>"",VLOOKUP($B32,CATLookup!$A$2:$E$271,3,FALSE),"") ->  | E32: =IF($B32<>"",VLOOKUP($B32,CATLookup!$A$2:$E$271,4,FALSE),"") ->  | L32: 1
A33: 23 | C33: =IF($B33<>"",VLOOKUP($B33,CATLookup!$A$2:$E$271,2,FALSE),"") ->  | D33: =IF($B33<>"",VLOOKUP($B33,CATLookup!$A$2:$E$271,3,FALSE),"") ->  | E33: =IF($B33<>"",VLOOKUP($B33,CATLookup!$A$2:$E$271,4,FALSE),"") ->  | L33: 1
A34: 24 | C34: =IF($B34<>"",VLOOKUP($B34,CATLookup!$A$2:$E$271,2,FALSE),"") ->  | D34: =IF($B34<>"",VLOOKUP($B34,CATLookup!$A$2:$E$271,3,FALSE),"") ->  | E34: =IF($B34<>"",VLOOKUP($B34,CATLookup!$A$2:$E$271,4,FALSE),"") ->  | L34: 1
A35: 25 | C35: =IF($B35<>"",VLOOKUP($B35,CATLookup!$A$2:$E$271,2,FALSE),"") ->  | D35: =IF($B35<>"",VLOOKUP($B35,CATLookup!$A$2:$E$271,3,FALSE),"") ->  | E35: =IF($B35<>"",VLOOKUP($B35,CATLookup!$A$2:$E$271,4,FALSE),"") ->  | L35: 1
A36: 26 | C36: =IF($B36<>"",VLOOKUP($B36,CATLookup!$A$2:$E$271,2,FALSE),"") ->  | D36: =IF($B36<>"",VLOOKUP($B36,CATLookup!$A$2:$E$271,3,FALSE),"") ->  | E36: =IF($B36<>"",VLOOKUP($B36,CATLookup!$A$2:$E$271,4,FALSE),"") ->  | L36: 1
A37: 27 | C37: =IF($B37<>"",VLOOKUP($B37,CATLookup!$A$2:$E$271,2,FALSE),"") ->  | D37: =IF($B37<>"",VLOOKUP($B37,CATLookup!$A$2:$E$271,3,FALSE),"") ->  | E37: =IF($B37<>"",VLOOKUP($B37,CATLookup!$A$2:$E$271,4,FALSE),"") ->  | L37: 1
A38: 28 | C38: =IF($B38<>"",VLOOKUP($B38,CATLookup!$A$2:$E$271,2,FALSE),"") ->  | D38: =IF($B38<>"",VLOOKUP($B38,CATLookup!$A$2:$E$271,3,FALSE),"") ->  | E38: =IF($B38<>"",VLOOKUP($B38,CATLookup!$A$2:$E$271,4,FALSE),"") ->  | L38: 1
A39: 29 | C39: =IF($B39<>"",VLOOKUP($B39,CATLookup!$A$2:$E$271,2,FALSE),"") ->  | D39: =IF($B39<>"",VLOOKUP($B39,CATLookup!$A$2:$E$271,3,FALSE),"") ->  | E39: =IF($B39<>"",VLOOKUP($B39,CATLookup!$A$2:$E$271,4,FALSE),"") ->  | L39: 1
A40: 30 | C40: =IF($B40<>"",VLOOKUP($B40,CATLookup!$A$2:$E$271,2,FALSE),"") ->  | D40: =IF($B40<>"",VLOOKUP($B40,CATLookup!$A$2:$E$271,3,FALSE),"") ->  | E40: =IF($B40<>"",VLOOKUP($B40,CATLookup!$A$2:$E$271,4,FALSE),"") ->  | L40: 1
A41: 31 | C41: =IF($B41<>"",VLOOKUP($B41,CATLookup!$A$2:$E$271,2,FALSE),"") ->  | D41: =IF($B41<>"",VLOOKUP($B41,CATLookup!$A$2:$E$271,3,FALSE),"") ->  | E41: =IF($B41<>"",VLOOKUP($B41,CATLookup!$A$2:$E$271,4,FALSE),"") ->  | L41: 1
A42: 32 | C42: =IF($B42<>"",VLOOKUP($B42,CATLookup!$A$2:$E$271,2,FALSE),"") ->  | D42: =IF($B42<>"",VLOOKUP($B42,CATLookup!$A$2:$E$271,3,FALSE),"") ->  | E42: =IF($B42<>"",VLOOKUP($B42,CATLookup!$A$2:$E$271,4,FALSE),"") ->  | L42: 1
A43: 33 | C43: =IF($B43<>"",VLOOKUP($B43,CATLookup!$A$2:$E$271,2,FALSE),"") ->  | D43: =IF($B43<>"",VLOOKUP($B43,CATLookup!$A$2:$E$271,3,FALSE),"") ->  | E43: =IF($B43<>"",VLOOKUP($B43,CATLookup!$A$2:$E$271,4,FALSE),"") ->  | L43: 1
A44: 34 | C44: =IF($B44<>"",VLOOKUP($B44,CATLookup!$A$2:$E$271,2,FALSE),"") ->  | D44: =IF($B44<>"",VLOOKUP($B44,CATLookup!$A$2:$E$271,3,FALSE),"") ->  | E44: =IF($B44<>"",VLOOKUP($B44,CATLookup!$A$2:$E$271,4,FALSE),"") ->  | L44: 1
A45: 35 | C45: =IF($B45<>"",VLOOKUP($B45,CATLookup!$A$2:$E$271,2,FALSE),"") ->  | D45: =IF($B45<>"",VLOOKUP($B45,CATLookup!$A$2:$E$271,3,FALSE),"") ->  | E45: =IF($B45<>"",VLOOKUP($B45,CATLookup!$A$2:$E$271,4,FALSE),"") ->  | L45: 1
A46: 36 | C46: =IF($B46<>"",VLOOKUP($B46,CATLookup!$A$2:$E$271,2,FALSE),"") ->  | D46: =IF($B46<>"",VLOOKUP($B46,CATLookup!$A$2:$E$271,3,FALSE),"") ->  | E46: =IF($B46<>"",VLOOKUP($B46,CATLookup!$A$2:$E$271,4,FALSE),"") ->  | L46: 1
A47: 37 | C47: =IF($B47<>"",VLOOKUP($B47,CATLookup!$A$2:$E$271,2,FALSE),"") ->  | D47: =IF($B47<>"",VLOOKUP($B47,CATLookup!$A$2:$E$271,3,FALSE),"") ->  | E47: =IF($B47<>"",VLOOKUP($B47,CATLookup!$A$2:$E$271,4,FALSE),"") ->  | L47: 1
A48: 38 | C48: =IF($B48<>"",VLOOKUP($B48,CATLookup!$A$2:$E$271,2,FALSE),"") ->  | D48: =IF($B48<>"",VLOOKUP($B48,CATLookup!$A$2:$E$271,3,FALSE),"") ->  | E48: =IF($B48<>"",VLOOKUP($B48,CATLookup!$A$2:$E$271,4,FALSE),"") ->  | L48: 1
A49: 39 | C49: =IF($B49<>"",VLOOKUP($B49,CATLookup!$A$2:$E$271,2,FALSE),"") ->  | D49: =IF($B49<>"",VLOOKUP($B49,CATLookup!$A$2:$E$271,3,FALSE),"") ->  | E49: =IF($B49<>"",VLOOKUP($B49,CATLookup!$A$2:$E$271,4,FALSE),"") ->  | L49: 1
A50: 40 | C50: =IF($B50<>"",VLOOKUP($B50,CATLookup!$A$2:$E$271,2,FALSE),"") ->  | D50: =IF($B50<>"",VLOOKUP($B50,CATLookup!$A$2:$E$271,3,FALSE),"") ->  | E50: =IF($B50<>"",VLOOKUP($B50,CATLookup!$A$2:$E$271,4,FALSE),"") ->  | L50: 1
A51: 41 | C51: =IF($B51<>"",VLOOKUP($B51,CATLookup!$A$2:$E$271,2,FALSE),"") ->  | D51: =IF($B51<>"",VLOOKUP($B51,CATLookup!$A$2:$E$271,3,FALSE),"") ->  | E51: =IF($B51<>"",VLOOKUP($B51,CATLookup!$A$2:$E$271,4,FALSE),"") ->  | L51: 1
A52: 42 | C52: =IF($B52<>"",VLOOKUP($B52,CATLookup!$A$2:$E$271,2,FALSE),"") ->  | D52: =IF($B52<>"",VLOOKUP($B52,CATLookup!$A$2:$E$271,3,FALSE),"") ->  | E52: =IF($B52<>"",VLOOKUP($B52,CATLookup!$A$2:$E$271,4,FALSE),"") ->  | L52: 1
A53: 43 | C53: =IF($B53<>"",VLOOKUP($B53,CATLookup!$A$2:$E$271,2,FALSE),"") ->  | D53: =IF($B53<>"",VLOOKUP($B53,CATLookup!$A$2:$E$271,3,FALSE),"") ->  | E53: =IF($B53<>"",VLOOKUP($B53,CATLookup!$A$2:$E$271,4,FALSE),"") ->  | L53: 1
A54: 44 | C54: =IF($B54<>"",VLOOKUP($B54,CATLookup!$A$2:$E$271,2,FALSE),"") ->  | D54: =IF($B54<>"",VLOOKUP($B54,CATLookup!$A$2:$E$271,3,FALSE),"") ->  | E54: =IF($B54<>"",VLOOKUP($B54,CATLookup!$A$2:$E$271,4,FALSE),"") ->  | L54: 1
A55: 45 | C55: =IF($B55<>"",VLOOKUP($B55,CATLookup!$A$2:$E$271,2,FALSE),"") ->  | D55: =IF($B55<>"",VLOOKUP($B55,CATLookup!$A$2:$E$271,3,FALSE),"") ->  | E55: =IF($B55<>"",VLOOKUP($B55,CATLookup!$A$2:$E$271,4,FALSE),"") ->  | L55: 1
A56: 46 | C56: =IF($B56<>"",VLOOKUP($B56,CATLookup!$A$2:$E$271,2,FALSE),"") ->  | D56: =IF($B56<>"",VLOOKUP($B56,CATLookup!$A$2:$E$271,3,FALSE),"") ->  | E56: =IF($B56<>"",VLOOKUP($B56,CATLookup!$A$2:$E$271,4,FALSE),"") ->  | L56: 1
A57: 47 | C57: =IF($B57<>"",VLOOKUP($B57,CATLookup!$A$2:$E$271,2,FALSE),"") ->  | D57: =IF($B57<>"",VLOOKUP($B57,CATLookup!$A$2:$E$271,3,FALSE),"") ->  | E57: =IF($B57<>"",VLOOKUP($B57,CATLookup!$A$2:$E$271,4,FALSE),"") ->  | L57: 1
A58: 48 | C58: =IF($B58<>"",VLOOKUP($B58,CATLookup!$A$2:$E$271,2,FALSE),"") ->  | D58: =IF($B58<>"",VLOOKUP($B58,CATLookup!$A$2:$E$271,3,FALSE),"") ->  | E58: =IF($B58<>"",VLOOKUP($B58,CATLookup!$A$2:$E$271,4,FALSE),"") ->  | L58: 1
A59: 49 | C59: =IF($B59<>"",VLOOKUP($B59,CATLookup!$A$2:$E$271,2,FALSE),"") ->  | D59: =IF($B59<>"",VLOOKUP($B59,CATLookup!$A$2:$E$271,3,FALSE),"") ->  | E59: =IF($B59<>"",VLOOKUP($B59,CATLookup!$A$2:$E$271,4,FALSE),"") ->  | L59: 1
A60: 50 | C60: =IF($B60<>"",VLOOKUP($B60,CATLookup!$A$2:$E$271,2,FALSE),"") ->  | D60: =IF($B60<>"",VLOOKUP($B60,CATLookup!$A$2:$E$271,3,FALSE),"") ->  | E60: =IF($B60<>"",VLOOKUP($B60,CATLookup!$A$2:$E$271,4,FALSE),"") ->  | L60: 1
A61: 51 | C61: =IF($B61<>"",VLOOKUP($B61,CATLookup!$A$2:$E$271,2,FALSE),"") ->  | D61: =IF($B61<>"",VLOOKUP($B61,CATLookup!$A$2:$E$271,3,FALSE),"") ->  | E61: =IF($B61<>"",VLOOKUP($B61,CATLookup!$A$2:$E$271,4,FALSE),"") ->  | L61: 1
A62: 52 | C62: =IF($B62<>"",VLOOKUP($B62,CATLookup!$A$2:$E$271,2,FALSE),"") ->  | D62: =IF($B62<>"",VLOOKUP($B62,CATLookup!$A$2:$E$271,3,FALSE),"") ->  | E62: =IF($B62<>"",VLOOKUP($B62,CATLookup!$A$2:$E$271,4,FALSE),"") ->  | L62: 1
A63: 53 | C63: =IF($B63<>"",VLOOKUP($B63,CATLookup!$A$2:$E$271,2,FALSE),"") ->  | D63: =IF($B63<>"",VLOOKUP($B63,CATLookup!$A$2:$E$271,3,FALSE),"") ->  | E63: =IF($B63<>"",VLOOKUP($B63,CATLookup!$A$2:$E$271,4,FALSE),"") ->  | L63: 1
A64: 54 | C64: =IF($B64<>"",VLOOKUP($B64,CATLookup!$A$2:$E$271,2,FALSE),"") ->  | D64: =IF($B64<>"",VLOOKUP($B64,CATLookup!$A$2:$E$271,3,FALSE),"") ->  | E64: =IF($B64<>"",VLOOKUP($B64,CATLookup!$A$2:$E$271,4,FALSE),"") ->  | L64: 1
A65: 55 | C65: =IF($B65<>"",VLOOKUP($B65,CATLookup!$A$2:$E$271,2,FALSE),"") ->  | D65: =IF($B65<>"",VLOOKUP($B65,CATLookup!$A$2:$E$271,3,FALSE),"") ->  | E65: =IF($B65<>"",VLOOKUP($B65,CATLookup!$A$2:$E$271,4,FALSE),"") ->  | L65: 1
A66: 56 | C66: =IF($B66<>"",VLOOKUP($B66,CATLookup!$A$2:$E$271,2,FALSE),"") ->  | D66: =IF($B66<>"",VLOOKUP($B66,CATLookup!$A$2:$E$271,3,FALSE),"") ->  | E66: =IF($B66<>"",VLOOKUP($B66,CATLookup!$A$2:$E$271,4,FALSE),"") ->  | L66: 1
A67: 57 | C67: =IF($B67<>"",VLOOKUP($B67,CATLookup!$A$2:$E$271,2,FALSE),"") ->  | D67: =IF($B67<>"",VLOOKUP($B67,CATLookup!$A$2:$E$271,3,FALSE),"") ->  | E67: =IF($B67<>"",VLOOKUP($B67,CATLookup!$A$2:$E$271,4,FALSE),"") ->  | L67: 1
A68: 58 | C68: =IF($B68<>"",VLOOKUP($B68,CATLookup!$A$2:$E$271,2,FALSE),"") ->  | D68: =IF($B68<>"",VLOOKUP($B68,CATLookup!$A$2:$E$271,3,FALSE),"") ->  | E68: =IF($B68<>"",VLOOKUP($B68,CATLookup!$A$2:$E$271,4,FALSE),"") ->  | L68: 1
A69: 59 | C69: =IF($B69<>"",VLOOKUP($B69,CATLookup!$A$2:$E$271,2,FALSE),"") ->  | D69: =IF($B69<>"",VLOOKUP($B69,CATLookup!$A$2:$E$271,3,FALSE),"") ->  | E69: =IF($B69<>"",VLOOKUP($B69,CATLookup!$A$2:$E$271,4,FALSE),"") ->  | L69: 1
A70: 60 | C70: =IF($B70<>"",VLOOKUP($B70,CATLookup!$A$2:$E$271,2,FALSE),"") ->  | D70: =IF($B70<>"",VLOOKUP($B70,CATLookup!$A$2:$E$271,3,FALSE),"") ->  | E70: =IF($B70<>"",VLOOKUP($B70,CATLookup!$A$2:$E$271,4,FALSE),"") ->  | L70: 1
A71: 61 | C71: =IF($B71<>"",VLOOKUP($B71,CATLookup!$A$2:$E$271,2,FALSE),"") ->  | D71: =IF($B71<>"",VLOOKUP($B71,CATLookup!$A$2:$E$271,3,FALSE),"") ->  | E71: =IF($B71<>"",VLOOKUP($B71,CATLookup!$A$2:$E$271,4,FALSE),"") ->  | L71: 1
A72: 62 | C72: =IF($B72<>"",VLOOKUP($B72,CATLookup!$A$2:$E$271,2,FALSE),"") ->  | D72: =IF($B72<>"",VLOOKUP($B72,CATLookup!$A$2:$E$271,3,FALSE),"") ->  | E72: =IF($B72<>"",VLOOKUP($B72,CATLookup!$A$2:$E$271,4,FALSE),"") ->  | L72: 1
A73: 63 | C73: =IF($B73<>"",VLOOKUP($B73,CATLookup!$A$2:$E$271,2,FALSE),"") ->  | D73: =IF($B73<>"",VLOOKUP($B73,CATLookup!$A$2:$E$271,3,FALSE),"") ->  | E73: =IF($B73<>"",VLOOKUP($B73,CATLookup!$A$2:$E$271,4,FALSE),"") ->  | L73: 1
A74: 64 | C74: =IF($B74<>"",VLOOKUP($B74,CATLookup!$A$2:$E$271,2,FALSE),"") ->  | D74: =IF($B74<>"",VLOOKUP($B74,CATLookup!$A$2:$E$271,3,FALSE),"") ->  | E74: =IF($B74<>"",VLOOKUP($B74,CATLookup!$A$2:$E$271,4,FALSE),"") ->  | L74: 1
A75: 65 | C75: =IF($B75<>"",VLOOKUP($B75,CATLookup!$A$2:$E$271,2,FALSE),"") ->  | D75: =IF($B75<>"",VLOOKUP($B75,CATLookup!$A$2:$E$271,3,FALSE),"") ->  | E75: =IF($B75<>"",VLOOKUP($B75,CATLookup!$A$2:$E$271,4,FALSE),"") ->  | L75: 1
A76: 66 | B76: =IF(A$9=0,"No items for this report",IF(A76<=A$9,A76,"")) ->  | C76: =IF($B76<>"",VLOOKUP($B76,CATLookup!$A$2:$E$271,2,FALSE),"") ->  | D76: =IF($B76<>"",VLOOKUP($B76,CATLookup!$A$2:$E$271,3,FALSE),"") ->  | E76: =IF($B76<>"",VLOOKUP($B76,CATLookup!$A$2:$E$271,4,FALSE),"") ->  | L76: =IF(B76<>"",L75+1,1) -> 1
A77: 67 | C77: =IF($B77<>"",VLOOKUP($B77,CATLookup!$A$2:$E$271,2,FALSE),"") ->  | D77: =IF($B77<>"",VLOOKUP($B77,CATLookup!$A$2:$E$271,3,FALSE),"") ->  | E77: =IF($B77<>"",VLOOKUP($B77,CATLookup!$A$2:$E$271,4,FALSE),"") ->  | L77: 1
A78: 68 | C78: =IF($B78<>"",VLOOKUP($B78,CATLookup!$A$2:$E$271,2,FALSE),"") ->  | D78: =IF($B78<>"",VLOOKUP($B78,CATLookup!$A$2:$E$271,3,FALSE),"") ->  | E78: =IF($B78<>"",VLOOKUP($B78,CATLookup!$A$2:$E$271,4,FALSE),"") ->  | L78: 1
A79: 69 | C79: =IF($B79<>"",VLOOKUP($B79,CATLookup!$A$2:$E$271,2,FALSE),"") ->  | D79: =IF($B79<>"",VLOOKUP($B79,CATLookup!$A$2:$E$271,3,FALSE),"") ->  | E79: =IF($B79<>"",VLOOKUP($B79,CATLookup!$A$2:$E$271,4,FALSE),"") ->  | L79: 1
A80: 70 | C80: =IF($B80<>"",VLOOKUP($B80,CATLookup!$A$2:$E$271,2,FALSE),"") ->  | D80: =IF($B80<>"",VLOOKUP($B80,CATLookup!$A$2:$E$271,3,FALSE),"") ->  | E80: =IF($B80<>"",VLOOKUP($B80,CATLookup!$A$2:$E$271,4,FALSE),"") ->  | L80: 1
A81: 71 | C81: =IF($B81<>"",VLOOKUP($B81,CATLookup!$A$2:$E$271,2,FALSE),"") ->  | D81: =IF($B81<>"",VLOOKUP($B81,CATLookup!$A$2:$E$271,3,FALSE),"") ->  | E81: =IF($B81<>"",VLOOKUP($B81,CATLookup!$A$2:$E$271,4,FALSE),"") ->  | L81: 1
A82: 72 | C82: =IF($B82<>"",VLOOKUP($B82,CATLookup!$A$2:$E$271,2,FALSE),"") ->  | D82: =IF($B82<>"",VLOOKUP($B82,CATLookup!$A$2:$E$271,3,FALSE),"") ->  | E82: =IF($B82<>"",VLOOKUP($B82,CATLookup!$A$2:$E$271,4,FALSE),"") ->  | L82: 1
A83: 73 | C83: =IF($B83<>"",VLOOKUP($B83,CATLookup!$A$2:$E$271,2,FALSE),"") ->  | D83: =IF($B83<>"",VLOOKUP($B83,CATLookup!$A$2:$E$271,3,FALSE),"") ->  | E83: =IF($B83<>"",VLOOKUP($B83,CATLookup!$A$2:$E$271,4,FALSE),"") ->  | L83: 1
A84: 74 | C84: =IF($B84<>"",VLOOKUP($B84,CATLookup!$A$2:$E$271,2,FALSE),"") ->  | D84: =IF($B84<>"",VLOOKUP($B84,CATLookup!$A$2:$E$271,3,FALSE),"") ->  | E84: =IF($B84<>"",VLOOKUP($B84,CATLookup!$A$2:$E$271,4,FALSE),"") ->  | L84: 1
A85: 75 | C85: =IF($B85<>"",VLOOKUP($B85,CATLookup!$A$2:$E$271,2,FALSE),"") ->  | D85: =IF($B85<>"",VLOOKUP($B85,CATLookup!$A$2:$E$271,3,FALSE),"") ->  | E85: =IF($B85<>"",VLOOKUP($B85,CATLookup!$A$2:$E$271,4,FALSE),"") ->  | L85: 1
A86: 76 | C86: =IF($B86<>"",VLOOKUP($B86,CATLookup!$A$2:$E$271,2,FALSE),"") ->  | D86: =IF($B86<>"",VLOOKUP($B86,CATLookup!$A$2:$E$271,3,FALSE),"") ->  | E86: =IF($B86<>"",VLOOKUP($B86,CATLookup!$A$2:$E$271,4,FALSE),"") ->  | L86: 1
A87: 77 | C87: =IF($B87<>"",VLOOKUP($B87,CATLookup!$A$2:$E$271,2,FALSE),"") ->  | D87: =IF($B87<>"",VLOOKUP($B87,CATLookup!$A$2:$E$271,3,FALSE),"") ->  | E87: =IF($B87<>"",VLOOKUP($B87,CATLookup!$A$2:$E$271,4,FALSE),"") ->  | L87: 1
A88: 78 | C88: =IF($B88<>"",VLOOKUP($B88,CATLookup!$A$2:$E$271,2,FALSE),"") ->  | D88: =IF($B88<>"",VLOOKUP($B88,CATLookup!$A$2:$E$271,3,FALSE),"") ->  | E88: =IF($B88<>"",VLOOKUP($B88,CATLookup!$A$2:$E$271,4,FALSE),"") ->  | L88: 1
A89: 79 | C89: =IF($B89<>"",VLOOKUP($B89,CATLookup!$A$2:$E$271,2,FALSE),"") ->  | D89: =IF($B89<>"",VLOOKUP($B89,CATLookup!$A$2:$E$271,3,FALSE),"") ->  | E89: =IF($B89<>"",VLOOKUP($B89,CATLookup!$A$2:$E$271,4,FALSE),"") ->  | L89: 1
A90: 80 | C90: =IF($B90<>"",VLOOKUP($B90,CATLookup!$A$2:$E$271,2,FALSE),"") ->  | D90: =IF($B90<>"",VLOOKUP($B90,CATLookup!$A$2:$E$271,3,FALSE),"") ->  | E90: =IF($B90<>"",VLOOKUP($B90,CATLookup!$A$2:$E$271,4,FALSE),"") ->  | L90: 1
A91: 81 | C91: =IF($B91<>"",VLOOKUP($B91,CATLookup!$A$2:$E$271,2,FALSE),"") ->  | D91: =IF($B91<>"",VLOOKUP($B91,CATLookup!$A$2:$E$271,3,FALSE),"") ->  | E91: =IF($B91<>"",VLOOKUP($B91,CATLookup!$A$2:$E$271,4,FALSE),"") ->  | L91: 1
A92: 82 | C92: =IF($B92<>"",VLOOKUP($B92,CATLookup!$A$2:$E$271,2,FALSE),"") ->  | D92: =IF($B92<>"",VLOOKUP($B92,CATLookup!$A$2:$E$271,3,FALSE),"") ->  | E92: =IF($B92<>"",VLOOKUP($B92,CATLookup!$A$2:$E$271,4,FALSE),"") ->  | L92: 1
A93: 83 | C93: =IF($B93<>"",VLOOKUP($B93,CATLookup!$A$2:$E$271,2,FALSE),"") ->  | D93: =IF($B93<>"",VLOOKUP($B93,CATLookup!$A$2:$E$271,3,FALSE),"") ->  | E93: =IF($B93<>"",VLOOKUP($B93,CATLookup!$A$2:$E$271,4,FALSE),"") ->  | L93: 1
A94: 84 | C94: =IF($B94<>"",VLOOKUP($B94,CATLookup!$A$2:$E$271,2,FALSE),"") ->  | D94: =IF($B94<>"",VLOOKUP($B94,CATLookup!$A$2:$E$271,3,FALSE),"") ->  | E94: =IF($B94<>"",VLOOKUP($B94,CATLookup!$A$2:$E$271,4,FALSE),"") ->  | L94: 1
A95: 85 | C95: =IF($B95<>"",VLOOKUP($B95,CATLookup!$A$2:$E$271,2,FALSE),"") ->  | D95: =IF($B95<>"",VLOOKUP($B95,CATLookup!$A$2:$E$271,3,FALSE),"") ->  | E95: =IF($B95<>"",VLOOKUP($B95,CATLookup!$A$2:$E$271,4,FALSE),"") ->  | L95: 1
A96: 86 | C96: =IF($B96<>"",VLOOKUP($B96,CATLookup!$A$2:$E$271,2,FALSE),"") ->  | D96: =IF($B96<>"",VLOOKUP($B96,CATLookup!$A$2:$E$271,3,FALSE),"") ->  | E96: =IF($B96<>"",VLOOKUP($B96,CATLookup!$A$2:$E$271,4,FALSE),"") ->  | L96: 1
A97: 87 | C97: =IF($B97<>"",VLOOKUP($B97,CATLookup!$A$2:$E$271,2,FALSE),"") ->  | D97: =IF($B97<>"",VLOOKUP($B97,CATLookup!$A$2:$E$271,3,FALSE),"") ->  | E97: =IF($B97<>"",VLOOKUP($B97,CATLookup!$A$2:$E$271,4,FALSE),"") ->  | L97: 1
A98: 88 | C98: =IF($B98<>"",VLOOKUP($B98,CATLookup!$A$2:$E$271,2,FALSE),"") ->  | D98: =IF($B98<>"",VLOOKUP($B98,CATLookup!$A$2:$E$271,3,FALSE),"") ->  | E98: =IF($B98<>"",VLOOKUP($B98,CATLookup!$A$2:$E$271,4,FALSE),"") ->  | L98: 1
A99: 89 | C99: =IF($B99<>"",VLOOKUP($B99,CATLookup!$A$2:$E$271,2,FALSE),"") ->  | D99: =IF($B99<>"",VLOOKUP($B99,CATLookup!$A$2:$E$271,3,FALSE),"") ->  | E99: =IF($B99<>"",VLOOKUP($B99,CATLookup!$A$2:$E$271,4,FALSE),"") ->  | L99: 1
A100: 90 | C100: =IF($B100<>"",VLOOKUP($B100,CATLookup!$A$2:$E$271,2,FALSE),"") ->  | D100: =IF($B100<>"",VLOOKUP($B100,CATLookup!$A$2:$E$271,3,FALSE),"") ->  | E100: =IF($B100<>"",VLOOKUP($B100,CATLookup!$A$2:$E$271,4,FALSE),"") ->  | L100: 1
A101: 91 | C101: =IF($B101<>"",VLOOKUP($B101,CATLookup!$A$2:$E$271,2,FALSE),"") ->  | D101: =IF($B101<>"",VLOOKUP($B101,CATLookup!$A$2:$E$271,3,FALSE),"") ->  | E101: =IF($B101<>"",VLOOKUP($B101,CATLookup!$A$2:$E$271,4,FALSE),"") ->  | L101: 1
A102: 92 | C102: =IF($B102<>"",VLOOKUP($B102,CATLookup!$A$2:$E$271,2,FALSE),"") ->  | D102: =IF($B102<>"",VLOOKUP($B102,CATLookup!$A$2:$E$271,3,FALSE),"") ->  | E102: =IF($B102<>"",VLOOKUP($B102,CATLookup!$A$2:$E$271,4,FALSE),"") ->  | L102: 1
A103: 93 | C103: =IF($B103<>"",VLOOKUP($B103,CATLookup!$A$2:$E$271,2,FALSE),"") ->  | D103: =IF($B103<>"",VLOOKUP($B103,CATLookup!$A$2:$E$271,3,FALSE),"") ->  | E103: =IF($B103<>"",VLOOKUP($B103,CATLookup!$A$2:$E$271,4,FALSE),"") ->  | L103: 1
A104: 94 | C104: =IF($B104<>"",VLOOKUP($B104,CATLookup!$A$2:$E$271,2,FALSE),"") ->  | D104: =IF($B104<>"",VLOOKUP($B104,CATLookup!$A$2:$E$271,3,FALSE),"") ->  | E104: =IF($B104<>"",VLOOKUP($B104,CATLookup!$A$2:$E$271,4,FALSE),"") ->  | L104: 1
A105: 95 | C105: =IF($B105<>"",VLOOKUP($B105,CATLookup!$A$2:$E$271,2,FALSE),"") ->  | D105: =IF($B105<>"",VLOOKUP($B105,CATLookup!$A$2:$E$271,3,FALSE),"") ->  | E105: =IF($B105<>"",VLOOKUP($B105,CATLookup!$A$2:$E$271,4,FALSE),"") ->  | L105: 1
A106: 96 | C106: =IF($B106<>"",VLOOKUP($B106,CATLookup!$A$2:$E$271,2,FALSE),"") ->  | D106: =IF($B106<>"",VLOOKUP($B106,CATLookup!$A$2:$E$271,3,FALSE),"") ->  | E106: =IF($B106<>"",VLOOKUP($B106,CATLookup!$A$2:$E$271,4,FALSE),"") ->  | L106: 1
A107: 97 | C107: =IF($B107<>"",VLOOKUP($B107,CATLookup!$A$2:$E$271,2,FALSE),"") ->  | D107: =IF($B107<>"",VLOOKUP($B107,CATLookup!$A$2:$E$271,3,FALSE),"") ->  | E107: =IF($B107<>"",VLOOKUP($B107,CATLookup!$A$2:$E$271,4,FALSE),"") ->  | L107: 1
A108: 98 | C108: =IF($B108<>"",VLOOKUP($B108,CATLookup!$A$2:$E$271,2,FALSE),"") ->  | D108: =IF($B108<>"",VLOOKUP($B108,CATLookup!$A$2:$E$271,3,FALSE),"") ->  | E108: =IF($B108<>"",VLOOKUP($B108,CATLookup!$A$2:$E$271,4,FALSE),"") ->  | L108: 1
A109: 99 | C109: =IF($B109<>"",VLOOKUP($B109,CATLookup!$A$2:$E$271,2,FALSE),"") ->  | D109: =IF($B109<>"",VLOOKUP($B109,CATLookup!$A$2:$E$271,3,FALSE),"") ->  | E109: =IF($B109<>"",VLOOKUP($B109,CATLookup!$A$2:$E$271,4,FALSE),"") ->  | L109: 1
A110: 100 | C110: =IF($B110<>"",VLOOKUP($B110,CATLookup!$A$2:$E$271,2,FALSE),"") ->  | D110: =IF($B110<>"",VLOOKUP($B110,CATLookup!$A$2:$E$271,3,FALSE),"") ->  | E110: =IF($B110<>"",VLOOKUP($B110,CATLookup!$A$2:$E$271,4,FALSE),"") ->  | L110: 1
A111: 101 | C111: =IF($B111<>"",VLOOKUP($B111,CATLookup!$A$2:$E$271,2,FALSE),"") ->  | D111: =IF($B111<>"",VLOOKUP($B111,CATLookup!$A$2:$E$271,3,FALSE),"") ->  | E111: =IF($B111<>"",VLOOKUP($B111,CATLookup!$A$2:$E$271,4,FALSE),"") ->  | L111: 1
A112: 102 | C112: =IF($B112<>"",VLOOKUP($B112,CATLookup!$A$2:$E$271,2,FALSE),"") ->  | D112: =IF($B112<>"",VLOOKUP($B112,CATLookup!$A$2:$E$271,3,FALSE),"") ->  | E112: =IF($B112<>"",VLOOKUP($B112,CATLookup!$A$2:$E$271,4,FALSE),"") ->  | L112: 1
A113: 103 | C113: =IF($B113<>"",VLOOKUP($B113,CATLookup!$A$2:$E$271,2,FALSE),"") ->  | D113: =IF($B113<>"",VLOOKUP($B113,CATLookup!$A$2:$E$271,3,FALSE),"") ->  | E113: =IF($B113<>"",VLOOKUP($B113,CATLookup!$A$2:$E$271,4,FALSE),"") ->  | L113: 1
A114: 104 | C114: =IF($B114<>"",VLOOKUP($B114,CATLookup!$A$2:$E$271,2,FALSE),"") ->  | D114: =IF($B114<>"",VLOOKUP($B114,CATLookup!$A$2:$E$271,3,FALSE),"") ->  | E114: =IF($B114<>"",VLOOKUP($B114,CATLookup!$A$2:$E$271,4,FALSE),"") ->  | L114: 1
A115: 105 | C115: =IF($B115<>"",VLOOKUP($B115,CATLookup!$A$2:$E$271,2,FALSE),"") ->  | D115: =IF($B115<>"",VLOOKUP($B115,CATLookup!$A$2:$E$271,3,FALSE),"") ->  | E115: =IF($B115<>"",VLOOKUP($B115,CATLookup!$A$2:$E$271,4,FALSE),"") ->  | L115: 1
A116: 106 | C116: =IF($B116<>"",VLOOKUP($B116,CATLookup!$A$2:$E$271,2,FALSE),"") ->  | D116: =IF($B116<>"",VLOOKUP($B116,CATLookup!$A$2:$E$271,3,FALSE),"") ->  | E116: =IF($B116<>"",VLOOKUP($B116,CATLookup!$A$2:$E$271,4,FALSE),"") ->  | L116: 1
A117: 107 | C117: =IF($B117<>"",VLOOKUP($B117,CATLookup!$A$2:$E$271,2,FALSE),"") ->  | D117: =IF($B117<>"",VLOOKUP($B117,CATLookup!$A$2:$E$271,3,FALSE),"") ->  | E117: =IF($B117<>"",VLOOKUP($B117,CATLookup!$A$2:$E$271,4,FALSE),"") ->  | L117: 1
A118: 108 | C118: =IF($B118<>"",VLOOKUP($B118,CATLookup!$A$2:$E$271,2,FALSE),"") ->  | D118: =IF($B118<>"",VLOOKUP($B118,CATLookup!$A$2:$E$271,3,FALSE),"") ->  | E118: =IF($B118<>"",VLOOKUP($B118,CATLookup!$A$2:$E$271,4,FALSE),"") ->  | L118: 1
A119: 109 | C119: =IF($B119<>"",VLOOKUP($B119,CATLookup!$A$2:$E$271,2,FALSE),"") ->  | D119: =IF($B119<>"",VLOOKUP($B119,CATLookup!$A$2:$E$271,3,FALSE),"") ->  | E119: =IF($B119<>"",VLOOKUP($B119,CATLookup!$A$2:$E$271,4,FALSE),"") ->  | L119: 1
A120: 110 | C120: =IF($B120<>"",VLOOKUP($B120,CATLookup!$A$2:$E$271,2,FALSE),"") ->  | D120: =IF($B120<>"",VLOOKUP($B120,CATLookup!$A$2:$E$271,3,FALSE),"") ->  | E120: =IF($B120<>"",VLOOKUP($B120,CATLookup!$A$2:$E$271,4,FALSE),"") ->  | L120: 1
A121: 111 | C121: =IF($B121<>"",VLOOKUP($B121,CATLookup!$A$2:$E$271,2,FALSE),"") ->  | D121: =IF($B121<>"",VLOOKUP($B121,CATLookup!$A$2:$E$271,3,FALSE),"") ->  | E121: =IF($B121<>"",VLOOKUP($B121,CATLookup!$A$2:$E$271,4,FALSE),"") ->  | L121: 1
A122: 112 | C122: =IF($B122<>"",VLOOKUP($B122,CATLookup!$A$2:$E$271,2,FALSE),"") ->  | D122: =IF($B122<>"",VLOOKUP($B122,CATLookup!$A$2:$E$271,3,FALSE),"") ->  | E122: =IF($B122<>"",VLOOKUP($B122,CATLookup!$A$2:$E$271,4,FALSE),"") ->  | L122: 1
A123: 113 | C123: =IF($B123<>"",VLOOKUP($B123,CATLookup!$A$2:$E$271,2,FALSE),"") ->  | D123: =IF($B123<>"",VLOOKUP($B123,CATLookup!$A$2:$E$271,3,FALSE),"") ->  | E123: =IF($B123<>"",VLOOKUP($B123,CATLookup!$A$2:$E$271,4,FALSE),"") ->  | L123: 1
A124: 114 | C124: =IF($B124<>"",VLOOKUP($B124,CATLookup!$A$2:$E$271,2,FALSE),"") ->  | D124: =IF($B124<>"",VLOOKUP($B124,CATLookup!$A$2:$E$271,3,FALSE),"") ->  | E124: =IF($B124<>"",VLOOKUP($B124,CATLookup!$A$2:$E$271,4,FALSE),"") ->  | L124: 1
A125: 115 | C125: =IF($B125<>"",VLOOKUP($B125,CATLookup!$A$2:$E$271,2,FALSE),"") ->  | D125: =IF($B125<>"",VLOOKUP($B125,CATLookup!$A$2:$E$271,3,FALSE),"") ->  | E125: =IF($B125<>"",VLOOKUP($B125,CATLookup!$A$2:$E$271,4,FALSE),"") ->  | L125: 1
A126: 116 | C126: =IF($B126<>"",VLOOKUP($B126,CATLookup!$A$2:$E$271,2,FALSE),"") ->  | D126: =IF($B126<>"",VLOOKUP($B126,CATLookup!$A$2:$E$271,3,FALSE),"") ->  | E126: =IF($B126<>"",VLOOKUP($B126,CATLookup!$A$2:$E$271,4,FALSE),"") ->  | L126: 1
A127: 117 | C127: =IF($B127<>"",VLOOKUP($B127,CATLookup!$A$2:$E$271,2,FALSE),"") ->  | D127: =IF($B127<>"",VLOOKUP($B127,CATLookup!$A$2:$E$271,3,FALSE),"") ->  | E127: =IF($B127<>"",VLOOKUP($B127,CATLookup!$A$2:$E$271,4,FALSE),"") ->  | L127: 1
A128: 118 | C128: =IF($B128<>"",VLOOKUP($B128,CATLookup!$A$2:$E$271,2,FALSE),"") ->  | D128: =IF($B128<>"",VLOOKUP($B128,CATLookup!$A$2:$E$271,3,FALSE),"") ->  | E128: =IF($B128<>"",VLOOKUP($B128,CATLookup!$A$2:$E$271,4,FALSE),"") ->  | L128: 1
A129: 119 | C129: =IF($B129<>"",VLOOKUP($B129,CATLookup!$A$2:$E$271,2,FALSE),"") ->  | D129: =IF($B129<>"",VLOOKUP($B129,CATLookup!$A$2:$E$271,3,FALSE),"") ->  | E129: =IF($B129<>"",VLOOKUP($B129,CATLookup!$A$2:$E$271,4,FALSE),"") ->  | L129: 1
A130: 120 | C130: =IF($B130<>"",VLOOKUP($B130,CATLookup!$A$2:$E$271,2,FALSE),"") ->  | D130: =IF($B130<>"",VLOOKUP($B130,CATLookup!$A$2:$E$271,3,FALSE),"") ->  | E130: =IF($B130<>"",VLOOKUP($B130,CATLookup!$A$2:$E$271,4,FALSE),"") ->  | L130: 1
A131: 121 | C131: =IF($B131<>"",VLOOKUP($B131,CATLookup!$A$2:$E$271,2,FALSE),"") ->  | D131: =IF($B131<>"",VLOOKUP($B131,CATLookup!$A$2:$E$271,3,FALSE),"") ->  | E131: =IF($B131<>"",VLOOKUP($B131,CATLookup!$A$2:$E$271,4,FALSE),"") ->  | L131: 1
A132: 122 | C132: =IF($B132<>"",VLOOKUP($B132,CATLookup!$A$2:$E$271,2,FALSE),"") ->  | D132: =IF($B132<>"",VLOOKUP($B132,CATLookup!$A$2:$E$271,3,FALSE),"") ->  | E132: =IF($B132<>"",VLOOKUP($B132,CATLookup!$A$2:$E$271,4,FALSE),"") ->  | L132: 1
A133: 123 | C133: =IF($B133<>"",VLOOKUP($B133,CATLookup!$A$2:$E$271,2,FALSE),"") ->  | D133: =IF($B133<>"",VLOOKUP($B133,CATLookup!$A$2:$E$271,3,FALSE),"") ->  | E133: =IF($B133<>"",VLOOKUP($B133,CATLookup!$A$2:$E$271,4,FALSE),"") ->  | L133: 1
A134: 124 | C134: =IF($B134<>"",VLOOKUP($B134,CATLookup!$A$2:$E$271,2,FALSE),"") ->  | D134: =IF($B134<>"",VLOOKUP($B134,CATLookup!$A$2:$E$271,3,FALSE),"") ->  | E134: =IF($B134<>"",VLOOKUP($B134,CATLookup!$A$2:$E$271,4,FALSE),"") ->  | L134: 1
A135: 125 | C135: =IF($B135<>"",VLOOKUP($B135,CATLookup!$A$2:$E$271,2,FALSE),"") ->  | D135: =IF($B135<>"",VLOOKUP($B135,CATLookup!$A$2:$E$271,3,FALSE),"") ->  | E135: =IF($B135<>"",VLOOKUP($B135,CATLookup!$A$2:$E$271,4,FALSE),"") ->  | L135: 1
A136: 126 | C136: =IF($B136<>"",VLOOKUP($B136,CATLookup!$A$2:$E$271,2,FALSE),"") ->  | D136: =IF($B136<>"",VLOOKUP($B136,CATLookup!$A$2:$E$271,3,FALSE),"") ->  | E136: =IF($B136<>"",VLOOKUP($B136,CATLookup!$A$2:$E$271,4,FALSE),"") ->  | L136: 1
A137: 127 | C137: =IF($B137<>"",VLOOKUP($B137,CATLookup!$A$2:$E$271,2,FALSE),"") ->  | D137: =IF($B137<>"",VLOOKUP($B137,CATLookup!$A$2:$E$271,3,FALSE),"") ->  | E137: =IF($B137<>"",VLOOKUP($B137,CATLookup!$A$2:$E$271,4,FALSE),"") ->  | L137: 1
A138: 128 | C138: =IF($B138<>"",VLOOKUP($B138,CATLookup!$A$2:$E$271,2,FALSE),"") ->  | D138: =IF($B138<>"",VLOOKUP($B138,CATLookup!$A$2:$E$271,3,FALSE),"") ->  | E138: =IF($B138<>"",VLOOKUP($B138,CATLookup!$A$2:$E$271,4,FALSE),"") ->  | L138: 1
A139: 129 | C139: =IF($B139<>"",VLOOKUP($B139,CATLookup!$A$2:$E$271,2,FALSE),"") ->  | D139: =IF($B139<>"",VLOOKUP($B139,CATLookup!$A$2:$E$271,3,FALSE),"") ->  | E139: =IF($B139<>"",VLOOKUP($B139,CATLookup!$A$2:$E$271,4,FALSE),"") ->  | L139: 1
A140: 130 | B140: =IF(A$9=0,"No items for this report",IF(A140<=A$9,A140,"")) ->  | C140: =IF($B140<>"",VLOOKUP($B140,CATLookup!$A$2:$E$271,2,FALSE),"") ->  | D140: =IF($B140<>"",VLOOKUP($B140,CATLookup!$A$2:$E$271,3,FALSE),"") ->  | E140: =IF($B140<>"",VLOOKUP($B140,CATLookup!$A$2:$E$271,4,FALSE),"") ->  | L140: =IF(B140<>"",L139+1,1) -> 1
